Workbook

Sheet Pdiss & Compensation
A1: A4413 Estimated Power Dissipation and Compensation Worksheet | G1: Reset = | H1: 0 | AM1: 0
B2: = Design Entry | D2: If any cells give an error try clicking on "Converge" | G2: Buck | H2: Vin | I2: =Vin_nom -> 12 | J2: =Vin_min -> 3.5 | K2: =J2+(Vin_max-Vin_min)/49 -> 3.795918367 | L2: 4.091836735 | M2: 4.387755102 | N2: 4.683673469 | O2: 4.979591837 | P2: 5.275510204 | Q2: 5.571428571 | R2: 5.867346939 | S2: 6.163265306 | T2: 6.459183673 | U2: 6.755102041 | V2: 7.051020408 | W2: 7.346938776 | X2: 7.642857143 | Y2: 7.93877551 | Z2: 8.234693878 | AA2: 8.530612245 | AB2: 8.826530612 | AC2: 9.12244898 | AD2: 9.418367347 | AE2: 9.714285714 | AF2: 10.01020408 | AG2: 10.30612245 | AH2: 10.60204082 | AI2: 10.89795918 | AJ2: 11.19387755 | AK2: 11.48979592 | AL2: 11.78571429 | AM2: 12.08163265 | AN2: 12.37755102 | AO2: 12.67346939 | AP2: 12.96938776 | AQ2: =AP2+(Vin_max-Vin_min)/49 -> 13.26530612 | AR2: 13.56122449 | AS2: 13.85714286 | AT2: 14.15306122 | AU2: 14.44897959 | AV2: 14.74489796 | AW2: 15.04081633 | AX2: 15.33673469 | AY2: 15.63265306 | AZ2: 15.92857143 | BA2: 16.2244898 | BB2: 16.52040816 | BC2: 16.81632653 | BD2: 17.1122449 | BE2: 17.40816327 | BF2: 17.70408163 | BG2: 18 | BH2: =V_AbsMax -> 36 | BI2: Vin
B3: ** Ensure iterative calculations are enabled ** | G3: Buck-Boost | H3: Pdiss total | I3: =I33+I36+I59+I62+I65+I68+I21*Icc+I52+I56 -> 0.4959435402 | J3: 0.860935885 | K3: 0.7634582228 | L3: 0.6873625883 | M3: 0.6251141503 | N3: 0.5780303419 | O3: 0.541908237 | P3: 0.5139409477 | Q3: 0.4921756468 | R3: 0.4752804984 | S3: 0.4622720594 | T3: 0.4524112563 | U3: 0.4451406649 | V3: 0.4317642545 | W3: 0.423206416 | X3: 0.4250071065 | Y3: 0.4272783234 | Z3: 0.4299926344 | AA3: 0.4331263191 | AB3: 0.4366587641 | AC3: 0.4405719722 | AD3: 0.4448501617 | AE3: 0.4494794365 | AF3: 0.4544475139 | AG3: 0.4597434972 | AH3: 0.4653576864 | AI3: 0.4712814187 | AJ3: 0.4775069335 | AK3: 0.4840272587 | AL3: 0.4908361126 | AM3: 0.4979278214 | AN3: 0.5052972467 | AO3: =AO33+AO36+AO59+AO62+AO65+AO68+AO21*Icc+AO52+AO56 -> 0.5129397248 | AP3: 0.5208510125 | AQ3: 0.5290272411 | AR3: 0.5374648763 | AS3: 0.5461606823 | AT3: 0.5551116914 | AU3: 0.5643151769 | AV3: 0.5737686288 | AW3: 0.5834697329 | AX3: 0.5934163523 | AY3: 0.6036065104 | AZ3: 0.6140383763 | BA3: 0.6247102518 | BB3: 0.6356205593 | BC3: 0.6467678315 | BD3: 0.658150702 | BE3: 0.6697678964 | BF3: 0.6816182253 | BG3: 0.6937005767 | BH3: 1.108534463 | BI3: Pdiss total | BJ3: Buck-Boost
B4: Select Topology: | C4: Buck-Boost | D4: Select either Buck or Buck-Boost operation | H4: Tj | I4: =IF(Reset=1,150,Ta+Rth_ja*I3) -> 139.8783062 | J4: =IF(Reset=1,150,Ta+Rth_ja*J3) -> 150.8280766 | K4: =IF(Reset=1,150,Ta+Rth_ja*K3) -> 147.9037467 | L4: 145.6208776 | M4: 143.7534245 | N4: 142.3409103 | O4: 141.2572471 | P4: 140.4182284 | Q4: 139.7652694 | R4: 139.258415 | S4: 138.8681618 | T4: 138.5723377 | U4: 138.3542199 | V4: 137.9529276 | W4: 137.6961925 | X4: 137.7502132 | Y4: 137.8183497 | Z4: 137.899779 | AA4: 137.9937896 | AB4: 138.0997629 | AC4: 138.2171592 | AD4: 138.3455049 | AE4: 138.4843831 | AF4: 138.6334254 | AG4: 138.7923049 | AH4: 138.9607306 | AI4: 139.1384426 | AJ4: 139.325208 | AK4: 139.5208178 | AL4: 139.7250834 | AM4: 139.9378346 | AN4: 140.1589174 | AO4: 140.3881917 | AP4: =IF(Reset=1,150,Ta+Rth_ja*AP3) -> 140.6255304 | AQ4: 140.8708172 | AR4: 141.1239463 | AS4: 141.3848205 | AT4: 141.6533507 | AU4: 141.9294553 | AV4: 142.2130589 | AW4: 142.504092 | AX4: 142.8024906 | AY4: 143.1081953 | AZ4: 143.4211513 | BA4: 143.7413076 | BB4: 144.0686168 | BC4: 144.4030349 | BD4: 144.7445211 | BE4: 145.0930369 | BF4: 145.4485468 | BG4: 145.8110173 | BH4: =IF(Reset=1,150,Ta+Rth_ja*BH3) -> 158.2560339 | BI4: Tj
G5: Yes | J5: =J2 -> 3.5 | K5: =K2 -> 3.795918367 | L5: 4.091836735 | M5: 4.387755102 | N5: 4.683673469 | O5: 4.979591837 | P5: 5.275510204 | Q5: 5.571428571 | R5: 5.867346939 | S5: 6.163265306 | T5: 6.459183673 | U5: 6.755102041 | V5: 7.051020408 | W5: 7.346938776 | X5: 7.642857143 | Y5: 7.93877551 | Z5: 8.234693878 | AA5: 8.530612245 | AB5: 8.826530612 | AC5: 9.12244898 | AD5: 9.418367347 | AE5: 9.714285714 | AF5: 10.01020408 | AG5: 10.30612245 | AH5: 10.60204082 | AI5: 10.89795918 | AJ5: 11.19387755 | AK5: 11.48979592 | AL5: 11.78571429 | AM5: 12.08163265 | AN5: 12.37755102 | AO5: 12.67346939 | AP5: 12.96938776 | AQ5: 13.26530612 | AR5: 13.56122449 | AS5: 13.85714286 | AT5: 14.15306122 | AU5: 14.44897959 | AV5: 14.74489796 | AW5: 15.04081633 | AX5: 15.33673469 | AY5: 15.63265306 | AZ5: 15.92857143 | BA5: 16.2244898 | BB5: 16.52040816 | BC5: 16.81632653 | BD5: 17.1122449 | BE5: 17.40816327 | BF5: 17.70408163 | BG5: 18 | BH5: 36
B6: Vin nom | C6: 12 | D6: Enter nominal operating voltage here | G6: No
B7: Vin min (Buck Boost) | C7: 3.5 | D7: Enter minimum voltage for Buck Boost mode
B8: Vin min (Buck) | C8: 6 | D8: Enter minimum voltage for Buck mode | G8: Buck Boost Mode Calculations | I8: =IF(I14>I12,"Boost >","buck >") -> buck > | J8: buck > | K8: buck > | L8: buck > | M8: buck > | N8: buck > | O8: buck > | P8: buck > | Q8: buck > | R8: buck > | S8: buck > | T8: buck > | U8: buck > | V8: buck > | W8: buck > | X8: buck > | Y8: buck > | Z8: buck > | AA8: buck > | AB8: buck > | AC8: buck > | AD8: buck > | AE8: buck > | AF8: buck > | AG8: buck > | AH8: buck > | AI8: buck > | AJ8: buck > | AK8: buck > | AL8: buck > | AM8: buck > | AN8: buck > | AO8: =IF(AO14>AO12,"Boost >","buck >") -> buck > | AP8: buck > | AQ8: buck > | AR8: buck > | AS8: buck > | AT8: buck > | AU8: buck > | AV8: buck > | AW8: buck > | AX8: buck > | AY8: buck > | AZ8: buck > | BA8: buck > | BB8: buck > | BC8: buck > | BD8: buck > | BE8: buck > | BF8: buck > | BG8: buck > | BH8: buck > | BJ8: Buck Boost Mode Calculations
B9: Vin max (operating) | C9: 18 | D9: Enter maximum operating voltage. This is used for plots. | H9: V1 | I9: =IF(Reset=1,I2-Vreg,IF(I14=0,I2-(I22-I23/2)*(I30+dcr*10^-3)-I21-I75,I2-(I22-I23/2)*(I30+R_ds_ON_boost+dcr*10^-3))) -> 6.039777133 | J9: =IF(Reset=1,J2,IF(J14=0,J2-(J22-J23/2)*(J30+dcr*10^-3)-J21-J75,J2-(J22-J23/2)*(J30+R_ds_ON_boost+dcr*10^-3))) -> 2.816708462 | K9: 3.174931119 | L9: 3.522571499 | M9: 3.861697832 | N9: 4.194648073 | O9: 4.522589988 | P9: 4.846387674 | Q9: 5.166694869 | R9: 5.484027774 | S9: 5.798791224 | T9: 6.111307817 | U9: 6.421839396 | V9: 6.744809518 | W9: 1.389462843 | X9: 1.685051257 | Y9: 1.980682344 | Z9: 2.276348376 | AA9: 2.572043057 | AB9: 2.867761229 | AC9: 3.16349864 | AD9: 3.45925177 | AE9: 3.755017687 | AF9: 4.05079394 | AG9: 4.34657847 | AH9: 4.642369545 | AI9: 4.938165696 | AJ9: 5.23396568 | AK9: 5.529768436 | AL9: 5.825573061 | AM9: 6.12137878 | AN9: 6.417184931 | AO9: 6.712990943 | AP9: =IF(Reset=1,AP2,IF(AP14=0,AP2-(AP22-AP23/2)*(AP30+dcr*10^-3)-AP21-AP75,AP2-(AP22-AP23/2)*(AP30+R_ds_ON_boost+dcr*10^-3))) -> 7.008796324 | AQ9: 7.304600651 | AR9: 7.600403557 | AS9: 7.896204726 | AT9: 8.192003884 | AU9: 8.487800791 | AV9: 8.783595243 | AW9: 9.079387059 | AX9: 9.375176083 | AY9: 9.670962181 | AZ9: 9.966745234 | BA9: 10.26252514 | BB9: 10.55830181 | BC9: 10.85407517 | BD9: 11.14984516 | BE9: 11.4456117 | BF9: 11.74137476 | BG9: 12.0371343 | BH9: 30.02999164 | BI9: V1
B10: Vin abs max | C10: 36 | D10: Enter abs maximum voltage. | H10: V2 | I10: =IF(Reset=1,0,IF(I12>I14,IF(I14=0,0,Vreg+I71+(I22-I23/2)*(I30+dcr*10^-3)-I2),I71+(I22-I23/2)*(R_ds_ON_boost+dcr*10^-3))) -> 0 | J10: =IF(Reset=1,J71,IF(J12>J14,IF(J14=0,0,Vreg+J71+(J22-J23/2)*(J30+dcr*10^-3)-J2),J71+(J22-J23/2)*(R_ds_ON_boost+dcr*10^-3))) -> 2.929584769 | K10: 2.563372896 | L10: 2.208543408 | M10: 1.862589427 | N10: 1.523945596 | O10: 1.191183045 | P10: 0.8629625968 | Q10: 0.5374737005 | R10: 0.2156127309 | S10: -0.1031197079 | T10: -0.4191221114 | U10: -0.7327166386 | V10: -1.058429085 | W10: 0 | X10: 0 | Y10: 0 | Z10: 0 | AA10: 0 | AB10: 0 | AC10: 0 | AD10: 0 | AE10: 0 | AF10: 0 | AG10: 0 | AH10: 0 | AI10: 0 | AJ10: 0 | AK10: 0 | AL10: 0 | AM10: 0 | AN10: 0 | AO10: 0 | AP10: =IF(Reset=1,AP71,IF(AP12>AP14,IF(AP14=0,0,Vreg+AP71+(AP22-AP23/2)*(AP30+dcr*10^-3)-AP2),AP71+(AP22-AP23/2)*(R_ds_ON_boost+dcr*10^-3))) -> 0 | AQ10: 0 | AR10: 0 | AS10: 0 | AT10: 0 | AU10: 0 | AV10: 0 | AW10: 0 | AX10: 0 | AY10: 0 | AZ10: 0 | BA10: 0 | BB10: 0 | BC10: 0 | BD10: 0 | BE10: 0 | BF10: 0 | BG10: 0 | BH10: 0 | BI10: V2
B11: Switching frequency | C11: 2000 | D11: Enter nominal switching frequency | G11: ton min (LG) | H11: V3 | I11: =IF(Reset=1,Vreg,Vreg+I71+I75+(I22-I23/2)*dcr*10^-3) -> 6.123077007 | J11: =Vreg+J71+J75+(J22-J23/2)*dcr*10^-3 -> 6.419548786 | K11: 6.379666533 | L11: 6.345614819 | M11: 6.316093948 | N11: 6.290664841 | O11: 6.268551847 | P11: 6.248884519 | Q11: 6.230062457 | R11: 6.212061088 | S11: 6.196042003 | T11: 6.181749615 | U11: 6.168975809 | V11: 6.157504968 | W11: 6.131269065 | X11: 6.130575184 | Y11: 6.12990876 | Z11: 6.129269284 | AA11: 6.128655995 | AB11: 6.128067976 | AC11: 6.127504219 | AD11: 6.126963669 | AE11: 6.126445259 | AF11: 6.125947929 | AG11: 6.125470641 | AH11: 6.125012393 | AI11: 6.12457222 | AJ11: 6.124149202 | AK11: 6.12374246 | AL11: 6.123351165 | AM11: 6.122974528 | AN11: 6.122611806 | AO11: 6.122262299 | AP11: =Vreg+AP71+AP75+(AP22-AP23/2)*dcr*10^-3 -> 6.121925344 | AQ11: 6.121600318 | AR11: 6.121286635 | AS11: 6.120983743 | AT11: 6.120691119 | AU11: 6.120408276 | AV11: 6.120134751 | AW11: 6.119870109 | AX11: 6.11961394 | AY11: 6.119365859 | AZ11: 6.1191255 | BA11: 6.11889252 | BB11: 6.118666594 | BC11: 6.118447416 | BD11: 6.118234694 | BE11: 6.118028156 | BF11: 6.117827542 | BG11: 6.117632604 | BH11: 6.113417949 | BI11: V3
B12: FSET Resistor (RFSET) = | C12: =21956/fsw - 2.315 -> 8.663 | D12: Required frequency setting resistor (KΩ), use the closest available 1% value | G12: 55 | H12: Buck duty | I12: =IF(Reset=1,0.7,IF(I14=0,IF(I11/(I9+I11)>1,1,I11/(I9+I11)),IF(IF((I11*(1-I14)+I10*I14)/(I9+I10)>I14,(I10*I14-I11+I9*I14)/(I10-I11),(I11*(1-I14)+I10*I14)/(I9+I10))>$M$169,$M$169,IF((I11*(1-I14)+I10*I14)/(I9+I10)>I14,(I10*I14-I11+I9*I14)/(I10-I11),(I11*(1-I14)+I10*I14)/(I9+I10))))) -> 0.5034243555 | J12: 0.84 | K12: 0.84 | L12: 0.8342149584 | M12: 0.817265949 | N12: 0.8037562831 | O12: 0.7928141963 | P12: 0.7837994399 | Q12: 0.7761512481 | R12: 0.7696866562 | S12: 0.7642238912 | T12: 0.7595789911 | U12: 0.7556093661 | V12: 0.7507157058 | W12: 0.8152489864 | X12: 0.784399719 | Y12: 0.75579063 | Z12: 0.7291872569 | AA12: 0.7043866198 | AB12: 0.6812121303 | AC12: 0.6595094536 | AD12: 0.6391431225 | AE12: 0.6199937492 | AF12: 0.6019557151 | AG12: 0.5849352477 | AH12: 0.5688488092 | AI12: 0.5536217405 | AJ12: 0.5391871156 | AK12: 0.5254847672 | AL12: 0.5124604566 | AM12: 0.5000651626 | AN12: 0.4882544697 | AO12: =IF(Reset=1,0.7,IF(AO14=0,IF(AO11/(AO9+AO11)>1,1,AO11/(AO9+AO11)),IF(IF((AO11*(1-AO14)+AO10*AO14)/(AO9+AO10)>AO14,(AO10*AO14-AO11+AO9*AO14)/(AO10-AO11),(AO11*(1-AO14)+AO10*AO14)/(AO9+AO10))>$M$169,$M$169,IF((AO11*(1-AO14)+AO10*AO14)/(AO9+AO10)>AO14,(AO10*AO14-AO11+AO9*AO14)/(AO10-AO11),(AO11*(1-AO14)+AO10*AO14)/(AO9+AO10))))) -> 0.476988041 | AP12: 0.4662291608 | AQ12: 0.4559443384 | AR12: 0.4461029618 | AS12: 0.4366769953 | AT12: 0.4276407146 | AU12: 0.4189704739 | AV12: 0.4106445 | AW12: 0.4026427109 | AX12: 0.394946555 | AY12: 0.3875388683 | AZ12: 0.3804037469 | BA12: 0.3735264338 | BB12: 0.3668932173 | BC12: 0.3604913402 | BD12: 0.3543089184 | BE12: 0.3483348671 | BF12: 0.3425588353 | BG12: 0.3369711457 | BH12: 0.1691433658 | BI12: Buck duty
B13: TAMB | C13: 125 | D13: Enter maximum ambient operating temperature | G13: Min Boost Duty | I13: =IF(m_*I2+b_<0,0,m_*I2+b_) -> 0 | J13: 0.58 | K13: 0.5425170068 | L13: 0.5050340136 | M13: 0.4675510204 | N13: 0.4300680272 | O13: 0.392585034 | P13: 0.3551020408 | Q13: 0.3176190476 | R13: 0.2801360544 | S13: 0.2426530612 | T13: 0.205170068 | U13: 0.1676870748 | V13: 0.1302040816 | W13: 0.09272108844 | X13: 0.05523809524 | Y13: 0.01775510204 | Z13: 0 | AA13: 0 | AB13: 0 | AC13: 0 | AD13: 0 | AE13: 0 | AF13: 0 | AG13: 0 | AH13: 0 | AI13: 0 | AJ13: 0 | AK13: 0 | AL13: 0 | AM13: 0 | AN13: 0 | AO13: =IF(m_*AO2+b_<0,0,m_*AO2+b_) -> 0 | AP13: 0 | AQ13: 0 | AR13: 0 | AS13: 0 | AT13: 0 | AU13: 0 | AV13: 0 | AW13: 0 | AX13: 0 | AY13: 0 | AZ13: 0 | BA13: 0 | BB13: 0 | BC13: 0 | BD13: 0 | BE13: 0 | BF13: 0 | BG13: 0 | BH13: 0
G14: =t_on_min_Boost*I19*10^-6 -> 0.11 | H14: Boost duty | I14: =IF(I13<D_boost_min,0,I13) -> 0 | J14: 0.58 | K14: 0.5425170068 | L14: 0.5050340136 | M14: 0.4675510204 | N14: 0.4300680272 | O14: 0.392585034 | P14: 0.3551020408 | Q14: 0.3176190476 | R14: 0.2801360544 | S14: 0.2426530612 | T14: 0.205170068 | U14: 0.1676870748 | V14: 0.1302040816 | W14: 0 | X14: 0 | Y14: 0 | Z14: 0 | AA14: 0 | AB14: 0 | AC14: 0 | AD14: 0 | AE14: 0 | AF14: 0 | AG14: 0 | AH14: 0 | AI14: 0 | AJ14: 0 | AK14: 0 | AL14: 0 | AM14: 0 | AN14: 0 | AO14: =IF(AO13<D_boost_min,0,AO13) -> 0 | AP14: 0 | AQ14: 0 | AR14: 0 | AS14: 0 | AT14: 0 | AU14: 0 | AV14: 0 | AW14: 0 | AX14: 0 | AY14: 0 | AZ14: 0 | BA14: 0 | BB14: 0 | BC14: 0 | BD14: 0 | BE14: 0 | BF14: 0 | BG14: 0 | BH14: =IF(BH13<D_boost_min,0,BH13) -> 0 | BI14: Boost duty
B15: VREG | C15: 5.35 | D15: VREG is fixed at 5.35V | H15: ton buck | I15: =IF(I12>1,1000/fsw,IF(I12*1000/fsw<0.16,0.16,I12*1000/fsw)) -> 0.2517121778 | J15: =IF(J12>1,1000/fsw,IF(J12*1000/fsw<0.16,0.16,J12*1000/fsw)) -> 0.42 | K15: 0.42 | L15: 0.4171074792 | M15: 0.4086329745 | N15: 0.4018781416 | O15: 0.3964070982 | P15: 0.39189972 | Q15: 0.3880756241 | R15: 0.3848433281 | S15: 0.3821119456 | T15: 0.3797894956 | U15: 0.3778046831 | V15: 0.3753578529 | W15: 0.4076244932 | X15: 0.3921998595 | Y15: 0.377895315 | Z15: 0.3645936285 | AA15: 0.3521933099 | AB15: 0.3406060651 | AC15: 0.3297547268 | AD15: 0.3195715613 | AE15: 0.3099968746 | AF15: 0.3009778576 | AG15: 0.2924676239 | AH15: 0.2844244046 | AI15: 0.2768108703 | AJ15: 0.2695935578 | AK15: 0.2627423836 | AL15: 0.2562302283 | AM15: 0.2500325813 | AN15: 0.2441272349 | AO15: =IF(AO12>1,1000/fsw,IF(AO12*1000/fsw<0.16,0.16,AO12*1000/fsw)) -> 0.2384940205 | AP15: 0.2331145804 | AQ15: 0.2279721692 | AR15: 0.2230514809 | AS15: 0.2183384976 | AT15: 0.2138203573 | AU15: 0.209485237 | AV15: 0.20532225 | AW15: 0.2013213554 | AX15: 0.1974732775 | AY15: 0.1937694342 | AZ15: 0.1902018735 | BA15: 0.1867632169 | BB15: 0.1834466087 | BC15: 0.1802456701 | BD15: 0.1771544592 | BE15: 0.1741674336 | BF15: 0.1712794177 | BG15: 0.1684855729 | BH15: =IF(BH12>1,1000/fsw,IF(BH12*1000/fsw<0.16,0.16,BH12*1000/fsw)) -> 0.16 | BI15: ton buck
B16: Vout sync buck | C16: 3.3 | D16: Enter sync buck output voltage, minimum is 0.800V | H16: toff buck | I16: =I15/I12-I15 -> 0.2482878222 | J16: =J15/J12-J15 -> 0.08 | K16: 0.08 | L16: 0.08289252079 | M16: 0.09136702549 | N16: 0.09812185845 | O16: 0.1035929018 | P16: 0.10810028 | Q16: 0.1119243759 | R16: 0.1151566719 | S16: 0.1178880544 | T16: 0.1202105044 | U16: 0.1221953169 | V16: 0.1246421471 | W16: 0.09237550682 | X16: 0.1078001405 | Y16: 0.122104685 | Z16: 0.1354063715 | AA16: 0.1478066901 | AB16: 0.1593939349 | AC16: 0.1702452732 | AD16: 0.1804284387 | AE16: 0.1900031254 | AF16: 0.1990221424 | AG16: 0.2075323761 | AH16: 0.2155755954 | AI16: 0.2231891297 | AJ16: 0.2304064422 | AK16: 0.2372576164 | AL16: 0.2437697717 | AM16: 0.2499674187 | AN16: 0.2558727651 | AO16: 0.2615059795 | AP16: 0.2668854196 | AQ16: 0.2720278308 | AR16: 0.2769485191 | AS16: 0.2816615024 | AT16: 0.2861796427 | AU16: 0.290514763 | AV16: 0.29467775 | AW16: 0.2986786446 | AX16: 0.3025267225 | AY16: 0.3062305658 | AZ16: 0.3097981265 | BA16: 0.3132367831 | BB16: 0.3165533913 | BC16: 0.3197543299 | BD16: 0.3228455408 | BE16: 0.3258325664 | BF16: 0.3287205823 | BG16: 0.3315144271 | BH16: 0.7859431012 | BI16: toff buck
B17: I out ext | C17: 0 | D17: Enter VREG external load current | H17: ton boost | I17: =I14/(fsw*10^-3) -> 0 | J17: =J14/(fsw*10^-3) -> 0.29 | K17: =K14/(fsw*10^-3) -> 0.2712585034 | L17: 0.2525170068 | M17: 0.2337755102 | N17: 0.2150340136 | O17: 0.196292517 | P17: 0.1775510204 | Q17: 0.1588095238 | R17: 0.1400680272 | S17: 0.1213265306 | T17: 0.102585034 | U17: 0.08384353741 | V17: 0.06510204082 | W17: 0 | X17: 0 | Y17: 0 | Z17: 0 | AA17: 0 | AB17: 0 | AC17: 0 | AD17: 0 | AE17: 0 | AF17: 0 | AG17: 0 | AH17: 0 | AI17: 0 | AJ17: 0 | AK17: 0 | AL17: 0 | AM17: =AM14/(fsw*10^-3) -> 0 | AN17: 0 | AO17: 0 | AP17: 0 | AQ17: 0 | AR17: 0 | AS17: 0 | AT17: 0 | AU17: 0 | AV17: 0 | AW17: 0 | AX17: 0 | AY17: 0 | AZ17: 0 | BA17: 0 | BB17: 0 | BC17: 0 | BD17: 0 | BE17: 0 | BF17: 0 | BG17: 0 | BH17: =BH14/(fsw*10^-3) -> 0 | BI17: ton boost
B18: Iout Sync Buck | C18: 0.8 | D18: Enter synchronous buck load current | H18: toff boost | I18: =1/fsw*10^3-I17 -> 0.5 | J18: =1/fsw*10^3-J17 -> 0.21 | K18: 0.2287414966 | L18: 0.2474829932 | M18: 0.2662244898 | N18: 0.2849659864 | O18: 0.303707483 | P18: 0.3224489796 | Q18: 0.3411904762 | R18: 0.3599319728 | S18: 0.3786734694 | T18: 0.397414966 | U18: 0.4161564626 | V18: 0.4348979592 | W18: 0.5 | X18: 0.5 | Y18: 0.5 | Z18: 0.5 | AA18: 0.5 | AB18: 0.5 | AC18: 0.5 | AD18: 0.5 | AE18: 0.5 | AF18: 0.5 | AG18: 0.5 | AH18: 0.5 | AI18: 0.5 | AJ18: 0.5 | AK18: 0.5 | AL18: 0.5 | AM18: =1/fsw*10^3-AM17 -> 0.5 | AN18: 0.5 | AO18: 0.5 | AP18: 0.5 | AQ18: 0.5 | AR18: 0.5 | AS18: 0.5 | AT18: 0.5 | AU18: 0.5 | AV18: 0.5 | AW18: 0.5 | AX18: 0.5 | AY18: 0.5 | AZ18: 0.5 | BA18: 0.5 | BB18: 0.5 | BC18: 0.5 | BD18: 0.5 | BE18: 0.5 | BF18: 0.5 | BG18: 0.5 | BH18: =1/fsw*10^3-BH17 -> 0.5 | BI18: toff boost
B19: Iout 3V3 | C19: 0 | H19: fsw | I19: =1/(I15+I16)*10^3 -> 2000 | J19: =1/(J15+J16)*10^3 -> 2000 | K19: 2000 | L19: 2000 | M19: 2000 | N19: 2000 | O19: 2000 | P19: 2000 | Q19: 2000 | R19: 2000 | S19: 2000 | T19: 2000 | U19: 2000 | V19: 2000 | W19: 2000 | X19: 2000 | Y19: 2000 | Z19: 2000 | AA19: 2000 | AB19: 2000 | AC19: 2000 | AD19: 2000 | AE19: 2000 | AF19: 2000 | AG19: 2000 | AH19: 2000 | AI19: 2000 | AJ19: 2000 | AK19: 2000 | AL19: 2000 | AM19: =1/(AM15+AM16)*10^3 -> 2000 | AN19: 2000 | AO19: 2000 | AP19: 2000 | AQ19: 2000 | AR19: 2000 | AS19: 2000 | AT19: 2000 | AU19: 2000 | AV19: 2000 | AW19: 2000 | AX19: 2000 | AY19: 2000 | AZ19: 2000 | BA19: 2000 | BB19: 2000 | BC19: 2000 | BD19: 2000 | BE19: 2000 | BF19: 2000 | BG19: 2000 | BH19: =1/(BH15+BH16)*10^3 -> 1057.146036 | BI19: fsw
B20: Iout V5A | C20: 0 | H20: V out buck | BI20: V out buck | BL20: buck | BN20: 0.54
B21: RFB1 = | C21: =(Vout_sync_buck-VFB_adj)/VFB_adj*RFB2_adj -> 4.75 | D21: Calculated value of the ADJ feedback resistor (in KΩ) from VOUT,ADJ to VFB2 | H21: VREG | I21: =IF(I14>0,IF(I12/(1-I14)*I9>Vreg,Vreg,I12/(1-I14)*I9),IF(I12*(I9+I11)>Vreg,Vreg,I12*(I9+I11))) -> 5.35 | J21: 5.35 | K21: 5.35 | L21: 5.35 | M21: 5.35 | N21: 5.35 | O21: 5.35 | P21: 5.35 | Q21: 5.35 | R21: 5.35 | S21: 5.35 | T21: 5.35 | U21: 5.35 | V21: 5.35 | W21: 5.35 | X21: 5.35 | Y21: 5.35 | Z21: 5.35 | AA21: 5.35 | AB21: 5.35 | AC21: 5.35 | AD21: 5.35 | AE21: 5.35 | AF21: 5.35 | AG21: 5.35 | AH21: 5.35 | AI21: 5.35 | AJ21: 5.35 | AK21: 5.35 | AL21: 5.35 | AM21: 5.35 | AN21: 5.35 | AO21: =IF(AO14>0,IF(AO12/(1-AO14)*AO9>Vreg,Vreg,AO12/(1-AO14)*AO9),IF(AO12*(AO9+AO11)>Vreg,Vreg,AO12*(AO9+AO11))) -> 5.35 | AP21: 5.35 | AQ21: 5.35 | AR21: 5.35 | AS21: 5.35 | AT21: 5.35 | AU21: 5.35 | AV21: 5.35 | AW21: 5.35 | AX21: 5.35 | AY21: 5.35 | AZ21: 5.35 | BA21: 5.35 | BB21: 5.35 | BC21: 5.35 | BD21: 5.35 | BE21: 5.35 | BF21: 5.35 | BG21: 5.35 | BH21: 5.35 | BI21: VREG | BL21: Boost duty | BM21: 0.54 | BN21: 0
B22: RFB2 = | C22: 1.52 | D22: Enter the value of the ADJ feedback resistor (in KΩ) from VFB2 to ground | G22: Circuit Currents | H22: Ilpk | I22: =IF(I14=0,Iout_PreReg+I23/2,IF(I$12>I$14,(Iout_PreReg+I23/2*(1-I12))/(1-I14),Iout_PreReg/(1-I14)+I23/2)) -> 0.7773244528 | J22: 1.607496914 | K22: 1.476931057 | L22: 1.366522067 | M22: 1.272739177 | N22: 1.190588089 | O22: 1.117955615 | P22: 1.053217647 | Q22: 0.9951099644 | R22: 0.9426045171 | S22: 0.8948815321 | T22: 0.8512784759 | U22: 0.8112505109 | V22: 0.7744200019 | W22: 0.7071842787 | X22: 0.7141326448 | Y22: 0.7205748295 | Z22: 0.726563913 | AA22: 0.7321458427 | AB22: 0.7373605861 | AC22: 0.7422430686 | AD22: 0.7468239406 | AE22: 0.7511302095 | AF22: 0.7551857635 | AG22: 0.7590118073 | AH22: 0.7626272277 | AI22: 0.7660489005 | AJ22: 0.7692919509 | AK22: 0.7723699737 | AL22: 0.7752952219 | AM22: 0.7780787676 | AN22: 0.7807306408 | AO22: =IF(AO14=0,Iout_PreReg+AO23/2,IF(AO$12>AO$14,(Iout_PreReg+AO23/2*(1-AO12))/(1-AO14),Iout_PreReg/(1-AO14)+AO23/2)) -> 0.7832599486 | AP22: 0.7856749791 | AQ22: 0.787983291 | AR22: 0.7901917919 | AS22: 0.7923068072 | AT22: 0.7943341395 | AU22: 0.796279122 | AV22: 0.7981466645 | AW22: 0.7999412947 | AX22: 0.8016671946 | AY22: 0.8033282328 | AZ22: 0.8049279935 | BA22: 0.8064698018 | BB22: 0.8079567467 | BC22: 0.809391702 | BD22: 0.8107773442 | BE22: 0.8121161696 | BF22: 0.8134105091 | BG22: 0.8146625412 | BH22: 1.018832777 | BI22: Ilpk | BJ22: Circuit Currents | BL22: Ipk | BM22: 1.734 | BN22: 0.9
B23: Iout V5SNR | C23: 0 | D23: Enter V5SNR typical load current | H23: ΔIL | I23: =IF(I$12>I$14,IF(I14=0,I9*I12/(L_buck*10^-6*I19*10^3),(I9*(I14)/(L_buck*10^-6*I19*10^3))),I9*(I12)/(L_buck*10^-6*I19*10^3)) -> 0.2235713905 | J23: 0.1201243315 | K23: 0.1266510388 | L23: 0.1308101781 | M23: 0.1327603502 | N23: 0.132645884 | O23: 0.1305515547 | P23: 0.1265413348 | Q23: 0.1206647576 | R23: 0.1129613164 | S23: 0.1034628266 | T23: 0.09219540004 | U23: 0.07918084289 | V23: 0.06457365655 | W23: 0.08329104226 | X23: 0.09718777444 | Y23: 0.1100721439 | Z23: 0.1220503109 | AA23: 0.1332141702 | AB23: 0.143643657 | AC23: 0.153408622 | AD23: 0.162570366 | AE23: 0.171182904 | AF23: 0.179294012 | AG23: 0.1869460996 | AH23: 0.1941769402 | AI23: 0.2010202859 | AJ23: 0.2075063866 | AK23: 0.2136624323 | AL23: 0.2195129287 | AM23: 0.2250800202 | AN23: 0.2303837666 | AO23: =IF(AO$12>AO$14,IF(AO14=0,AO9*AO12/(L_buck*10^-6*AO19*10^3),(AO9*(AO14)/(L_buck*10^-6*AO19*10^3))),AO9*(AO12)/(L_buck*10^-6*AO19*10^3)) -> 0.2354423823 | AP23: 0.2402724433 | AQ23: 0.244889067 | AR23: 0.2493060689 | AS23: 0.2535360995 | AT23: 0.2575907643 | AU23: 0.2614807294 | AV23: 0.2652158144 | AW23: 0.2688050749 | AX23: 0.2722568747 | AY23: 0.2755789514 | AZ23: 0.2787784729 | BA23: 0.2818620896 | BB23: 0.2848359795 | BC23: 0.2877058902 | BD23: 0.2904771748 | BE23: 0.2931548258 | BF23: 0.2957435047 | BG23: 0.2982475688 | BH23: 0.7065880385 | BI23: ΔIL | BL23: DI | BM23: 0.178 | BN23: 0.252
B24: Iout V5CAN | C24: 0 | D24: Enter V5CAN typical load current | H24: IL RMS | I24: =IF(I12>I14,SQRT((I22-I23/2)^2+I23^2/12+(I12-I14)*I23^2/12),SQRT((I22-I23/2)^2+I23^2/12+(I14-I12)*I23^2/12)) -> 0.6702269185 | J24: 1.547924235 | K24: 1.414218855 | L24: 1.301845124 | M24: 1.20718038 | N24: 1.125160559 | O24: 1.053624031 | P24: 0.9909094136 | Q24: 0.935723687 | R24: 0.8870171443 | S24: 0.8439546401 | T24: 0.8058642072 | U24: 0.7721974688 | V24: 0.7425124527 | W24: 0.6663266941 | X24: 0.6665931128 | Y24: 0.6668692399 | Z24: 0.6671494403 | AA24: 0.6674296545 | AB24: 0.6677069807 | AC24: 0.6679793716 | AD24: 0.6682454122 | AE24: 0.6685041561 | AF24: 0.6687550044 | AG24: 0.6689976151 | AH24: 0.6692318359 | AI24: 0.6694576534 | AJ24: 0.669675155 | AK24: 0.6698845004 | AL24: 0.6700859 | AM24: 0.6702795982 | AN24: 0.6704658616 | AO24: =IF(AO12>AO14,SQRT((AO22-AO23/2)^2+AO23^2/12+(AO12-AO14)*AO23^2/12),SQRT((AO22-AO23/2)^2+AO23^2/12+(AO14-AO12)*AO23^2/12)) -> 0.6706449695 | AP24: 0.6708172071 | AQ24: 0.6709828604 | AR24: 0.6711422127 | AS24: 0.6712955412 | AT24: 0.6714431161 | AU24: 0.6715851983 | AV24: 0.6717220393 | AW24: 0.6718538802 | AX24: 0.6719809518 | AY24: 0.6721034744 | AZ24: 0.6722216578 | BA24: 0.6723357019 | BB24: 0.6724457964 | BC24: 0.6725521217 | BD24: 0.672654849 | BE24: 0.6727541406 | BF24: 0.6728501506 | BG24: 0.6729430251 | BH24: 0.701131012 | BI24: IL RMS | BL24: IC rms | BM24: =SQRT(((BM22-BM23/2-Iout_PreReg)^2+BM23^2/12)*(1-BM21)+Iout_PreReg^2*BM21) -> 0.8256521879 | BN24: =SQRT(((BN22-BN23/2-Iout_PreReg)^2+BN23^2/12)*(1-BN21)+Iout_PreReg^2*BN21) -> 0.1305980134
B25: Iout V5P | C25: 0.075 | D25: Enter V5P typical load current | H25: Isw buck RMS | I25: =IF(I12>I14,SQRT(I12*(I22-I23/2)^2+I14*I23^2/12),SQRT(I12*(I22-I23/2)^2+I12*I23^2/12)) -> 0.4722157444 | J25: 1.418493235 | K25: 1.295870713 | L25: 1.188682947 | M25: 1.090896664 | N25: 1.008244077 | O25: 0.9376047277 | P25: 0.8766945851 | Q25: 0.823767824 | R25: 0.7776038654 | S25: 0.7372278103 | T25: 0.7018494169 | U25: 0.6708369626 | V25: 0.643047947 | W25: 0.6009225277 | X25: 0.5894433418 | Y25: 0.5785942366 | Z25: 0.5683199308 | AA25: 0.5585716641 | AB25: 0.5493062469 | AC25: 0.5404852722 | AD25: 0.5320744584 | AE25: 0.5240431 | AF25: 0.5163636032 | AG25: 0.5090110938 | AH25: 0.5019630833 | AI25: 0.4951991834 | AJ25: 0.4887008614 | AK25: 0.4824512292 | AL25: 0.4764348607 | AM25: 0.4706376336 | AN25: 0.4650465913 | AO25: =IF(AO12>AO14,SQRT(AO12*(AO22-AO23/2)^2+AO14*AO23^2/12),SQRT(AO12*(AO22-AO23/2)^2+AO12*AO23^2/12)) -> 0.4596498226 | AP25: 0.4544363556 | AQ25: 0.4493960649 | AR25: 0.4445195897 | AS25: 0.4397982614 | AT25: 0.4352240388 | AU25: 0.4307894516 | AV25: 0.4264875489 | AW25: 0.4223118541 | AX25: 0.4182563242 | AY25: 0.4143153127 | AZ25: 0.4104835375 | BA25: 0.4067560507 | BB25: 0.4031282124 | BC25: 0.3995956662 | BD25: 0.3961543173 | BE25: 0.3928003129 | BF25: 0.3895300241 | BG25: 0.3863400293 | BH25: 0.2737164104 | BI25: Isw buck RMS | BN25: =SQRT(BN20/3*BN23^2) -> 0.1069145453
B26: Rth,j-a | C26: 30 | D26: Enter junction to ambient thermal resistance | H26: I buck Diode avg | I26: =IF(I$12>I$14,(I22-I23/2)*(1-I12),I22*(I14-I12)+(I22-I23/2)*(1-I14)) -> 0.3304903374 | J26: 0.2475895598 | K26: 0.226176886 | L26: 0.2157057323 | M26: 0.2204428673 | N26: 0.2206299712 | O26: 0.2181003182 | P26: 0.2140270915 | Q26: 0.2092487958 | R26: 0.2040861489 | S26: 0.1987946542 | T26: 0.1935823745 | U26: 0.1885864984 | V26: 0.1850021444 | W26: 0.1229589601 | X26: 0.1434903432 | Y26: 0.1625308007 | Z26: 0.1802363766 | AA26: 0.1967421618 | AB26: 0.2121656828 | AC26: 0.2266096552 | AD26: 0.2401642379 | AE26: 0.252908888 | AF26: 0.2649138988 | AG26: 0.2762416795 | AH26: 0.2869478279 | AI26: 0.2970820322 | AJ26: 0.3066888345 | AK26: 0.3158082785 | AL26: 0.324476462 | AM26: 0.3327260105 | AN26: 0.3405864844 | AO26: =IF(AO$12>AO$14,(AO22-AO23/2)*(1-AO12),AO22*(AO14-AO12)+(AO22-AO23/2)*(1-AO14)) -> 0.3480847294 | AP26: 0.3552451811 | AQ26: 0.362090129 | AR26: 0.3686399466 | AS26: 0.3749132926 | AT26: 0.3809272875 | AU26: 0.3866976688 | AV26: 0.3922389271 | AW26: 0.3975644278 | AX26: 0.4026865178 | AY26: 0.4076166204 | AZ26: 0.4123653201 | BA26: 0.4169424385 | BB26: 0.4213571012 | BC26: 0.4256177984 | BD26: 0.4297324397 | BE26: 0.4337084023 | BF26: 0.4375525753 | BG26: 0.4412713994 | BH26: 0.552967292 | BI26: I buck Diode avg
B27: Iout_PreReg | C27: =I_reg_ext+Vout_sync_buck*Iout_sync_buck/(0.85*Vreg)+Iout_3V3+Iout_V5A+Iout_V5B+Iout_V5CAN+Iout_V5P+Icc -> 0.6655387576 | D27: Total VREG current | H27: I boost SW RMS | I27: =IF(I12>I14,SQRT(I14*(I22-I23/2)^2+I14*I23^2/12),SQRT(I14*(I22-I23/2)^2+I12*I23^2/12)) -> 0 | J27: 1.178787062 | K27: 1.041550001 | L27: 0.9250378119 | M27: 0.8252967234 | N27: 0.737715786 | O27: 0.6599960199 | P27: 0.5903152362 | Q27: 0.5271847897 | R27: 0.4693240397 | S27: 0.4155947956 | T27: 0.3649114732 | U27: 0.3161304131 | V27: 0.2678743321 | W27: 0 | X27: 0 | Y27: 0 | Z27: 0 | AA27: 0 | AB27: 0 | AC27: 0 | AD27: 0 | AE27: 0 | AF27: 0 | AG27: 0 | AH27: 0 | AI27: 0 | AJ27: 0 | AK27: 0 | AL27: 0 | AM27: 0 | AN27: 0 | AO27: =IF(AO12>AO14,SQRT(AO14*(AO22-AO23/2)^2+AO14*AO23^2/12),SQRT(AO14*(AO22-AO23/2)^2+AO12*AO23^2/12)) -> 0 | AP27: 0 | AQ27: 0 | AR27: 0 | AS27: 0 | AT27: 0 | AU27: 0 | AV27: 0 | AW27: 0 | AX27: 0 | AY27: 0 | AZ27: 0 | BA27: 0 | BB27: 0 | BC27: 0 | BD27: 0 | BE27: 0 | BF27: 0 | BG27: 0 | BH27: 0 | BI27: I boost SW RMS
H28: I boost Diode avg | I28: =IF(I$12>I$14,I22*(1-I14)+I23/2*(I12-1),(I22-I23/2)*(1-I14)) -> 0.7218143991 | J28: 0.6655387576 | K28: 0.6655387576 | L28: 0.6655387576 | M28: 0.6655387576 | N28: 0.6655387576 | O28: 0.6655387576 | P28: 0.6655387576 | Q28: 0.6655387576 | R28: 0.6655387576 | S28: 0.6655387576 | T28: 0.6655387576 | U28: 0.6655387576 | V28: 0.6655387576 | W28: 0.6994902265 | X28: 0.7036557891 | Y28: 0.7071345051 | Z28: 0.7100375233 | AA28: 0.7124558971 | AB28: 0.7144646584 | AC28: 0.7161259758 | AD28: 0.7174916233 | AE28: 0.7186049228 | AF28: 0.7195022852 | AG28: 0.7202144391 | AH28: 0.7207674182 | AI28: 0.7211833578 | AJ28: 0.7214811426 | AK28: 0.7216769343 | AL28: 0.7217846054 | AM28: 0.721816096 | AN28: 0.7217817094 | AO28: =IF(AO$12>AO$14,AO22*(1-AO14)+AO23/2*(AO12-1),(AO22-AO23/2)*(1-AO14)) -> 0.7216903578 | AP28: 0.7215497673 | AQ28: 0.7213666493 | AR28: 0.7211468453 | AS28: 0.7208954485 | AT28: 0.7206169066 | AU28: 0.7203151099 | AV28: 0.719993465 | AW28: 0.7196549592 | AX28: 0.7193022146 | AY28: 0.7189375346 | AZ28: 0.7185629449 | BA28: 0.7181802276 | BB28: 0.7177909514 | BC28: 0.7173964978 | BD28: 0.7169980836 | BE28: 0.7165967804 | BF28: 0.716193532 | BG28: 0.7157891693 | BH28: 0.7252960971 | BI28: I boost Diode avg
B29: A4413 Operating at Vin nom | H29: I Cout RMS | I29: =SQRT(((I22-I23/2-Iout_PreReg)^2+I23^2/12)*(1-I14)+Iout_PreReg^2*I14) -> 0.06453950124 | J29: 0.764239712 | K29: 0.7049285576 | L29: 0.6514236607 | M29: 0.6030042407 | N29: 0.5579081555 | O29: 0.5155514765 | P29: 0.4754151941 | Q29: 0.4370128203 | R29: 0.3998455153 | S29: 0.3633839474 | T29: 0.3270175987 | U29: 0.28997201 | V29: 0.2511531552 | W29: 0.02404405283 | X29: 0.02805569387 | Y29: 0.03177509095 | Z29: 0.03523288992 | AA29: 0.03845561851 | AB29: 0.04146635203 | AC29: 0.04428525461 | AD29: 0.0469300223 | AE29: 0.04941624784 | AF29: 0.05175772303 | AG29: 0.05396669046 | AH29: 0.05605405436 | AI29: 0.05802955808 | AJ29: 0.05990193409 | AK29: 0.0616790314 | AL29: 0.06336792425 | AM29: 0.06497500513 | AN29: 0.06650606483 | AO29: =SQRT(((AO22-AO23/2-Iout_PreReg)^2+AO23^2/12)*(1-AO14)+Iout_PreReg^2*AO14) -> 0.06796636139 | AP29: 0.0693606799 | AQ29: 0.07069338437 | AR29: 0.071968463 | AS29: 0.07318956766 | AT29: 0.07436004857 | AU29: 0.07548298476 | AV29: 0.07656121093 | AW29: 0.07759734117 | AX29: 0.07859378996 | AY29: 0.07955279089 | AZ29: 0.0804764132 | BA29: 0.08136657664 | BB29: 0.08222506473 | BC29: 0.08305353657 | BD29: 0.08385353754 | BE29: 0.08462650881 | BF29: 0.08537379603 | BG29: 0.08609665707 | BH29: 0.2039743971
B30: Pdiss Total | C30: =IF(Topology="Buck",I88,I3) -> 0.4959435402 | D30: A4413 Power dissipation at nominal input voltage | G30: BUCK FET | H30: Rds_On Buck | I30: =IF(I2>7,Buck_RdsON_factor_7V*(I4-150)+Rds_ON_150_7V,Buck_RdsON_factor_6V*(I4-150)+Rds_ON_150_6V) -> 0.2571099532 | J30: 0.2845640393 | K30: 0.2822931635 | L30: 0.2805204113 | M30: 0.2790702485 | N30: 0.2779733666 | O30: 0.2771318527 | P30: 0.2764803163 | Q30: 0.2759732638 | R30: 0.2755796681 | S30: 0.2752766187 | T30: 0.2750468977 | U30: 0.2748775193 | V30: 0.2556090852 | W30: 0.2554089554 | X30: 0.2554510655 | Y30: 0.2555041792 | Z30: 0.2555676549 | AA30: 0.2556409378 | AB30: 0.255723546 | AC30: 0.2558150585 | AD30: 0.2559151063 | AE30: 0.2560233645 | AF30: 0.2561395457 | AG30: 0.2562633952 | AH30: 0.2563946861 | AI30: 0.2565332159 | AJ30: 0.256678803 | AK30: 0.2568312844 | AL30: 0.2569905132 | AM30: 0.2571563567 | AN30: 0.2573286948 | AO30: =IF(AO2>7,Buck_RdsON_factor_7V*(AO4-150)+Rds_ON_150_7V,Buck_RdsON_factor_6V*(AO4-150)+Rds_ON_150_6V) -> 0.2575074184 | AP30: 0.2576924282 | AQ30: 0.2578836339 | AR30: 0.2580809526 | AS30: 0.2582843089 | AT30: 0.2584936331 | AU30: 0.2587088617 | AV30: 0.2589299359 | AW30: 0.2591568016 | AX30: 0.2593894088 | AY30: 0.2596277113 | AZ30: 0.2598716662 | BA30: 0.2601212339 | BB30: 0.2603763775 | BC30: 0.2606370626 | BD30: 0.2609032574 | BE30: 0.2611749319 | BF30: 0.2614520584 | BG30: 0.2617346108 | BH30: 0.2714357305 | BI30: Rds_On Buck | BJ30: BUCK FET
B31: Tj estimate | C31: =IF(Reset=1,150,Ta+Rth_ja*Pdiss_total) -> 139.8783062 | D31: Estimated A4413 junction temperature at nominal input voltage | H31: Conduction Losses | I31: =I25^2*I30 -> 0.05733235949 | J31: 0.5725778645 | K31: 0.4740495186 | L31: 0.3963661259 | M31: 0.3321090928 | N31: 0.2825755265 | O31: 0.2436273392 | P31: 0.2125009451 | Q31: 0.187273643 | R31: 0.1666341438 | S31: 0.1496141758 | T31: 0.1354860676 | U31: 0.1237009943 | V31: 0.1056970821 | W31: 0.09223018752 | X31: 0.08875480032 | Y31: 0.08553546384 | Z31: 0.08254516909 | AA31: 0.07976056157 | AB31: 0.07716134585 | AC31: 0.07472980243 | AD31: 0.07245039304 | AE31: 0.07030943608 | AF31: 0.06829483818 | AG31: 0.06639587084 | AH31: 0.06460298372 | AI31: 0.06290764758 | AJ31: 0.06130222169 | AK31: 0.05977984134 | AL31: 0.05833432194 | AM31: 0.05696007699 | AN31: 0.05565204763 | AO31: =AO25^2*AO30 -> 0.0544056419 | AP31: 0.05321668215 | AQ31: 0.05208135943 | AR31: 0.05099619379 | AS31: 0.0499579995 | AT31: 0.04896385467 | AU31: 0.04801107455 | AV31: 0.04709718794 | AW31: 0.0462199164 | AX31: 0.04537715589 | AY31: 0.04456696034 | AZ31: 0.04378752716 | BA31: 0.04303718426 | BB31: 0.04231437847 | BC31: 0.04161766513 | BD31: 0.04094569883 | BE31: 0.040297225 | BF31: 0.03967107242 | BG31: 0.03906614636 | BH31: 0.02033614769 | BI31: Conduction Losses
B32: T rise | C32: =Tj-Ta -> 14.87830621 | D32: A4413 temperature rise at nominal input voltage | H32: Switching Losses | I32: =0.5*I2*Iout_PreReg*I19*10^3*(I2/SLEW_rate+I2/1.5)*10^-9 -> 0.1703779219 | J32: 0.01449395516 | K32: 0.01704843638 | L32: 0.01981013425 | M32: 0.02277904878 | N32: 0.02595517997 | O32: 0.02933852781 | P32: 0.03292909232 | Q32: 0.03672687348 | R32: 0.0407318713 | S32: 0.04494408577 | T32: 0.04936351691 | U32: 0.0539901647 | V32: 0.05882402915 | W32: 0.06386511026 | X32: 0.06911340803 | Y32: 0.07456892245 | Z32: 0.08023165354 | AA32: 0.08610160128 | AB32: 0.09217876568 | AC32: 0.09846314673 | AD32: 0.1049547444 | AE32: 0.1116535588 | AF32: 0.1185595898 | AG32: 0.1256728375 | AH32: 0.1329933019 | AI32: 0.1405209829 | AJ32: 0.1482558805 | AK32: 0.1561979949 | AL32: 0.1643473258 | AM32: 0.1727038735 | AN32: 0.1812676378 | AO32: =0.5*AO2*Iout_PreReg*AO19*10^3*(AO2/SLEW_rate+AO2/1.5)*10^-9 -> 0.1900386187 | AP32: 0.1990168163 | AQ32: 0.2082022306 | AR32: 0.2175948615 | AS32: 0.2271947091 | AT32: 0.2370017734 | AU32: 0.2470160543 | AV32: 0.2572375518 | AW32: 0.267666266 | AX32: 0.2783021969 | AY32: 0.2891453444 | AZ32: 0.3001957086 | BA32: 0.3114532895 | BB32: 0.322918087 | BC32: 0.3345901011 | BD32: 0.3464693319 | BE32: 0.3585557794 | BF32: 0.3708494436 | BG32: 0.3833503244 | BH32: 0.8105145518 | BI32: Switching Losses
H33: Total Buck FET Losses | I33: =I31+I32 -> 0.2277102814 | J33: =J31+J32 -> 0.5870718196 | K33: =IF(K15=1/fsw*10^3,K30*K25^2,K31+K32) -> 0.491097955 | L33: 0.4161762602 | M33: 0.3548881416 | N33: 0.3085307065 | O33: 0.2729658671 | P33: 0.2454300374 | Q33: 0.2240005165 | R33: 0.2073660151 | S33: 0.1945582615 | T33: 0.1848495845 | U33: 0.177691159 | V33: 0.1645211112 | W33: 0.1560952978 | X33: 0.1578682084 | Y33: 0.1601043863 | Z33: 0.1627768226 | AA33: 0.1658621628 | AB33: 0.1693401115 | AC33: 0.1731929492 | AD33: 0.1774051375 | AE33: 0.1819629949 | AF33: 0.186854428 | AG33: 0.1920687084 | AH33: 0.1975962856 | AI33: 0.2034286305 | AJ33: 0.2095581022 | AK33: 0.2159778362 | AL33: 0.2226816478 | AM33: 0.2296639505 | AN33: 0.2369196854 | AO33: 0.2444442606 | AP33: 0.2522334985 | AQ33: =IF(AQ15=1/fsw*10^3,AQ30*AQ25^2,AQ31+AQ32) -> 0.26028359 | AR33: 0.2685910553 | AS33: 0.2771527086 | AT33: 0.285965628 | AU33: 0.2950271288 | AV33: 0.3043347397 | AW33: 0.3138861824 | AX33: 0.3236793528 | AY33: 0.3337123048 | AZ33: 0.3439832358 | BA33: 0.3544904737 | BB33: 0.3652324654 | BC33: 0.3762077663 | BD33: 0.3874150308 | BE33: 0.3988530044 | BF33: 0.410520516 | BG33: 0.4224164707 | BH33: 0.8308506995 | BI33: Total Buck FET Losses
B34: Tj (MAX): | C34: =IF(Topology="Buck",MAX(J89:BH89),MAX(J4:BH4)) -> 158.2560339 | D34: Maximum junction temperature at worse case input voltage | G34: 3V3 LDO | H34: Output voltage | I34: =IF(I21-Iout_3V3*I35>3.3,3.3,I21-Iout_3V3*I35) -> 3.3 | J34: 3.3 | K34: 3.3 | L34: 3.3 | M34: 3.3 | N34: 3.3 | O34: 3.3 | P34: 3.3 | Q34: 3.3 | R34: 3.3 | S34: 3.3 | T34: 3.3 | U34: 3.3 | V34: 3.3 | W34: 3.3 | X34: 3.3 | Y34: 3.3 | Z34: 3.3 | AA34: 3.3 | AB34: 3.3 | AC34: 3.3 | AD34: 3.3 | AE34: 3.3 | AF34: 3.3 | AG34: 3.3 | AH34: 3.3 | AI34: 3.3 | AJ34: 3.3 | AK34: 3.3 | AL34: 3.3 | AM34: 3.3 | AN34: 3.3 | AO34: =IF(AO21-Iout_3V3*AO35>3.3,3.3,AO21-Iout_3V3*AO35) -> 3.3 | AP34: 3.3 | AQ34: 3.3 | AR34: 3.3 | AS34: 3.3 | AT34: 3.3 | AU34: 3.3 | AV34: 3.3 | AW34: 3.3 | AX34: 3.3 | AY34: 3.3 | AZ34: 3.3 | BA34: 3.3 | BB34: 3.3 | BC34: 3.3 | BD34: 3.3 | BE34: 3.3 | BF34: 3.3 | BG34: 3.3 | BH34: 3.3 | BI34: Output voltage | BJ34: 5V0 LDO
C35: =IF(Topology="Buck",HLOOKUP(C34,J89:BH90,2,FALSE),HLOOKUP(C34,J4:BH5,2,FALSE)) -> 36 | H35: Series pass resistance | I35: =(Rds_ON_3V3_150-Rds_ON_3V3_min40)/190*(I4-150)+Rds_ON_3V3_150 -> 0.4936400968 | J35: 0.5037657529 | K35: 0.5010615173 | L35: 0.4989504642 | M35: 0.4972235615 | N35: 0.4959173575 | O35: 0.4949152543 | P35: 0.4941393828 | Q35: 0.4935355675 | R35: 0.4930668606 | S35: 0.4927059791 | T35: 0.4924324196 | U35: 0.4922307181 | V35: 0.4918596283 | W35: 0.4916222159 | X35: 0.4916721708 | Y35: 0.4917351792 | Z35: 0.4918104799 | AA35: 0.4918974149 | AB35: 0.4919954123 | AC35: 0.492103973 | AD35: 0.492222659 | AE35: 0.4923510848 | AF35: 0.4924889097 | AG35: 0.4926358314 | AH35: 0.4927915809 | AI35: 0.4929559177 | AJ35: 0.4931286266 | AK35: 0.4933095141 | AL35: 0.4934984061 | AM35: 0.493695145 | AN35: 0.4938995884 | AO35: =(Rds_ON_3V3_150-Rds_ON_3V3_min40)/190*(AO4-150)+Rds_ON_3V3_150 -> 0.4941116068 | AP35: 0.4943310826 | AQ35: 0.4945579084 | AR35: 0.4947919861 | AS35: 0.4950332261 | AT35: 0.4952815459 | AU35: 0.49553687 | AV35: 0.4957991286 | AW35: 0.4960682577 | AX35: 0.4963441979 | AY35: 0.4966268943 | AZ35: 0.4969162962 | BA35: 0.4972123565 | BB35: 0.4975150314 | BC35: 0.4978242802 | BD35: 0.498140065 | BE35: 0.4984623504 | BF35: 0.4987911035 | BG35: 0.4991262934 | BH35: 0.5106346587 | BI35: Series pass resistance
H36: Power dissipated | I36: =(I21-I34)*Iout_3V3 -> 0 | J36: 0 | K36: 0 | L36: 0 | M36: 0 | N36: 0 | O36: 0 | P36: 0 | Q36: 0 | R36: 0 | S36: 0 | T36: 0 | U36: 0 | V36: 0 | W36: 0 | X36: 0 | Y36: 0 | Z36: 0 | AA36: 0 | AB36: 0 | AC36: 0 | AD36: 0 | AE36: 0 | AF36: 0 | AG36: 0 | AH36: 0 | AI36: 0 | AJ36: 0 | AK36: 0 | AL36: 0 | AM36: 0 | AN36: 0 | AO36: =(AO21-AO34)*Iout_3V3 -> 0 | AP36: 0 | AQ36: 0 | AR36: 0 | AS36: 0 | AT36: 0 | AU36: 0 | AV36: 0 | AW36: 0 | AX36: 0 | AY36: 0 | AZ36: 0 | BA36: 0 | BB36: 0 | BC36: 0 | BD36: 0 | BE36: 0 | BF36: 0 | BG36: 0 | BH36: 0 | BI36: Power dissipated
B37: Inductor Calculation, Pre-Regulator | G37: Adj BUCK | H37: V1 | I37: =IF(Reset=1,Vreg-Vout_sync_buck,Vreg-Iout_sync_buck*(I49+DCR2*10^-3)-Vout_sync_buck) -> 1.816312037 | J37: 1.809483599 | K37: 1.811307254 | L37: 1.812730885 | M37: 1.813895457 | N37: 1.814776321 | O37: 1.81545211 | P37: 1.815975334 | Q37: 1.816382529 | R37: 1.816698611 | S37: 1.816941978 | T37: 1.817126459 | U37: 1.81726248 | V37: 1.817512732 | W37: 1.817672836 | X37: 1.817639148 | Y37: 1.817596657 | Z37: 1.817545876 | AA37: 1.81748725 | AB37: 1.817421163 | AC37: 1.817347953 | AD37: 1.817267915 | AE37: 1.817181308 | AF37: 1.817088363 | AG37: 1.816989284 | AH37: 1.816884251 | AI37: 1.816773427 | AJ37: 1.816656958 | AK37: 1.816534972 | AL37: 1.816407589 | AM37: 1.816274915 | AN37: 1.816137044 | AO37: =IF(Reset=1,Vreg-Vout_sync_buck,Vreg-Iout_sync_buck*(AO49+DDX2*10^-3)-Vout_sync_buck) -> 1.815994065 | AP37: 1.815846057 | AQ37: 1.815693093 | AR37: 1.815535238 | AS37: 1.815372553 | AT37: 1.815205093 | AU37: 1.815032911 | AV37: 1.814856051 | AW37: 1.814674559 | AX37: 1.814488473 | AY37: 1.814297831 | AZ37: 1.814102667 | BA37: 1.813903013 | BB37: 1.813698898 | BC37: 1.81349035 | BD37: 1.813277394 | BE37: 1.813060055 | BF37: 1.812838353 | BG37: 1.812612311 | BH37: 1.804851416
B38: Ripple Current | C38: 0.35 | D38: Select desired inductor ripple current, 20% to 45% | H38: V3 | I38: =IF(Reset=1,Vout_sync_buck,Vout_sync_buck+Iout_sync_buck*(I53+dcr_2*10^-3)) -> 3.457687963 | J38: 3.464516401 | K38: 3.462692746 | L38: 3.461269115 | M38: 3.460104543 | N38: 3.459223679 | O38: 3.45854789 | P38: 3.458024666 | Q38: 3.457617471 | R38: 3.457301389 | S38: 3.457058022 | T38: 3.456873541 | U38: 3.45673752 | V38: 3.456487268 | W38: 3.456327164 | X38: 3.456360852 | Y38: 3.456403343 | Z38: 3.456454124 | AA38: 3.45651275 | AB38: 3.456578837 | AC38: 3.456652047 | AD38: 3.456732085 | AE38: 3.456818692 | AF38: 3.456911637 | AG38: 3.457010716 | AH38: 3.457115749 | AI38: 3.457226573 | AJ38: 3.457343042 | AK38: 3.457465028 | AL38: 3.457592411 | AM38: 3.457725085 | AN38: 3.457862956 | AO38: =IF(Reset=1,Vout_sync_buck,Vout_sync_buck+Iout_sync_buck*(AO53+dcr_2*10^-3)) -> 3.458005935 | AP38: 3.458153943 | AQ38: 3.458306907 | AR38: 3.458464762 | AS38: 3.458627447 | AT38: 3.458794907 | AU38: 3.458967089 | AV38: 3.459143949 | AW38: 3.459325441 | AX38: 3.459511527 | AY38: 3.459702169 | AZ38: 3.459897333 | BA38: 3.460096987 | BB38: 3.460301102 | BC38: 3.46050965 | BD38: 3.460722606 | BE38: 3.460939945 | BF38: 3.461161647 | BG38: 3.461387689 | BH38: 3.469148584
B39: L calculated | C39: =ROUNDUP((Vin_nom-Vreg)*Vreg/(Vin_nom*fsw*10^-3*k_ripple*Iout_PreReg),2) -> 6.37 | D39: Recommended minimum inductor value | H39: Required Buck duty | I39: =IF(Reset=1,Vout_sync_buck/Vreg,I38/(I37+I38)) -> 0.655610156 | J39: 0.6569048921 | K39: 0.6565591099 | L39: 0.6562891761 | M39: 0.6560683624 | N39: 0.6559013422 | O39: 0.6557732064 | P39: 0.6556739981 | Q39: 0.6555967901 | R39: 0.655536858 | S39: 0.6554907132 | T39: 0.655455734 | U39: 0.6554299431 | V39: 0.655382493 | W39: 0.6553521358 | X39: 0.6553585234 | Y39: 0.6553665801 | Z39: 0.6553762085 | AA39: 0.6553873247 | AB39: 0.6553998553 | AC39: 0.6554137366 | AD39: 0.6554289126 | AE39: 0.655445334 | AF39: 0.6554629573 | AG39: 0.6554817437 | AH39: 0.6555016589 | AI39: 0.6555226721 | AJ39: 0.6555447559 | AK39: 0.6555678854 | AL39: 0.6555920384 | AM39: 0.6556171948 | AN39: 0.6556433363 | AO39: =IF(Reset=1,Vout_sync_buck/Vreg,AO38/(AO37+AO38)) -> 0.6556704465 | AP39: 0.6556985102 | AQ39: 0.6557275137 | AR39: 0.6557574445 | AS39: 0.6557882911 | AT39: 0.6558200429 | AU39: 0.6558526904 | AV39: 0.6558862246 | AW39: 0.6559206373 | AX39: 0.6559559209 | AY39: 0.6559920685 | AZ39: 0.6560290734 | BA39: 0.6560669297 | BB39: 0.6561056318 | BC39: 0.6561451745 | BD39: 0.6561855529 | BE39: 0.6562267625 | BF39: 0.6562687991 | BG39: 0.6563116588 | BH39: 0.6577831977
B40: Irms | C40: =IF(Topology="buck",MAX(J104:BG104),MAX(J24:BG24)) -> 1.547924235 | D40: Maximum RMS inductor current, must be less than inductor DC rating | H40: ton buck | I40: =I39/(fsw*10^3)*10^6 -> 0.327805078 | J40: 0.328452446 | K40: 0.3282795549 | L40: 0.3281445881 | M40: 0.3280341812 | N40: 0.3279506711 | O40: 0.3278866032 | P40: 0.3278369991 | Q40: 0.3277983951 | R40: 0.327768429 | S40: 0.3277453566 | T40: 0.327727867 | U40: 0.3277149716 | V40: 0.3276912465 | W40: 0.3276760679 | X40: 0.3276792617 | Y40: 0.32768329 | Z40: 0.3276881043 | AA40: 0.3276936623 | AB40: 0.3276999276 | AC40: 0.3277068683 | AD40: 0.3277144563 | AE40: 0.327722667 | AF40: 0.3277314786 | AG40: 0.3277408718 | AH40: 0.3277508294 | AI40: 0.3277613361 | AJ40: 0.3277723779 | AK40: 0.3277839427 | AL40: 0.3277960192 | AM40: 0.3278085974 | AN40: 0.3278216682 | AO40: =AO39/(fsw*10^3)*10^6 -> 0.3278352232 | AP40: 0.3278492551 | AQ40: 0.3278637568 | AR40: 0.3278787222 | AS40: 0.3278941455 | AT40: 0.3279100215 | AU40: 0.3279263452 | AV40: 0.3279431123 | AW40: 0.3279603187 | AX40: 0.3279779605 | AY40: 0.3279960342 | AZ40: 0.3280145367 | BA40: 0.3280334648 | BB40: 0.3280528159 | BC40: 0.3280725872 | BD40: 0.3280927764 | BE40: 0.3281133813 | BF40: 0.3281343996 | BG40: 0.3281558294 | BH40: 0.3288915988
B41: Ipk | C41: =IF(Topology="buck",MAX(J102:BG102),MAX(J22:BG22)) -> 1.607496914 | D41: Maximum peak inductor current, must be less than inductor saturation current | H41: toff buck | I41: =1/(fsw*10^-3)-I40 -> 0.172194922 | J41: 0.171547554 | K41: 0.1717204451 | L41: 0.1718554119 | M41: 0.1719658188 | N41: 0.1720493289 | O41: 0.1721133968 | P41: 0.1721630009 | Q41: 0.1722016049 | R41: 0.172231571 | S41: 0.1722546434 | T41: 0.172272133 | U41: 0.1722850284 | V41: 0.1723087535 | W41: 0.1723239321 | X41: 0.1723207383 | Y41: 0.17231671 | Z41: 0.1723118957 | AA41: 0.1723063377 | AB41: 0.1723000724 | AC41: 0.1722931317 | AD41: 0.1722855437 | AE41: 0.172277333 | AF41: 0.1722685214 | AG41: 0.1722591282 | AH41: 0.1722491706 | AI41: 0.1722386639 | AJ41: 0.1722276221 | AK41: 0.1722160573 | AL41: 0.1722039808 | AM41: 0.1721914026 | AN41: 0.1721783318 | AO41: =1/(fsw*10^-3)-AO40 -> 0.1721647768 | AP41: 0.1721507449 | AQ41: 0.1721362432 | AR41: 0.1721212778 | AS41: 0.1721058545 | AT41: 0.1720899785 | AU41: 0.1720736548 | AV41: 0.1720568877 | AW41: 0.1720396813 | AX41: 0.1720220395 | AY41: 0.1720039658 | AZ41: 0.1719854633 | BA41: 0.1719665352 | BB41: 0.1719471841 | BC41: 0.1719274128 | BD41: 0.1719072236 | BE41: 0.1718866187 | BF41: 0.1718656004 | BG41: 0.1718441706 | BH41: 0.1711084012
B42: DCR < | C42: =ROUNDDOWN(0.033*Vreg*Iout_PreReg/C40^2*1000,0) -> 49 | D42: Recommended inductor DC resistance | H42: VREG_actual | I42: =I37*I39/(1-I39)-Iout_sync_buck*(I53+dcr_2*10^-3) -> 3.3 | J42: 3.3 | K42: 3.3 | L42: 3.3 | M42: 3.3 | N42: 3.3 | O42: 3.3 | P42: 3.3 | Q42: 3.3 | R42: 3.3 | S42: 3.3 | T42: 3.3 | U42: 3.3 | V42: 3.3 | W42: 3.3 | X42: 3.3 | Y42: 3.3 | Z42: 3.3 | AA42: 3.3 | AB42: 3.3 | AC42: 3.3 | AD42: 3.3 | AE42: 3.3 | AF42: 3.3 | AG42: 3.3 | AH42: 3.3 | AI42: 3.3 | AJ42: 3.3 | AK42: 3.3 | AL42: 3.3 | AM42: 3.3 | AN42: 3.3 | AO42: =AO37*AO39/(1-AO39)-Iout_sync_buck*(AO53+dcr_2*10^-3) -> 3.3 | AP42: 3.3 | AQ42: 3.3 | AR42: 3.3 | AS42: 3.3 | AT42: 3.3 | AU42: 3.3 | AV42: 3.3 | AW42: 3.3 | AX42: 3.3 | AY42: 3.3 | AZ42: 3.3 | BA42: 3.3 | BB42: 3.3 | BC42: 3.3 | BD42: 3.3 | BE42: 3.3 | BF42: 3.3 | BG42: 3.3 | BH42: 3.3
B43: Lout = | C43: 6.8 | D43: Enter selected inductor value at total VREG current | H43: Ilpk | I43: =Iout_sync_buck+I44/2 -> 0.8633400329 | J43: 0.8632265228 | K43: 0.8632569297 | L43: 0.8632806202 | M43: 0.8632999692 | N43: 0.8633145864 | O43: 0.8633257899 | P43: 0.8633344579 | Q43: 0.8633411998 | R43: 0.8633464308 | S43: 0.8633504571 | T43: 0.8633535083 | U43: 0.8633557577 | V43: 0.863359895 | W43: 0.8633625412 | X43: 0.8633619845 | Y43: 0.8633612822 | Z43: 0.8633604428 | AA43: 0.8633594737 | AB43: 0.8633583812 | AC43: 0.8633571709 | AD43: 0.8633558475 | AE43: 0.8633544154 | AF43: 0.8633528783 | AG43: 0.8633512396 | AH43: 0.8633495022 | AI43: 0.8633476687 | AJ43: 0.8633457416 | AK43: 0.8633437229 | AL43: 0.8633416146 | AM43: 0.8633394183 | AN43: 0.8633371357 | AO43: =Iout_sync_buck+AO44/2 -> 0.8633347681 | AP43: 0.8633323167 | AQ43: 0.8633297828 | AR43: 0.8633271674 | AS43: 0.8633244715 | AT43: 0.8633216959 | AU43: 0.8633188414 | AV43: 0.8633159087 | AW43: 0.8633128986 | AX43: 0.8633098116 | AY43: 0.8633066482 | AZ43: 0.8633034091 | BA43: 0.8633000947 | BB43: 0.8632967054 | BC43: 0.8632932416 | BD43: 0.8632897037 | BE43: 0.863286092 | BF43: 0.8632824069 | BG43: 0.8632786486 | BH43: 0.8631489859
B44: Lout DCR | C44: 139 | D44: Enter selected inductor DC resistance | H44: ΔIL | I44: =I37*I39/(L_buck2*10^-6*fsw*10^3) -> 0.1266800658 | J44: 0.1264530456 | K44: 0.1265138594 | L44: 0.1265612403 | M44: 0.1265999385 | N44: 0.1266291729 | O44: 0.1266515799 | P44: 0.1266689157 | Q44: 0.1266823995 | R44: 0.1266928616 | S44: 0.1267009142 | T44: 0.1267070167 | U44: 0.1267115153 | V44: 0.1267197899 | W44: 0.1267250825 | X44: 0.1267239689 | Y44: 0.1267225643 | Z44: 0.1267208857 | AA44: 0.1267189475 | AB44: 0.1267167625 | AC44: 0.1267143418 | AD44: 0.126711695 | AE44: 0.1267088308 | AF44: 0.1267057566 | AG44: 0.1267024792 | AH44: 0.1266990043 | AI44: 0.1266953374 | AJ44: 0.1266914832 | AK44: 0.1266874458 | AL44: 0.1266832292 | AM44: 0.1266788366 | AN44: 0.1266742714 | AO44: =AO37*AO39/(L_buck2*10^-6*fsw*10^3) -> 0.1266695361 | AP44: 0.1266646335 | AQ44: 0.1266595657 | AR44: 0.1266543349 | AS44: 0.126648943 | AT44: 0.1266433917 | AU44: 0.1266376827 | AV44: 0.1266318174 | AW44: 0.1266257971 | AX44: 0.1266196231 | AY44: 0.1266132965 | AZ44: 0.1266068183 | BA44: 0.1266001894 | BB44: 0.1265934108 | BC44: 0.1265864832 | BD44: 0.1265794074 | BE44: 0.126572184 | BF44: 0.1265648137 | BG44: 0.1265572971 | BH44: 0.1262979719
B45: Ripple | C45: =I103/Iout_PreReg -> 0.3351444061 | D45: Actual inductor ripple current at nominal input voltage | H45: IL RMS | I45: =SQRT((I43-I44/2)^2+I44^2/12) -> 0.8008353888 | J45: =SQRT((J43-J44/2)^2+J44^2/12) -> 0.8008323989 | K45: 0.8008331993 | L45: 0.8008338232 | M45: 0.8008343329 | N45: 0.800834718 | O45: 0.8008350133 | P45: 0.8008352418 | Q45: 0.8008354195 | R45: 0.8008355575 | S45: 0.8008356636 | T45: 0.8008357441 | U45: 0.8008358034 | V45: 0.8008359125 | W45: 0.8008359823 | X45: 0.8008359676 | Y45: 0.8008359491 | Z45: 0.800835927 | AA45: 0.8008359014 | AB45: 0.8008358726 | AC45: 0.8008358407 | AD45: 0.8008358058 | AE45: 0.800835768 | AF45: 0.8008357275 | AG45: 0.8008356843 | AH45: 0.8008356384 | AI45: 0.8008355901 | AJ45: 0.8008355393 | AK45: 0.8008354861 | AL45: 0.8008354305 | AM45: 0.8008353726 | AN45: 0.8008353124 | AO45: 0.80083525 | AP45: 0.8008351854 | AQ45: 0.8008351186 | AR45: 0.8008350496 | AS45: 0.8008349786 | AT45: 0.8008349054 | AU45: 0.8008348302 | AV45: 0.8008347529 | AW45: 0.8008346736 | AX45: 0.8008345922 | AY45: 0.8008345089 | AZ45: 0.8008344235 | BA45: 0.8008343362 | BB45: 0.8008342469 | BC45: 0.8008341556 | BD45: 0.8008340624 | BE45: 0.8008339673 | BF45: 0.8008338702 | BG45: 0.8008337712 | BH45: 0.8008303596
H46: I_hi_sw buck RMS | I46: =SQRT(I39*((I43-I44/2)^2+I44^2/12)) -> 0.6484344688 | J46: =SQRT(J39*((J43-J44/2)^2+J44^2/12)) -> 0.6490720123 | K46: 0.6489018088 | L46: 0.6487689077 | M46: 0.6486601697 | N46: 0.6485779092 | O46: 0.6485147927 | P46: 0.6484659207 | Q46: 0.6484278839 | R46: 0.6483983565 | S46: 0.6483756209 | T46: 0.6483583861 | U46: 0.6483456781 | V46: 0.6483222974 | W46: 0.6483073387 | X46: 0.6483104862 | Y46: 0.6483144563 | Z46: 0.6483192007 | AA46: 0.6483246782 | AB46: 0.6483308527 | AC46: 0.6483376926 | AD46: 0.6483451704 | AE46: 0.6483532617 | AF46: 0.6483619451 | AG46: 0.6483712015 | AH46: 0.6483810139 | AI46: 0.6483913672 | AJ46: 0.6484022477 | AK46: 0.6484136433 | AL46: 0.6484255429 | AM46: 0.6484379366 | AN46: 0.6484508154 | AO46: 0.6484641711 | AP46: 0.6484779962 | AQ46: 0.648492284 | AR46: 0.6485070283 | AS46: 0.6485222233 | AT46: 0.6485378639 | AU46: 0.6485539453 | AV46: 0.648570463 | AW46: 0.6485874129 | AX46: 0.6486047914 | AY46: 0.6486225948 | AZ46: 0.6486408201 | BA46: 0.648659464 | BB46: 0.648678524 | BC46: 0.6486979973 | BD46: 0.6487178816 | BE46: 0.6487381745 | BF46: 0.648758874 | BG46: 0.6487799781 | BH46: 0.6495041297
B47: Output Capacitor, Pre-Regulator | H47: I_lo_sw buck RMS | I47: =SQRT((1-I39)*((I43-I44/2)^2+I44^2/12)) -> 0.4699681474 | J47: =SQRT((1-J39)*((J43-J44/2)^2+J44^2/12)) -> 0.4690821399 | K47: 0.4693189274 | L47: 0.4695036919 | M47: 0.4696547807 | N47: 0.4697690298 | O47: 0.4698566614 | P47: 0.4699244984 | Q47: 0.4699772852 | R47: 0.4700182564 | S47: 0.4700497998 | T47: 0.4700737093 | U47: 0.4700913375 | V47: 0.4701237682 | W47: 0.4701445152 | X47: 0.4701401498 | Y47: 0.4701346437 | Z47: 0.4701280632 | AA47: 0.470120466 | AB47: 0.4701119019 | AC47: 0.4701024144 | AD47: 0.4700920419 | AE47: 0.4700808179 | AF47: 0.4700687721 | AG47: 0.4700559309 | AH47: 0.4700423179 | AI47: 0.4700279538 | AJ47: 0.4700128574 | AK47: 0.4699970457 | AL47: 0.4699805337 | AM47: 0.4699633351 | AN47: 0.4699454624 | AO47: 0.4699269267 | AP47: 0.4699077384 | AQ47: 0.4698879065 | AR47: 0.4698674398 | AS47: 0.4698463459 | AT47: 0.4698246319 | AU47: 0.4698023044 | AV47: 0.4697793695 | AW47: 0.4697558325 | AX47: 0.4697316986 | AY47: 0.4697069725 | AZ47: 0.4696816586 | BA47: 0.4696557609 | BB47: 0.469629283 | BC47: 0.4696022286 | BD47: 0.4695746008 | BE47: 0.4695464025 | BF47: 0.4695176366 | BG47: 0.4694883057 | BH47: 0.4684801493
B48: Vripple | C48: 0.01 | D48: Enter VREG maximum output switching frequency ripple | H48: I cout RMS | I48: =SQRT(((I43-I44/2-Iout_sync_buck)^2+I44^2/12)) -> 0.03656938503 | J48: 0.03650384995 | K48: 0.0365214054 | L48: 0.03653508309 | M48: 0.03654625428 | N48: 0.03655469352 | O48: 0.03656116187 | P48: 0.03656616629 | Q48: 0.03657005873 | R48: 0.03657307888 | S48: 0.03657540345 | T48: 0.03657716509 | U48: 0.03657846374 | V48: 0.03658085241 | W48: 0.03658238023 | X48: 0.03658205878 | Y48: 0.03658165332 | Z48: 0.03658116872 | AA48: 0.03658060922 | AB48: 0.03657997847 | AC48: 0.03657927967 | AD48: 0.03657851562 | AE48: 0.03657768879 | AF48: 0.03657680135 | AG48: 0.03657585522 | AH48: 0.03657485212 | AI48: 0.03657379358 | AJ48: 0.03657268095 | AK48: 0.03657151547 | AL48: 0.03657029823 | AM48: 0.03656903022 | AN48: 0.03656771234 | AO48: =SQRT(((AO43-AO44/2-Iout_sync_buck)^2+AO44^2/12)) -> 0.03656634539 | AP48: 0.03656493011 | AQ48: 0.03656346717 | AR48: 0.03656195717 | AS48: 0.03656040066 | AT48: 0.03655879816 | AU48: 0.03655715011 | AV48: 0.03655545694 | AW48: 0.03655371903 | AX48: 0.03655193675 | AY48: 0.0365501104 | AZ48: 0.0365482403 | BA48: 0.03654632672 | BB48: 0.0365443699 | BC48: 0.03654237007 | BD48: 0.03654032746 | BE48: 0.03653824226 | BF48: 0.03653611464 | BG48: 0.03653394478 | BH48: 0.03645908402
B49: I Step | C49: 0.5 | D49: Enter load step | G49: Adj BUCK High Side FET | H49: Rds_On Buck | I49: =Buck_RdsON_factor_7V*(I4-150)+Adj_buck_hi_rdsON_150 -> 0.2921099532 | J49: 0.3006455009 | K49: 0.2983659319 | L49: 0.2965863935 | M49: 0.2951306793 | N49: 0.2940295985 | O49: 0.2931848631 | P49: 0.2925308326 | Q49: 0.292021839 | R49: 0.2916267366 | S49: 0.291322527 | T49: 0.2910919267 | U49: 0.2909218999 | V49: 0.2906090852 | W49: 0.2904089554 | X49: 0.2904510655 | Y49: 0.2905041792 | Z49: 0.2905676549 | AA49: 0.2906409378 | AB49: 0.290723546 | AC49: 0.2908150585 | AD49: 0.2909151063 | AE49: 0.2910233645 | AF49: 0.2911395457 | AG49: 0.2912633952 | AH49: 0.2913946861 | AI49: 0.2915332159 | AJ49: 0.291678803 | AK49: 0.2918312844 | AL49: 0.2919905132 | AM49: 0.2921563567 | AN49: 0.2923286948 | AO49: =Buck_RdsON_factor_7V*(AO4-150)+Adj_buck_hi_rdsON_150 -> 0.2925074184 | AP49: 0.2926924282 | AQ49: 0.2928836339 | AR49: 0.2930809526 | AS49: 0.2932843089 | AT49: 0.2934936331 | AU49: 0.2937088617 | AV49: 0.2939299359 | AW49: 0.2941568016 | AX49: 0.2943894088 | AY49: 0.2946277113 | AZ49: 0.2948716662 | BA49: 0.2951212339 | BB49: 0.2953763775 | BC49: 0.2956370626 | BD49: 0.2959032574 | BE49: 0.2961749319 | BF49: 0.2964520584 | BG49: 0.2967346108 | BH49: 0.3064357305
B50: V transient | C50: 0.026 | D50: Enter maximum VREG deviation due to load step | H50: Conduction Losses | I50: =I46^2*I49 -> 0.1228226718 | J50: =J46^2*J49 -> 0.1266602891 | K50: 0.1256340044 | L50: 0.1248335379 | M50: 0.1241791893 | N50: 0.1236845222 | O50: 0.123305179 | P50: 0.1230115701 | Q50: 0.1227831288 | R50: 0.1226058376 | S50: 0.1224693527 | T50: 0.1223659048 | U50: 0.1222896369 | V50: 0.1221493342 | W50: 0.1220595825 | X50: 0.1220784669 | Y50: 0.1221022863 | Z50: 0.1221307534 | AA50: 0.1221636198 | AB50: 0.1222006696 | AC50: 0.1222417146 | AD50: 0.1222865897 | AE50: 0.1223351496 | AF50: 0.1223872659 | AG50: 0.122442825 | AH50: 0.1225017256 | AI50: 0.1225638773 | AJ50: 0.1226291993 | AK50: 0.122697619 | AL50: 0.1227690712 | AM50: 0.1228434968 | AN50: 0.1229208427 | AO50: 0.1230010605 | AP50: 0.1230841063 | AQ50: 0.1231699402 | AR50: 0.1232585257 | AS50: 0.1233498297 | AT50: 0.1234438215 | AU50: 0.1235404734 | AV50: 0.1236397598 | AW50: 0.1237416569 | AX50: 0.1238461433 | AY50: 0.1239531988 | AZ50: 0.124062805 | BA50: 0.1241749449 | BB50: 0.1242896027 | BC50: 0.1244067638 | BD50: 0.1245264147 | BE50: 0.1246485429 | BF50: 0.1247731366 | BG50: 0.1249001852 | BH50: 0.1292716334
B51: VIN min for transient | C51: 7 | D51: Enter minimum input voltage for load transient spec | H51: Switching Losses | I51: =0.5*Vreg*Iout_sync_buck*fsw*10^3*(Vreg/SLEW_rate+Vreg/1.5)*10^-9 -> 0.04070755556 | J51: 0.04070755556 | K51: 0.04070755556 | L51: 0.04070755556 | M51: 0.04070755556 | N51: 0.04070755556 | O51: 0.04070755556 | P51: 0.04070755556 | Q51: 0.04070755556 | R51: 0.04070755556 | S51: 0.04070755556 | T51: 0.04070755556 | U51: 0.04070755556 | V51: 0.04070755556 | W51: 0.04070755556 | X51: 0.04070755556 | Y51: 0.04070755556 | Z51: 0.04070755556 | AA51: 0.04070755556 | AB51: 0.04070755556 | AC51: 0.04070755556 | AD51: 0.04070755556 | AE51: 0.04070755556 | AF51: 0.04070755556 | AG51: 0.04070755556 | AH51: 0.04070755556 | AI51: 0.04070755556 | AJ51: 0.04070755556 | AK51: 0.04070755556 | AL51: 0.04070755556 | AM51: 0.04070755556 | AN51: 0.04070755556 | AO51: =0.5*Vreg*Iout_sync_buck*fsw*10^3*(Vreg/SLEW_rate+Vreg/1.5)*10^-9 -> 0.04070755556 | AP51: 0.04070755556 | AQ51: 0.04070755556 | AR51: 0.04070755556 | AS51: 0.04070755556 | AT51: 0.04070755556 | AU51: 0.04070755556 | AV51: 0.04070755556 | AW51: 0.04070755556 | AX51: 0.04070755556 | AY51: 0.04070755556 | AZ51: 0.04070755556 | BA51: 0.04070755556 | BB51: 0.04070755556 | BC51: 0.04070755556 | BD51: 0.04070755556 | BE51: 0.04070755556 | BF51: 0.04070755556 | BG51: 0.04070755556 | BH51: 0.04070755556
B52: Output Capacitor | C52: =ROUNDUP(MAX(X166:X168),0) -> 24 | D52: Minimum output capacitance required | H52: Total Buck FET Losses | I52: =I50+I51 -> 0.1635302273 | J52: =J50+J51 -> 0.1673678447 | K52: 0.1663415599 | L52: 0.1655410935 | M52: 0.1648867448 | N52: 0.1643920777 | O52: 0.1640127345 | P52: 0.1637191256 | Q52: 0.1634906844 | R52: 0.1633133932 | S52: 0.1631769082 | T52: 0.1630734603 | U52: 0.1629971925 | V52: 0.1628568897 | W52: 0.162767138 | X52: 0.1627860224 | Y52: 0.1628098418 | Z52: 0.1628383089 | AA52: 0.1628711753 | AB52: 0.1629082251 | AC52: 0.1629492701 | AD52: 0.1629941452 | AE52: 0.1630427051 | AF52: 0.1630948215 | AG52: 0.1631503806 | AH52: 0.1632092811 | AI52: 0.1632714328 | AJ52: 0.1633367548 | AK52: 0.1634051745 | AL52: 0.1634766267 | AM52: 0.1635510524 | AN52: 0.1636283982 | AO52: 0.163708616 | AP52: 0.1637916618 | AQ52: 0.1638774957 | AR52: 0.1639660813 | AS52: 0.1640573852 | AT52: 0.1641513771 | AU52: 0.164248029 | AV52: 0.1643473153 | AW52: 0.1644492125 | AX52: 0.1645536988 | AY52: 0.1646607543 | AZ52: 0.1647703605 | BA52: 0.1648825004 | BB52: 0.1649971582 | BC52: 0.1651143194 | BD52: 0.1652339703 | BE52: 0.1653560984 | BF52: 0.1654806922 | BG52: 0.1656077407 | BH52: 0.169979189
B53: ESR | C53: =ROUNDUP(C48/(2*C54)*1000,0) -> 7 | D53: Maximum series equivalent resistance for output capacitor | G53: Adj BUCK Low Side FET | H53: Rds_On Buck | I53: =Buck_RdsON_factor_7V*(I4-150)+Adj_buck_lo_rdsON_150 -> 0.1021099532 | J53: 0.1106455009 | K53: 0.1083659319 | L53: 0.1065863935 | M53: 0.1051306793 | N53: 0.1040295985 | O53: 0.1031848631 | P53: 0.1025308326 | Q53: 0.102021839 | R53: 0.1016267366 | S53: 0.101322527 | T53: 0.1010919267 | U53: 0.1009218999 | V53: 0.1006090852 | W53: 0.1004089554 | X53: 0.1004510655 | Y53: 0.1005041792 | Z53: 0.1005676549 | AA53: 0.1006409378 | AB53: 0.100723546 | AC53: 0.1008150585 | AD53: 0.1009151063 | AE53: 0.1010233645 | AF53: 0.1011395457 | AG53: 0.1012633952 | AH53: 0.1013946861 | AI53: 0.1015332159 | AJ53: 0.101678803 | AK53: 0.1018312844 | AL53: 0.1019905132 | AM53: 0.1021563567 | AN53: 0.1023286948 | AO53: =Buck_RdsON_factor_7V*(AO4-150)+Adj_buck_lo_rdsON_150 -> 0.1025074184 | AP53: 0.1026924282 | AQ53: 0.1028836339 | AR53: 0.1030809526 | AS53: 0.1032843089 | AT53: 0.1034936331 | AU53: 0.1037088617 | AV53: 0.1039299359 | AW53: 0.1041568016 | AX53: 0.1043894088 | AY53: 0.1046277113 | AZ53: 0.1048716662 | BA53: 0.1051212339 | BB53: 0.1053763775 | BC53: 0.1056370626 | BD53: 0.1059032574 | BE53: 0.1061749319 | BF53: 0.1064520584 | BG53: 0.1067346108 | BH53: 0.1164357305
B54: I RMS | C54: =ROUNDUP(IF(Topology="Buck",MAX(J107:BG107),MAX(J29:BG29)),3) -> 0.765 | D54: Maximum RMS current in output capacitor | H54: Conduction Losses | I54: =I47^2*I53 -> 0.02255303145 | J54: =J47^2*J53 -> 0.0243462207 | K54: 0.02386870787 | L54: 0.02349523486 | M54: 0.02318926404 | N54: 0.02295755777 | O54: 0.02277963542 | P54: 0.02264178473 | Q54: 0.02253444591 | R54: 0.02245109016 | S54: 0.02238688957 | T54: 0.02233821149 | U54: 0.02230231342 | V54: 0.02223625353 | W54: 0.02219398032 | X54: 0.02220287585 | Y54: 0.02221409532 | Z54: 0.02222750289 | AA54: 0.022242981 | AB54: 0.02226042745 | AC54: 0.02227975291 | AD54: 0.02230087896 | AE54: 0.0223237365 | AF54: 0.02234826437 | AG54: 0.02237440825 | AH54: 0.02240211971 | AI54: 0.02243135541 | AJ54: 0.02246207649 | AK54: 0.02249424794 | AL54: 0.02252783815 | AM54: 0.02256281853 | AN54: 0.02259916308 | AO54: 0.02263684816 | AP54: 0.02267585217 | AQ54: 0.02271615539 | AR54: 0.02275773968 | AS54: 0.02280058841 | AT54: 0.02284468623 | AU54: 0.022890019 | AV54: 0.0229365736 | AW54: 0.02298433788 | AX54: 0.02303330056 | AY54: 0.02308345114 | AZ54: 0.02313477981 | BA54: 0.0231872774 | BB54: 0.02324093535 | BC54: 0.02329574561 | BD54: 0.02335170062 | BE54: 0.02340879325 | BF54: 0.0234670168 | BG54: 0.02352636491 | BH54: 0.02555457479
B55: Actual Capacitor value = | C55: 8.5 | D55: Enter minimum capacitance value of ceramic capacitor with tolerance and DC bias | H55: Body Diode Losses | I55: =(I43-I44/2)*(2*td*10^-9*(fsw*10^3))*0.05 -> 0.0024 | J55: 0.0024 | K55: 0.0024 | L55: 0.0024 | M55: 0.0024 | N55: 0.0024 | O55: 0.0024 | P55: 0.0024 | Q55: 0.0024 | R55: 0.0024 | S55: 0.0024 | T55: 0.0024 | U55: 0.0024 | V55: 0.0024 | W55: 0.0024 | X55: 0.0024 | Y55: 0.0024 | Z55: 0.0024 | AA55: 0.0024 | AB55: 0.0024 | AC55: 0.0024 | AD55: 0.0024 | AE55: 0.0024 | AF55: 0.0024 | AG55: 0.0024 | AH55: 0.0024 | AI55: 0.0024 | AJ55: 0.0024 | AK55: 0.0024 | AL55: 0.0024 | AM55: 0.0024 | AN55: 0.0024 | AO55: =(AO43-AO44/2)*(2*td*10^-9*(fsw*10^3))*0.05 -> 0.0024 | AP55: 0.0024 | AQ55: 0.0024 | AR55: 0.0024 | AS55: 0.0024 | AT55: 0.0024 | AU55: 0.0024 | AV55: 0.0024 | AW55: 0.0024 | AX55: 0.0024 | AY55: 0.0024 | AZ55: 0.0024 | BA55: 0.0024 | BB55: 0.0024 | BC55: 0.0024 | BD55: 0.0024 | BE55: 0.0024 | BF55: 0.0024 | BG55: 0.0024 | BH55: 0.0024
B56: Estimated ESR | C56: 3 | D56: Enter estimated equivalent series resistance of output capacitor used | H56: Total Buck FET Losses | I56: =I54+I55 -> 0.02495303145 | J56: =J54+J55 -> 0.0267462207 | K56: 0.02626870787 | L56: 0.02589523486 | M56: 0.02558926404 | N56: 0.02535755777 | O56: 0.02517963542 | P56: 0.02504178473 | Q56: 0.02493444591 | R56: 0.02485109016 | S56: 0.02478688957 | T56: 0.02473821149 | U56: 0.02470231342 | V56: 0.02463625353 | W56: 0.02459398032 | X56: 0.02460287585 | Y56: 0.02461409532 | Z56: 0.02462750289 | AA56: 0.024642981 | AB56: 0.02466042745 | AC56: 0.02467975291 | AD56: 0.02470087896 | AE56: 0.0247237365 | AF56: 0.02474826437 | AG56: 0.02477440825 | AH56: 0.02480211971 | AI56: 0.02483135541 | AJ56: 0.02486207649 | AK56: 0.02489424794 | AL56: 0.02492783815 | AM56: 0.02496281853 | AN56: 0.02499916308 | AO56: 0.02503684816 | AP56: 0.02507585217 | AQ56: 0.02511615539 | AR56: 0.02515773968 | AS56: 0.02520058841 | AT56: 0.02524468623 | AU56: 0.025290019 | AV56: 0.0253365736 | AW56: 0.02538433788 | AX56: 0.02543330056 | AY56: 0.02548345114 | AZ56: 0.02553477981 | BA56: 0.0255872774 | BB56: 0.02564093535 | BC56: 0.02569574561 | BD56: 0.02575170062 | BE56: 0.02580879325 | BF56: 0.0258670168 | BG56: 0.02592636491 | BH56: 0.02795457479
B57: Number of capacitors = | C57: 3 | D57: Enter the number of parallel ceramic capacitors | G57: V5A LDO | H57: Output voltage | I57: =IF(I21-5<I58*Iout_V5A,I21-I58*Iout_V5A,5) -> 5 | J57: 5 | K57: 5 | L57: 5 | M57: 5 | N57: 5 | O57: 5 | P57: 5 | Q57: 5 | R57: 5 | S57: 5 | T57: 5 | U57: 5 | V57: 5 | W57: 5 | X57: 5 | Y57: 5 | Z57: 5 | AA57: 5 | AB57: 5 | AC57: 5 | AD57: 5 | AE57: 5 | AF57: 5 | AG57: 5 | AH57: 5 | AI57: 5 | AJ57: 5 | AK57: 5 | AL57: 5 | AM57: 5 | AN57: 5 | AO57: =IF(AO21-5<AO58*Iout_V5A,AO21-AO58*Iout_V5A,5) -> 5 | AP57: 5 | AQ57: 5 | AR57: 5 | AS57: 5 | AT57: 5 | AU57: 5 | AV57: 5 | AW57: 5 | AX57: 5 | AY57: 5 | AZ57: 5 | BA57: 5 | BB57: 5 | BC57: 5 | BD57: 5 | BE57: 5 | BF57: 5 | BG57: 5 | BH57: 5 | BI57: Output voltage | BJ57: V5 LDO
H58: Series pass resistance | I58: =(Rds_ON_V5A_150-Rds_ON_V5A_min40)/190*(I4-150)+Rds_ON_V5A_150 -> 0.6745587731 | J58: 0.700999587 | K58: 0.6939380999 | L58: 0.6884255719 | M58: 0.683916164 | N58: 0.6805053138 | O58: 0.6778885525 | P58: 0.6758625432 | Q58: 0.674285819 | R58: 0.6730618988 | S58: 0.6721195401 | T58: 0.6714052028 | U58: 0.6708785059 | V58: 0.6699094905 | W58: 0.6692895427 | X58: 0.6694199885 | Y58: 0.6695845202 | Z58: 0.6697811506 | AA58: 0.6700081613 | AB58: 0.6702640591 | AC58: 0.6705475401 | AD58: 0.6708574612 | AE58: 0.6711928156 | AF58: 0.6715527136 | AG58: 0.6719363658 | AH58: 0.6723430695 | AI58: 0.6727721971 | AJ58: 0.6732231865 | AK58: 0.6736955326 | AL58: 0.6741887803 | AM58: 0.6747025186 | AN58: 0.6752363753 | AO58: =(Rds_ON_V5A_150-Rds_ON_V5A_min40)/190*(AO4-150)+Rds_ON_V5A_150 -> 0.6757900125 | AP58: 0.6763631228 | AQ58: 0.676955426 | AR58: 0.6775666661 | AS58: 0.6781966086 | AT58: 0.6788450385 | AU58: 0.6795117584 | AV58: 0.6801965863 | AW58: 0.6808993548 | AX58: 0.6816199088 | AY58: 0.6823581053 | AZ58: 0.6831138116 | BA58: 0.6838869048 | BB58: 0.6846772704 | BC58: 0.6854848023 | BD58: 0.6863094014 | BE58: 0.6871509754 | BF58: 0.6880094382 | BG58: 0.6888847091 | BH58: 0.7189361492 | BI58: Series pass resistance
B59: Boost FET | H59: Power dissipated | I59: =(I21-I57)*Iout_V5A -> 0 | J59: 0 | K59: 0 | L59: 0 | M59: 0 | N59: 0 | O59: 0 | P59: 0 | Q59: 0 | R59: 0 | S59: 0 | T59: 0 | U59: 0 | V59: 0 | W59: 0 | X59: 0 | Y59: 0 | Z59: 0 | AA59: 0 | AB59: 0 | AC59: 0 | AD59: 0 | AE59: 0 | AF59: 0 | AG59: 0 | AH59: 0 | AI59: 0 | AJ59: 0 | AK59: 0 | AL59: 0 | AM59: 0 | AN59: 0 | AO59: =(AO21-AO57)*Iout_V5A -> 0 | AP59: 0 | AQ59: 0 | AR59: 0 | AS59: 0 | AT59: 0 | AU59: 0 | AV59: 0 | AW59: 0 | AX59: 0 | AY59: 0 | AZ59: 0 | BA59: 0 | BB59: 0 | BC59: 0 | BD59: 0 | BE59: 0 | BF59: 0 | BG59: 0 | BH59: 0 | BI59: Power dissipated
B60: Rds ON boost | C60: 0.02 | D60: Recommended boost MOSFET Rds On at 25C | G60: V5SNR LDO | H60: Output voltage | I60: =IF(I21-5<I61*Iout_V5B,I21-I61*Iout_V5B,5) -> 5 | J60: 5 | K60: 5 | L60: 5 | M60: 5 | N60: 5 | O60: 5 | P60: 5 | Q60: 5 | R60: 5 | S60: 5 | T60: 5 | U60: 5 | V60: 5 | W60: 5 | X60: 5 | Y60: 5 | Z60: 5 | AA60: 5 | AB60: 5 | AC60: 5 | AD60: 5 | AE60: 5 | AF60: 5 | AG60: 5 | AH60: 5 | AI60: 5 | AJ60: 5 | AK60: 5 | AL60: 5 | AM60: 5 | AN60: 5 | AO60: =IF(AO21-5<AO61*Iout_V5B,AO21-AO61*Iout_V5B,5) -> 5 | AP60: 5 | AQ60: 5 | AR60: 5 | AS60: 5 | AT60: 5 | AU60: 5 | AV60: 5 | AW60: 5 | AX60: 5 | AY60: 5 | AZ60: 5 | BA60: 5 | BB60: 5 | BC60: 5 | BD60: 5 | BE60: 5 | BF60: 5 | BG60: 5 | BH60: 5 | BI60: Output voltage | BJ60: V5 LDO
C61: 0.018 | D61: Enter Rds ON at 25C of selected boost MOSFET | H61: Series pass resistance | I61: =(Rds_ON_V5B_150-Rds_ON_V5B_min40)/190*(I4-150)+Rds_ON_V5B_150 -> 0.6745587731 | J61: 0.700999587 | K61: 0.6939380999 | L61: 0.6884255719 | M61: 0.683916164 | N61: 0.6805053138 | O61: 0.6778885525 | P61: 0.6758625432 | Q61: 0.674285819 | R61: 0.6730618988 | S61: 0.6721195401 | T61: 0.6714052028 | U61: 0.6708785059 | V61: 0.6699094905 | W61: 0.6692895427 | X61: 0.6694199885 | Y61: 0.6695845202 | Z61: 0.6697811506 | AA61: 0.6700081613 | AB61: 0.6702640591 | AC61: 0.6705475401 | AD61: 0.6708574612 | AE61: 0.6711928156 | AF61: 0.6715527136 | AG61: 0.6719363658 | AH61: 0.6723430695 | AI61: 0.6727721971 | AJ61: 0.6732231865 | AK61: 0.6736955326 | AL61: 0.6741887803 | AM61: 0.6747025186 | AN61: 0.6752363753 | AO61: =(Rds_ON_V5B_150-Rds_ON_V5B_min40)/190*(AO4-150)+Rds_ON_V5B_150 -> 0.6757900125 | AP61: 0.6763631228 | AQ61: 0.676955426 | AR61: 0.6775666661 | AS61: 0.6781966086 | AT61: 0.6788450385 | AU61: 0.6795117584 | AV61: 0.6801965863 | AW61: 0.6808993548 | AX61: 0.6816199088 | AY61: 0.6823581053 | AZ61: 0.6831138116 | BA61: 0.6838869048 | BB61: 0.6846772704 | BC61: 0.6854848023 | BD61: 0.6863094014 | BE61: 0.6871509754 | BF61: 0.6880094382 | BG61: 0.6888847091 | BH61: 0.7189361492 | BI61: Series pass resistance
B62: Rthj-a | C62: 60 | D62: Enter MOSFET junction to ambient thermal resistance | H62: Power dissipated | I62: =(I21-I60)*Iout_V5B -> 0 | J62: 0 | K62: 0 | L62: 0 | M62: 0 | N62: 0 | O62: 0 | P62: 0 | Q62: 0 | R62: 0 | S62: 0 | T62: 0 | U62: 0 | V62: 0 | W62: 0 | X62: 0 | Y62: 0 | Z62: 0 | AA62: 0 | AB62: 0 | AC62: 0 | AD62: 0 | AE62: 0 | AF62: 0 | AG62: 0 | AH62: 0 | AI62: 0 | AJ62: 0 | AK62: 0 | AL62: 0 | AM62: 0 | AN62: 0 | AO62: =(AO21-AO60)*Iout_V5B -> 0 | AP62: 0 | AQ62: 0 | AR62: 0 | AS62: 0 | AT62: 0 | AU62: 0 | AV62: 0 | AW62: 0 | AX62: 0 | AY62: 0 | AZ62: 0 | BA62: 0 | BB62: 0 | BC62: 0 | BD62: 0 | BE62: 0 | BF62: 0 | BG62: 0 | BH62: 0 | BI62: Power dissipated
B63: t rise boost | C63: 22 | D63: Enter estimated boost switch rise time | G63: V5CAN LDO | H63: Output voltage | I63: =IF(I21-5<I64*Iout_V5CAN,I21-I64*Iout_V5CAN,5) -> 5 | J63: 5 | K63: 5 | L63: 5 | M63: 5 | N63: 5 | O63: 5 | P63: 5 | Q63: 5 | R63: 5 | S63: 5 | T63: 5 | U63: 5 | V63: 5 | W63: 5 | X63: 5 | Y63: 5 | Z63: 5 | AA63: 5 | AB63: 5 | AC63: 5 | AD63: 5 | AE63: 5 | AF63: 5 | AG63: 5 | AH63: 5 | AI63: 5 | AJ63: 5 | AK63: 5 | AL63: 5 | AM63: 5 | AN63: 5 | AO63: =IF(AO21-5<AO64*Iout_V5CAN,AO21-AO64*Iout_V5CAN,5) -> 5 | AP63: 5 | AQ63: 5 | AR63: 5 | AS63: 5 | AT63: 5 | AU63: 5 | AV63: 5 | AW63: 5 | AX63: 5 | AY63: 5 | AZ63: 5 | BA63: 5 | BB63: 5 | BC63: 5 | BD63: 5 | BE63: 5 | BF63: 5 | BG63: 5 | BH63: 5 | BI63: Output voltage | BJ63: V5 LDO
B64: t fall boost | C64: 22 | D64: Enter estimated boost switch fall time | H64: Series pass resistance | I64: =(Rds_ON_V5CAN_150-Rds_ON_V5CAN_min40)/190*(I4-150)+Rds_ON_V5CAN_150 -> 0.4890000993 | J64: 0.5041453606 | K64: 0.5001005507 | L64: 0.4969429823 | M64: 0.4943599998 | N64: 0.4924062696 | O64: 0.4909073923 | P64: 0.489746897 | Q64: 0.4888437516 | R64: 0.4881426918 | S64: 0.4876029101 | T64: 0.4871937387 | U64: 0.4868920474 | V64: 0.4863369967 | W64: 0.4859818915 | X64: 0.4860566107 | Y64: 0.4861508542 | Z64: 0.4862634838 | AA64: 0.4863935153 | AB64: 0.4865400931 | AC64: 0.4867024707 | AD64: 0.486879993 | AE64: 0.4870720836 | AF64: 0.4872782326 | AG64: 0.4874979881 | AH64: 0.4877309474 | AI64: 0.4879767511 | AJ64: 0.4882350772 | AK64: 0.4885056364 | AL64: 0.488788168 | AM64: 0.4890824365 | AN64: 0.4893882289 | AO64: =(Rds_ON_V5CAN_150-Rds_ON_V5CAN_min40)/190*(AO4-150)+Rds_ON_V5CAN_150 -> 0.4897053515 | AP64: 0.4900336283 | AQ64: 0.4903728988 | AR64: 0.4907230162 | AS64: 0.4910838464 | AT64: 0.4914552662 | AU64: 0.4918371624 | AV64: 0.4922294309 | AW64: 0.4926319757 | AX64: 0.493044708 | AY64: 0.4934675459 | AZ64: 0.4939004135 | BA64: 0.4943432401 | BB64: 0.4947959605 | BC64: 0.4952585136 | BD64: 0.4957308428 | BE64: 0.4962128952 | BF64: 0.4967046215 | BG64: 0.4972059755 | BH64: 0.5144193985 | BI64: Series pass resistance
B65: Max Peak current | C65: =IF(Topology="Buck","-",MAX(J22:BH22)) -> 1.607496914 | D65: =IF(Topology="Buck","","Maximum peak MOSFET current") -> Maximum peak MOSFET current | H65: Power dissipated | I65: =(I21-I63)*Iout_V5CAN -> 0 | J65: 0 | K65: 0 | L65: 0 | M65: 0 | N65: 0 | O65: 0 | P65: 0 | Q65: 0 | R65: 0 | S65: 0 | T65: 0 | U65: 0 | V65: 0 | W65: 0 | X65: 0 | Y65: 0 | Z65: 0 | AA65: 0 | AB65: 0 | AC65: 0 | AD65: 0 | AE65: 0 | AF65: 0 | AG65: 0 | AH65: 0 | AI65: 0 | AJ65: 0 | AK65: 0 | AL65: 0 | AM65: 0 | AN65: 0 | AO65: =(AO21-AO63)*Iout_V5CAN -> 0 | AP65: 0 | AQ65: 0 | AR65: 0 | AS65: 0 | AT65: 0 | AU65: 0 | AV65: 0 | AW65: 0 | AX65: 0 | AY65: 0 | AZ65: 0 | BA65: 0 | BB65: 0 | BC65: 0 | BD65: 0 | BE65: 0 | BF65: 0 | BG65: 0 | BH65: 0 | BI65: Power dissipated
B66: Max RMS current | C66: =IF(Topology="Buck","-",MAX(J27:BH27)) -> 1.178787062 | D66: =IF(Topology="Buck","","Maximum RMS MOSFET current") -> Maximum RMS MOSFET current | G66: V5P LDO | H66: Output voltage | I66: =IF(I21-5<I67*Iout_V5P,I21-I67*Iout_V5P,5) -> 5 | J66: 5 | K66: 5 | L66: 5 | M66: 5 | N66: 5 | O66: 5 | P66: 5 | Q66: 5 | R66: 5 | S66: 5 | T66: 5 | U66: 5 | V66: 5 | W66: 5 | X66: 5 | Y66: 5 | Z66: 5 | AA66: 5 | AB66: 5 | AC66: 5 | AD66: 5 | AE66: 5 | AF66: 5 | AG66: 5 | AH66: 5 | AI66: 5 | AJ66: 5 | AK66: 5 | AL66: 5 | AM66: 5 | AN66: 5 | AO66: =IF(AO21-5<AO67*Iout_V5P,AO21-AO67*Iout_V5P,5) -> 5 | AP66: 5 | AQ66: 5 | AR66: 5 | AS66: 5 | AT66: 5 | AU66: 5 | AV66: 5 | AW66: 5 | AX66: 5 | AY66: 5 | AZ66: 5 | BA66: 5 | BB66: 5 | BC66: 5 | BD66: 5 | BE66: 5 | BF66: 5 | BG66: 5 | BH66: 5 | BI66: Output voltage | BJ66: V5 LDO
B67: Maximum gate charge | C67: 6.5 | D67: At Vgs = 5V | H67: Series pass resistance | I67: =(Rds_ON_V5P_150-Rds_ON_V5P_min40)/190*(I4-150)+Rds_ON_V5P_150 -> 0.6745587731 | J67: 0.700999587 | K67: 0.6939380999 | L67: 0.6884255719 | M67: 0.683916164 | N67: 0.6805053138 | O67: 0.6778885525 | P67: 0.6758625432 | Q67: 0.674285819 | R67: 0.6730618988 | S67: 0.6721195401 | T67: 0.6714052028 | U67: 0.6708785059 | V67: 0.6699094905 | W67: 0.6692895427 | X67: 0.6694199885 | Y67: 0.6695845202 | Z67: 0.6697811506 | AA67: 0.6700081613 | AB67: 0.6702640591 | AC67: 0.6705475401 | AD67: 0.6708574612 | AE67: 0.6711928156 | AF67: 0.6715527136 | AG67: 0.6719363658 | AH67: 0.6723430695 | AI67: 0.6727721971 | AJ67: 0.6732231865 | AK67: 0.6736955326 | AL67: 0.6741887803 | AM67: 0.6747025186 | AN67: 0.6752363753 | AO67: =(Rds_ON_V5P_150-Rds_ON_V5P_min40)/190*(AO4-150)+Rds_ON_V5P_150 -> 0.6757900125 | AP67: 0.6763631228 | AQ67: 0.676955426 | AR67: 0.6775666661 | AS67: 0.6781966086 | AT67: 0.6788450385 | AU67: 0.6795117584 | AV67: 0.6801965863 | AW67: 0.6808993548 | AX67: 0.6816199088 | AY67: 0.6823581053 | AZ67: 0.6831138116 | BA67: 0.6838869048 | BB67: 0.6846772704 | BC67: 0.6854848023 | BD67: 0.6863094014 | BE67: 0.6871509754 | BF67: 0.6880094382 | BG67: 0.6888847091 | BH67: 0.7189361492 | BI67: Series pass resistance
B68: Max Power diss | C68: =IF(Topology="Buck","-",MAX(J82:BH82)) -> 0.1959077387 | D68: =IF(Topology="Buck","","Maximum MOSFET power dissipation") -> Maximum MOSFET power dissipation | H68: Power dissipated | I68: =(I21-I66)*Iout_V5P -> 0.02625 | J68: 0.02625 | K68: 0.02625 | L68: 0.02625 | M68: 0.02625 | N68: 0.02625 | O68: 0.02625 | P68: 0.02625 | Q68: 0.02625 | R68: 0.02625 | S68: 0.02625 | T68: 0.02625 | U68: 0.02625 | V68: 0.02625 | W68: 0.02625 | X68: 0.02625 | Y68: 0.02625 | Z68: 0.02625 | AA68: 0.02625 | AB68: 0.02625 | AC68: 0.02625 | AD68: 0.02625 | AE68: 0.02625 | AF68: 0.02625 | AG68: 0.02625 | AH68: 0.02625 | AI68: 0.02625 | AJ68: 0.02625 | AK68: 0.02625 | AL68: 0.02625 | AM68: 0.02625 | AN68: 0.02625 | AO68: =(AO21-AO66)*Iout_V5P -> 0.02625 | AP68: 0.02625 | AQ68: 0.02625 | AR68: 0.02625 | AS68: 0.02625 | AT68: 0.02625 | AU68: 0.02625 | AV68: 0.02625 | AW68: 0.02625 | AX68: 0.02625 | AY68: 0.02625 | AZ68: 0.02625 | BA68: 0.02625 | BB68: 0.02625 | BC68: 0.02625 | BD68: 0.02625 | BE68: 0.02625 | BF68: 0.02625 | BG68: 0.02625 | BH68: 0.02625 | BI68: Power dissipated
B69: Max Vds | C69: =IF(Topology="Buck","-",Vreg+4) -> 9.35 | D69: =IF(Topology="Buck","","Select MOSFET with higher VDS rating") -> Select MOSFET with higher VDS rating | G69: Buck Diode | H69: Tj Diode | I69: =I72*RTHavg_Vd+Ta -> 138.2448939 | J69: =J72*RTHavg_Vd+Ta -> 137.601726 | K69: 136.2296529 | L69: 135.4712626 | M69: 135.4754906 | N69: 135.2945179 | O69: 135.0165957 | P69: 134.6869342 | Q69: 134.31562 | R69: 133.9534406 | S69: 133.6081636 | T69: 133.2856112 | U69: 132.9888101 | V69: 132.764292 | W69: 130.0724657 | X69: 130.9023068 | Y69: 131.6676024 | Z69: 132.3755745 | AA69: 133.0324102 | AB69: 133.6434396 | AC69: 134.2132792 | AD69: 134.7459469 | AE69: 135.2449558 | AF69: 135.7133909 | AG69: 136.1539722 | AH69: 136.5691071 | AI69: 136.9609337 | AJ69: 137.3313577 | AK69: 137.682083 | AL69: 138.0146375 | AM69: 138.3303952 | AN69: =AN72*RTHavg_Vd+Ta -> 138.6305955 | AO69: 138.9163588 | AP69: 139.1887005 | AQ69: 139.4485433 | AR69: 139.6967272 | AS69: 139.9340186 | AT69: 140.1611184 | AU69: =AU72*RTHavg_Vd+Ta -> 140.3786686 | AV69: 140.5872586 | AW69: 140.78743 | AX69: 140.979682 | AY69: 141.164475 | AZ69: 141.3422344 | BA69: 141.5133538 | BB69: 141.6781983 | BC69: 141.8371063 | BD69: 141.9903928 | BE69: 142.1383504 | BF69: 142.2812523 | BG69: 142.4193528 | BH69: =BH72*RTHavg_Vd+Ta -> 146.5033885 | BI69: Tj Diode | BJ69: Buck Diode
B70: Max TJ | C70: =IF(Topology="Buck","-",IF(ROUNDUP(MAX(J77:BH77),0)>175,"Too High",ROUNDUP(MAX(J77:BH77),0))) -> 137 | D70: =IF(Topology="Buck","",IF(C70>175,"Boost MOSFET temperature too high","Estimated worse case boost MOSFET temperature, 175C max rated")) -> Estimated worse case boost MOSFET temperature, 175C max rated | H70: I Buck diode ON | I70: =I22-I23/2 -> 0.6655387575 | J70: 1.547434749 | K70: 1.413605538 | L70: 1.301116978 | M70: 1.206359002 | N70: 1.124265147 | O70: 1.052679838 | P70: 0.9899469798 | Q70: 0.9347775856 | R70: 0.8861238589 | S70: 0.8431501188 | T70: 0.8051807759 | U70: 0.7716600894 | V70: 0.7421331736 | W70: 0.6655387576 | X70: 0.6655387576 | Y70: 0.6655387576 | Z70: 0.6655387576 | AA70: 0.6655387576 | AB70: 0.6655387576 | AC70: 0.6655387576 | AD70: 0.6655387576 | AE70: 0.6655387576 | AF70: 0.6655387576 | AG70: 0.6655387576 | AH70: 0.6655387576 | AI70: 0.6655387576 | AJ70: 0.6655387576 | AK70: 0.6655387575 | AL70: 0.6655387575 | AM70: 0.6655387575 | AN70: 0.6655387575 | AO70: =AO22-AO23/2 -> 0.6655387575 | AP70: 0.6655387575 | AQ70: 0.6655387575 | AR70: 0.6655387574 | AS70: 0.6655387574 | AT70: 0.6655387574 | AU70: 0.6655387573 | AV70: 0.6655387573 | AW70: 0.6655387572 | AX70: 0.6655387572 | AY70: 0.6655387571 | AZ70: 0.6655387571 | BA70: 0.665538757 | BB70: 0.6655387569 | BC70: 0.6655387569 | BD70: 0.6655387568 | BE70: 0.6655387567 | BF70: 0.6655387567 | BG70: 0.6655387568 | BH70: 0.6655387576 | BI70: I Buck diode ON
H71: Vf buck diode | I71: =IF(Reset=1,0.45,FORECAST(I70, OFFSET(Vd_1:Vd_3,MATCH(I70,I_Vd1:I_Vd3,1)-1,0,2), OFFSET(I_Vd1:I_Vd3,MATCH(I70,I_Vd1:I_Vd3,1)-1,0,2))+(I69-25)*vd_temp_coeff/1000) -> 0.3339707783 | J71: =IF(Reset=1,0.45,FORECAST(J70, OFFSET(Vd_1:Vd_3,MATCH(J70,I_Vd1:I_Vd3,1)-1,0,2), OFFSET(I_Vd1:I_Vd3,MATCH(J70,I_Vd1:I_Vd3,1)-1,0,2))+(J69-25)*vd_temp_coeff/1000) -> 0.4241470562 | K71: =IF(Reset=1,0.45,FORECAST(K70, OFFSET(Vd_1:Vd_3,MATCH(K70,I_Vd1:I_Vd3,1)-1,0,2), OFFSET(I_Vd1:I_Vd3,MATCH(K70,I_Vd1:I_Vd3,1)-1,0,2))+(K69-25)*vd_temp_coeff/1000) -> 0.4137489149 | L71: =IF(Reset=1,0.45,FORECAST(L70, OFFSET(Vd_1:Vd_3,MATCH(L70,I_Vd1:I_Vd3,1)-1,0,2), OFFSET(I_Vd1:I_Vd3,MATCH(L70,I_Vd1:I_Vd3,1)-1,0,2))+(L69-25)*vd_temp_coeff/1000) -> 0.4045350129 | M71: =IF(Reset=1,0.45,FORECAST(M70, OFFSET(Vd_1:Vd_3,MATCH(M70,I_Vd1:I_Vd3,1)-1,0,2), OFFSET(I_Vd1:I_Vd3,MATCH(M70,I_Vd1:I_Vd3,1)-1,0,2))+(M69-25)*vd_temp_coeff/1000) -> 0.3960017214 | N71: =IF(Reset=1,0.45,FORECAST(N70, OFFSET(Vd_1:Vd_3,MATCH(N70,I_Vd1:I_Vd3,1)-1,0,2), OFFSET(I_Vd1:I_Vd3,MATCH(N70,I_Vd1:I_Vd3,1)-1,0,2))+(N69-25)*vd_temp_coeff/1000) -> 0.3888304417 | O71: =IF(Reset=1,0.45,FORECAST(O70, OFFSET(Vd_1:Vd_3,MATCH(O70,I_Vd1:I_Vd3,1)-1,0,2), OFFSET(I_Vd1:I_Vd3,MATCH(O70,I_Vd1:I_Vd3,1)-1,0,2))+(O69-25)*vd_temp_coeff/1000) -> 0.3827212705 | P71: =IF(Reset=1,0.45,FORECAST(P70, OFFSET(Vd_1:Vd_3,MATCH(P70,I_Vd1:I_Vd3,1)-1,0,2), OFFSET(I_Vd1:I_Vd3,MATCH(P70,I_Vd1:I_Vd3,1)-1,0,2))+(P69-25)*vd_temp_coeff/1000) -> 0.3771693165 | Q71: =IF(Reset=1,0.45,FORECAST(Q70, OFFSET(Vd_1:Vd_3,MATCH(Q70,I_Vd1:I_Vd3,1)-1,0,2), OFFSET(I_Vd1:I_Vd3,MATCH(Q70,I_Vd1:I_Vd3,1)-1,0,2))+(Q69-25)*vd_temp_coeff/1000) -> 0.3709945663 | R71: =IF(Reset=1,0.45,FORECAST(R70, OFFSET(Vd_1:Vd_3,MATCH(R70,I_Vd1:I_Vd3,1)-1,0,2), OFFSET(I_Vd1:I_Vd3,MATCH(R70,I_Vd1:I_Vd3,1)-1,0,2))+(R69-25)*vd_temp_coeff/1000) -> 0.3655907343 | S71: =IF(Reset=1,0.45,FORECAST(S70, OFFSET(Vd_1:Vd_3,MATCH(S70,I_Vd1:I_Vd3,1)-1,0,2), OFFSET(I_Vd1:I_Vd3,MATCH(S70,I_Vd1:I_Vd3,1)-1,0,2))+(S69-25)*vd_temp_coeff/1000) -> 0.3608482179 | T71: =IF(Reset=1,0.45,FORECAST(T70, OFFSET(Vd_1:Vd_3,MATCH(T70,I_Vd1:I_Vd3,1)-1,0,2), OFFSET(I_Vd1:I_Vd3,MATCH(T70,I_Vd1:I_Vd3,1)-1,0,2))+(T69-25)*vd_temp_coeff/1000) -> 0.3566789597 | U71: =IF(Reset=1,0.45,FORECAST(U70, OFFSET(Vd_1:Vd_3,MATCH(U70,I_Vd1:I_Vd3,1)-1,0,2), OFFSET(I_Vd1:I_Vd3,MATCH(U70,I_Vd1:I_Vd3,1)-1,0,2))+(U69-25)*vd_temp_coeff/1000) -> 0.3530126386 | V71: =IF(Reset=1,0.45,FORECAST(V70, OFFSET(Vd_1:Vd_3,MATCH(V70,I_Vd1:I_Vd3,1)-1,0,2), OFFSET(I_Vd1:I_Vd3,MATCH(V70,I_Vd1:I_Vd3,1)-1,0,2))+(V69-25)*vd_temp_coeff/1000) -> 0.3497388304 | W71: =IF(Reset=1,0.45,FORECAST(W70, OFFSET(Vd_1:Vd_3,MATCH(W70,I_Vd1:I_Vd3,1)-1,0,2), OFFSET(I_Vd1:I_Vd3,MATCH(W70,I_Vd1:I_Vd3,1)-1,0,2))+(W69-25)*vd_temp_coeff/1000) -> 0.3437776921 | X71: =IF(Reset=1,0.45,FORECAST(X70, OFFSET(Vd_1:Vd_3,MATCH(X70,I_Vd1:I_Vd3,1)-1,0,2), OFFSET(I_Vd1:I_Vd3,MATCH(X70,I_Vd1:I_Vd3,1)-1,0,2))+(X69-25)*vd_temp_coeff/1000) -> 0.3427818827 | Y71: =IF(Reset=1,0.45,FORECAST(Y70, OFFSET(Vd_1:Vd_3,MATCH(Y70,I_Vd1:I_Vd3,1)-1,0,2), OFFSET(I_Vd1:I_Vd3,MATCH(Y70,I_Vd1:I_Vd3,1)-1,0,2))+(Y69-25)*vd_temp_coeff/1000) -> 0.3418635281 | Z71: =IF(Reset=1,0.45,FORECAST(Z70, OFFSET(Vd_1:Vd_3,MATCH(Z70,I_Vd1:I_Vd3,1)-1,0,2), OFFSET(I_Vd1:I_Vd3,MATCH(Z70,I_Vd1:I_Vd3,1)-1,0,2))+(Z69-25)*vd_temp_coeff/1000) -> 0.3410139615 | AA71: =IF(Reset=1,0.45,FORECAST(AA70, OFFSET(Vd_1:Vd_3,MATCH(AA70,I_Vd1:I_Vd3,1)-1,0,2), OFFSET(I_Vd1:I_Vd3,MATCH(AA70,I_Vd1:I_Vd3,1)-1,0,2))+(AA69-25)*vd_temp_coeff/1000) -> 0.3402257587 | AB71: =IF(Reset=1,0.45,FORECAST(AB70, OFFSET(Vd_1:Vd_3,MATCH(AB70,I_Vd1:I_Vd3,1)-1,0,2), OFFSET(I_Vd1:I_Vd3,MATCH(AB70,I_Vd1:I_Vd3,1)-1,0,2))+(AB69-25)*vd_temp_coeff/1000) -> 0.3394925234 | AC71: =IF(Reset=1,0.45,FORECAST(AC70, OFFSET(Vd_1:Vd_3,MATCH(AC70,I_Vd1:I_Vd3,1)-1,0,2), OFFSET(I_Vd1:I_Vd3,MATCH(AC70,I_Vd1:I_Vd3,1)-1,0,2))+(AC69-25)*vd_temp_coeff/1000) -> 0.3388087159 | AD71: =IF(Reset=1,0.45,FORECAST(AD70, OFFSET(Vd_1:Vd_3,MATCH(AD70,I_Vd1:I_Vd3,1)-1,0,2), OFFSET(I_Vd1:I_Vd3,MATCH(AD70,I_Vd1:I_Vd3,1)-1,0,2))+(AD69-25)*vd_temp_coeff/1000) -> 0.3381695147 | AE71: =IF(Reset=1,0.45,FORECAST(AE70, OFFSET(Vd_1:Vd_3,MATCH(AE70,I_Vd1:I_Vd3,1)-1,0,2), OFFSET(I_Vd1:I_Vd3,MATCH(AE70,I_Vd1:I_Vd3,1)-1,0,2))+(AE69-25)*vd_temp_coeff/1000) -> 0.337570704 | AF71: =IF(Reset=1,0.45,FORECAST(AF70, OFFSET(Vd_1:Vd_3,MATCH(AF70,I_Vd1:I_Vd3,1)-1,0,2), OFFSET(I_Vd1:I_Vd3,MATCH(AF70,I_Vd1:I_Vd3,1)-1,0,2))+(AF69-25)*vd_temp_coeff/1000) -> 0.3370085818 | AG71: =IF(Reset=1,0.45,FORECAST(AG70, OFFSET(Vd_1:Vd_3,MATCH(AG70,I_Vd1:I_Vd3,1)-1,0,2), OFFSET(I_Vd1:I_Vd3,MATCH(AG70,I_Vd1:I_Vd3,1)-1,0,2))+(AG69-25)*vd_temp_coeff/1000) -> 0.3364798843 | AH71: =IF(Reset=1,0.45,FORECAST(AH70, OFFSET(Vd_1:Vd_3,MATCH(AH70,I_Vd1:I_Vd3,1)-1,0,2), OFFSET(I_Vd1:I_Vd3,MATCH(AH70,I_Vd1:I_Vd3,1)-1,0,2))+(AH69-25)*vd_temp_coeff/1000) -> 0.3359817224 | AI71: =IF(Reset=1,0.45,FORECAST(AI70, OFFSET(Vd_1:Vd_3,MATCH(AI70,I_Vd1:I_Vd3,1)-1,0,2), OFFSET(I_Vd1:I_Vd3,MATCH(AI70,I_Vd1:I_Vd3,1)-1,0,2))+(AI69-25)*vd_temp_coeff/1000) -> 0.3355115305 | AJ71: =IF(Reset=1,0.45,FORECAST(AJ70, OFFSET(Vd_1:Vd_3,MATCH(AJ70,I_Vd1:I_Vd3,1)-1,0,2), OFFSET(I_Vd1:I_Vd3,MATCH(AJ70,I_Vd1:I_Vd3,1)-1,0,2))+(AJ69-25)*vd_temp_coeff/1000) -> 0.3350670216 | AK71: =IF(Reset=1,0.45,FORECAST(AK70, OFFSET(Vd_1:Vd_3,MATCH(AK70,I_Vd1:I_Vd3,1)-1,0,2), OFFSET(I_Vd1:I_Vd3,MATCH(AK70,I_Vd1:I_Vd3,1)-1,0,2))+(AK69-25)*vd_temp_coeff/1000) -> 0.3346461513 | AL71: =IF(Reset=1,0.45,FORECAST(AL70, OFFSET(Vd_1:Vd_3,MATCH(AL70,I_Vd1:I_Vd3,1)-1,0,2), OFFSET(I_Vd1:I_Vd3,MATCH(AL70,I_Vd1:I_Vd3,1)-1,0,2))+(AL69-25)*vd_temp_coeff/1000) -> 0.334247086 | AM71: =IF(Reset=1,0.45,FORECAST(AM70, OFFSET(Vd_1:Vd_3,MATCH(AM70,I_Vd1:I_Vd3,1)-1,0,2), OFFSET(I_Vd1:I_Vd3,MATCH(AM70,I_Vd1:I_Vd3,1)-1,0,2))+(AM69-25)*vd_temp_coeff/1000) -> 0.3338681766 | AN71: =IF(Reset=1,0.45,FORECAST(AN70, OFFSET(Vd_1:Vd_3,MATCH(AN70,I_Vd1:I_Vd3,1)-1,0,2), OFFSET(I_Vd1:I_Vd3,MATCH(AN70,I_Vd1:I_Vd3,1)-1,0,2))+(AN69-25)*vd_temp_coeff/1000) -> 0.3335079363 | AO71: =IF(Reset=1,0.45,FORECAST(AO70, OFFSET(Vd_1:Vd_3,MATCH(AO70,I_Vd1:I_Vd3,1)-1,0,2), OFFSET(I_Vd1:I_Vd3,MATCH(AO70,I_Vd1:I_Vd3,1)-1,0,2))+(AO69-25)*vd_temp_coeff/1000) -> 0.3331650204 | AP71: =IF(Reset=1,0.45,FORECAST(AP70, OFFSET(Vd_1:Vd_3,MATCH(AP70,I_Vd1:I_Vd3,1)-1,0,2), OFFSET(I_Vd1:I_Vd3,MATCH(AP70,I_Vd1:I_Vd3,1)-1,0,2))+(AP69-25)*vd_temp_coeff/1000) -> 0.3328382103 | AQ71: =IF(Reset=1,0.45,FORECAST(AQ70, OFFSET(Vd_1:Vd_3,MATCH(AQ70,I_Vd1:I_Vd3,1)-1,0,2), OFFSET(I_Vd1:I_Vd3,MATCH(AQ70,I_Vd1:I_Vd3,1)-1,0,2))+(AQ69-25)*vd_temp_coeff/1000) -> 0.3325263989 | AR71: =IF(Reset=1,0.45,FORECAST(AR70, OFFSET(Vd_1:Vd_3,MATCH(AR70,I_Vd1:I_Vd3,1)-1,0,2), OFFSET(I_Vd1:I_Vd3,MATCH(AR70,I_Vd1:I_Vd3,1)-1,0,2))+(AR69-25)*vd_temp_coeff/1000) -> 0.3322285783 | AS71: =IF(Reset=1,0.45,FORECAST(AS70, OFFSET(Vd_1:Vd_3,MATCH(AS70,I_Vd1:I_Vd3,1)-1,0,2), OFFSET(I_Vd1:I_Vd3,MATCH(AS70,I_Vd1:I_Vd3,1)-1,0,2))+(AS69-25)*vd_temp_coeff/1000) -> 0.3319438286 | AT71: =IF(Reset=1,0.45,FORECAST(AT70, OFFSET(Vd_1:Vd_3,MATCH(AT70,I_Vd1:I_Vd3,1)-1,0,2), OFFSET(I_Vd1:I_Vd3,MATCH(AT70,I_Vd1:I_Vd3,1)-1,0,2))+(AT69-25)*vd_temp_coeff/1000) -> 0.3316713088 | AU71: =IF(Reset=1,0.45,FORECAST(AU70, OFFSET(Vd_1:Vd_3,MATCH(AU70,I_Vd1:I_Vd3,1)-1,0,2), OFFSET(I_Vd1:I_Vd3,MATCH(AU70,I_Vd1:I_Vd3,1)-1,0,2))+(AU69-25)*vd_temp_coeff/1000) -> 0.3314102485 | AV71: =IF(Reset=1,0.45,FORECAST(AV70, OFFSET(Vd_1:Vd_3,MATCH(AV70,I_Vd1:I_Vd3,1)-1,0,2), OFFSET(I_Vd1:I_Vd3,MATCH(AV70,I_Vd1:I_Vd3,1)-1,0,2))+(AV69-25)*vd_temp_coeff/1000) -> 0.3311599406 | AW71: =IF(Reset=1,0.45,FORECAST(AW70, OFFSET(Vd_1:Vd_3,MATCH(AW70,I_Vd1:I_Vd3,1)-1,0,2), OFFSET(I_Vd1:I_Vd3,MATCH(AW70,I_Vd1:I_Vd3,1)-1,0,2))+(AW69-25)*vd_temp_coeff/1000) -> 0.3309197348 | AX71: =IF(Reset=1,0.45,FORECAST(AX70, OFFSET(Vd_1:Vd_3,MATCH(AX70,I_Vd1:I_Vd3,1)-1,0,2), OFFSET(I_Vd1:I_Vd3,MATCH(AX70,I_Vd1:I_Vd3,1)-1,0,2))+(AX69-25)*vd_temp_coeff/1000) -> 0.3306890324 | AY71: =IF(Reset=1,0.45,FORECAST(AY70, OFFSET(Vd_1:Vd_3,MATCH(AY70,I_Vd1:I_Vd3,1)-1,0,2), OFFSET(I_Vd1:I_Vd3,MATCH(AY70,I_Vd1:I_Vd3,1)-1,0,2))+(AY69-25)*vd_temp_coeff/1000) -> 0.3304672808 | AZ71: =IF(Reset=1,0.45,FORECAST(AZ70, OFFSET(Vd_1:Vd_3,MATCH(AZ70,I_Vd1:I_Vd3,1)-1,0,2), OFFSET(I_Vd1:I_Vd3,MATCH(AZ70,I_Vd1:I_Vd3,1)-1,0,2))+(AZ69-25)*vd_temp_coeff/1000) -> 0.3302539696 | BA71: =IF(Reset=1,0.45,FORECAST(BA70, OFFSET(Vd_1:Vd_3,MATCH(BA70,I_Vd1:I_Vd3,1)-1,0,2), OFFSET(I_Vd1:I_Vd3,MATCH(BA70,I_Vd1:I_Vd3,1)-1,0,2))+(BA69-25)*vd_temp_coeff/1000) -> 0.3300486262 | BB71: =IF(Reset=1,0.45,FORECAST(BB70, OFFSET(Vd_1:Vd_3,MATCH(BB70,I_Vd1:I_Vd3,1)-1,0,2), OFFSET(I_Vd1:I_Vd3,MATCH(BB70,I_Vd1:I_Vd3,1)-1,0,2))+(BB69-25)*vd_temp_coeff/1000) -> 0.3298508129 | BC71: =IF(Reset=1,0.45,FORECAST(BC70, OFFSET(Vd_1:Vd_3,MATCH(BC70,I_Vd1:I_Vd3,1)-1,0,2), OFFSET(I_Vd1:I_Vd3,MATCH(BC70,I_Vd1:I_Vd3,1)-1,0,2))+(BC69-25)*vd_temp_coeff/1000) -> 0.3296601232 | BD71: =IF(Reset=1,0.45,FORECAST(BD70, OFFSET(Vd_1:Vd_3,MATCH(BD70,I_Vd1:I_Vd3,1)-1,0,2), OFFSET(I_Vd1:I_Vd3,MATCH(BD70,I_Vd1:I_Vd3,1)-1,0,2))+(BD69-25)*vd_temp_coeff/1000) -> 0.3294761795 | BE71: =IF(Reset=1,0.45,FORECAST(BE70, OFFSET(Vd_1:Vd_3,MATCH(BE70,I_Vd1:I_Vd3,1)-1,0,2), OFFSET(I_Vd1:I_Vd3,MATCH(BE70,I_Vd1:I_Vd3,1)-1,0,2))+(BE69-25)*vd_temp_coeff/1000) -> 0.3292986303 | BF71: =IF(Reset=1,0.45,FORECAST(BF70, OFFSET(Vd_1:Vd_3,MATCH(BF70,I_Vd1:I_Vd3,1)-1,0,2), OFFSET(I_Vd1:I_Vd3,MATCH(BF70,I_Vd1:I_Vd3,1)-1,0,2))+(BF69-25)*vd_temp_coeff/1000) -> 0.3291271481 | BG71: =IF(Reset=1,0.45,FORECAST(BG70, OFFSET(Vd_1:Vd_3,MATCH(BG70,I_Vd1:I_Vd3,1)-1,0,2), OFFSET(I_Vd1:I_Vd3,MATCH(BG70,I_Vd1:I_Vd3,1)-1,0,2))+(BG69-25)*vd_temp_coeff/1000) -> 0.3289614275 | BH71: =IF(Reset=1,0.45,FORECAST(BH70, OFFSET(Vd_1:Vd_3,MATCH(BH70,I_Vd1:I_Vd3,1)-1,0,2), OFFSET(I_Vd1:I_Vd3,MATCH(BH70,I_Vd1:I_Vd3,1)-1,0,2))+(BH69-25)*vd_temp_coeff/1000) -> 0.3240605847 | BI71: Vf buck diode
B72: Buck Diode (based on SS3P5) | H72: Pdiss buck diode | I72: =I71*I26 -> 0.1103741152 | J72: 0.1050143829 | K72: 0.09358044115 | L72: 0.08726052122 | M72: 0.08729575491 | N72: 0.08578764915 | O72: 0.08347163088 | P72: 0.08072445182 | Q72: 0.07763016625 | R72: 0.07461200506 | S72: 0.07173469669 | T72: 0.06904675994 | U72: 0.06657341741 | V72: 0.06470243359 | W72: 0.04227054752 | X72: 0.04918588998 | Y72: 0.05556335295 | Z72: 0.06146312078 | AA72: 0.06693675127 | AB72: 0.07202866302 | AC72: 0.0767773263 | AD72: 0.08121622377 | AE72: 0.08537463138 | AF72: 0.08927825735 | AG72: 0.09294976836 | AH72: 0.09640922546 | AI72: 0.0996744473 | AJ72: 0.1027613144 | AK72: 0.1056840249 | AL72: 0.1084553119 | AM72: 0.1110866265 | AN72: 0.1135882955 | AO72: =AO71*AO26 -> 0.115969656 | AP72: 0.1182391703 | AQ72: 0.1204045267 | AR72: 0.1224727254 | AS72: 0.1244501537 | AT72: 0.126342652 | AU72: 0.1281555705 | AV72: 0.1298938198 | AW72: 0.131561915 | AX72: 0.1331640149 | AY72: 0.1347039562 | AZ72: 0.1361852839 | BA72: 0.1376112791 | BB72: 0.1389849823 | BC72: 0.1403092159 | BD72: 0.1415866025 | BE72: 0.1428195828 | BF72: 0.1440104313 | BG72: 0.1451612695 | BH72: 0.179194904 | BI72: Pdiss buck diode
B73: Max Peak current | C73: =IF(Topology="Buck",MAX(J102:BH102),MAX(J22:BH22)) -> 1.607496914 | D73: Maximum peak diode current | G73: Boost Diode | H73: Tj Boost Diode | I73: =I76*RTHavg_Vd_boost+Ta -> 155.0213875 | J73: =J76*RTHavg_Vd_boost+Ta -> 159.3664222 | K73: 158.4973469 | L73: 157.7624402 | M73: 157.1382004 | N73: 156.5913846 | O73: 156.1079267 | P73: 155.6770165 | Q73: 155.2793891 | R73: 154.8134052 | S73: 154.3898656 | T73: 154.0028901 | U73: 153.6476434 | V73: 153.320774 | W73: 153.9573413 | X73: 154.1552808 | Y73: 154.3207958 | Z73: 154.4590679 | AA73: 154.5743591 | AB73: 154.6701939 | AC73: 154.7495014 | AD73: 154.8147273 | AE73: 154.8679227 | AF73: 154.9108145 | AG73: 154.944863 | AH73: 154.9713068 | AI73: 154.9912006 | AJ73: 155.0054448 | AK73: 155.0148111 | AL73: 155.0199622 | AM73: =AM76*RTHavg_Vd_boost+Ta -> 155.0214687 | AN73: 155.0198236 | AO73: 155.0154534 | AP73: 155.0087277 | AQ73: 154.9999681 | AR73: 154.9894543 | AS73: 154.9774302 | AT73: 154.964109 | AU73: =AU76*RTHavg_Vd_boost+Ta -> 154.949677 | AV73: 154.9342975 | AW73: 154.9181136 | AX73: 154.9012508 | AY73: 154.8838196 | AZ73: 154.8659169 | BA73: 154.8476281 | BB73: 154.8290283 | BC73: 154.8101835 | BD73: 154.7911521 | BE73: 154.7719852 | BF73: 154.7527279 | BG73: 154.73342 | BH73: =BH76*RTHavg_Vd_boost+Ta -> 155.1880546 | BI73: Tj Boost Diode | BJ73: Boost Diode
B74: Max Average current | C74: =IF(Topology="Buck",MAX(J106:BH106),MAX(J26:BH26)) -> 0.552967292 | D74: Maximum average diode current | H74: I boost diode ON | I74: =IF(I17=0,I28,IF(I$12>I$14,I22,I22-I23/2)) -> 0.7218143991 | J74: 1.607496914 | K74: 1.476931057 | L74: 1.366522067 | M74: 1.272739177 | N74: 1.190588089 | O74: 1.117955615 | P74: 1.053217647 | Q74: 0.9951099644 | R74: 0.9426045171 | S74: 0.8948815321 | T74: 0.8512784759 | U74: 0.8112505109 | V74: 0.7744200019 | W74: 0.6994902265 | X74: 0.7036557891 | Y74: 0.7071345051 | Z74: 0.7100375233 | AA74: 0.7124558971 | AB74: 0.7144646584 | AC74: 0.7161259758 | AD74: 0.7174916233 | AE74: 0.7186049228 | AF74: 0.7195022852 | AG74: 0.7202144391 | AH74: 0.7207674182 | AI74: 0.7211833578 | AJ74: 0.7214811426 | AK74: 0.7216769343 | AL74: 0.7217846054 | AM74: 0.721816096 | AN74: 0.7217817094 | AO74: =IF(AO17=0,AO28,IF(AO$12>AO$14,AO22,AO22-AO23/2)) -> 0.7216903578 | AP74: 0.7215497673 | AQ74: 0.7213666493 | AR74: 0.7211468453 | AS74: 0.7208954485 | AT74: 0.7206169066 | AU74: 0.7203151099 | AV74: 0.719993465 | AW74: 0.7196549592 | AX74: 0.7193022146 | AY74: 0.7189375346 | AZ74: 0.7185629449 | BA74: 0.7181802276 | BB74: 0.7177909514 | BC74: 0.7173964978 | BD74: 0.7169980836 | BE74: 0.7165967804 | BF74: 0.716193532 | BG74: 0.7157891693 | BH74: 0.7252960971 | BI74: I boost diode ON
B75: max Power diss | C75: =MAX(J72:BH72) -> 0.179194904 | D75: Maximum diode power dissipation | H75: Vf boost diode | I75: =IF(Reset=1,0.45,FORECAST(I74, OFFSET(Vd_1_boost:Vd_3_boost,MATCH(I74,I_Vd1_boost:I_Vd3_boost,1)-1,0,2), OFFSET(I_Vd1_boost:I_Vd3_boost,MATCH(I74,I_Vd1_boost:I_Vd3_boost,1)-1,0,2))+(I73-25)*vd_boost_temp_coeff/1000) -> 0.3465963403 | J75: =IF(Reset=1,0.45,FORECAST(J74, OFFSET(Vd_1_boost:Vd_3_boost,MATCH(J74,I_Vd1_boost:I_Vd3_boost,1)-1,0,2), OFFSET(I_Vd1_boost:I_Vd3_boost,MATCH(J74,I_Vd1_boost:I_Vd3_boost,1)-1,0,2))+(J73-25)*vd_boost_temp_coeff/1000) -> 0.4303083001 | K75: =IF(Reset=1,0.45,FORECAST(K74, OFFSET(Vd_1_boost:Vd_3_boost,MATCH(K74,I_Vd1_boost:I_Vd3_boost,1)-1,0,2), OFFSET(I_Vd1_boost:I_Vd3_boost,MATCH(K74,I_Vd1_boost:I_Vd3_boost,1)-1,0,2))+(K73-25)*vd_boost_temp_coeff/1000) -> 0.4194264483 | L75: =IF(Reset=1,0.45,FORECAST(L74, OFFSET(Vd_1_boost:Vd_3_boost,MATCH(L74,I_Vd1_boost:I_Vd3_boost,1)-1,0,2), OFFSET(I_Vd1_boost:I_Vd3_boost,MATCH(L74,I_Vd1_boost:I_Vd3_boost,1)-1,0,2))+(L73-25)*vd_boost_temp_coeff/1000) -> 0.4102245459 | M75: =IF(Reset=1,0.45,FORECAST(M74, OFFSET(Vd_1_boost:Vd_3_boost,MATCH(M74,I_Vd1_boost:I_Vd3_boost,1)-1,0,2), OFFSET(I_Vd1_boost:I_Vd3_boost,MATCH(M74,I_Vd1_boost:I_Vd3_boost,1)-1,0,2))+(M73-25)*vd_boost_temp_coeff/1000) -> 0.4024083255 | N75: =IF(Reset=1,0.45,FORECAST(N74, OFFSET(Vd_1_boost:Vd_3_boost,MATCH(N74,I_Vd1_boost:I_Vd3_boost,1)-1,0,2), OFFSET(I_Vd1_boost:I_Vd3_boost,MATCH(N74,I_Vd1_boost:I_Vd3_boost,1)-1,0,2))+(N73-25)*vd_boost_temp_coeff/1000) -> 0.3955615434 | O75: =IF(Reset=1,0.45,FORECAST(O74, OFFSET(Vd_1_boost:Vd_3_boost,MATCH(O74,I_Vd1_boost:I_Vd3_boost,1)-1,0,2), OFFSET(I_Vd1_boost:I_Vd3_boost,MATCH(O74,I_Vd1_boost:I_Vd3_boost,1)-1,0,2))+(O73-25)*vd_boost_temp_coeff/1000) -> 0.3895080786 | P75: =IF(Reset=1,0.45,FORECAST(P74, OFFSET(Vd_1_boost:Vd_3_boost,MATCH(P74,I_Vd1_boost:I_Vd3_boost,1)-1,0,2), OFFSET(I_Vd1_boost:I_Vd3_boost,MATCH(P74,I_Vd1_boost:I_Vd3_boost,1)-1,0,2))+(P73-25)*vd_boost_temp_coeff/1000) -> 0.3841125718 | Q75: =IF(Reset=1,0.45,FORECAST(Q74, OFFSET(Vd_1_boost:Vd_3_boost,MATCH(Q74,I_Vd1_boost:I_Vd3_boost,1)-1,0,2), OFFSET(I_Vd1_boost:I_Vd3_boost,MATCH(Q74,I_Vd1_boost:I_Vd3_boost,1)-1,0,2))+(Q73-25)*vd_boost_temp_coeff/1000) -> 0.3791338066 | R75: =IF(Reset=1,0.45,FORECAST(R74, OFFSET(Vd_1_boost:Vd_3_boost,MATCH(R74,I_Vd1_boost:I_Vd3_boost,1)-1,0,2), OFFSET(I_Vd1_boost:I_Vd3_boost,MATCH(R74,I_Vd1_boost:I_Vd3_boost,1)-1,0,2))+(R73-25)*vd_boost_temp_coeff/1000) -> 0.3732991368 | S75: =IF(Reset=1,0.45,FORECAST(S74, OFFSET(Vd_1_boost:Vd_3_boost,MATCH(S74,I_Vd1_boost:I_Vd3_boost,1)-1,0,2), OFFSET(I_Vd1_boost:I_Vd3_boost,MATCH(S74,I_Vd1_boost:I_Vd3_boost,1)-1,0,2))+(S73-25)*vd_boost_temp_coeff/1000) -> 0.3679959183 | T75: =IF(Reset=1,0.45,FORECAST(T74, OFFSET(Vd_1_boost:Vd_3_boost,MATCH(T74,I_Vd1_boost:I_Vd3_boost,1)-1,0,2), OFFSET(I_Vd1_boost:I_Vd3_boost,MATCH(T74,I_Vd1_boost:I_Vd3_boost,1)-1,0,2))+(T73-25)*vd_boost_temp_coeff/1000) -> 0.363150527 | U75: =IF(Reset=1,0.45,FORECAST(U74, OFFSET(Vd_1_boost:Vd_3_boost,MATCH(U74,I_Vd1_boost:I_Vd3_boost,1)-1,0,2), OFFSET(I_Vd1_boost:I_Vd3_boost,MATCH(U74,I_Vd1_boost:I_Vd3_boost,1)-1,0,2))+(U73-25)*vd_boost_temp_coeff/1000) -> 0.3587024179 | V75: =IF(Reset=1,0.45,FORECAST(V74, OFFSET(Vd_1_boost:Vd_3_boost,MATCH(V74,I_Vd1_boost:I_Vd3_boost,1)-1,0,2), OFFSET(I_Vd1_boost:I_Vd3_boost,MATCH(V74,I_Vd1_boost:I_Vd3_boost,1)-1,0,2))+(V73-25)*vd_boost_temp_coeff/1000) -> 0.3546096262 | W75: =IF(Reset=1,0.45,FORECAST(W74, OFFSET(Vd_1_boost:Vd_3_boost,MATCH(W74,I_Vd1_boost:I_Vd3_boost,1)-1,0,2), OFFSET(I_Vd1_boost:I_Vd3_boost,MATCH(W74,I_Vd1_boost:I_Vd3_boost,1)-1,0,2))+(W73-25)*vd_boost_temp_coeff/1000) -> 0.3449814859 | X75: =IF(Reset=1,0.45,FORECAST(X74, OFFSET(Vd_1_boost:Vd_3_boost,MATCH(X74,I_Vd1_boost:I_Vd3_boost,1)-1,0,2), OFFSET(I_Vd1_boost:I_Vd3_boost,MATCH(X74,I_Vd1_boost:I_Vd3_boost,1)-1,0,2))+(X73-25)*vd_boost_temp_coeff/1000) -> 0.3452834139 | Y75: =IF(Reset=1,0.45,FORECAST(Y74, OFFSET(Vd_1_boost:Vd_3_boost,MATCH(Y74,I_Vd1_boost:I_Vd3_boost,1)-1,0,2), OFFSET(I_Vd1_boost:I_Vd3_boost,MATCH(Y74,I_Vd1_boost:I_Vd3_boost,1)-1,0,2))+(Y73-25)*vd_boost_temp_coeff/1000) -> 0.3455353448 | Z75: =IF(Reset=1,0.45,FORECAST(Z74, OFFSET(Vd_1_boost:Vd_3_boost,MATCH(Z74,I_Vd1_boost:I_Vd3_boost,1)-1,0,2), OFFSET(I_Vd1_boost:I_Vd3_boost,MATCH(Z74,I_Vd1_boost:I_Vd3_boost,1)-1,0,2))+(Z73-25)*vd_boost_temp_coeff/1000) -> 0.3457454349 | AA75: =IF(Reset=1,0.45,FORECAST(AA74, OFFSET(Vd_1_boost:Vd_3_boost,MATCH(AA74,I_Vd1_boost:I_Vd3_boost,1)-1,0,2), OFFSET(I_Vd1_boost:I_Vd3_boost,MATCH(AA74,I_Vd1_boost:I_Vd3_boost,1)-1,0,2))+(AA73-25)*vd_boost_temp_coeff/1000) -> 0.3459203486 | AB75: =IF(Reset=1,0.45,FORECAST(AB74, OFFSET(Vd_1_boost:Vd_3_boost,MATCH(AB74,I_Vd1_boost:I_Vd3_boost,1)-1,0,2), OFFSET(I_Vd1_boost:I_Vd3_boost,MATCH(AB74,I_Vd1_boost:I_Vd3_boost,1)-1,0,2))+(AB73-25)*vd_boost_temp_coeff/1000) -> 0.3460655651 | AC75: =IF(Reset=1,0.45,FORECAST(AC74, OFFSET(Vd_1_boost:Vd_3_boost,MATCH(AC74,I_Vd1_boost:I_Vd3_boost,1)-1,0,2), OFFSET(I_Vd1_boost:I_Vd3_boost,MATCH(AC74,I_Vd1_boost:I_Vd3_boost,1)-1,0,2))+(AC73-25)*vd_boost_temp_coeff/1000) -> 0.3461856157 | AD75: =IF(Reset=1,0.45,FORECAST(AD74, OFFSET(Vd_1_boost:Vd_3_boost,MATCH(AD74,I_Vd1_boost:I_Vd3_boost,1)-1,0,2), OFFSET(I_Vd1_boost:I_Vd3_boost,MATCH(AD74,I_Vd1_boost:I_Vd3_boost,1)-1,0,2))+(AD73-25)*vd_boost_temp_coeff/1000) -> 0.3462842674 | AE75: =IF(Reset=1,0.45,FORECAST(AE74, OFFSET(Vd_1_boost:Vd_3_boost,MATCH(AE74,I_Vd1_boost:I_Vd3_boost,1)-1,0,2), OFFSET(I_Vd1_boost:I_Vd3_boost,MATCH(AE74,I_Vd1_boost:I_Vd3_boost,1)-1,0,2))+(AE73-25)*vd_boost_temp_coeff/1000) -> 0.3463646681 | AF75: =IF(Reset=1,0.45,FORECAST(AF74, OFFSET(Vd_1_boost:Vd_3_boost,MATCH(AF74,I_Vd1_boost:I_Vd3_boost,1)-1,0,2), OFFSET(I_Vd1_boost:I_Vd3_boost,MATCH(AF74,I_Vd1_boost:I_Vd3_boost,1)-1,0,2))+(AF73-25)*vd_boost_temp_coeff/1000) -> 0.3464294597 | AG75: =IF(Reset=1,0.45,FORECAST(AG74, OFFSET(Vd_1_boost:Vd_3_boost,MATCH(AG74,I_Vd1_boost:I_Vd3_boost,1)-1,0,2), OFFSET(I_Vd1_boost:I_Vd3_boost,MATCH(AG74,I_Vd1_boost:I_Vd3_boost,1)-1,0,2))+(AG73-25)*vd_boost_temp_coeff/1000) -> 0.3464808697 | AH75: =IF(Reset=1,0.45,FORECAST(AH74, OFFSET(Vd_1_boost:Vd_3_boost,MATCH(AH74,I_Vd1_boost:I_Vd3_boost,1)-1,0,2), OFFSET(I_Vd1_boost:I_Vd3_boost,MATCH(AH74,I_Vd1_boost:I_Vd3_boost,1)-1,0,2))+(AH73-25)*vd_boost_temp_coeff/1000) -> 0.3465207833 | AI75: =IF(Reset=1,0.45,FORECAST(AI74, OFFSET(Vd_1_boost:Vd_3_boost,MATCH(AI74,I_Vd1_boost:I_Vd3_boost,1)-1,0,2), OFFSET(I_Vd1_boost:I_Vd3_boost,MATCH(AI74,I_Vd1_boost:I_Vd3_boost,1)-1,0,2))+(AI73-25)*vd_boost_temp_coeff/1000) -> 0.3465508024 | AJ75: =IF(Reset=1,0.45,FORECAST(AJ74, OFFSET(Vd_1_boost:Vd_3_boost,MATCH(AJ74,I_Vd1_boost:I_Vd3_boost,1)-1,0,2), OFFSET(I_Vd1_boost:I_Vd3_boost,MATCH(AJ74,I_Vd1_boost:I_Vd3_boost,1)-1,0,2))+(AJ73-25)*vd_boost_temp_coeff/1000) -> 0.3465722923 | AK75: =IF(Reset=1,0.45,FORECAST(AK74, OFFSET(Vd_1_boost:Vd_3_boost,MATCH(AK74,I_Vd1_boost:I_Vd3_boost,1)-1,0,2), OFFSET(I_Vd1_boost:I_Vd3_boost,MATCH(AK74,I_Vd1_boost:I_Vd3_boost,1)-1,0,2))+(AK73-25)*vd_boost_temp_coeff/1000) -> 0.346586421 | AL75: =IF(Reset=1,0.45,FORECAST(AL74, OFFSET(Vd_1_boost:Vd_3_boost,MATCH(AL74,I_Vd1_boost:I_Vd3_boost,1)-1,0,2), OFFSET(I_Vd1_boost:I_Vd3_boost,MATCH(AL74,I_Vd1_boost:I_Vd3_boost,1)-1,0,2))+(AL73-25)*vd_boost_temp_coeff/1000) -> 0.3465941905 | AM75: =IF(Reset=1,0.45,FORECAST(AM74, OFFSET(Vd_1_boost:Vd_3_boost,MATCH(AM74,I_Vd1_boost:I_Vd3_boost,1)-1,0,2), OFFSET(I_Vd1_boost:I_Vd3_boost,MATCH(AM74,I_Vd1_boost:I_Vd3_boost,1)-1,0,2))+(AM73-25)*vd_boost_temp_coeff/1000) -> 0.3465964628 | AN75: =IF(Reset=1,0.45,FORECAST(AN74, OFFSET(Vd_1_boost:Vd_3_boost,MATCH(AN74,I_Vd1_boost:I_Vd3_boost,1)-1,0,2), OFFSET(I_Vd1_boost:I_Vd3_boost,MATCH(AN74,I_Vd1_boost:I_Vd3_boost,1)-1,0,2))+(AN73-25)*vd_boost_temp_coeff/1000) -> 0.3465939815 | AO75: =IF(Reset=1,0.45,FORECAST(AO74, OFFSET(Vd_1_boost:Vd_3_boost,MATCH(AO74,I_Vd1_boost:I_Vd3_boost,1)-1,0,2), OFFSET(I_Vd1_boost:I_Vd3_boost,MATCH(AO74,I_Vd1_boost:I_Vd3_boost,1)-1,0,2))+(AO73-25)*vd_boost_temp_coeff/1000) -> 0.3465873896 | AP75: =IF(Reset=1,0.45,FORECAST(AP74, OFFSET(Vd_1_boost:Vd_3_boost,MATCH(AP74,I_Vd1_boost:I_Vd3_boost,1)-1,0,2), OFFSET(I_Vd1_boost:I_Vd3_boost,MATCH(AP74,I_Vd1_boost:I_Vd3_boost,1)-1,0,2))+(AP73-25)*vd_boost_temp_coeff/1000) -> 0.3465772444 | AQ75: =IF(Reset=1,0.45,FORECAST(AQ74, OFFSET(Vd_1_boost:Vd_3_boost,MATCH(AQ74,I_Vd1_boost:I_Vd3_boost,1)-1,0,2), OFFSET(I_Vd1_boost:I_Vd3_boost,MATCH(AQ74,I_Vd1_boost:I_Vd3_boost,1)-1,0,2))+(AQ73-25)*vd_boost_temp_coeff/1000) -> 0.3465640298 | AR75: =IF(Reset=1,0.45,FORECAST(AR74, OFFSET(Vd_1_boost:Vd_3_boost,MATCH(AR74,I_Vd1_boost:I_Vd3_boost,1)-1,0,2), OFFSET(I_Vd1_boost:I_Vd3_boost,MATCH(AR74,I_Vd1_boost:I_Vd3_boost,1)-1,0,2))+(AR73-25)*vd_boost_temp_coeff/1000) -> 0.3465481672 | AS75: =IF(Reset=1,0.45,FORECAST(AS74, OFFSET(Vd_1_boost:Vd_3_boost,MATCH(AS74,I_Vd1_boost:I_Vd3_boost,1)-1,0,2), OFFSET(I_Vd1_boost:I_Vd3_boost,MATCH(AS74,I_Vd1_boost:I_Vd3_boost,1)-1,0,2))+(AS73-25)*vd_boost_temp_coeff/1000) -> 0.3465300236 | AT75: =IF(Reset=1,0.45,FORECAST(AT74, OFFSET(Vd_1_boost:Vd_3_boost,MATCH(AT74,I_Vd1_boost:I_Vd3_boost,1)-1,0,2), OFFSET(I_Vd1_boost:I_Vd3_boost,MATCH(AT74,I_Vd1_boost:I_Vd3_boost,1)-1,0,2))+(AT73-25)*vd_boost_temp_coeff/1000) -> 0.3465099198 | AU75: =IF(Reset=1,0.45,FORECAST(AU74, OFFSET(Vd_1_boost:Vd_3_boost,MATCH(AU74,I_Vd1_boost:I_Vd3_boost,1)-1,0,2), OFFSET(I_Vd1_boost:I_Vd3_boost,MATCH(AU74,I_Vd1_boost:I_Vd3_boost,1)-1,0,2))+(AU73-25)*vd_boost_temp_coeff/1000) -> 0.3464881362 | AV75: =IF(Reset=1,0.45,FORECAST(AV74, OFFSET(Vd_1_boost:Vd_3_boost,MATCH(AV74,I_Vd1_boost:I_Vd3_boost,1)-1,0,2), OFFSET(I_Vd1_boost:I_Vd3_boost,MATCH(AV74,I_Vd1_boost:I_Vd3_boost,1)-1,0,2))+(AV73-25)*vd_boost_temp_coeff/1000) -> 0.3464649183 | AW75: =IF(Reset=1,0.45,FORECAST(AW74, OFFSET(Vd_1_boost:Vd_3_boost,MATCH(AW74,I_Vd1_boost:I_Vd3_boost,1)-1,0,2), OFFSET(I_Vd1_boost:I_Vd3_boost,MATCH(AW74,I_Vd1_boost:I_Vd3_boost,1)-1,0,2))+(AW73-25)*vd_boost_temp_coeff/1000) -> 0.3464404815 | AX75: =IF(Reset=1,0.45,FORECAST(AX74, OFFSET(Vd_1_boost:Vd_3_boost,MATCH(AX74,I_Vd1_boost:I_Vd3_boost,1)-1,0,2), OFFSET(I_Vd1_boost:I_Vd3_boost,MATCH(AX74,I_Vd1_boost:I_Vd3_boost,1)-1,0,2))+(AX73-25)*vd_boost_temp_coeff/1000) -> 0.3464150149 | AY75: =IF(Reset=1,0.45,FORECAST(AY74, OFFSET(Vd_1_boost:Vd_3_boost,MATCH(AY74,I_Vd1_boost:I_Vd3_boost,1)-1,0,2), OFFSET(I_Vd1_boost:I_Vd3_boost,MATCH(AY74,I_Vd1_boost:I_Vd3_boost,1)-1,0,2))+(AY73-25)*vd_boost_temp_coeff/1000) -> 0.3463886845 | AZ75: =IF(Reset=1,0.45,FORECAST(AZ74, OFFSET(Vd_1_boost:Vd_3_boost,MATCH(AZ74,I_Vd1_boost:I_Vd3_boost,1)-1,0,2), OFFSET(I_Vd1_boost:I_Vd3_boost,MATCH(AZ74,I_Vd1_boost:I_Vd3_boost,1)-1,0,2))+(AZ73-25)*vd_boost_temp_coeff/1000) -> 0.3463616365 | BA75: =IF(Reset=1,0.45,FORECAST(BA74, OFFSET(Vd_1_boost:Vd_3_boost,MATCH(BA74,I_Vd1_boost:I_Vd3_boost,1)-1,0,2), OFFSET(I_Vd1_boost:I_Vd3_boost,MATCH(BA74,I_Vd1_boost:I_Vd3_boost,1)-1,0,2))+(BA73-25)*vd_boost_temp_coeff/1000) -> 0.3463339992 | BB75: =IF(Reset=1,0.45,FORECAST(BB74, OFFSET(Vd_1_boost:Vd_3_boost,MATCH(BB74,I_Vd1_boost:I_Vd3_boost,1)-1,0,2), OFFSET(I_Vd1_boost:I_Vd3_boost,MATCH(BB74,I_Vd1_boost:I_Vd3_boost,1)-1,0,2))+(BB73-25)*vd_boost_temp_coeff/1000) -> 0.3463058859 | BC75: =IF(Reset=1,0.45,FORECAST(BC74, OFFSET(Vd_1_boost:Vd_3_boost,MATCH(BC74,I_Vd1_boost:I_Vd3_boost,1)-1,0,2), OFFSET(I_Vd1_boost:I_Vd3_boost,MATCH(BC74,I_Vd1_boost:I_Vd3_boost,1)-1,0,2))+(BC73-25)*vd_boost_temp_coeff/1000) -> 0.3462773962 | BD75: =IF(Reset=1,0.45,FORECAST(BD74, OFFSET(Vd_1_boost:Vd_3_boost,MATCH(BD74,I_Vd1_boost:I_Vd3_boost,1)-1,0,2), OFFSET(I_Vd1_boost:I_Vd3_boost,MATCH(BD74,I_Vd1_boost:I_Vd3_boost,1)-1,0,2))+(BD73-25)*vd_boost_temp_coeff/1000) -> 0.346248618 | BE75: =IF(Reset=1,0.45,FORECAST(BE74, OFFSET(Vd_1_boost:Vd_3_boost,MATCH(BE74,I_Vd1_boost:I_Vd3_boost,1)-1,0,2), OFFSET(I_Vd1_boost:I_Vd3_boost,MATCH(BE74,I_Vd1_boost:I_Vd3_boost,1)-1,0,2))+(BE73-25)*vd_boost_temp_coeff/1000) -> 0.3462196285 | BF75: =IF(Reset=1,0.45,FORECAST(BF74, OFFSET(Vd_1_boost:Vd_3_boost,MATCH(BF74,I_Vd1_boost:I_Vd3_boost,1)-1,0,2), OFFSET(I_Vd1_boost:I_Vd3_boost,MATCH(BF74,I_Vd1_boost:I_Vd3_boost,1)-1,0,2))+(BF73-25)*vd_boost_temp_coeff/1000) -> 0.3461904959 | BG75: =IF(Reset=1,0.45,FORECAST(BG74, OFFSET(Vd_1_boost:Vd_3_boost,MATCH(BG74,I_Vd1_boost:I_Vd3_boost,1)-1,0,2), OFFSET(I_Vd1_boost:I_Vd3_boost,MATCH(BG74,I_Vd1_boost:I_Vd3_boost,1)-1,0,2))+(BG73-25)*vd_boost_temp_coeff/1000) -> 0.3461612803 | BH75: =IF(Reset=1,0.45,FORECAST(BH74, OFFSET(Vd_1_boost:Vd_3_boost,MATCH(BH74,I_Vd1_boost:I_Vd3_boost,1)-1,0,2), OFFSET(I_Vd1_boost:I_Vd3_boost,MATCH(BH74,I_Vd1_boost:I_Vd3_boost,1)-1,0,2))+(BH73-25)*vd_boost_temp_coeff/1000) -> 0.3468474771 | BI75: Vf boost diode
B76: Max reverse voltage | C76: =V_AbsMax+4 -> 40 | D76: Select diode with higher reverse voltage rating | H76: Pdiss boost diode | I76: =I75*I28 -> 0.2501782291 | J76: 0.2863868514 | K76: 0.2791445573 | L76: 0.2730203346 | M76: 0.267818337 | N76: 0.2632615381 | O76: 0.2592327227 | P76: 0.2556418038 | Q76: 0.2523282426 | R76: 0.2484450437 | S76: 0.2449155463 | T76: 0.2416907506 | U76: 0.2387303616 | V76: 0.2360064501 | W76: 0.2413111777 | X76: 0.2429606731 | Y76: 0.244339965 | Z76: 0.2454922323 | AA76: 0.2464529923 | AB76: 0.2472516158 | AC76: 0.2479125118 | AD76: 0.2484560612 | AE76: 0.2488993555 | AF76: 0.2492567879 | AG76: 0.2495405252 | AH76: 0.2497608903 | AI76: 0.2499266713 | AJ76: 0.2500453734 | AK76: 0.2501234258 | AL76: 0.250166351 | AM76: 0.2501789057 | AN76: 0.2501651964 | AO76: =AO75*AO28 -> 0.2501287772 | AP76: 0.25007273 | AQ76: 0.249999733 | AR76: 0.2499121175 | AS76: 0.2498119168 | AT76: 0.2497009065 | AU76: 0.2495806399 | AV76: 0.249452477 | AW76: 0.2493176106 | AX76: 0.2491770874 | AY76: 0.2490318269 | AZ76: 0.2488826375 | BA76: 0.2487302304 | BB76: 0.2485752313 | BC76: 0.2484181913 | BD76: 0.2482595955 | BE76: 0.2480998711 | BF76: 0.247939394 | BG76: 0.2477784953 | BH76: 0.2515671214 | BI76: Pdiss boost diode
B77: Max TJ | C77: =IF(Topology="Buck",ROUNDUP(MAX(J152:BH152),0),ROUNDUP(MAX(J69:BH69),0)) -> 147 | D77: =IF(C77>150,"Buck diode temperature too high","Estimated worse case buck diode temperature") -> Estimated worse case buck diode temperature | G77: Boost FET | H77: Tj Boost FET | I77: =IF(Reset=1,150,IF(Ta+Rthj_a_boost_FET*I82>190,190,Ta+Rthj_a_boost_FET*I82)) -> 125 | J77: 136.7544643 | K77: 136.2355439 | L77: 135.8463118 | M77: 135.5503072 | N77: 135.318545 | O77: 135.1348399 | P77: 134.9876404 | Q77: 134.8685321 | R77: 134.7712438 | S77: 134.6910582 | T77: 134.6243703 | U77: 134.5683838 | V77: 134.5209047 | W77: 125 | X77: 125 | Y77: 125 | Z77: 125 | AA77: 125 | AB77: 125 | AC77: 125 | AD77: 125 | AE77: 125 | AF77: 125 | AG77: 125 | AH77: 125 | AI77: 125 | AJ77: 125 | AK77: 125 | AL77: 125 | AM77: 125 | AN77: 125 | AO77: =IF(Reset=1,150,IF(Ta+Rthj_a_boost_FET*AO82>190,190,Ta+Rthj_a_boost_FET*AO82)) -> 125 | AP77: 125 | AQ77: 125 | AR77: 125 | AS77: 125 | AT77: 125 | AU77: 125 | AV77: 125 | AW77: 125 | AX77: 125 | AY77: 125 | AZ77: 125 | BA77: 125 | BB77: 125 | BC77: 125 | BD77: 125 | BE77: 125 | BF77: 125 | BG77: 125 | BH77: 125 | BI77: Tj Boost FET | BJ77: Boost FET
H78: Rds thermal Coeff | I78: =(I77+40)*(1.34655999666222-0.667409045393858)/0.828125/(190)+0.667409045393858/0.828125 -> 1.518125922 | J78: =(J77+40)*(1.34655999666222-0.667409045393858)/0.828125/(190)+0.667409045393858/0.828125 -> 1.568862323 | K78: =(K77+40)*(1.34655999666222-0.667409045393858)/0.828125/(190)+0.667409045393858/0.828125 -> 1.566622481 | L78: 1.564942418 | M78: 1.563664758 | N78: 1.562664391 | O78: 1.561871455 | P78: 1.56123609 | Q78: 1.560721977 | R78: 1.560302046 | S78: 1.559955937 | T78: 1.559668089 | U78: 1.559426431 | V78: 1.559221495 | W78: 1.518125922 | X78: 1.518125922 | Y78: 1.518125922 | Z78: 1.518125922 | AA78: 1.518125922 | AB78: 1.518125922 | AC78: 1.518125922 | AD78: 1.518125922 | AE78: 1.518125922 | AF78: 1.518125922 | AG78: 1.518125922 | AH78: 1.518125922 | AI78: 1.518125922 | AJ78: 1.518125922 | AK78: 1.518125922 | AL78: 1.518125922 | AM78: 1.518125922 | AN78: 1.518125922 | AO78: 1.518125922 | AP78: 1.518125922 | AQ78: 1.518125922 | AR78: 1.518125922 | AS78: 1.518125922 | AT78: 1.518125922 | AU78: 1.518125922 | AV78: 1.518125922 | AW78: 1.518125922 | AX78: 1.518125922 | AY78: 1.518125922 | AZ78: 1.518125922 | BA78: 1.518125922 | BB78: 1.518125922 | BC78: 1.518125922 | BD78: 1.518125922 | BE78: 1.518125922 | BF78: 1.518125922 | BG78: 1.518125922 | BH78: =(BH77+40)*(1.34655999666222-0.667409045393858)/0.828125/(190)+0.667409045393858/0.828125 -> 1.518125922 | BI78: Rds thermal Coeff
B79: Boost Diode (based on SS3P5) | H79: Rds_On Boost FET | I79: =R_ds_ON_boost*I78 -> 0.0273262666 | J79: =R_ds_ON_boost*J78 -> 0.02823952182 | K79: 0.02819920465 | L79: 0.02816896352 | M79: 0.02814596565 | N79: 0.02812795904 | O79: 0.02811368619 | P79: 0.02810224962 | Q79: 0.02809299559 | R79: 0.02808543684 | S79: 0.02807920687 | T79: 0.0280740256 | U79: 0.02806967576 | V79: 0.02806598691 | W79: 0.0273262666 | X79: 0.0273262666 | Y79: 0.0273262666 | Z79: 0.0273262666 | AA79: 0.0273262666 | AB79: 0.0273262666 | AC79: 0.0273262666 | AD79: 0.0273262666 | AE79: 0.0273262666 | AF79: 0.0273262666 | AG79: 0.0273262666 | AH79: 0.0273262666 | AI79: 0.0273262666 | AJ79: 0.0273262666 | AK79: 0.0273262666 | AL79: 0.0273262666 | AM79: =R_ds_ON_boost*AM78 -> 0.0273262666 | AN79: 0.0273262666 | AO79: 0.0273262666 | AP79: 0.0273262666 | AQ79: 0.0273262666 | AR79: 0.0273262666 | AS79: 0.0273262666 | AT79: 0.0273262666 | AU79: =R_ds_ON_boost*AU78 -> 0.0273262666 | AV79: 0.0273262666 | AW79: 0.0273262666 | AX79: 0.0273262666 | AY79: 0.0273262666 | AZ79: 0.0273262666 | BA79: 0.0273262666 | BB79: 0.0273262666 | BC79: 0.0273262666 | BD79: 0.0273262666 | BE79: 0.0273262666 | BF79: 0.0273262666 | BG79: 0.0273262666 | BH79: =R_ds_ON_boost*BH78 -> 0.0273262666 | BI79: Rds_On Boost FET
B80: Max Peak current | C80: =IF(Topology="Buck","-",MAX(J22:BH22)) -> 1.607496914 | D80: =IF(Topology="Buck","","Maximum peak diode current") -> Maximum peak diode current | H80: Conduction Losses | I80: =I27^2*I79 -> 0 | J80: 0.03923991516 | K80: 0.0305912418 | L80: 0.02410403993 | M80: 0.01917063043 | N80: 0.01530792672 | O80: 0.012246174 | P80: 0.009792849325 | Q80: 0.007807712156 | R80: 0.006186240268 | S80: 0.004849813489 | T80: 0.003738348009 | U80: 0.002805239554 | V80: 0.002013921418 | W80: 0 | X80: 0 | Y80: 0 | Z80: 0 | AA80: 0 | AB80: 0 | AC80: 0 | AD80: 0 | AE80: 0 | AF80: 0 | AG80: 0 | AH80: 0 | AI80: 0 | AJ80: 0 | AK80: 0 | AL80: 0 | AM80: 0 | AN80: 0 | AO80: =AO27^2*AO79 -> 0 | AP80: 0 | AQ80: 0 | AR80: 0 | AS80: 0 | AT80: 0 | AU80: 0 | AV80: 0 | AW80: 0 | AX80: 0 | AY80: 0 | AZ80: 0 | BA80: 0 | BB80: 0 | BC80: 0 | BD80: 0 | BE80: 0 | BF80: 0 | BG80: 0 | BH80: 0 | BI80: Conduction Losses
B81: Max Average current | C81: =IF(Topology="Buck","-",MAX(J28:BG28)) -> 0.721816096 | D81: =IF(Topology="Buck","","Maximum average diode current") -> Maximum average diode current | H81: Switching Losses | I81: =IF(I14=0,0,0.5*Vreg*Iout_PreReg*I19*10^3*(t_rise_boost+t_fall_boost)*10^-9) -> 0 | J81: 0.1566678235 | K81: 0.1566678235 | L81: 0.1566678235 | M81: 0.1566678235 | N81: 0.1566678235 | O81: 0.1566678235 | P81: 0.1566678235 | Q81: 0.1566678235 | R81: 0.1566678235 | S81: 0.1566678235 | T81: 0.1566678235 | U81: 0.1566678235 | V81: 0.1566678235 | W81: 0 | X81: 0 | Y81: 0 | Z81: 0 | AA81: 0 | AB81: 0 | AC81: 0 | AD81: 0 | AE81: 0 | AF81: 0 | AG81: 0 | AH81: 0 | AI81: 0 | AJ81: 0 | AK81: 0 | AL81: 0 | AM81: 0 | AN81: 0 | AO81: =IF(AO14=0,0,0.5*Vreg*Iout_PreReg*AO19*10^3*(t_rise_boost+t_fall_boost)*10^-9) -> 0 | AP81: 0 | AQ81: 0 | AR81: 0 | AS81: 0 | AT81: 0 | AU81: 0 | AV81: 0 | AW81: 0 | AX81: 0 | AY81: 0 | AZ81: 0 | BA81: 0 | BB81: 0 | BC81: 0 | BD81: 0 | BE81: 0 | BF81: 0 | BG81: 0 | BH81: 0 | BI81: Switching Losses
B82: max Power diss | C82: =IF(Topology="Buck","-",MAX(J76:BH76)) -> 0.2863868514 | D82: =IF(Topology="Buck","","Maximum diode power dissipation") -> Maximum diode power dissipation | H82: Total Boost FET Losses | I82: =I80+I81 -> 0 | J82: =J80+J81 -> 0.1959077387 | K82: =K80+K81 -> 0.1872590653 | L82: 0.1807718635 | M82: 0.175838454 | N82: 0.1719757502 | O82: 0.1689139975 | P82: 0.1664606729 | Q82: 0.1644755357 | R82: 0.1628540638 | S82: 0.161517637 | T82: 0.1604061715 | U82: 0.1594730631 | V82: 0.1586817449 | W82: 0 | X82: 0 | Y82: 0 | Z82: 0 | AA82: 0 | AB82: 0 | AC82: 0 | AD82: 0 | AE82: 0 | AF82: 0 | AG82: 0 | AH82: 0 | AI82: 0 | AJ82: 0 | AK82: 0 | AL82: 0 | AM82: =AM80+AM81 -> 0 | AN82: 0 | AO82: 0 | AP82: 0 | AQ82: 0 | AR82: 0 | AS82: 0 | AT82: 0 | AU82: 0 | AV82: 0 | AW82: 0 | AX82: 0 | AY82: 0 | AZ82: 0 | BA82: 0 | BB82: 0 | BC82: 0 | BD82: 0 | BE82: 0 | BF82: 0 | BG82: 0 | BH82: =BH80+BH81 -> 0 | BI82: Total Boost FET Losses
B83: Max reverse voltage | C83: =IF(Topology="Buck","-",Vreg+4) -> 9.35 | D83: =IF(Topology="Buck","","Select diode with higher reverse voltage rating") -> Select diode with higher reverse voltage rating | H83: Pout | I83: =I21*Iout_PreReg -> 3.560632353 | J83: 3.560632353 | K83: 3.560632353 | L83: 3.560632353 | M83: 3.560632353 | N83: 3.560632353 | O83: 3.560632353 | P83: 3.560632353 | Q83: 3.560632353 | R83: 3.560632353 | S83: 3.560632353 | T83: 3.560632353 | U83: 3.560632353 | V83: 3.560632353 | W83: 3.560632353 | X83: 3.560632353 | Y83: 3.560632353 | Z83: 3.560632353 | AA83: 3.560632353 | AB83: 3.560632353 | AC83: 3.560632353 | AD83: 3.560632353 | AE83: 3.560632353 | AF83: 3.560632353 | AG83: 3.560632353 | AH83: 3.560632353 | AI83: 3.560632353 | AJ83: 3.560632353 | AK83: 3.560632353 | AL83: 3.560632353 | AM83: 3.560632353 | AN83: 3.560632353 | AO83: =AO21*Iout_PreReg -> 3.560632353 | AP83: 3.560632353 | AQ83: 3.560632353 | AR83: 3.560632353 | AS83: 3.560632353 | AT83: 3.560632353 | AU83: 3.560632353 | AV83: 3.560632353 | AW83: 3.560632353 | AX83: 3.560632353 | AY83: 3.560632353 | AZ83: 3.560632353 | BA83: 3.560632353 | BB83: 3.560632353 | BC83: 3.560632353 | BD83: 3.560632353 | BE83: 3.560632353 | BF83: 3.560632353 | BG83: 3.560632353 | BH83: 3.560632353
B84: Max TJ | C84: =IF(Topology="Buck","-",ROUNDUP(MAX(J73:BH73),0)) -> 160 | D84: =IF(Topology="Buck","",IF(C84>150,"Boost diode temperature too high","Estimated worse case boost diode temperature")) -> Boost diode temperature too high | H84: P loss | I84: =I82+I76+I72+I3+I24^2*dcr*10^-3 -> 0.9189352575 | J84: 1.78129851 | K84: 1.601444367 | L84: 1.463992608 | M84: 1.358629237 | N84: 1.275027373 | O84: 1.207833768 | P84: 1.15325218 | Q84: 1.108315047 | R84: 1.07055673 | S84: 1.039444001 | T84: 1.013823918 | U84: 0.9928016684 | V84: 0.9677890222 | W84: 0.7685029268 | X84: 0.7789178161 | Y84: 0.7889969684 | Z84: 0.7988152717 | AA84: 0.8084353284 | AB84: 0.817909776 | AC84: 0.8272831156 | AD84: 0.836593165 | AE84: 0.8458722186 | AF84: 0.8551479817 | AG84: 0.8644443262 | AH84: 0.873781906 | AI84: 0.8831786607 | AJ84: 0.8926502303 | AK84: 0.9022102983 | AL84: 0.9118708763 | AM84: 0.9216425423 | AN84: 0.9315346402 | AO84: =AO82+AO76+AO72+AO3+AO24^2*dcr*10^-3 -> 0.9415554478 | AP84: 0.9517123186 | AQ84: 0.9620118026 | AR84: 0.972459749 | AS84: 0.9830613936 | AT84: 0.9938214342 | AU84: 1.004744096 | AV84: 1.015833185 | AW84: 1.02709214 | AX84: 1.038524072 | AY84: 1.050131802 | AZ84: 1.06191789 | BA84: 1.073884667 | BB84: 1.086034258 | BC84: 1.098368602 | BD84: 1.110889472 | BE84: 1.123598491 | BF84: 1.136497149 | BG84: 1.149586813 | BH84: 1.607626761
H85: Efficiency | I85: =I83/(I83+I84) -> 0.7948607238 | J85: =J83/(J83+J84) -> 0.6665440726 | K85: 0.6897674223 | L85: 0.7086364416 | M85: 0.7238143952 | N85: 0.7363281444 | O85: 0.7467039216 | P85: 0.7553499302 | Q85: 0.7626199329 | R85: 0.7688376116 | S85: 0.7740376636 | T85: 0.7783728037 | U85: 0.7819663876 | V85: 0.7862855635 | W85: 0.8224811938 | X85: 0.8205072448 | Y85: 0.8186059293 | Z85: 0.8167622735 | AA85: 0.8149638808 | AB85: 0.8132004325 | AC85: 0.811463297 | AD85: 0.8097452219 | AE85: 0.8080400905 | AF85: 0.8063427261 | AG85: 0.8046487352 | AH85: 0.8029543802 | AI85: 0.801256476 | AJ85: 0.7995523047 | AK85: 0.7978395456 | AL85: 0.7961162174 | AM85: 0.7943806295 | AN85: 0.7926313421 | AO85: 0.7908671318 | AP85: 0.789086963 | AQ85: 0.7872899637 | AR85: 0.7854754046 | AS85: 0.7836426818 | AT85: 0.7817913013 | AU85: 0.7799208659 | AV85: 0.7780310643 | AW85: 0.7761216608 | AX85: 0.7741924875 | AY85: 0.7722434359 | AZ85: 0.7702744515 | BA85: 0.7682855274 | BB85: 0.7662766991 | BC85: 0.764248041 | BD85: 0.7621996614 | BE85: 0.7601316997 | BF85: 0.758044323 | BG85: 0.7559377233 | BH85: 0.6889423061
B86: Compensation Components, Pre-Regulator | L86: =L80/L83 -> 0.006769595269
B87: fcMAX | C87: =ROUNDDOWN(fsw/40,0) -> 50 | D87: Recommended maximum 0dB crossover frequency | G87: Buck Only Mode Calculations | I87: =I2 -> 12 | J87: =Vin_min_Buck -> 6 | K87: =J87+(Vin_max-Vin_min_Buck)/49 -> 6.244897959 | L87: 6.489795918 | M87: 6.734693878 | N87: 6.979591837 | O87: 7.224489796 | P87: 7.469387755 | Q87: 7.714285714 | R87: 7.959183673 | S87: 8.204081633 | T87: 8.448979592 | U87: 8.693877551 | V87: 8.93877551 | W87: 9.183673469 | X87: 9.428571429 | Y87: 9.673469388 | Z87: 9.918367347 | AA87: 10.16326531 | AB87: 10.40816327 | AC87: 10.65306122 | AD87: 10.89795918 | AE87: 11.14285714 | AF87: 11.3877551 | AG87: 11.63265306 | AH87: 11.87755102 | AI87: 12.12244898 | AJ87: 12.36734694 | AK87: 12.6122449 | AL87: 12.85714286 | AM87: 13.10204082 | AN87: 13.34693878 | AO87: 13.59183673 | AP87: 13.83673469 | AQ87: =AP87+(Vin_max-Vin_min_Buck)/49 -> 14.08163265 | AR87: 14.32653061 | AS87: 14.57142857 | AT87: 14.81632653 | AU87: 15.06122449 | AV87: 15.30612245 | AW87: 15.55102041 | AX87: 15.79591837 | AY87: 16.04081633 | AZ87: 16.28571429 | BA87: 16.53061224 | BB87: 16.7755102 | BC87: 17.02040816 | BD87: 17.26530612 | BE87: 17.51020408 | BF87: 17.75510204 | BG87: 18 | BH87: =BH2 -> 36 | BJ87: Buck Only Mode Calculations
B88: fc = | C88: 40 | D88: Choose fc considering recommended fcMAX | G88: Buck | H88: Pdiss total | I88: =I111+I115+I139+I143+I147+I151+IF(I99<5,I2*Icc,I99*Icc) -> 0.3037494531 | J88: 0.234616527 | K88: 0.2338889883 | L88: 0.2336276727 | M88: 0.2337965062 | N88: 0.2343646527 | O88: 0.228509794 | P88: 0.2300227547 | Q88: 0.2318512992 | R88: 0.2339793248 | S88: 0.236392684 | T88: 0.2390788936 | U88: 0.2420268945 | V88: 0.2452268523 | W88: 0.2486699909 | X88: 0.2523484523 | Y88: 0.2562551787 | Z88: 0.2603838127 | AA88: 0.264728611 | AB88: 0.2692843723 | AC88: 0.2740463736 | AD88: 0.2790103166 | AE88: 0.2841722804 | AF88: 0.2895286807 | AG88: 0.2950762345 | AH88: 0.3008119283 | AI88: 0.3067329915 | AJ88: 0.3128368717 | AK88: 0.3191212139 | AL88: 0.3255838416 | AM88: 0.3322227399 | AN88: 0.3390360408 | AO88: =AO111+AO115+AO139+AO143+AO147+AO151+IF(AO99<5,AO2*Icc,AO99*Icc) -> 0.3460220102 | AP88: 0.3531790358 | AQ88: 0.3605056167 | AR88: 0.3680003537 | AS88: 0.3756619409 | AT88: 0.3834891582 | AU88: 0.391480864 | AV88: 0.3996359893 | AW88: 0.4079535317 | AX88: 0.4164325504 | AY88: 0.4250721616 | AZ88: 0.4338715341 | BA88: 0.4428298856 | BB88: 0.4519464789 | BC88: 0.4612206188 | BD88: 0.4706516493 | BE88: 0.4802389506 | BF88: 0.4899819368 | BG88: 0.4998800536 | BH88: 0.8647504705 | BI88: Pdiss total | BJ88: Buck
B89: R_LOADTYP | C89: =Vreg/Iout_PreReg -> 8.038600216 | H89: Tj | I89: =IF(Reset=1,150,Ta+Rth_ja*I88) -> 134.1124836 | J89: =IF(Reset=1,150,Ta+Rth_ja*J88) -> 132.0384958 | K89: =IF(Reset=1,150,Ta+Rth_ja*K88) -> 132.0166696 | L89: 132.0088302 | M89: 132.0138952 | N89: 132.0309396 | O89: 131.8552938 | P89: 131.9006826 | Q89: 131.955539 | R89: 132.0193797 | S89: 132.0917805 | T89: 132.1723668 | U89: 132.2608068 | V89: 132.3568056 | W89: 132.4600997 | X89: 132.5704536 | Y89: 132.6876554 | Z89: 132.8115144 | AA89: 132.9418583 | AB89: 133.0785312 | AC89: 133.2213912 | AD89: 133.3703095 | AE89: 133.5251684 | AF89: 133.6858604 | AG89: 133.852287 | AH89: 134.0243578 | AI89: 134.2019897 | AJ89: 134.3851062 | AK89: 134.5736364 | AL89: 134.7675152 | AM89: 134.9666822 | AN89: 135.1710812 | AO89: 135.3806603 | AP89: =IF(Reset=1,150,Ta+Rth_ja*AP88) -> 135.5953711 | AQ89: 135.8151685 | AR89: 136.0400106 | AS89: 136.2698582 | AT89: 136.5046747 | AU89: 136.7444259 | AV89: 136.9890797 | AW89: 137.238606 | AX89: 137.4929765 | AY89: 137.7521648 | AZ89: 138.016146 | BA89: 138.2848966 | BB89: 138.5583944 | BC89: 138.8366186 | BD89: 139.1195495 | BE89: 139.4071685 | BF89: 139.6994581 | BG89: =IF(Reset=1,150,Ta+Rth_ja*BG88) -> 139.9964016 | BH89: =IF(Reset=1,150,Ta+Rth_ja*BH88) -> 150.9425141 | BI89: Tj
B90: fP1 | C90: =wp/(2*PI()) -> 1.073693226 | D90: Dominant pole formed by Co and RLOAD. | J90: =J87 -> 6 | K90: =K87 -> 6.244897959 | L90: 6.489795918 | M90: 6.734693878 | N90: 6.979591837 | O90: 7.224489796 | P90: 7.469387755 | Q90: 7.714285714 | R90: 7.959183673 | S90: 8.204081633 | T90: 8.448979592 | U90: 8.693877551 | V90: 8.93877551 | W90: 9.183673469 | X90: 9.428571429 | Y90: 9.673469388 | Z90: 9.918367347 | AA90: 10.16326531 | AB90: 10.40816327 | AC90: 10.65306122 | AD90: 10.89795918 | AE90: 11.14285714 | AF90: 11.3877551 | AG90: 11.63265306 | AH90: 11.87755102 | AI90: 12.12244898 | AJ90: 12.36734694 | AK90: 12.6122449 | AL90: 12.85714286 | AM90: 13.10204082 | AN90: 13.34693878 | AO90: 13.59183673 | AP90: 13.83673469 | AQ90: 14.08163265 | AR90: 14.32653061 | AS90: 14.57142857 | AT90: 14.81632653 | AU90: 15.06122449 | AV90: 15.30612245 | AW90: 15.55102041 | AX90: 15.79591837 | AY90: 16.04081633 | AZ90: 16.28571429 | BA90: 16.53061224 | BB90: 16.7755102 | BC90: 17.02040816 | BD90: 17.26530612 | BE90: 17.51020408 | BF90: 17.75510204 | BG90: 18 | BH90: 36
B91: fZ1 | C91: =wz/(2*PI()) -> 6241.370317 | D91: Zero formed by the output capacitance and its ESR | H91: V1 | I91: =IF(Reset=1,I2-Vreg,I2-Iout_PreReg*(I108+dcr*10^-3)-Vreg) -> 6.389364781 | J91: =IF(Reset=1,J87-Vreg,J87-Iout_PreReg*(J108+dcr*10^-3)-Vreg) -> 0.3778125706 | K91: 0.62272181 | L91: 0.8676238208 | M91: 1.112519162 | N91: 1.357408313 | O91: 1.615025606 | P91: 1.859900018 | Q91: 2.104769518 | R91: 2.349634356 | S91: 2.594494754 | T91: 2.839350905 | U91: 3.084202981 | V91: 3.329051137 | W91: 3.573895507 | X91: 3.818736214 | Y91: 4.063573369 | Z91: 4.30840707 | AA91: 4.553237407 | AB91: 4.798064461 | AC91: 5.042888304 | AD91: 5.287709004 | AE91: 5.532526623 | AF91: 5.777341215 | AG91: 6.022152832 | AH91: 6.266961521 | AI91: 6.511767325 | AJ91: 6.756570283 | AK91: 7.001370433 | AL91: 7.246167808 | AM91: 7.490962439 | AN91: 7.735754356 | AO91: 7.980543586 | AP91: =IF(Reset=1,AP87-Vreg,AP87-Iout_PreReg*(AP108+dcr*10^-3)-Vreg) -> 8.225330153 | AQ91: 8.470114082 | AR91: 8.714895393 | AS91: 8.959674107 | AT91: 9.204450244 | AU91: 9.44922382 | AV91: 9.693994853 | AW91: 9.938763358 | AX91: 10.18352935 | AY91: 10.42829284 | AZ91: 10.67305385 | BA91: 10.91781238 | BB91: 11.16256845 | BC91: 11.40732206 | BD91: 11.65207324 | BE91: 11.89682198 | BF91: 12.1415683 | BG91: 12.38631221 | BH91: 30.38063337 | BI91: V1
B92: fP2 | C92: =IF(fz_1>10*fc,MAX(fsw/2,5*fc),fz_1) -> 1000 | H92: V3 | I92: =IF(Reset=1,Vreg,Vreg+I154+Iout_PreReg*dcr*10^-3) -> 5.77560759 | J92: =IF(Reset=1,Vreg,Vreg+J154+Iout_PreReg*dcr*10^-3) -> 5.790332726 | K92: 5.789148112 | L92: 5.788057531 | M92: 5.787050251 | N92: 5.786117108 | O92: 5.785206833 | P92: 5.784402358 | Q92: 5.783651162 | R92: 5.782948135 | S92: 5.782288798 | T92: 5.781669209 | U92: 5.781085887 | V92: 5.780535742 | W92: 5.780016028 | X92: 5.779524292 | Y92: 5.779058338 | Z92: 5.778616193 | AA92: 5.778196079 | AB92: 5.777796393 | AC92: 5.777415682 | AD92: 5.777052627 | AE92: 5.77670603 | AF92: 5.776374797 | AG92: 5.776057931 | AH92: 5.775754517 | AI92: 5.775463717 | AJ92: 5.775184761 | AK92: 5.774916942 | AL92: 5.774659605 | AM92: 5.774412147 | AN92: 5.774174012 | AO92: =IF(Reset=1,Vreg,Vreg+AO154+Iout_PreReg*dcr*10^-3) -> 5.773944681 | AP92: 5.773723677 | AQ92: 5.773510553 | AR92: 5.773304897 | AS92: 5.773106323 | AT92: 5.772914471 | AU92: 5.772729006 | AV92: 5.772549614 | AW92: 5.772376002 | AX92: 5.772207896 | AY92: 5.772045037 | AZ92: 5.771887185 | BA92: 5.77173411 | BB92: 5.771585601 | BC92: 5.771441456 | BD92: 5.771301485 | BE92: 5.77116551 | BF92: 5.771033362 | BG92: 5.770904882 | BH92: 5.766293985 | BI92: V3
B93: Rz | C93: =fc*10^3*Vreg/VFB*2*PI()*Co_tot*10^-6/(gm_POWER1*gm_EA1*10^-6)*10^-3 -> 15.87376955 | D93: Recommended compensation resister to achieve chosen fc | E93: =10^(-1*Gain1_at_fco/20)/(gm_EA1*10^-6)*10^-3/FB_Gain1 -> 15.90635702 | H93: Required Buck duty | I93: =IF(Reset=1,Vreg/I2,I92/(I91+I92)) -> 0.4747735888 | J93: =IF(Reset=1,Vreg/J87,J92/(J91+J92)) -> 0.9387477836 | K93: 0.9028798436 | L93: 0.8696416227 | M93: 0.8387552765 | N93: 0.8099806142 | O93: 0.7817601515 | P93: 0.7566946038 | Q93: 0.7331823944 | R93: 0.7110838582 | S93: 0.690275541 | T93: 0.6706479202 | U93: 0.6521034986 | V93: 0.634555202 | W93: 0.617925026 | X93: 0.6021428871 | Y93: 0.5871456446 | Z93: 0.5728762631 | AA93: 0.5592830934 | AB93: 0.5463192522 | AC93: 0.533942086 | AD93: 0.5221127051 | AE93: 0.510795578 | AF93: 0.4999581772 | AG93: 0.4895706685 | AH93: 0.4796056387 | AI93: 0.4700378545 | AJ93: 0.460844051 | AK93: 0.4520027432 | AL93: 0.4434940593 | AM93: 0.4352995921 | AN93: 0.427402267 | AO93: 0.4197862232 | AP93: =IF(Reset=1,Vreg/AP87,AP92/(AP91+AP92)) -> 0.412436708 | AQ93: 0.405339982 | AR93: 0.3984832334 | AS93: 0.3918545009 | AT93: 0.3854426049 | AU93: 0.3792370842 | AV93: 0.3732281394 | AW93: 0.3674065814 | AX93: 0.3617637848 | AY93: 0.3562916453 | AZ93: 0.3509825407 | BA93: 0.3458292958 | BB93: 0.3408251504 | BC93: 0.3359637292 | BD93: 0.3312390152 | BE93: 0.3266453247 | BF93: 0.3221772845 | BG93: 0.3178298114 | BH93: 0.1595237661 | BI93: Required Buck duty
B94: Actual Rz used = | C94: 15.8 | D94: Enter the closest available 1% standard resister value | H94: ton buck | I94: =I93/(fsw*10^3)*10^6 -> 0.2373867944 | J94: =J93/(fsw*10^3)*10^6 -> 0.4693738918 | K94: 0.4514399218 | L94: 0.4348208114 | M94: 0.4193776383 | N94: 0.4049903071 | O94: 0.3908800758 | P94: 0.3783473019 | Q94: 0.3665911972 | R94: 0.3555419291 | S94: 0.3451377705 | T94: 0.3353239601 | U94: 0.3260517493 | V94: 0.317277601 | W94: 0.308962513 | X94: 0.3010714435 | Y94: 0.2935728223 | Z94: 0.2864381315 | AA94: 0.2796415467 | AB94: 0.2731596261 | AC94: 0.266971043 | AD94: 0.2610563526 | AE94: 0.255397789 | AF94: 0.2499790886 | AG94: 0.2447853343 | AH94: 0.2398028193 | AI94: 0.2350189273 | AJ94: 0.2304220255 | AK94: 0.2260013716 | AL94: 0.2217470296 | AM94: 0.2176497961 | AN94: 0.2137011335 | AO94: 0.2098931116 | AP94: =AP93/(fsw*10^3)*10^6 -> 0.206218354 | AQ94: 0.202669991 | AR94: 0.1992416167 | AS94: 0.1959272505 | AT94: 0.1927213025 | AU94: 0.1896185421 | AV94: 0.1866140697 | AW94: 0.1837032907 | AX94: 0.1808818924 | AY94: 0.1781458226 | AZ94: 0.1754912703 | BA94: 0.1729146479 | BB94: 0.1704125752 | BC94: 0.1679818646 | BD94: 0.1656195076 | BE94: 0.1633226623 | BF94: 0.1610886423 | BG94: 0.1589149057 | BH94: =IF(BH93>1,1000/fsw,IF(BH93*1000/fsw<0.16,0.16,BH93*1000/fsw)) -> 0.16 | BI94: ton buck
B95: Cz (min) | C95: =4*1000000000/(6.28*Rz*1000*fc*1000) -> 1.007820689 | D95: Recommended range for the compensation capacitor | H95: toff buck | I95: =1/(fsw*10^-3)-I94 -> 0.2626132056 | J95: 0.03062610821 | K95: 0.04856007822 | L95: 0.06517918864 | M95: 0.08062236175 | N95: 0.09500969288 | O95: 0.1091199242 | P95: 0.1216526981 | Q95: 0.1334088028 | R95: 0.1444580709 | S95: 0.1548622295 | T95: 0.1646760399 | U95: 0.1739482507 | V95: 0.182722399 | W95: 0.191037487 | X95: 0.1989285565 | Y95: 0.2064271777 | Z95: 0.2135618685 | AA95: 0.2203584533 | AB95: 0.2268403739 | AC95: 0.233028957 | AD95: 0.2389436474 | AE95: 0.244602211 | AF95: 0.2500209114 | AG95: 0.2552146657 | AH95: 0.2601971807 | AI95: 0.2649810727 | AJ95: 0.2695779745 | AK95: 0.2739986284 | AL95: 0.2782529704 | AM95: 0.2823502039 | AN95: 0.2862988665 | AO95: =1/(fsw*10^-3)-AO94 -> 0.2901068884 | AP95: 0.293781646 | AQ95: 0.297330009 | AR95: 0.3007583833 | AS95: 0.3040727495 | AT95: 0.3072786975 | AU95: 0.3103814579 | AV95: 0.3133859303 | AW95: 0.3162967093 | AX95: 0.3191181076 | AY95: 0.3218541774 | AZ95: 0.3245087297 | BA95: 0.3270853521 | BB95: 0.3295874248 | BC95: 0.3320181354 | BD95: 0.3343804924 | BE95: 0.3366773377 | BF95: 0.3389113577 | BG95: 0.3410850943 | BH95: =BH94/BH93-BH94 -> 0.8429853474 | BI95: toff buck
B96: Cz (max) | C96: =1000000000/(6.28*Rz*1000*1.5*fp_1*1000) -> 6.257657616 | H96: Actual fsw | I96: =1/(I94+I95)*10^3 -> 2000 | J96: 2000 | K96: 2000 | L96: 2000 | M96: 2000 | N96: 2000 | O96: 2000 | P96: 2000 | Q96: 2000 | R96: 2000 | S96: 2000 | T96: 2000 | U96: 2000 | V96: 2000 | W96: 2000 | X96: 2000 | Y96: 2000 | Z96: 2000 | AA96: 2000 | AB96: 2000 | AC96: 2000 | AD96: 2000 | AE96: 2000 | AF96: 2000 | AG96: 2000 | AH96: 2000 | AI96: 2000 | AJ96: 2000 | AK96: 2000 | AL96: 2000 | AM96: 2000 | AN96: 2000 | AO96: 2000 | AP96: 2000 | AQ96: 2000 | AR96: 2000 | AS96: 2000 | AT96: 2000 | AU96: 2000 | AV96: 2000 | AW96: 2000 | AX96: 2000 | AY96: 2000 | AZ96: 2000 | BA96: 2000 | BB96: 2000 | BC96: 2000 | BD96: 2000 | BE96: 2000 | BF96: 2000 | BG96: 2000 | BH96: =1/(BH94+BH95)*10^3 -> 997.0235383 | BI96: Actual fsw
B97: Cp | C97: =MAX(1/(2*PI()*Rz*10^3*fz_1*10^3)*10^12, 1/(2*PI()*Rz*10^3*fsw/2*10^3)*10^12, 1/(2*PI()*Rz*10^3*10*fc*10^3)*10^12) -> 25.18274416 | D97: Recommended HF compensation capacitor | H97: VREG_actual | I97: =I91*I93/(1-I93)-I154-Iout_PreReg*dcr*10^-3 -> 5.35 | J97: 5.35 | K97: 5.35 | L97: 5.35 | M97: 5.35 | N97: 5.35 | O97: 5.35 | P97: 5.35 | Q97: 5.35 | R97: 5.35 | S97: 5.35 | T97: 5.35 | U97: 5.35 | V97: 5.35 | W97: 5.35 | X97: 5.35 | Y97: 5.35 | Z97: 5.35 | AA97: 5.35 | AB97: 5.35 | AC97: 5.35 | AD97: 5.35 | AE97: 5.35 | AF97: 5.35 | AG97: 5.35 | AH97: 5.35 | AI97: 5.35 | AJ97: 5.35 | AK97: 5.35 | AL97: 5.35 | AM97: 5.35 | AN97: 5.35 | AO97: =AO91*AO93/(1-AO93)-AO154-Iout_PreReg*dcr*10^-3 -> 5.35 | AP97: 5.35 | AQ97: 5.35 | AR97: 5.35 | AS97: 5.35 | AT97: 5.35 | AU97: 5.35 | AV97: 5.35 | AW97: 5.35 | AX97: 5.35 | AY97: 5.35 | AZ97: 5.35 | BA97: 5.35 | BB97: 5.35 | BC97: 5.35 | BD97: 5.35 | BE97: 5.35 | BF97: 5.35 | BG97: 5.35 | BH97: 5.35 | BI97: VREG_actual
B98: Actual Cz used = | C98: 1.5 | D98: Enter actual Cz used | H98: New duty cycle | I98: =IF(I95*10^-6<0,(1/(I96*10^3))*(I96*10^3),I93) -> 0.4747735888 | J98: =IF(J95*10^-6<0,(1/(J96*10^3))*(J96*10^3),J93) -> 0.9387477836 | K98: =IF(K95*10^-6<0,(1/(K96*10^3))*(K96*10^3),K93) -> 0.9028798436 | L98: 0.8696416227 | M98: 0.8387552765 | N98: 0.8099806142 | O98: 0.7817601515 | P98: 0.7566946038 | Q98: 0.7331823944 | R98: 0.7110838582 | S98: 0.690275541 | T98: 0.6706479202 | U98: 0.6521034986 | V98: 0.634555202 | W98: 0.617925026 | X98: 0.6021428871 | Y98: 0.5871456446 | Z98: 0.5728762631 | AA98: 0.5592830934 | AB98: 0.5463192522 | AC98: 0.533942086 | AD98: 0.5221127051 | AE98: 0.510795578 | AF98: 0.4999581772 | AG98: 0.4895706685 | AH98: 0.4796056387 | AI98: 0.4700378545 | AJ98: 0.460844051 | AK98: 0.4520027432 | AL98: 0.4434940593 | AM98: 0.4352995921 | AN98: 0.427402267 | AO98: 0.4197862232 | AP98: 0.412436708 | AQ98: 0.405339982 | AR98: 0.3984832334 | AS98: 0.3918545009 | AT98: 0.3854426049 | AU98: 0.3792370842 | AV98: 0.3732281394 | AW98: 0.3674065814 | AX98: 0.3617637848 | AY98: 0.3562916453 | AZ98: 0.3509825407 | BA98: 0.3458292958 | BB98: 0.3408251504 | BC98: 0.3359637292 | BD98: 0.3312390152 | BE98: 0.3266453247 | BF98: 0.3221772845 | BG98: 0.3178298114 | BH98: 0.1595237661 | BI98: New duty cycle
B99: Actual Cp used = | C99: 27 | D99: Enter actual Cp used | H99: New VREG | I99: =(I2-Iout_PreReg*I108+I154)*I98-I154-Iout_PreReg*dcr*10^-3 -> 5.35 | J99: =(J87-Iout_PreReg*J108+J154)*J98-J154-Iout_PreReg*dcr*10^-3 -> 5.35 | K99: 5.35 | L99: 5.35 | M99: 5.35 | N99: 5.35 | O99: 5.35 | P99: 5.35 | Q99: 5.35 | R99: 5.35 | S99: 5.35 | T99: 5.35 | U99: 5.35 | V99: 5.35 | W99: 5.35 | X99: 5.35 | Y99: 5.35 | Z99: 5.35 | AA99: 5.35 | AB99: 5.35 | AC99: 5.35 | AD99: 5.35 | AE99: 5.35 | AF99: 5.35 | AG99: 5.35 | AH99: 5.35 | AI99: 5.35 | AJ99: 5.35 | AK99: 5.35 | AL99: 5.35 | AM99: 5.35 | AN99: 5.35 | AO99: 5.35 | AP99: =(AP87-Iout_PreReg*AP108+AP154)*AP98-AP154-Iout_PreReg*dcr*10^-3 -> 5.35 | AQ99: 5.35 | AR99: 5.35 | AS99: 5.35 | AT99: 5.35 | AU99: 5.35 | AV99: 5.35 | AW99: 5.35 | AX99: 5.35 | AY99: 5.35 | AZ99: 5.35 | BA99: 5.35 | BB99: 5.35 | BC99: 5.35 | BD99: 5.35 | BE99: 5.35 | BF99: 5.35 | BG99: 5.35 | BH99: 5.35 | BI99: New VREG
B100: Estimated cross over | C100: ='Control Loop1'!$B$21 -> 38.53528594 | H100: New V1 | I100: =IF(Reset=1,I2,I2-Iout_PreReg*(I108+dcr*10^-3)-I99) -> 6.389364781 | J100: =IF(Reset=1,J87,J87-Iout_PreReg*(J108+dcr*10^-3)-J99) -> 0.3778125706 | K100: 0.62272181 | L100: 0.8676238208 | M100: 1.112519162 | N100: 1.357408313 | O100: 1.615025606 | P100: 1.859900018 | Q100: 2.104769518 | R100: 2.349634356 | S100: 2.594494754 | T100: 2.839350905 | U100: 3.084202981 | V100: 3.329051137 | W100: 3.573895507 | X100: 3.818736214 | Y100: 4.063573369 | Z100: 4.30840707 | AA100: 4.553237407 | AB100: 4.798064461 | AC100: 5.042888304 | AD100: 5.287709004 | AE100: 5.532526623 | AF100: 5.777341215 | AG100: 6.022152832 | AH100: 6.266961521 | AI100: 6.511767325 | AJ100: 6.756570283 | AK100: 7.001370433 | AL100: 7.246167808 | AM100: 7.490962439 | AN100: 7.735754356 | AO100: 7.980543586 | AP100: =IF(Reset=1,AP87,AP87-Iout_PreReg*(AP108+dcr*10^-3)-AP99) -> 8.225330153 | AQ100: 8.470114082 | AR100: 8.714895393 | AS100: 8.959674107 | AT100: 9.204450244 | AU100: 9.44922382 | AV100: 9.693994853 | AW100: 9.938763358 | AX100: 10.18352935 | AY100: 10.42829284 | AZ100: 10.67305385 | BA100: 10.91781238 | BB100: 11.16256845 | BC100: 11.40732206 | BD100: 11.65207324 | BE100: 11.89682198 | BF100: 12.1415683 | BG100: 12.38631221 | BH100: 30.38063337 | BI100: New V1
B101: Estimated phase margin | C101: ='Control Loop1'!$B$22 -> 68.90665798 | H101: Vin - VREG | I101: =I2-I99 -> 6.65 | J101: =J87-J99 -> 0.65 | K101: 0.8948979592 | L101: 1.139795918 | M101: 1.384693878 | N101: 1.629591837 | O101: 1.874489796 | P101: 2.119387755 | Q101: 2.364285714 | R101: 2.609183673 | S101: 2.854081633 | T101: 3.098979592 | U101: 3.343877551 | V101: 3.58877551 | W101: 3.833673469 | X101: 4.078571429 | Y101: 4.323469388 | Z101: 4.568367347 | AA101: 4.813265306 | AB101: 5.058163265 | AC101: 5.303061224 | AD101: 5.547959184 | AE101: 5.792857143 | AF101: 6.037755102 | AG101: 6.282653061 | AH101: 6.52755102 | AI101: 6.77244898 | AJ101: 7.017346939 | AK101: 7.262244898 | AL101: 7.507142857 | AM101: 7.752040816 | AN101: 7.996938776 | AO101: 8.241836735 | AP101: =AP87-AP99 -> 8.486734694 | AQ101: 8.731632653 | AR101: 8.976530612 | AS101: 9.221428571 | AT101: 9.466326531 | AU101: 9.71122449 | AV101: 9.956122449 | AW101: 10.20102041 | AX101: 10.44591837 | AY101: 10.69081633 | AZ101: 10.93571429 | BA101: 11.18061224 | BB101: 11.4255102 | BC101: 11.67040816 | BD101: 11.91530612 | BE101: 12.16020408 | BF101: 12.40510204 | BG101: 12.65 | BH101: 30.65
G102: Circuit Currents | H102: Ilpk | I102: =Iout_PreReg+I103/2 -> 0.7770645534 | J102: 0.678578122 | K102: 0.686209455 | L102: 0.6932785292 | M102: 0.699845056 | N102: 0.7059606112 | O102: 0.7119565025 | P102: 0.7172805336 | Q102: 0.7222733147 | R102: 0.7269647525 | S102: 0.7313812675 | T102: 0.7355462862 | U102: 0.7394806529 | V102: 0.7432029751 | W102: 0.7467299147 | X102: 0.7500764358 | Y102: 0.7532560151 | Z102: 0.7562808216 | AA102: 0.7591618716 | AB102: 0.7619091615 | AC102: 0.7645317833 | AD102: 0.7670380242 | AE102: 0.7694354537 | AF102: 0.7717309996 | AG102: 0.7739310145 | AH102: 0.7760413341 | AI102: 0.778067329 | AJ102: 0.7800139495 | AK102: 0.7818857664 | AL102: 0.7836870066 | AM102: 0.7854215845 | AN102: 0.7870931306 | AO102: =Iout_PreReg+AO103/2 -> 0.7887050167 | AP102: 0.7902603785 | AQ102: 0.7917621358 | AR102: 0.793213011 | AS102: 0.7946155452 | AT102: 0.7959721133 | AU102: 0.7972849372 | AV102: 0.798556098 | AW102: 0.7997875467 | AX102: 0.8009811148 | AY102: 0.8021385227 | AZ102: 0.8032613882 | BA102: 0.8043512342 | BB102: 0.8054094953 | BC102: 0.8064375244 | BD102: 0.807436598 | BE102: 0.808407922 | BF102: 0.8093526362 | BG102: 0.8102718188 | BH102: 1.022957974 | BI102: Ilpk | BJ102: Circuit Currents
B103: Inductor Calculation, Adjustable Buck | H103: ΔIL | I103: =I100*I98/(L_buck*10^-6*I96*10^3) -> 0.2230515917 | J103: 0.02607872892 | K103: 0.04134139488 | L103: 0.05547954319 | M103: 0.06861259688 | N103: 0.08084370726 | O103: 0.09283548991 | P103: 0.103483552 | Q103: 0.1134691143 | R103: 0.12285199 | S103: 0.1316850198 | T103: 0.1400150573 | U103: 0.1478837908 | V103: 0.155328435 | W103: 0.1623823143 | X103: 0.1690753566 | Y103: 0.1754345151 | Z103: 0.1814841281 | AA103: 0.1872462281 | AB103: 0.192740808 | AC103: 0.1979860515 | AD103: 0.2029985333 | AE103: 0.2077933922 | AF103: 0.212384484 | AG103: 0.2167845138 | AH103: 0.2210051532 | AI103: 0.2250571428 | AJ103: 0.2289503839 | AK103: 0.2326940178 | AL103: 0.2362964982 | AM103: 0.239765654 | AN103: 0.2431087462 | AO103: =AO100*AO98/(L_buck*10^-6*AO96*10^3) -> 0.2463325184 | AP103: 0.249443242 | AQ103: 0.2524467566 | AR103: 0.255348507 | AS103: 0.2581535754 | AT103: 0.2608667117 | AU103: 0.2634923595 | AV103: 0.266034681 | AW103: 0.2684975786 | AX103: 0.2708847148 | AY103: 0.2731995305 | AZ103: 0.2754452615 | BA103: 0.2776249535 | BB103: 0.2797414758 | BC103: 0.2817975339 | BD103: 0.2837956812 | BE103: 0.2857383293 | BF103: 0.2876277577 | BG103: 0.289466123 | BH103: 0.7148384321 | BI103: ΔIL
B104: Ripple Current | C104: 0.2 | D104: Select desired inductor ripple current, 20% to 35% | H104: IL RMS | I104: =SQRT((I102-I103/2)^2+I103^2/12) -> 0.6686462733 | J104: =SQRT((J102-J103/2)^2+J103^2/12) -> 0.6655813345 | K104: =SQRT((K102-K103/2)^2+K103^2/12) -> 0.6656457494 | L104: 0.6657314294 | M104: 0.6658334215 | N104: 0.6659478057 | O104: 0.6660781037 | P104: 0.6662088573 | Q104: 0.6663443363 | R104: 0.6664829746 | S104: 0.6666235193 | T104: 0.666764968 | U104: 0.6669065195 | V104: 0.6670475356 | W104: 0.6671875092 | X104: 0.6673260404 | Y104: 0.6674628156 | Z104: 0.6675975923 | AA104: 0.6677301853 | AB104: 0.6678604565 | AC104: 0.6679883064 | AD104: 0.6681136666 | AE104: 0.6682364943 | AF104: 0.6683567674 | AG104: 0.6684744809 | AH104: 0.6685896432 | AI104: 0.6687022737 | AJ104: 0.6688124009 | AK104: 0.6689200599 | AL104: 0.6690252915 | AM104: 0.6691281406 | AN104: 0.6692286552 | AO104: 0.6693268859 | AP104: 0.6694228848 | AQ104: 0.6695167049 | AR104: 0.6696084 | AS104: 0.6696980241 | AT104: 0.6697856307 | AU104: 0.6698712734 | AV104: 0.6699550049 | AW104: 0.6700368772 | AX104: 0.6701169413 | AY104: 0.6701952474 | AZ104: 0.6702718443 | BA104: 0.6703467801 | BB104: 0.6704201012 | BC104: 0.6704918531 | BD104: 0.6705620801 | BE104: 0.6706308252 | BF104: 0.6706981299 | BG104: 0.6707640349 | BH104: 0.696796003 | BI104: IL RMS
B105: L calculated | C105: =ROUNDUP((Vreg-Vout_sync_buck)*Vout_sync_buck/(Vreg*fsw*10^-3*k_ripple2*Iout_sync_buck),2) -> 3.96 | D105: Recommended minimum inductor value | H105: Isw buck RMS | I105: =SQRT(I98*((I102-I103/2)^2+I103^2/12)) -> 0.4607227992 | J105: =SQRT(J98*((J102-J103/2)^2+J103^2/12)) -> 0.6448750825 | K105: =SQRT(K98*((K102-K103/2)^2+K103^2/12)) -> 0.6324965223 | L105: 0.6208250319 | M105: 0.6097941075 | N105: 0.5993458529 | O105: 0.5889276188 | P105: 0.5795230588 | Q105: 0.5705644709 | R105: 0.5620170226 | S105: 0.5538496359 | T105: 0.5460344765 | U105: 0.5385465252 | V105: 0.531363218 | W105: 0.5244641405 | X105: 0.5178307693 | Y105: 0.5114462492 | Z105: 0.5052952033 | AA105: 0.4993635686 | AB105: 0.493638453 | AC105: 0.4881080125 | AD105: 0.4827613425 | AE105: 0.4775883831 | AF105: 0.4725798366 | AG105: 0.4677270937 | AH105: 0.463022169 | AI105: 0.4584576433 | AJ105: 0.4540266129 | AK105: 0.449722644 | AL105: 0.445539732 | AM105: 0.4414722652 | AN105: 0.4375149919 | AO105: 0.4336629913 | AP105: 0.4299116468 | AQ105: 0.4262566224 | AR105: 0.4226938406 | AS105: 0.419219463 | AT105: 0.4158298725 | AU105: 0.4125216569 | AV105: 0.4092915945 | AW105: 0.4061366401 | AX105: 0.4030539131 | AY105: 0.4000406858 | AZ105: 0.3970943734 | BA105: 0.3942125242 | BB105: 0.3913928114 | BC105: 0.388633024 | BD105: 0.3859310607 | BE105: 0.3832849219 | BF105: 0.3806927041 | BG105: 0.3781525938 | BH105: 0.2783032948 | BI105: Isw buck RMS
B106: Irms | C106: =IF(Topology="buck",MAX(J192:BG192),MAX(J45:BG45)) -> 0.8008359823 | D106: Maximum RMS inductor current, must be less than inductor DC rating | H106: I buck Diode avg | I106: =(I102-I103/2)*(1-I98) -> 0.3495585332 | J106: =(J102-J103/2)*(1-J98) -> 0.04076572401 | K106: =(K102-K103/2)*(1-K98) -> 0.06463722826 | L106: 0.08675855245 | M106: 0.1073146129 | N106: 0.1264652659 | O106: 0.1452470776 | P106: 0.1619291711 | Q106: 0.1775774577 | R106: 0.19228489 | S106: 0.2061336316 | T106: 0.219196574 | U106: 0.2315386053 | V106: 0.2432176768 | W106: 0.2542857035 | X106: 0.2647893286 | Y106: 0.2747705748 | Z106: 0.2842674012 | AA106: 0.2933141825 | AB106: 0.3019421212 | AC106: 0.310179605 | AD106: 0.3180525165 | AE106: 0.3255845032 | AF106: 0.3327972135 | AG106: 0.3397105031 | AH106: 0.3463426167 | AI106: 0.3527103478 | AJ106: 0.3588291804 | AK106: 0.3647134134 | AL106: 0.3703762723 | AM106: 0.3758300078 | AN106: 0.3810859838 | AO106: 0.3861547561 | AP106: 0.3910461433 | AQ106: 0.3957692895 | AR106: 0.4003327215 | AS106: 0.4047443998 | AT106: 0.4090117651 | AU106: 0.4131417797 | AV106: 0.4171409653 | AW106: 0.4210154378 | AX106: 0.4247709376 | AY106: 0.4284128585 | AZ106: 0.4319462734 | BA106: 0.4353759576 | BB106: 0.4387064103 | BC106: 0.4419418745 | BD106: 0.4450863548 | BE106: 0.4481436339 | BF106: 0.4511172878 | BG106: 0.4540106996 | BH106: 0.5593695084 | BI106: I buck Diode avg
B107: Ipk | C107: =IF(Topology="buck",MAX(J187:BG187),MAX(J43:BG43)) -> 0.8633625412 | D107: Maximum peak inductor current, must be less than inductor saturation current | H107: I cout RMS | I107: =SQRT(((I102-I103/2-Iout_PreReg)^2+I103^2/12)) -> 0.06438944825 | J107: =SQRT(((J102-J103/2-Iout_PreReg)^2+J103^2/12)) -> 0.00752828058 | K107: 0.01193423273 | L107: 0.0160155646 | M107: 0.01980675064 | N107: 0.02333756808 | O107: 0.02679929754 | P107: 0.0298731283 | Q107: 0.03275571185 | R107: 0.03546431474 | S107: 0.03801419083 | T107: 0.04041886551 | U107: 0.0426903732 | V107: 0.04483945689 | W107: 0.04687573642 | X107: 0.04880785131 | Y107: 0.05064358226 | Z107: 0.05238995511 | AA107: 0.05405333009 | AB107: 0.05563947868 | AC107: 0.05715365007 | AD107: 0.05860062891 | AE107: 0.05998478547 | AF107: 0.06131011952 | AG107: 0.06258029871 | AH107: 0.06379869233 | AI107: 0.064968401 | AJ107: 0.06609228288 | AK107: 0.06717297691 | AL107: 0.06821292342 | AM107: 0.06921438244 | AN107: 0.07017945004 | AO107: 0.07111007291 | AP107: =SQRT(((AP102-AP103/2-Iout_PreReg)^2+AP103^2/12)) -> 0.07200806145 | AQ107: 0.07287510143 | AR107: 0.07371276461 | AS107: 0.07452251813 | AT107: 0.07530573311 | AU107: 0.07606369235 | AV107: 0.07679759735 | AW107: 0.07750857464 | AX107: 0.07819768149 | AY107: 0.07886591123 | AZ107: 0.07951419793 | BA107: 0.08014342081 | BB107: 0.08075440817 | BC107: 0.08134794103 | BD107: 0.08192475648 | BE107: 0.08248555067 | BF107: 0.08303098167 | BG107: 0.083561672 | BH107: 0.2063560806
B108: DCR < | C108: =ROUNDDOWN(0.033*Vout_sync_buck*Iout_sync_buck/C106^2*1000,0) -> 135 | D108: Recommended inductor DC resistance | G108: Buck | H108: Rds_On Buck | I108: =IF(I2>7,Buck_RdsON_factor_7V*(I89-150)+Rds_ON_150_7V,IF(I2<5,Buck_RdsON_factor_5V*(I89-150)+Rds_ON_150,Buck_RdsON_factor_6V*(I89-150)+Rds_ON_150_6V)) -> 0.2526153883 | J108: =IF(J87>7,Buck_RdsON_factor_7V*(J89-150)+Rds_ON_150_7V,IF(J87<5,Buck_RdsON_factor_5V*(J89-150)+Rds_ON_150,Buck_RdsON_factor_6V*(J89-150)+Rds_ON_150_6V)) -> 0.2699730708 | K108: 0.2699561218 | L108: 0.2699500341 | M108: 0.2699539673 | N108: 0.269967203 | O108: 0.2508558673 | P108: 0.2508912487 | Q108: 0.2509340102 | R108: 0.2509837753 | S108: 0.251040213 | T108: 0.2511030315 | U108: 0.2511719722 | V108: 0.2512468049 | W108: 0.2513273246 | X108: 0.2514133475 | Y108: 0.2515047084 | Z108: 0.2516012588 | AA108: 0.2517028643 | AB108: 0.2518094033 | AC108: 0.2519207654 | AD108: 0.2520368499 | AE108: 0.2521575653 | AF108: 0.2522828277 | AG108: 0.2524125603 | AH108: 0.2525466927 | AI108: 0.25268516 | AJ108: 0.2528279026 | AK108: 0.2529748654 | AL108: 0.2531259975 | AM108: 0.2532812518 | AN108: 0.2534405846 | AO108: 0.2536039554 | AP108: =IF(AP87>7,Buck_RdsON_factor_7V*(AP89-150)+Rds_ON_150_7V,IF(AP87<5,Buck_RdsON_factor_5V*(AP89-150)+Rds_ON_150,Buck_RdsON_factor_6V*(AP89-150)+Rds_ON_150_6V)) -> 0.2537713264 | AQ108: 0.2539426625 | AR108: 0.2541179311 | AS108: 0.2542971016 | AT108: 0.2544801454 | AU108: 0.2546670358 | AV108: 0.2548577479 | AW108: 0.2550522583 | AX108: 0.2552505448 | AY108: 0.2554525869 | AZ108: 0.2556583651 | BA108: 0.2558678611 | BB108: 0.2560810576 | BC108: 0.2562979385 | BD108: 0.2565184884 | BE108: 0.2567426927 | BF108: 0.2569705378 | BG108: 0.2572020108 | BH108: 0.2657347071 | BI108: Rds_On Buck | BJ108: Buck
B109: Lout = | C109: 4.7 | D109: Enter select inductor value at total VREG current | H109: Conduction Losses | I109: =I105^2*I108 -> 0.05362153113 | J109: =J105^2*J108 -> 0.1122720466 | K109: =K105^2*K108 -> 0.1079964461 | L109: 0.1040451464 | M109: 0.1003820732 | N109: 0.0969763907 | O109: 0.08700578042 | P109: 0.08426106709 | Q109: 0.08169001513 | R109: 0.07927652177 | S109: 0.07700643954 | T109: 0.07486728525 | U109: 0.07284799981 | V109: 0.07093874882 | W109: 0.06913075609 | X109: 0.06741616371 | Y109: 0.06578791398 | Z109: 0.06423964923 | AA109: 0.06276562642 | AB109: 0.06136064403 | AC109: 0.06001997923 | AD109: 0.05873933366 | AE109: 0.05751478642 | AF109: 0.05634275329 | AG109: 0.05521995107 | AH109: 0.05414336648 | AI109: 0.05311022875 | AJ109: 0.05211798561 | AK109: 0.05116428202 | AL109: 0.05024694139 | AM109: 0.04936394887 | AN109: 0.04851343657 | AO109: 0.04769367029 | AP109: 0.04690303774 | AQ109: 0.04614003796 | AR109: 0.04540327182 | AS109: 0.04469143347 | AT109: 0.04400330273 | AU109: 0.04333773806 | AV109: 0.04269367037 | AW109: 0.04207009731 | AX109: 0.04146607811 | AY109: 0.04088072895 | AZ109: 0.04031321864 | BA109: 0.0397627648 | BB109: 0.03922863028 | BC109: 0.03871011994 | BD109: 0.03820657771 | BE109: 0.03771738384 | BF109: 0.03724195243 | BG109: 0.03677972915 | BH109: 0.0205818769 | BI109: Conduction Losses
B110: Lout DCR | C110: 95 | D110: Enter select inductor DC resistance | H110: Switching Losses | I110: =IF(I98=1,0,0.5*I87*Iout_PreReg*I96*10^3*(I87/SLEW_rate+I87/1.5)*10^-9) -> 0.1703779219 | J110: 0.04259448048 | K110: 0.04614254217 | L110: 0.04983252631 | M110: 0.05366443293 | N110: 0.05763826201 | O110: 0.06175401356 | P110: 0.06601168758 | Q110: 0.07041128407 | R110: 0.07495280302 | S110: 0.07963624444 | T110: 0.08446160832 | U110: 0.08942889468 | V110: 0.0945381035 | W110: 0.09978923479 | X110: 0.1051822885 | Y110: 0.1107172648 | Z110: 0.1163941635 | AA110: 0.1222129846 | AB110: 0.1281737282 | AC110: 0.1342763943 | AD110: 0.1405209829 | AE110: 0.1469074939 | AF110: 0.1534359274 | AG110: 0.1601062834 | AH110: 0.1669185618 | AI110: 0.1738727627 | AJ110: 0.1809688861 | AK110: 0.1882069319 | AL110: 0.1955869002 | AM110: 0.2031087909 | AN110: 0.2107726042 | AO110: =IF(AO98=1,0,0.5*AO87*Iout_PreReg*AO96*10^3*(AO87/SLEW_rate+AO87/1.5)*10^-9) -> 0.2185783399 | AP110: 0.226525998 | AQ110: 0.2346155787 | AR110: 0.2428470818 | AS110: 0.2512205073 | AT110: 0.2597358554 | AU110: 0.2683931259 | AV110: 0.2771923189 | AW110: 0.2861334343 | AX110: 0.2952164722 | AY110: 0.3044414326 | AZ110: 0.3138083154 | BA110: 0.3233171207 | BB110: 0.3329678485 | BC110: 0.3427604987 | BD110: 0.3526950714 | BE110: 0.3627715666 | BF110: 0.3729899842 | BG110: 0.3833503244 | BH110: 0.7644185936 | BI110: Switching Losses
B111: Ripple | C111: =I44/Iout_sync_buck -> 0.1583500822 | D111: Actual inductor ripple current at nominal input voltage | H111: Total Buck FET Losses | I111: =I109+I110 -> 0.2239994531 | J111: =J109+J110 -> 0.154866527 | K111: =K109+K110 -> 0.1541389883 | L111: 0.1538776727 | M111: 0.1540465062 | N111: 0.1546146527 | O111: 0.148759794 | P111: 0.1502727547 | Q111: 0.1521012992 | R111: 0.1542293248 | S111: 0.156642684 | T111: 0.1593288936 | U111: 0.1622768945 | V111: 0.1654768523 | W111: 0.1689199909 | X111: 0.1725984522 | Y111: 0.1765051787 | Z111: 0.1806338127 | AA111: 0.184978611 | AB111: 0.1895343723 | AC111: 0.1942963736 | AD111: 0.1992603165 | AE111: 0.2044222803 | AF111: 0.2097786807 | AG111: 0.2153262344 | AH111: 0.2210619283 | AI111: 0.2269829914 | AJ111: 0.2330868717 | AK111: 0.2393712139 | AL111: 0.2458338416 | AM111: 0.2524727398 | AN111: 0.2592860407 | AO111: 0.2662720102 | AP111: 0.2734290358 | AQ111: 0.2807556166 | AR111: 0.2882503536 | AS111: 0.2959119408 | AT111: 0.3037391581 | AU111: 0.3117308639 | AV111: 0.3198859892 | AW111: 0.3282035316 | AX111: 0.3366825503 | AY111: 0.3453221615 | AZ111: 0.354121534 | BA111: 0.3630798855 | BB111: 0.3721964788 | BC111: 0.3814706187 | BD111: 0.3909016491 | BE111: 0.4004889504 | BF111: 0.4102319367 | BG111: 0.4201300535 | BH111: 0.7850004705 | BI111: Total Buck FET Losses
G112: 3V3 LDO | H112: Output voltage | I112: =IF(I99-3.3<I113*Iout_3V3,I99-I113*Iout_3V3,3.3) -> 3.3 | J112: 3.3 | K112: 3.3 | L112: 3.3 | M112: 3.3 | N112: 3.3 | O112: 3.3 | P112: 3.3 | Q112: 3.3 | R112: 3.3 | S112: 3.3 | T112: 3.3 | U112: 3.3 | V112: 3.3 | W112: 3.3 | X112: 3.3 | Y112: 3.3 | Z112: 3.3 | AA112: 3.3 | AB112: 3.3 | AC112: 3.3 | AD112: 3.3 | AE112: 3.3 | AF112: 3.3 | AG112: 3.3 | AH112: 3.3 | AI112: 3.3 | AJ112: 3.3 | AK112: 3.3 | AL112: 3.3 | AM112: 3.3 | AN112: 3.3 | AO112: =IF(AO99-3.3<AO113*Iout_3V3,AO99-AO113*Iout_3V3,3.3) -> 3.3 | AP112: 3.3 | AQ112: 3.3 | AR112: 3.3 | AS112: 3.3 | AT112: 3.3 | AU112: 3.3 | AV112: 3.3 | AW112: 3.3 | AX112: 3.3 | AY112: 3.3 | AZ112: 3.3 | BA112: 3.3 | BB112: 3.3 | BC112: 3.3 | BD112: 3.3 | BE112: 3.3 | BF112: 3.3 | BG112: 3.3 | BH112: 3.3 | BI112: Output voltage | BJ112: 5V0 LDO
B113: Output Capacitor, Adjustable Buck | H113: Series pass resistance | I113: =(Rds_ON_3V3_150-Rds_ON_3V3_min40)/190*(I89-150)+Rds_ON_3V3_150 -> 0.4883082282 | J113: 0.4863903353 | K113: 0.4863701519 | L113: 0.4863629024 | M113: 0.4863675862 | N113: 0.4863833478 | O113: 0.4862209217 | P113: 0.4862628944 | Q113: 0.4863136221 | R113: 0.486372658 | S113: 0.4864396097 | T113: 0.4865141308 | U113: 0.4865959145 | V113: 0.4866846881 | W113: 0.486780208 | X113: 0.4868822563 | Y113: 0.4869906371 | Z113: 0.4871051741 | AA113: 0.4872257079 | AB113: 0.4873520943 | AC113: 0.4874842023 | AD113: 0.4876219125 | AE113: 0.4877651163 | AF113: 0.4879137141 | AG113: 0.4880676149 | AH113: 0.4882267351 | AI113: 0.4883909979 | AJ113: 0.4885603324 | AK113: 0.4887346733 | AL113: 0.4889139602 | AM113: 0.4890981372 | AN113: 0.4892871525 | AO113: =(Rds_ON_3V3_150-Rds_ON_3V3_min40)/190*(AO89-150)+Rds_ON_3V3_150 -> 0.489480958 | AP113: 0.4896795089 | AQ113: 0.4898827637 | AR113: 0.4900906835 | AS113: 0.4903032321 | AT113: 0.4905203755 | AU113: 0.4907420823 | AV113: 0.4909683226 | AW113: 0.4911990688 | AX113: 0.4914342946 | AY113: 0.4916739756 | AZ113: 0.4919180887 | BA113: 0.4921666122 | BB113: 0.4924195257 | BC113: 0.4926768099 | BD113: 0.4929384465 | BE113: 0.4932044185 | BF113: 0.4934747094 | BG113: 0.493749304 | BH113: 0.5038715775 | BI113: Series pass resistance
B114: Vripple | C114: 0.005 | D114: Enter VREG maximum output switching frequency ripple | H114: Dropout | I114: =I99-I112 -> 2.05 | J114: =J99-J112 -> 2.05 | K114: 2.05 | L114: 2.05 | M114: 2.05 | N114: 2.05 | O114: 2.05 | P114: 2.05 | Q114: 2.05 | R114: 2.05 | S114: 2.05 | T114: 2.05 | U114: 2.05 | V114: 2.05 | W114: 2.05 | X114: 2.05 | Y114: 2.05 | Z114: 2.05 | AA114: 2.05 | AB114: 2.05 | AC114: 2.05 | AD114: 2.05 | AE114: 2.05 | AF114: 2.05 | AG114: 2.05 | AH114: 2.05 | AI114: 2.05 | AJ114: 2.05 | AK114: 2.05 | AL114: 2.05 | AM114: 2.05 | AN114: 2.05 | AO114: 2.05 | AP114: 2.05 | AQ114: 2.05 | AR114: 2.05 | AS114: 2.05 | AT114: 2.05 | AU114: 2.05 | AV114: 2.05 | AW114: 2.05 | AX114: 2.05 | AY114: 2.05 | AZ114: 2.05 | BA114: 2.05 | BB114: 2.05 | BC114: 2.05 | BD114: 2.05 | BE114: 2.05 | BF114: 2.05 | BG114: 2.05 | BH114: 2.05 | BI114: Dropout
B115: I Step | C115: 0.4 | D115: Enter load step | H115: Power dissipated | I115: =(I99-I112)*Iout_3V3 -> 0 | J115: 0 | K115: 0 | L115: 0 | M115: 0 | N115: 0 | O115: 0 | P115: 0 | Q115: 0 | R115: 0 | S115: 0 | T115: 0 | U115: 0 | V115: 0 | W115: 0 | X115: 0 | Y115: 0 | Z115: 0 | AA115: 0 | AB115: 0 | AC115: 0 | AD115: 0 | AE115: 0 | AF115: 0 | AG115: 0 | AH115: 0 | AI115: 0 | AJ115: 0 | AK115: 0 | AL115: 0 | AM115: 0 | AN115: 0 | AO115: =(AO99-AO112)*Iout_3V3 -> 0 | AP115: 0 | AQ115: 0 | AR115: 0 | AS115: 0 | AT115: 0 | AU115: 0 | AV115: 0 | AW115: 0 | AX115: 0 | AY115: 0 | AZ115: 0 | BA115: 0 | BB115: 0 | BC115: 0 | BD115: 0 | BE115: 0 | BF115: 0 | BG115: 0 | BH115: 0 | BI115: Power dissipated
B116: V transient | C116: 0.015 | D116: Enter maximum VADJ deviation due to load step | G116: Adj BUCK | H116: V1 | I116: =IF(Reset=1,Vreg-Vout_sync_buck,Vreg-Iout_sync_buck*(I128+DCR84*10^-3)-Vout_sync_buck) -> 1.819907689 | J116: 1.821201059 | K116: 1.82121467 | L116: 1.821219559 | M116: 1.8212164 | N116: 1.821205771 | O116: 1.821315306 | P116: 1.821287001 | Q116: 1.821252792 | R116: 1.82121298 | S116: 1.82116783 | T116: 1.821117575 | U116: 1.821062422 | V116: 1.821002556 | W116: 1.82093814 | X116: 1.820869322 | Y116: 1.820796233 | Z116: 1.820718993 | AA116: 1.820637709 | AB116: 1.820552477 | AC116: 1.820463388 | AD116: 1.82037052 | AE116: 1.820273948 | AF116: 1.820173738 | AG116: 1.820069952 | AH116: 1.819962646 | AI116: 1.819851872 | AJ116: 1.819737678 | AK116: 1.819620108 | AL116: 1.819499202 | AM116: 1.819374999 | AN116: 1.819247532 | AO116: =IF(Reset=1,Vreg-Vout_sync_buck,Vreg-Iout_sync_buck*(AO128+DDX84*10^-3)-Vout_sync_buck) -> 1.819116836 | AP116: 1.818982939 | AQ116: 1.81884587 | AR116: 1.818705655 | AS116: 1.818562319 | AT116: 1.818415884 | AU116: 1.818266371 | AV116: 1.818113802 | AW116: 1.817958193 | AX116: 1.817799564 | AY116: 1.817637931 | AZ116: 1.817473308 | BA116: 1.817305711 | BB116: 1.817135154 | BC116: 1.816961649 | BD116: 1.816785209 | BE116: 1.816605846 | BF116: 1.81642357 | BG116: 1.816238391 | BH116: 1.809412234
B117: VIN min for transient | C117: 5.25 | D117: Minimum input voltage for load transient spec | H117: V3 | I117: =IF(Reset=1,Vout_sync_buck,Vout_sync_buck+Iout_sync_buck*(I132+dcr_2*10^-3)) -> 3.454092311 | J117: 3.452798941 | K117: 3.45278533 | L117: 3.452780441 | M117: 3.4527836 | N117: 3.452794229 | O117: 3.452684694 | P117: 3.452712999 | Q117: 3.452747208 | R117: 3.45278702 | S117: 3.45283217 | T117: 3.452882425 | U117: 3.452937578 | V117: 3.452997444 | W117: 3.45306186 | X117: 3.453130678 | Y117: 3.453203767 | Z117: 3.453281007 | AA117: 3.453362291 | AB117: 3.453447523 | AC117: 3.453536612 | AD117: 3.45362948 | AE117: 3.453726052 | AF117: 3.453826262 | AG117: 3.453930048 | AH117: 3.454037354 | AI117: 3.454148128 | AJ117: 3.454262322 | AK117: 3.454379892 | AL117: 3.454500798 | AM117: 3.454625001 | AN117: 3.454752468 | AO117: =IF(Reset=1,Vout_sync_buck,Vout_sync_buck+Iout_sync_buck*(AO132+dcr_2*10^-3)) -> 3.454883164 | AP117: 3.455017061 | AQ117: 3.45515413 | AR117: 3.455294345 | AS117: 3.455437681 | AT117: 3.455584116 | AU117: 3.455733629 | AV117: 3.455886198 | AW117: 3.456041807 | AX117: 3.456200436 | AY117: 3.456362069 | AZ117: 3.456526692 | BA117: 3.456694289 | BB117: 3.456864846 | BC117: 3.457038351 | BD117: 3.457214791 | BE117: 3.457394154 | BF117: 3.45757643 | BG117: 3.457761609 | BH117: 3.464587766
B118: Output Capacitor | C118: =ROUNDUP(MAX(Y166:Y168),0) -> 16 | D118: Minimum output capacitance required | H118: Required Buck duty | I118: =IF(Reset=1,Vout_sync_buck/Vreg,I117/(I116+I117)) -> 0.6549283865 | J118: 0.6546831516 | K118: 0.6546805708 | L118: 0.6546796438 | M118: 0.6546802427 | N118: 0.6546822581 | O118: 0.6546614892 | P118: 0.6546668561 | Q118: 0.6546733425 | R118: 0.6546808912 | S118: 0.6546894521 | T118: 0.6546989809 | U118: 0.6547094383 | V118: 0.6547207895 | W118: 0.6547330034 | X118: 0.654746052 | Y118: 0.6547599103 | Z118: 0.6547745558 | AA118: 0.654789968 | AB118: 0.6548061287 | AC118: 0.6548230209 | AD118: 0.6548406295 | AE118: 0.6548589405 | AF118: 0.6548779412 | AG118: 0.6548976201 | AH118: 0.6549179663 | AI118: 0.65493897 | AJ118: 0.6549606223 | AK118: 0.6549829147 | AL118: 0.6550058396 | AM118: 0.6550293897 | AN118: 0.6550535585 | AO118: =IF(Reset=1,Vout_sync_buck/Vreg,AO117/(AO116+AO117)) -> 0.6550783398 | AP118: 0.6551037279 | AQ118: 0.6551297175 | AR118: 0.6551563035 | AS118: 0.6551834815 | AT118: 0.6552112469 | AU118: 0.6552395959 | AV118: 0.6552685245 | AW118: 0.6552980293 | AX118: 0.6553281069 | AY118: 0.6553587542 | AZ118: 0.6553899682 | BA118: 0.6554217461 | BB118: 0.6554540853 | BC118: 0.6554869835 | BD118: 0.6555204381 | BE118: 0.6555544471 | BF118: 0.6555890084 | BG118: 0.6556241199 | BH118: 0.6569184235
B119: ESR | C119: =ROUNDUP(C114/(2*C120)*1000,0) -> 68 | D119: Maximum series equivalent resistance for output capacitor | H119: ton buck | I119: =I118/(fsw*10^3)*10^6 -> 0.3274641933 | J119: 0.3273415758 | K119: 0.3273402854 | L119: 0.3273398219 | M119: 0.3273401213 | N119: 0.327341129 | O119: 0.3273307446 | P119: 0.327333428 | Q119: 0.3273366712 | R119: 0.3273404456 | S119: 0.3273447261 | T119: 0.3273494904 | U119: 0.3273547192 | V119: 0.3273603948 | W119: 0.3273665017 | X119: 0.327373026 | Y119: 0.3273799551 | Z119: 0.3273872779 | AA119: 0.327394984 | AB119: 0.3274030643 | AC119: 0.3274115105 | AD119: 0.3274203147 | AE119: 0.3274294703 | AF119: 0.3274389706 | AG119: 0.32744881 | AH119: 0.3274589831 | AI119: 0.327469485 | AJ119: 0.3274803112 | AK119: 0.3274914574 | AL119: 0.3275029198 | AM119: 0.3275146949 | AN119: 0.3275267793 | AO119: =AO118/(fsw*10^3)*10^6 -> 0.3275391699 | AP119: 0.327551864 | AQ119: 0.3275648587 | AR119: 0.3275781518 | AS119: 0.3275917407 | AT119: 0.3276056235 | AU119: 0.3276197979 | AV119: 0.3276342623 | AW119: 0.3276490147 | AX119: 0.3276640535 | AY119: 0.3276793771 | AZ119: 0.3276949841 | BA119: 0.327710873 | BB119: 0.3277270427 | BC119: 0.3277434917 | BD119: 0.3277602191 | BE119: 0.3277772236 | BF119: 0.3277945042 | BG119: 0.32781206 | BH119: 0.3284592118
B120: I RMS | C120: =ROUNDUP(IF(Topology="Buck",MAX(J195:BG195),MAX(J48:BG48)),3) -> 0.037 | D120: Maximum RMS current in output capacitor | H120: toff buck | I120: =1/(fsw*10^-3)-I119 -> 0.1725358067 | J120: 0.1726584242 | K120: 0.1726597146 | L120: 0.1726601781 | M120: 0.1726598787 | N120: 0.172658871 | O120: 0.1726692554 | P120: 0.172666572 | Q120: 0.1726633288 | R120: 0.1726595544 | S120: 0.1726552739 | T120: 0.1726505096 | U120: 0.1726452808 | V120: 0.1726396052 | W120: 0.1726334983 | X120: 0.172626974 | Y120: 0.1726200449 | Z120: 0.1726127221 | AA120: 0.172605016 | AB120: 0.1725969357 | AC120: 0.1725884895 | AD120: 0.1725796853 | AE120: 0.1725705297 | AF120: 0.1725610294 | AG120: 0.17255119 | AH120: 0.1725410169 | AI120: 0.172530515 | AJ120: 0.1725196888 | AK120: 0.1725085426 | AL120: 0.1724970802 | AM120: 0.1724853051 | AN120: 0.1724732207 | AO120: =1/(fsw*10^-3)-AO119 -> 0.1724608301 | AP120: 0.172448136 | AQ120: 0.1724351413 | AR120: 0.1724218482 | AS120: 0.1724082593 | AT120: 0.1723943765 | AU120: 0.1723802021 | AV120: 0.1723657377 | AW120: 0.1723509853 | AX120: 0.1723359465 | AY120: 0.1723206229 | AZ120: 0.1723050159 | BA120: 0.172289127 | BB120: 0.1722729573 | BC120: 0.1722565083 | BD120: 0.1722397809 | BE120: 0.1722227764 | BF120: 0.1722054958 | BG120: 0.17218794 | BH120: 0.1715407882
B121: Actual Capacitor value = | C121: 8.5 | D121: Enter minimum capacitance value of ceramic capacitor with tolerance & DC bias | H121: VREG_actual | I121: =I116*I118/(1-I118)-Iout_sync_buck*(I132+dcr_2*10^-3) -> 3.3 | J121: 3.3 | K121: 3.3 | L121: 3.3 | M121: 3.3 | N121: 3.3 | O121: 3.3 | P121: 3.3 | Q121: 3.3 | R121: 3.3 | S121: 3.3 | T121: 3.3 | U121: 3.3 | V121: 3.3 | W121: 3.3 | X121: 3.3 | Y121: 3.3 | Z121: 3.3 | AA121: 3.3 | AB121: 3.3 | AC121: 3.3 | AD121: 3.3 | AE121: 3.3 | AF121: 3.3 | AG121: 3.3 | AH121: 3.3 | AI121: 3.3 | AJ121: 3.3 | AK121: 3.3 | AL121: 3.3 | AM121: 3.3 | AN121: 3.3 | AO121: =AO116*AO118/(1-AO118)-Iout_sync_buck*(AO132+dcr_2*10^-3) -> 3.3 | AP121: 3.3 | AQ121: 3.3 | AR121: 3.3 | AS121: 3.3 | AT121: 3.3 | AU121: 3.3 | AV121: 3.3 | AW121: 3.3 | AX121: 3.3 | AY121: 3.3 | AZ121: 3.3 | BA121: 3.3 | BB121: 3.3 | BC121: 3.3 | BD121: 3.3 | BE121: 3.3 | BF121: 3.3 | BG121: 3.3 | BH121: 3.3
B122: Estimated ESR | C122: 3 | D122: Enter estimated equivalent series resistance of output capacitor used | H122: Ilpk | I122: =Iout_sync_buck+I123/2 -> 0.8633994259 | J122: 0.863420726 | K122: 0.86342095 | L122: 0.8634210304 | M122: 0.8634209784 | N122: 0.8634208035 | O122: 0.8634226059 | P122: 0.8634221402 | Q122: 0.8634215773 | R122: 0.8634209222 | S122: 0.8634201792 | T122: 0.8634193521 | U122: 0.8634184444 | V122: 0.8634174591 | W122: 0.8634163988 | X122: 0.8634152659 | Y122: 0.8634140627 | Z122: 0.8634127909 | AA122: 0.8634114525 | AB122: 0.8634100489 | AC122: 0.8634085816 | AD122: 0.863407052 | AE122: 0.8634054611 | AF122: 0.8634038101 | AG122: 0.8634021 | AH122: 0.8634003316 | AI122: 0.8633985059 | AJ122: 0.8633966235 | AK122: 0.8633946852 | AL122: 0.8633926916 | AM122: 0.8633906433 | AN122: 0.863388541 | AO122: =Iout_sync_buck+AO123/2 -> 0.8633863849 | AP122: 0.8633841758 | AQ122: 0.8633819139 | AR122: 0.8633795997 | AS122: 0.8633772336 | AT122: 0.8633748159 | AU122: 0.8633723469 | AV122: 0.863369827 | AW122: 0.8633672565 | AX122: 0.8633646355 | AY122: 0.8633619643 | AZ122: 0.8633592433 | BA122: 0.8633564725 | BB122: 0.8633536521 | BC122: 0.8633507825 | BD122: 0.8633478636 | BE122: 0.8633448958 | BF122: 0.8633418791 | BG122: 0.8633388137 | BH122: 0.8632253315
B123: Number of capacitors = | C123: 2 | D123: Enter the number of parallel ceramic capacitors | H123: ΔIL | I123: =I116*I118/(L_buck2*10^-6*fsw*10^3) -> 0.1267988518 | J123: 0.126841452 | K123: 0.1268418999 | L123: 0.1268420608 | M123: 0.1268419569 | N123: 0.1268416071 | O123: 0.1268452118 | P123: 0.1268442803 | Q123: 0.1268431545 | R123: 0.1268418443 | S123: 0.1268403584 | T123: 0.1268387043 | U123: 0.1268368889 | V123: 0.1268349182 | W123: 0.1268327976 | X123: 0.1268305319 | Y123: 0.1268281254 | Z123: 0.1268255819 | AA123: 0.126822905 | AB123: 0.1268200978 | AC123: 0.1268171633 | AD123: 0.126814104 | AE123: 0.1268109222 | AF123: 0.1268076202 | AG123: 0.1268042 | AH123: 0.1268006633 | AI123: 0.1267970118 | AJ123: 0.126793247 | AK123: 0.1267893704 | AL123: 0.1267853832 | AM123: 0.1267812867 | AN123: 0.1267770819 | AO123: 0.1267727699 | AP123: 0.1267683515 | AQ123: 0.1267638278 | AR123: 0.1267591994 | AS123: 0.1267544672 | AT123: 0.1267496318 | AU123: 0.1267446939 | AV123: 0.1267396541 | AW123: 0.1267345129 | AX123: 0.126729271 | AY123: 0.1267239287 | AZ123: 0.1267184865 | BA123: 0.1267129449 | BB123: 0.1267073043 | BC123: 0.1267015649 | BD123: 0.1266957273 | BE123: 0.1266897916 | BF123: 0.1266837582 | BG123: 0.1266776273 | BH123: 0.126450663
H124: IL RMS | I124: =SQRT((I122-I123/2)^2+I123^2/12) -> 0.8008369554 | J124: =SQRT((J122-J123/2)^2+J123^2/12) -> 0.8008375175 | K124: 0.8008375234 | L124: 0.8008375256 | M124: 0.8008375242 | N124: 0.8008375196 | O124: 0.8008375672 | P124: 0.8008375549 | Q124: 0.80083754 | R124: 0.8008375227 | S124: 0.8008375031 | T124: 0.8008374813 | U124: 0.8008374573 | V124: 0.8008374313 | W124: 0.8008374033 | X124: 0.8008373734 | Y124: 0.8008373417 | Z124: 0.8008373081 | AA124: 0.8008372728 | AB124: 0.8008372357 | AC124: 0.800837197 | AD124: 0.8008371566 | AE124: 0.8008371146 | AF124: 0.8008370711 | AG124: 0.8008370259 | AH124: 0.8008369793 | AI124: 0.8008369311 | AJ124: 0.8008368814 | AK124: 0.8008368303 | AL124: 0.8008367777 | AM124: 0.8008367236 | AN124: 0.8008366681 | AO124: 0.8008366113 | AP124: 0.800836553 | AQ124: 0.8008364933 | AR124: 0.8008364322 | AS124: 0.8008363698 | AT124: 0.8008363061 | AU124: 0.8008362409 | AV124: 0.8008361745 | AW124: 0.8008361067 | AX124: 0.8008360375 | AY124: 0.8008359671 | AZ124: 0.8008358953 | BA124: 0.8008358222 | BB124: 0.8008357479 | BC124: 0.8008356722 | BD124: 0.8008355952 | BE124: 0.800835517 | BF124: 0.8008354375 | BG124: 0.8008353566 | BH124: 0.8008323675
B125: Compensation Components, Adjustable Buck: | H125: I_hi_sw buck RMS | I125: =SQRT(I118*((I122-I123/2)^2+I123^2/12)) -> 0.6480984952 | J125: 0.6479775999 | K125: 0.6479763275 | L125: 0.6479758705 | M125: 0.6479761658 | N125: 0.6479771594 | O125: 0.6479669197 | P125: 0.6479695658 | Q125: 0.6479727638 | R125: 0.6479764855 | S125: 0.6479807062 | T125: 0.6479854041 | U125: 0.6479905598 | V125: 0.6479961561 | W125: 0.6480021776 | X125: 0.6480086106 | Y125: 0.6480154427 | Z125: 0.6480226629 | AA125: 0.6480302609 | AB125: 0.6480382278 | AC125: 0.6480465552 | AD125: 0.6480552357 | AE125: 0.6480642623 | AF125: 0.6480736287 | AG125: 0.6480833293 | AH125: 0.6480933587 | AI125: 0.6481037121 | AJ125: 0.648114385 | AK125: 0.6481253732 | AL125: 0.6481366729 | AM125: 0.6481482807 | AN125: 0.6481601931 | AO125: 0.6481724072 | AP125: 0.6481849201 | AQ125: 0.6481977292 | AR125: 0.6482108321 | AS125: 0.6482242263 | AT125: 0.6482379098 | AU125: 0.6482518805 | AV125: 0.6482661367 | AW125: 0.6482806764 | AX125: 0.648295498 | AY125: 0.6483106 | AZ125: 0.6483259808 | BA125: 0.6483416392 | BB125: 0.6483575737 | BC125: 0.6483737832 | BD125: 0.6483902665 | BE125: 0.6484070225 | BF125: 0.6484240501 | BG125: 0.6484413483 | BH125: 0.6490786719
B126: fcMAX | C126: =ROUNDDOWN(fsw/22,0) -> 90 | D126: Recommended maximum 0dB crossover frequency | H126: I_lo_sw buck RMS | I126: =SQRT((1-I118)*((I122-I123/2)^2+I123^2/12)) -> 0.4704340226 | J126: =SQRT((1-J118)*((J122-J123/2)^2+J123^2/12)) -> 0.4706014869 | K126: 0.470603249 | L126: 0.4706038818 | M126: 0.4706034729 | N126: 0.4706020969 | O126: 0.4706162767 | P126: 0.4706126125 | Q126: 0.470608184 | R126: 0.4706030302 | S126: 0.4705971852 | T126: 0.4705906793 | U126: 0.4705835392 | V126: 0.4705757888 | W126: 0.4705674493 | X126: 0.4705585396 | Y126: 0.4705490769 | Z126: 0.4705390764 | AA126: 0.4705285521 | AB126: 0.4705175166 | AC126: 0.4705059812 | AD126: 0.4704939563 | AE126: 0.4704814514 | AF126: 0.4704684752 | AG126: 0.4704550354 | AH126: 0.4704411395 | AI126: 0.470426794 | AJ126: 0.4704120052 | AK126: 0.4703967786 | AL126: 0.4703811196 | AM126: 0.4703650329 | AN126: 0.470348523 | AO126: 0.4703315942 | AP126: 0.4703142501 | AQ126: 0.4702964946 | AR126: 0.4702783308 | AS126: 0.4702597619 | AT126: 0.4702407909 | AU126: 0.4702214203 | AV126: 0.4702016529 | AW126: 0.4701814909 | AX126: 0.4701609366 | AY126: 0.4701399921 | AZ126: 0.4701186593 | BA126: 0.4700969401 | BB126: 0.4700748362 | BC126: 0.4700523493 | BD126: 0.4700294809 | BE126: 0.4700062324 | BF126: 0.4699826052 | BG126: 0.4699586005 | BH126: 0.4690728713
B127: fc = | C127: 45 | D127: Choose fc considering recommended fcMAX | H127: I cout RMS | I127: =SQRT(((I122-I123/2-Iout_sync_buck)^2+I123^2/12)) -> 0.0366036756 | J127: 0.03661597323 | K127: 0.03661610254 | L127: 0.03661614899 | M127: 0.03661611898 | N127: 0.03661601799 | O127: 0.03661705858 | P127: 0.03661678969 | Q127: 0.03661646471 | R127: 0.03661608648 | S127: 0.03661565752 | T127: 0.03661518003 | U127: 0.03661465597 | V127: 0.03661408709 | W127: 0.03661347492 | X127: 0.03661282086 | Y127: 0.03661212616 | Z127: 0.03661139192 | AA127: 0.03661061917 | AB127: 0.03660980881 | AC127: 0.03660896168 | AD127: 0.03660807853 | AE127: 0.03660716004 | AF127: 0.03660620684 | AG127: 0.0366052195 | AH127: 0.03660419854 | AI127: 0.03660314444 | AJ127: 0.03660205765 | AK127: 0.03660093857 | AL127: 0.03659978757 | AM127: 0.036598605 | AN127: 0.03659739118 | AO127: 0.0365961464 | AP127: 0.03659487094 | AQ127: 0.03659356504 | AR127: 0.03659222894 | AS127: 0.03659086287 | AT127: 0.03658946701 | AU127: 0.03658804156 | AV127: 0.0365865867 | AW127: 0.03658510258 | AX127: 0.03658358935 | AY127: 0.03658204717 | AZ127: 0.03658047616 | BA127: 0.03657887643 | BB127: 0.03657724812 | BC127: 0.03657559131 | BD127: 0.03657390612 | BE127: 0.03657219264 | BF127: 0.03657045094 | BG127: 0.03656868112 | BH127: 0.03650316217
B128: R_LOADTYP | C128: =Vout_sync_buck/Iout_sync_buck -> 4.125 | G128: Adj BUCK High Side FET | H128: Rds_On Buck | I128: =Buck_RdsON_factor_7V*(I89-150)+Adj_buck_hi_rdsON_150 -> 0.2876153883 | J128: 0.2859986766 | K128: 0.2859816627 | L128: 0.2859755517 | M128: 0.2859795 | N128: 0.2859927864 | O128: 0.2858558673 | P128: 0.2858912487 | Q128: 0.2859340102 | R128: 0.2859837753 | S128: 0.286040213 | T128: 0.2861030315 | U128: 0.2861719722 | V128: 0.2862468049 | W128: 0.2863273246 | X128: 0.2864133475 | Y128: 0.2865047084 | Z128: 0.2866012588 | AA128: 0.2867028643 | AB128: 0.2868094033 | AC128: 0.2869207654 | AD128: 0.2870368499 | AE128: 0.2871575653 | AF128: 0.2872828277 | AG128: 0.2874125603 | AH128: 0.2875466927 | AI128: 0.28768516 | AJ128: 0.2878279026 | AK128: 0.2879748654 | AL128: 0.2881259975 | AM128: 0.2882812518 | AN128: 0.2884405846 | AO128: =Buck_RdsON_factor_7V*(AO89-150)+Adj_buck_hi_rdsON_150 -> 0.2886039554 | AP128: 0.2887713264 | AQ128: 0.2889426625 | AR128: 0.2891179311 | AS128: 0.2892971016 | AT128: 0.2894801454 | AU128: 0.2896670358 | AV128: 0.2898577479 | AW128: 0.2900522583 | AX128: 0.2902505448 | AY128: 0.2904525869 | AZ128: 0.2906583651 | BA128: 0.2908678611 | BB128: 0.2910810576 | BC128: 0.2912979385 | BD128: 0.2915184884 | BE128: 0.2917426927 | BF128: 0.2919705378 | BG128: 0.2922020108 | BH128: 0.3007347071 | BJ128: V5 LDO
B129: fP1 | C129: =wp_adj/(2*PI()) -> 2.704024696 | D129: Dominant pole formed by Co and RLOAD. | H129: Conduction Losses | I129: =I125^2*I128 -> 0.1208075688 | J129: =J125^2*J128 -> 0.1200836858 | K129: 0.1200760705 | L129: 0.1200733353 | M129: 0.1200751025 | N129: 0.1200810493 | O129: 0.1200197672 | P129: 0.1200356028 | Q129: 0.1200547419 | R129: 0.120077016 | S129: 0.1201022774 | T129: 0.1201303954 | U129: 0.1201612547 | V129: 0.1201947524 | W129: 0.120230797 | X129: 0.1202693065 | Y129: 0.1203102072 | Z129: 0.1203534329 | AA129: 0.1203989238 | AB129: 0.1204466256 | AC129: 0.1204964892 | AD129: 0.12054847 | AE129: 0.1206025271 | AF129: 0.1206586234 | AG129: 0.1207167248 | AH129: 0.1207768 | AI129: 0.1208388205 | AJ129: 0.1209027598 | AK129: 0.1209685936 | AL129: 0.1210362995 | AM129: 0.1211058566 | AN129: 0.1211772459 | AO129: 0.1212504495 | AP129: 0.1213254508 | AQ129: 0.1214022347 | AR129: 0.1214807867 | AS129: 0.1215610936 | AT129: 0.1216431431 | AU129: 0.1217269235 | AV129: 0.1218124241 | AW129: 0.1218996347 | AX129: 0.121988546 | AY129: 0.1220791491 | AZ129: 0.1221714358 | BA129: 0.1222653982 | BB129: 0.1223610291 | BC129: 0.1224583217 | BD129: 0.1225572695 | BE129: 0.1226578666 | BF129: 0.1227601072 | BG129: 0.1228639859 | BH129: 0.1267004711
B130: fZ1 | C130: =wz_adj/(2*PI()) -> 6241.370317 | D130: Zero formed by the output capacitance and its ESR | H130: Switching Losses | I130: =0.5*Vreg*Iout_sync_buck*fsw*10^3*(Vreg/SLEW_rate+Vreg/1.5)*10^-9 -> 0.04070755556 | J130: 0.04070755556 | K130: 0.04070755556 | L130: 0.04070755556 | M130: 0.04070755556 | N130: 0.04070755556 | O130: 0.04070755556 | P130: 0.04070755556 | Q130: 0.04070755556 | R130: 0.04070755556 | S130: 0.04070755556 | T130: 0.04070755556 | U130: 0.04070755556 | V130: 0.04070755556 | W130: 0.04070755556 | X130: 0.04070755556 | Y130: 0.04070755556 | Z130: 0.04070755556 | AA130: 0.04070755556 | AB130: 0.04070755556 | AC130: 0.04070755556 | AD130: 0.04070755556 | AE130: 0.04070755556 | AF130: 0.04070755556 | AG130: 0.04070755556 | AH130: 0.04070755556 | AI130: 0.04070755556 | AJ130: 0.04070755556 | AK130: 0.04070755556 | AL130: 0.04070755556 | AM130: 0.04070755556 | AN130: 0.04070755556 | AO130: 0.04070755556 | AP130: 0.04070755556 | AQ130: 0.04070755556 | AR130: 0.04070755556 | AS130: 0.04070755556 | AT130: 0.04070755556 | AU130: 0.04070755556 | AV130: 0.04070755556 | AW130: 0.04070755556 | AX130: 0.04070755556 | AY130: 0.04070755556 | AZ130: 0.04070755556 | BA130: 0.04070755556 | BB130: 0.04070755556 | BC130: 0.04070755556 | BD130: 0.04070755556 | BE130: 0.04070755556 | BF130: 0.04070755556 | BG130: 0.04070755556 | BH130: 0.04070755556
B131: fP2 | C131: =IF(fz_1_2>10*fc_2,MAX(fsw/2,5*fc_2),fz_1_2) -> 1000 | H131: Total Buck FET Losses | I131: =I129+I130 -> 0.1615151244 | J131: =J129+J130 -> 0.1607912413 | K131: 0.160783626 | L131: 0.1607808908 | M131: 0.160782658 | N131: 0.1607886049 | O131: 0.1607273227 | P131: 0.1607431584 | Q131: 0.1607622975 | R131: 0.1607845716 | S131: 0.1608098329 | T131: 0.160837951 | U131: 0.1608688102 | V131: 0.160902308 | W131: 0.1609383526 | X131: 0.160976862 | Y131: 0.1610177628 | Z131: 0.1610609885 | AA131: 0.1611064793 | AB131: 0.1611541811 | AC131: 0.1612040448 | AD131: 0.1612560255 | AE131: 0.1613100826 | AF131: 0.1613661789 | AG131: 0.1614242803 | AH131: 0.1614843556 | AI131: 0.1615463761 | AJ131: 0.1616103154 | AK131: 0.1616761492 | AL131: 0.161743855 | AM131: 0.1618134122 | AN131: 0.1618848014 | AO131: 0.161958005 | AP131: 0.1620330064 | AQ131: 0.1621097902 | AR131: 0.1621883423 | AS131: 0.1622686492 | AT131: 0.1623506986 | AU131: 0.162434479 | AV131: 0.1625199796 | AW131: 0.1626071903 | AX131: 0.1626961016 | AY131: 0.1627867047 | AZ131: 0.1628789913 | BA131: 0.1629729538 | BB131: 0.1630685847 | BC131: 0.1631658773 | BD131: 0.1632648251 | BE131: 0.1633654221 | BF131: 0.1634676627 | BG131: 0.1635715415 | BH131: 0.1674080266
B132: Rz | C132: =fc_2*10^3*Vout_sync_buck/VFB_adj*2*PI()*Number_Cout2*Co_2*10^-6/(gm_POWER2*gm_EA2*10^-6)*10^-3 -> 10.57460087 | D132: Recommended compensation resister to achieve chosen fc | G132: Adj BUCK Low Side FET | H132: Rds_On Buck | I132: =Buck_RdsON_factor_7V*(I89-150)+Adj_buck_lo_rdsON_150 -> 0.0976153883 | J132: 0.09599867662 | K132: 0.09598166272 | L132: 0.09597555171 | M132: 0.09597949997 | N132: 0.09599278639 | O132: 0.09585586729 | P132: 0.09589124871 | Q132: 0.09593401023 | R132: 0.09598377529 | S132: 0.09604021303 | T132: 0.09610303152 | U132: 0.09617197215 | V132: 0.09624680494 | W132: 0.09632732463 | X132: 0.09641334749 | Y132: 0.09650470844 | Z132: 0.09660125883 | AA132: 0.09670286434 | AB132: 0.09680940333 | AC132: 0.09692076537 | AD132: 0.09703684992 | AE132: 0.09715756529 | AF132: 0.09728282767 | AG132: 0.09741256029 | AH132: 0.09754669266 | AI132: 0.09768515999 | AJ132: 0.0978279026 | AK132: 0.09797486542 | AL132: 0.09812599754 | AM132: 0.09828125184 | AN132: 0.09844058465 | AO132: =Buck_RdsON_factor_7V*(AO89-150)+Adj_buck_lo_rdsON_150 -> 0.09860395541 | AP132: 0.0987713264 | AQ132: 0.09894266255 | AR132: 0.09911793111 | AS132: 0.09929710156 | AT132: 0.09948014537 | AU132: 0.09966703582 | AV132: 0.09985774793 | AW132: 0.1000522583 | AX132: 0.1002505448 | AY132: 0.1004525869 | AZ132: 0.1006583651 | BA132: 0.1008678611 | BB132: 0.1010810576 | BC132: 0.1012979385 | BD132: 0.1015184884 | BE132: 0.1017426927 | BF132: 0.1019705378 | BG132: 0.1022020108 | BH132: 0.1107347071 | BJ132: Buck Diode
B133: Actual Rz used = | C133: 10 | D133: Enter the closest available 1% standard resister value | H133: Conduction Losses | I133: =I126^2*I132 -> 0.02160308291 | J133: =J126^2*J132 -> 0.02126041983 | K133: 0.02125681101 | L133: 0.02125551479 | M133: 0.02125635227 | N133: 0.02125917046 | O133: 0.0212301268 | P133: 0.02123763236 | Q133: 0.02124670315 | R133: 0.02125725911 | S133: 0.02126922987 | T133: 0.0212825533 | U133: 0.02129717431 | V133: 0.02131304388 | W133: 0.02133011825 | X133: 0.02134835817 | Y133: 0.02136772838 | Z133: 0.02138819708 | AA133: 0.0214097355 | AB133: 0.02143231757 | AC133: 0.02145591956 | AD133: 0.02148051987 | AE133: 0.02150609874 | AF133: 0.0215326381 | AG133: 0.02156012133 | AH133: 0.02158853319 | AI133: 0.02161785959 | AJ133: 0.02164808756 | AK133: 0.02167920507 | AL133: 0.02171120099 | AM133: 0.02174406496 | AN133: 0.02177778739 | AO133: 0.0218123593 | AP133: 0.02184777233 | AQ133: 0.02188401866 | AR133: 0.02192109098 | AS133: 0.02195898242 | AT133: 0.02199768655 | AU133: 0.02203719731 | AV133: 0.02207750899 | AW133: 0.02211861621 | AX133: 0.02216051389 | AY133: 0.02220319722 | AZ133: 0.02224666167 | BA133: 0.02229090291 | BB133: 0.02233591685 | BC133: 0.0223816996 | BD133: 0.02242824746 | BE133: 0.02247555688 | BF133: 0.02252362451 | BG133: 0.02257244712 | BH133: 0.02436488658
B134: Cz (min) | C134: =MIN(4*1000000000/(6.28*Rz_adj*1000*fc_2*1000),1000000000/(6.28*Rz_adj*1000*1.5*fp_1_2*1000)) -> 1.415428167 | D134: Recommended range for the compensation capacitor | H134: Body Diode Losses | I134: =(I122-I123/2)*(2*td*10^-9*(fsw*10^3))*0.05 -> 0.0024 | J134: 0.0024 | K134: 0.0024 | L134: 0.0024 | M134: 0.0024 | N134: 0.0024 | O134: 0.0024 | P134: 0.0024 | Q134: 0.0024 | R134: 0.0024 | S134: 0.0024 | T134: 0.0024 | U134: 0.0024 | V134: 0.0024 | W134: 0.0024 | X134: 0.0024 | Y134: 0.0024 | Z134: 0.0024 | AA134: 0.0024 | AB134: 0.0024 | AC134: 0.0024 | AD134: 0.0024 | AE134: 0.0024 | AF134: 0.0024 | AG134: 0.0024 | AH134: 0.0024 | AI134: 0.0024 | AJ134: 0.0024 | AK134: 0.0024 | AL134: 0.0024 | AM134: 0.0024 | AN134: 0.0024 | AO134: =(AO122-AO123/2)*(2*td*10^-9*(fsw*10^3))*0.05 -> 0.0024 | AP134: 0.0024 | AQ134: 0.0024 | AR134: 0.0024 | AS134: 0.0024 | AT134: 0.0024 | AU134: 0.0024 | AV134: 0.0024 | AW134: 0.0024 | AX134: 0.0024 | AY134: 0.0024 | AZ134: 0.0024 | BA134: 0.0024 | BB134: 0.0024 | BC134: 0.0024 | BD134: 0.0024 | BE134: 0.0024 | BF134: 0.0024 | BG134: 0.0024 | BH134: 0.0024
B135: Cz (max) | C135: =MAX(4*1000000000/(6.28*Rz_adj*1000*fc_2*1000),1000000000/(6.28*Rz_adj*1000*1.5*fp_1_2*1000)) -> 3.925892862 | H135: Total Buck FET Losses | I135: =I133+I134 -> 0.02400308291 | J135: =J133+J134 -> 0.02366041983 | K135: 0.02365681101 | L135: 0.02365551479 | M135: 0.02365635227 | N135: 0.02365917046 | O135: 0.0236301268 | P135: 0.02363763236 | Q135: 0.02364670315 | R135: 0.02365725911 | S135: 0.02366922987 | T135: 0.0236825533 | U135: 0.02369717431 | V135: 0.02371304388 | W135: 0.02373011825 | X135: 0.02374835817 | Y135: 0.02376772838 | Z135: 0.02378819708 | AA135: 0.0238097355 | AB135: 0.02383231757 | AC135: 0.02385591956 | AD135: 0.02388051987 | AE135: 0.02390609874 | AF135: 0.0239326381 | AG135: 0.02396012133 | AH135: 0.02398853319 | AI135: 0.02401785959 | AJ135: 0.02404808756 | AK135: 0.02407920507 | AL135: 0.02411120099 | AM135: 0.02414406496 | AN135: 0.02417778739 | AO135: 0.0242123593 | AP135: 0.02424777233 | AQ135: 0.02428401866 | AR135: 0.02432109098 | AS135: 0.02435898242 | AT135: 0.02439768655 | AU135: 0.02443719731 | AV135: 0.02447750899 | AW135: 0.02451861621 | AX135: 0.02456051389 | AY135: 0.02460319722 | AZ135: 0.02464666167 | BA135: 0.02469090291 | BB135: 0.02473591685 | BC135: 0.0247816996 | BD135: 0.02482824746 | BE135: 0.02487555688 | BF135: 0.02492362451 | BG135: 0.02497244712 | BH135: 0.02676488658
B136: Cp | C136: =MAX(1/(2*PI()*Rz_adj*10^3*fz_1_2*10^3)*10^12, 1/(2*PI()*Rz_adj*10^3*fsw/2*10^3)*10^12, 1/(2*PI()*Rz_adj*10^3*15*fc_2*10^3)*10^12) -> 23.57851009 | D136: Recommended HF compensation capacitor | G136: V5A LDO | H136: Output voltage | I136: =IF(I99-5<I137*Iout_V5A,I99-I137*Iout_V5A,5) -> 5 | J136: 5 | K136: 5 | L136: 5 | M136: 5 | N136: 5 | O136: 5 | P136: 5 | Q136: 5 | R136: 5 | S136: 5 | T136: 5 | U136: 5 | V136: 5 | W136: 5 | X136: 5 | Y136: 5 | Z136: 5 | AA136: 5 | AB136: 5 | AC136: 5 | AD136: 5 | AE136: 5 | AF136: 5 | AG136: 5 | AH136: 5 | AI136: 5 | AJ136: 5 | AK136: 5 | AL136: 5 | AM136: 5 | AN136: 5 | AO136: =IF(AO99-5<AO137*Iout_V5A,AO99-AO137*Iout_V5A,5) -> 5 | AP136: 5 | AQ136: 5 | AR136: 5 | AS136: 5 | AT136: 5 | AU136: 5 | AV136: 5 | AW136: 5 | AX136: 5 | AY136: 5 | AZ136: 5 | BA136: 5 | BB136: 5 | BC136: 5 | BD136: 5 | BE136: 5 | BF136: 5 | BG136: 5 | BH136: 5
B137: Actual Cz used = | C137: 1.5 | D137: Enter actual Cp used | H137: Series pass resistance | I137: =(Rds_ON_V5A_150-Rds_ON_V5A_min40)/190*(I89-150)+Rds_ON_V5A_150 -> 0.6606358288 | J137: 0.6556276941 | K137: 0.6555749897 | L137: 0.6555560594 | M137: 0.6555682901 | N137: 0.6556094478 | O137: 0.6551853095 | P137: 0.6552949116 | Q137: 0.6554273752 | R137: 0.6555815338 | S137: 0.6557563626 | T137: 0.6559509573 | U137: 0.6561645167 | V137: 0.6563963284 | W137: 0.6566457566 | X137: 0.6569122321 | Y137: 0.6571952436 | Z137: 0.6574943305 | AA137: 0.6578090769 | AB137: 0.6581391058 | AC137: 0.6584840752 | AD137: 0.6588436737 | AE137: 0.6592176172 | AF137: 0.6596056461 | AG137: 0.6600075226 | AH137: 0.6604230283 | AI137: 0.6608519626 | AJ137: 0.6612941405 | AK137: 0.6617493915 | AL137: 0.6622175579 | AM137: 0.6626984936 | AN137: 0.6631920635 | AO137: =(Rds_ON_V5A_150-Rds_ON_V5A_min40)/190*(AO89-150)+Rds_ON_V5A_150 -> 0.6636981418 | AP137: 0.6642166118 | AQ137: 0.6647473648 | AR137: 0.6652902993 | AS137: 0.6658453208 | AT137: 0.6664123409 | AU137: 0.6669912769 | AV137: 0.6675820514 | AW137: 0.6681845916 | AX137: 0.6687988296 | AY137: 0.6694247012 | AZ137: 0.6700621463 | BA137: 0.6707111081 | BB137: 0.6713715333 | BC137: 0.6720433716 | BD137: 0.6727265753 | BE137: 0.6734210996 | BF137: 0.674126902 | BG137: 0.6748439424 | BH137: 0.7012759236
B138: Actual Cp used = | C138: 39 | D138: Enter actual Cz used | H138: Dropout | I138: =I99-I136 -> 0.35 | J138: 0.35 | K138: 0.35 | L138: 0.35 | M138: 0.35 | N138: 0.35 | O138: 0.35 | P138: 0.35 | Q138: 0.35 | R138: 0.35 | S138: 0.35 | T138: 0.35 | U138: 0.35 | V138: 0.35 | W138: 0.35 | X138: 0.35 | Y138: 0.35 | Z138: 0.35 | AA138: 0.35 | AB138: 0.35 | AC138: 0.35 | AD138: 0.35 | AE138: 0.35 | AF138: 0.35 | AG138: 0.35 | AH138: 0.35 | AI138: 0.35 | AJ138: 0.35 | AK138: 0.35 | AL138: 0.35 | AM138: 0.35 | AN138: 0.35 | AO138: =AO99-AO136 -> 0.35 | AP138: 0.35 | AQ138: 0.35 | AR138: 0.35 | AS138: 0.35 | AT138: 0.35 | AU138: 0.35 | AV138: 0.35 | AW138: 0.35 | AX138: 0.35 | AY138: 0.35 | AZ138: 0.35 | BA138: 0.35 | BB138: 0.35 | BC138: 0.35 | BD138: 0.35 | BE138: 0.35 | BF138: 0.35 | BG138: 0.35 | BH138: 0.35
B139: Estimated cross over | C139: ='Control Loop2'!$B$21 -> 42.29242874 | H139: Power dissipated | I139: =(I99-I136)*Iout_V5A -> 0 | J139: 0 | K139: 0 | L139: 0 | M139: 0 | N139: 0 | O139: 0 | P139: 0 | Q139: 0 | R139: 0 | S139: 0 | T139: 0 | U139: 0 | V139: 0 | W139: 0 | X139: 0 | Y139: 0 | Z139: 0 | AA139: 0 | AB139: 0 | AC139: 0 | AD139: 0 | AE139: 0 | AF139: 0 | AG139: 0 | AH139: 0 | AI139: 0 | AJ139: 0 | AK139: 0 | AL139: 0 | AM139: 0 | AN139: 0 | AO139: =(AO99-AO136)*Iout_V5A -> 0 | AP139: 0 | AQ139: 0 | AR139: 0 | AS139: 0 | AT139: 0 | AU139: 0 | AV139: 0 | AW139: 0 | AX139: 0 | AY139: 0 | AZ139: 0 | BA139: 0 | BB139: 0 | BC139: 0 | BD139: 0 | BE139: 0 | BF139: 0 | BG139: 0 | BH139: 0
B140: Estimated phase margin | C140: ='Control Loop2'!$B$22 -> 68.91564567 | G140: V5B LDO | H140: Output voltage | I140: =IF(I99-5<I141*Iout_V5B,I99-I141*Iout_V5B,5) -> 5 | J140: 5 | K140: 5 | L140: 5 | M140: 5 | N140: 5 | O140: 5 | P140: 5 | Q140: 5 | R140: 5 | S140: 5 | T140: 5 | U140: 5 | V140: 5 | W140: 5 | X140: 5 | Y140: 5 | Z140: 5 | AA140: 5 | AB140: 5 | AC140: 5 | AD140: 5 | AE140: 5 | AF140: 5 | AG140: 5 | AH140: 5 | AI140: 5 | AJ140: 5 | AK140: 5 | AL140: 5 | AM140: 5 | AN140: 5 | AO140: =IF(AO99-5<AO141*Iout_V5B,AO99-AO141*Iout_V5B,5) -> 5 | AP140: 5 | AQ140: 5 | AR140: 5 | AS140: 5 | AT140: 5 | AU140: 5 | AV140: 5 | AW140: 5 | AX140: 5 | AY140: 5 | AZ140: 5 | BA140: 5 | BB140: 5 | BC140: 5 | BD140: 5 | BE140: 5 | BF140: 5 | BG140: 5 | BH140: 5
H141: Series pass resistance | I141: =(Rds_ON_V5B_150-Rds_ON_V5B_min40)/190*(I89-150)+Rds_ON_V5B_150 -> 0.6606358288 | J141: 0.6556276941 | K141: 0.6555749897 | L141: 0.6555560594 | M141: 0.6555682901 | N141: 0.6556094478 | O141: 0.6551853095 | P141: 0.6552949116 | Q141: 0.6554273752 | R141: 0.6555815338 | S141: 0.6557563626 | T141: 0.6559509573 | U141: 0.6561645167 | V141: 0.6563963284 | W141: 0.6566457566 | X141: 0.6569122321 | Y141: 0.6571952436 | Z141: 0.6574943305 | AA141: 0.6578090769 | AB141: 0.6581391058 | AC141: 0.6584840752 | AD141: 0.6588436737 | AE141: 0.6592176172 | AF141: 0.6596056461 | AG141: 0.6600075226 | AH141: 0.6604230283 | AI141: 0.6608519626 | AJ141: 0.6612941405 | AK141: 0.6617493915 | AL141: 0.6622175579 | AM141: 0.6626984936 | AN141: 0.6631920635 | AO141: =(Rds_ON_V5B_150-Rds_ON_V5B_min40)/190*(AO89-150)+Rds_ON_V5B_150 -> 0.6636981418 | AP141: 0.6642166118 | AQ141: 0.6647473648 | AR141: 0.6652902993 | AS141: 0.6658453208 | AT141: 0.6664123409 | AU141: 0.6669912769 | AV141: 0.6675820514 | AW141: 0.6681845916 | AX141: 0.6687988296 | AY141: 0.6694247012 | AZ141: 0.6700621463 | BA141: 0.6707111081 | BB141: 0.6713715333 | BC141: 0.6720433716 | BD141: 0.6727265753 | BE141: 0.6734210996 | BF141: 0.674126902 | BG141: 0.6748439424 | BH141: 0.7012759236
H142: Dropout | I142: =I99-I140 -> 0.35 | J142: 0.35 | K142: 0.35 | L142: 0.35 | M142: 0.35 | N142: 0.35 | O142: 0.35 | P142: 0.35 | Q142: 0.35 | R142: 0.35 | S142: 0.35 | T142: 0.35 | U142: 0.35 | V142: 0.35 | W142: 0.35 | X142: 0.35 | Y142: 0.35 | Z142: 0.35 | AA142: 0.35 | AB142: 0.35 | AC142: 0.35 | AD142: 0.35 | AE142: 0.35 | AF142: 0.35 | AG142: 0.35 | AH142: 0.35 | AI142: 0.35 | AJ142: 0.35 | AK142: 0.35 | AL142: 0.35 | AM142: 0.35 | AN142: 0.35 | AO142: =AO99-AO140 -> 0.35 | AP142: 0.35 | AQ142: 0.35 | AR142: 0.35 | AS142: 0.35 | AT142: 0.35 | AU142: 0.35 | AV142: 0.35 | AW142: 0.35 | AX142: 0.35 | AY142: 0.35 | AZ142: 0.35 | BA142: 0.35 | BB142: 0.35 | BC142: 0.35 | BD142: 0.35 | BE142: 0.35 | BF142: 0.35 | BG142: 0.35 | BH142: 0.35
H143: Power dissipated | I143: =(I99-I140)*Iout_V5B -> 0 | J143: 0 | K143: 0 | L143: 0 | M143: 0 | N143: 0 | O143: 0 | P143: 0 | Q143: 0 | R143: 0 | S143: 0 | T143: 0 | U143: 0 | V143: 0 | W143: 0 | X143: 0 | Y143: 0 | Z143: 0 | AA143: 0 | AB143: 0 | AC143: 0 | AD143: 0 | AE143: 0 | AF143: 0 | AG143: 0 | AH143: 0 | AI143: 0 | AJ143: 0 | AK143: 0 | AL143: 0 | AM143: 0 | AN143: 0 | AO143: =(AO99-AO140)*Iout_V5B -> 0 | AP143: 0 | AQ143: 0 | AR143: 0 | AS143: 0 | AT143: 0 | AU143: 0 | AV143: 0 | AW143: 0 | AX143: 0 | AY143: 0 | AZ143: 0 | BA143: 0 | BB143: 0 | BC143: 0 | BD143: 0 | BE143: 0 | BF143: 0 | BG143: 0 | BH143: 0
G144: V5CAN LDO | H144: Output voltage | I144: =IF(I99-5<I145*Iout_V5CAN,I99-I145*Iout_sync_buck,5) -> 5 | J144: 5 | K144: 5 | L144: 5 | M144: 5 | N144: 5 | O144: 5 | P144: 5 | Q144: 5 | R144: 5 | S144: 5 | T144: 5 | U144: 5 | V144: 5 | W144: 5 | X144: 5 | Y144: 5 | Z144: 5 | AA144: 5 | AB144: 5 | AC144: 5 | AD144: 5 | AE144: 5 | AF144: 5 | AG144: 5 | AH144: 5 | AI144: 5 | AJ144: 5 | AK144: 5 | AL144: 5 | AM144: 5 | AN144: 5 | AO144: =IF(AO99-5<AO145*Iout_V5CAN,AO99-AO145*Iout_sync_buck,5) -> 5 | AP144: 5 | AQ144: 5 | AR144: 5 | AS144: 5 | AT144: 5 | AU144: 5 | AV144: 5 | AW144: 5 | AX144: 5 | AY144: 5 | AZ144: 5 | BA144: 5 | BB144: 5 | BC144: 5 | BD144: 5 | BE144: 5 | BF144: 5 | BG144: 5 | BH144: 5
H145: Series pass resistance | I145: =(Rds_ON_V5CAN_150-Rds_ON_V5CAN_min40)/190*(I89-150)+Rds_ON_V5CAN_150 -> 0.4810250563 | J145: 0.4781564037 | K145: 0.4781262147 | L145: 0.4781153714 | M145: 0.4781223771 | N145: 0.4781459522 | O145: 0.4779030064 | P145: 0.4779657863 | Q145: 0.4780416613 | R145: 0.4781299631 | S145: 0.4782301048 | T145: 0.4783415684 | U145: 0.4784638949 | V145: 0.4785966763 | W145: 0.4787395485 | X145: 0.4788921853 | Y145: 0.4790542938 | Z145: 0.4792256104 | AA145: 0.4794058967 | AB145: 0.4795949368 | AC145: 0.4797925348 | AD145: 0.4799985123 | AE145: 0.4802127066 | AF145: 0.480434969 | AG145: 0.4806651633 | AH145: 0.4809031644 | AI145: 0.4811488574 | AJ145: 0.4814021363 | AK145: 0.4816629034 | AL145: 0.4819310685 | AM145: 0.4822065478 | AN145: 0.4824892639 | AO145: =(Rds_ON_V5CAN_150-Rds_ON_V5CAN_min40)/190*(AO89-150)+Rds_ON_V5CAN_150 -> 0.4827791449 | AP145: 0.4830761238 | AQ145: 0.4833801383 | AR145: 0.4836911305 | AS145: 0.484009046 | AT145: 0.4843338343 | AU145: 0.4846654481 | AV145: 0.4850038428 | AW145: 0.4853489771 | AX145: 0.4857008117 | AY145: 0.4860593101 | AZ145: 0.4864244378 | BA145: 0.4867961622 | BB145: 0.4871744528 | BC145: 0.4875592808 | BD145: 0.487950619 | BE145: 0.4883484415 | BF145: 0.4887527242 | BG145: 0.4891634439 | BH145: 0.5043036458
H146: Dropout | I146: =I99-I144 -> 0.35 | J146: 0.35 | K146: 0.35 | L146: 0.35 | M146: 0.35 | N146: 0.35 | O146: 0.35 | P146: 0.35 | Q146: 0.35 | R146: 0.35 | S146: 0.35 | T146: 0.35 | U146: 0.35 | V146: 0.35 | W146: 0.35 | X146: 0.35 | Y146: 0.35 | Z146: 0.35 | AA146: 0.35 | AB146: 0.35 | AC146: 0.35 | AD146: 0.35 | AE146: 0.35 | AF146: 0.35 | AG146: 0.35 | AH146: 0.35 | AI146: 0.35 | AJ146: 0.35 | AK146: 0.35 | AL146: 0.35 | AM146: 0.35 | AN146: 0.35 | AO146: =AO99-AO144 -> 0.35 | AP146: 0.35 | AQ146: 0.35 | AR146: 0.35 | AS146: 0.35 | AT146: 0.35 | AU146: 0.35 | AV146: 0.35 | AW146: 0.35 | AX146: 0.35 | AY146: 0.35 | AZ146: 0.35 | BA146: 0.35 | BB146: 0.35 | BC146: 0.35 | BD146: 0.35 | BE146: 0.35 | BF146: 0.35 | BG146: 0.35 | BH146: 0.35
H147: Power dissipated | I147: =(I99-I144)*Iout_V5CAN -> 0 | J147: 0 | K147: 0 | L147: 0 | M147: 0 | N147: 0 | O147: 0 | P147: 0 | Q147: 0 | R147: 0 | S147: 0 | T147: 0 | U147: 0 | V147: 0 | W147: 0 | X147: 0 | Y147: 0 | Z147: 0 | AA147: 0 | AB147: 0 | AC147: 0 | AD147: 0 | AE147: 0 | AF147: 0 | AG147: 0 | AH147: 0 | AI147: 0 | AJ147: 0 | AK147: 0 | AL147: 0 | AM147: 0 | AN147: 0 | AO147: =(AO99-AO144)*Iout_V5CAN -> 0 | AP147: 0 | AQ147: 0 | AR147: 0 | AS147: 0 | AT147: 0 | AU147: 0 | AV147: 0 | AW147: 0 | AX147: 0 | AY147: 0 | AZ147: 0 | BA147: 0 | BB147: 0 | BC147: 0 | BD147: 0 | BE147: 0 | BF147: 0 | BG147: 0 | BH147: 0
G148: V5P LDO | H148: Output voltage | I148: =IF(I99-5<I149*Iout_V5P,I99-I149*Iout_V5P,5) -> 5 | J148: 5 | K148: 5 | L148: 5 | M148: 5 | N148: 5 | O148: 5 | P148: 5 | Q148: 5 | R148: 5 | S148: 5 | T148: 5 | U148: 5 | V148: 5 | W148: 5 | X148: 5 | Y148: 5 | Z148: 5 | AA148: 5 | AB148: 5 | AC148: 5 | AD148: 5 | AE148: 5 | AF148: 5 | AG148: 5 | AH148: 5 | AI148: 5 | AJ148: 5 | AK148: 5 | AL148: 5 | AM148: 5 | AN148: 5 | AO148: =IF(AO99-5<AO149*Iout_V5P,AO99-AO149*Iout_V5P,5) -> 5 | AP148: 5 | AQ148: 5 | AR148: 5 | AS148: 5 | AT148: 5 | AU148: 5 | AV148: 5 | AW148: 5 | AX148: 5 | AY148: 5 | AZ148: 5 | BA148: 5 | BB148: 5 | BC148: 5 | BD148: 5 | BE148: 5 | BF148: 5 | BG148: 5 | BH148: 5 | BI148: Output voltage
H149: Series pass resistance | I149: =(Rds_ON_V5P_150-Rds_ON_V5P_min40)/190*(I89-150)+Rds_ON_V5P_150 -> 0.6606358288 | J149: 0.6556276941 | K149: 0.6555749897 | L149: 0.6555560594 | M149: 0.6555682901 | N149: 0.6556094478 | O149: 0.6551853095 | P149: 0.6552949116 | Q149: 0.6554273752 | R149: 0.6555815338 | S149: 0.6557563626 | T149: 0.6559509573 | U149: 0.6561645167 | V149: 0.6563963284 | W149: 0.6566457566 | X149: 0.6569122321 | Y149: 0.6571952436 | Z149: 0.6574943305 | AA149: 0.6578090769 | AB149: 0.6581391058 | AC149: 0.6584840752 | AD149: 0.6588436737 | AE149: 0.6592176172 | AF149: 0.6596056461 | AG149: 0.6600075226 | AH149: 0.6604230283 | AI149: 0.6608519626 | AJ149: 0.6612941405 | AK149: 0.6617493915 | AL149: 0.6622175579 | AM149: 0.6626984936 | AN149: 0.6631920635 | AO149: =(Rds_ON_V5P_150-Rds_ON_V5P_min40)/190*(AO89-150)+Rds_ON_V5P_150 -> 0.6636981418 | AP149: 0.6642166118 | AQ149: 0.6647473648 | AR149: 0.6652902993 | AS149: 0.6658453208 | AT149: 0.6664123409 | AU149: 0.6669912769 | AV149: 0.6675820514 | AW149: 0.6681845916 | AX149: 0.6687988296 | AY149: 0.6694247012 | AZ149: 0.6700621463 | BA149: 0.6707111081 | BB149: 0.6713715333 | BC149: 0.6720433716 | BD149: 0.6727265753 | BE149: 0.6734210996 | BF149: 0.674126902 | BG149: 0.6748439424 | BH149: 0.7012759236 | BI149: Series pass resistance
H150: Dropout | I150: =I99-I148 -> 0.35 | J150: 0.35 | K150: 0.35 | L150: 0.35 | M150: 0.35 | N150: 0.35 | O150: 0.35 | P150: 0.35 | Q150: 0.35 | R150: 0.35 | S150: 0.35 | T150: 0.35 | U150: 0.35 | V150: 0.35 | W150: 0.35 | X150: 0.35 | Y150: 0.35 | Z150: 0.35 | AA150: 0.35 | AB150: 0.35 | AC150: 0.35 | AD150: 0.35 | AE150: 0.35 | AF150: 0.35 | AG150: 0.35 | AH150: 0.35 | AI150: 0.35 | AJ150: 0.35 | AK150: 0.35 | AL150: 0.35 | AM150: 0.35 | AN150: 0.35 | AO150: =AO99-AO148 -> 0.35 | AP150: 0.35 | AQ150: 0.35 | AR150: 0.35 | AS150: 0.35 | AT150: 0.35 | AU150: 0.35 | AV150: 0.35 | AW150: 0.35 | AX150: 0.35 | AY150: 0.35 | AZ150: 0.35 | BA150: 0.35 | BB150: 0.35 | BC150: 0.35 | BD150: 0.35 | BE150: 0.35 | BF150: 0.35 | BG150: 0.35 | BH150: 0.35 | BI150: Dropout
H151: Power dissipated | I151: =(I99-I148)*Iout_V5P -> 0.02625 | J151: 0.02625 | K151: 0.02625 | L151: 0.02625 | M151: 0.02625 | N151: 0.02625 | O151: 0.02625 | P151: 0.02625 | Q151: 0.02625 | R151: 0.02625 | S151: 0.02625 | T151: 0.02625 | U151: 0.02625 | V151: 0.02625 | W151: 0.02625 | X151: 0.02625 | Y151: 0.02625 | Z151: 0.02625 | AA151: 0.02625 | AB151: 0.02625 | AC151: 0.02625 | AD151: 0.02625 | AE151: 0.02625 | AF151: 0.02625 | AG151: 0.02625 | AH151: 0.02625 | AI151: 0.02625 | AJ151: 0.02625 | AK151: 0.02625 | AL151: 0.02625 | AM151: 0.02625 | AN151: 0.02625 | AO151: =(AO99-AO148)*Iout_V5P -> 0.02625 | AP151: 0.02625 | AQ151: 0.02625 | AR151: 0.02625 | AS151: 0.02625 | AT151: 0.02625 | AU151: 0.02625 | AV151: 0.02625 | AW151: 0.02625 | AX151: 0.02625 | AY151: 0.02625 | AZ151: 0.02625 | BA151: 0.02625 | BB151: 0.02625 | BC151: 0.02625 | BD151: 0.02625 | BE151: 0.02625 | BF151: 0.02625 | BG151: 0.02625 | BH151: 0.02625 | BI151: Power dissipated
G152: Buck Diode | H152: Tj Diode | I152: =I155*RTHavg_Vd+Ta -> 138.9724573 | J152: =J155*RTHavg_Vd+Ta -> 126.70151 | K152: 127.6886881 | L152: 128.5975056 | M152: 129.4369059 | N152: 130.2145254 | O152: 130.9730876 | P152: 131.6434837 | Q152: 132.26948 | R152: 132.8553357 | S152: 133.4047833 | T152: 133.9211074 | U152: 134.4072098 | V152: 134.8656636 | W152: 135.2987584 | X152: 135.7085382 | Y152: 136.0968334 | Z152: 136.4652879 | AA152: 136.8153825 | AB152: 137.1484543 | AC152: 137.4657137 | AD152: 137.7682592 | AE152: 138.0570902 | AF152: 138.3331174 | AG152: 138.5971729 | AH152: 138.850018 | AI152: 139.0923513 | AJ152: 139.3248143 | AK152: 139.5479974 | AL152: 139.7624449 | AM152: 139.9686595 | AN152: 140.1671059 | AO152: 140.3582147 | AP152: =AP155*RTHavg_Vd+Ta -> 140.542385 | AQ152: 140.7199878 | AR152: 140.891368 | AS152: 141.0568467 | AT152: 141.2167235 | AU152: 141.3712777 | AV152: 141.5207709 | AW152: 141.6654473 | AX152: 141.8055359 | AY152: 141.9412515 | AZ152: 142.0727956 | BA152: 142.2003574 | BB152: 142.3241151 | BC152: 142.4442361 | BD152: 142.5608785 | BE152: 142.6741911 | BF152: 142.7843143 | BG152: 142.891381 | BH152: 146.7337942 | BI152: Tj Diode
H153: I Buck Diode ON | I153: =I102-I103/2 -> 0.6655387575 | J153: 0.6655387576 | K153: 0.6655387576 | L153: 0.6655387576 | M153: 0.6655387576 | N153: 0.6655387576 | O153: 0.6655387576 | P153: 0.6655387576 | Q153: 0.6655387576 | R153: 0.6655387576 | S153: 0.6655387576 | T153: 0.6655387576 | U153: 0.6655387576 | V153: 0.6655387576 | W153: 0.6655387576 | X153: 0.6655387576 | Y153: 0.6655387576 | Z153: 0.6655387576 | AA153: 0.6655387576 | AB153: 0.6655387576 | AC153: 0.6655387576 | AD153: 0.6655387575 | AE153: 0.6655387575 | AF153: 0.6655387575 | AG153: 0.6655387575 | AH153: 0.6655387575 | AI153: 0.6655387575 | AJ153: 0.6655387575 | AK153: 0.6655387575 | AL153: 0.6655387575 | AM153: 0.6655387575 | AN153: 0.6655387575 | AO153: =AO102-AO103/2 -> 0.6655387575 | AP153: 0.6655387575 | AQ153: 0.6655387575 | AR153: 0.6655387575 | AS153: 0.6655387575 | AT153: 0.6655387575 | AU153: 0.6655387575 | AV153: 0.6655387575 | AW153: 0.6655387575 | AX153: 0.6655387574 | AY153: 0.6655387574 | AZ153: 0.6655387574 | BA153: 0.6655387574 | BB153: 0.6655387574 | BC153: 0.6655387574 | BD153: 0.6655387574 | BE153: 0.6655387574 | BF153: 0.6655387574 | BG153: 0.6655387574 | BH153: 0.6655387576 | BI153: I Buck Diode ON
H154: Vf buck diode | I154: =IF(I153<I_Vd1,Vd_1+(I152-25)*vd_temp_coeff/1000,IF(I153=0,0,IF(Reset=1,0.45,FORECAST(I153, OFFSET(Vd_1:Vd_3,MATCH(I153,I_Vd1:I_Vd3,1)-1,0,2), OFFSET(I_Vd1:I_Vd3,MATCH(I153,I_Vd1:I_Vd3,1)-1,0,2))+(I152-25)*vd_temp_coeff/1000))) -> 0.3330977021 | J154: =IF(J153<I_Vd1,Vd_1+(J152-25)*vd_temp_coeff/1000,IF(J153=0,0,IF(Reset=1,0.45,FORECAST(J153, OFFSET(Vd_1:Vd_3,MATCH(J153,I_Vd1:I_Vd3,1)-1,0,2), OFFSET(I_Vd1:I_Vd3,MATCH(J153,I_Vd1:I_Vd3,1)-1,0,2))+(J152-25)*vd_temp_coeff/1000))) -> 0.3478228389 | K154: =IF(K153<I_Vd1,Vd_1+(K152-25)*vd_temp_coeff/1000,IF(K153=0,0,IF(Reset=1,0.45,FORECAST(K153, OFFSET(Vd_1:Vd_3,MATCH(K153,I_Vd1:I_Vd3,1)-1,0,2), OFFSET(I_Vd1:I_Vd3,MATCH(K153,I_Vd1:I_Vd3,1)-1,0,2))+(K152-25)*vd_temp_coeff/1000))) -> 0.3466382252 | L154: =IF(L153<I_Vd1,Vd_1+(L152-25)*vd_temp_coeff/1000,IF(L153=0,0,IF(Reset=1,0.45,FORECAST(L153, OFFSET(Vd_1:Vd_3,MATCH(L153,I_Vd1:I_Vd3,1)-1,0,2), OFFSET(I_Vd1:I_Vd3,MATCH(L153,I_Vd1:I_Vd3,1)-1,0,2))+(L152-25)*vd_temp_coeff/1000))) -> 0.3455476442 | M154: =IF(M153<I_Vd1,Vd_1+(M152-25)*vd_temp_coeff/1000,IF(M153=0,0,IF(Reset=1,0.45,FORECAST(M153, OFFSET(Vd_1:Vd_3,MATCH(M153,I_Vd1:I_Vd3,1)-1,0,2), OFFSET(I_Vd1:I_Vd3,MATCH(M153,I_Vd1:I_Vd3,1)-1,0,2))+(M152-25)*vd_temp_coeff/1000))) -> 0.3445403638 | N154: =IF(N153<I_Vd1,Vd_1+(N152-25)*vd_temp_coeff/1000,IF(N153=0,0,IF(Reset=1,0.45,FORECAST(N153, OFFSET(Vd_1:Vd_3,MATCH(N153,I_Vd1:I_Vd3,1)-1,0,2), OFFSET(I_Vd1:I_Vd3,MATCH(N153,I_Vd1:I_Vd3,1)-1,0,2))+(N152-25)*vd_temp_coeff/1000))) -> 0.3436072204 | O154: =IF(O153<I_Vd1,Vd_1+(O152-25)*vd_temp_coeff/1000,IF(O153=0,0,IF(Reset=1,0.45,FORECAST(O153, OFFSET(Vd_1:Vd_3,MATCH(O153,I_Vd1:I_Vd3,1)-1,0,2), OFFSET(I_Vd1:I_Vd3,MATCH(O153,I_Vd1:I_Vd3,1)-1,0,2))+(O152-25)*vd_temp_coeff/1000))) -> 0.3426969458 | P154: =IF(P153<I_Vd1,Vd_1+(P152-25)*vd_temp_coeff/1000,IF(P153=0,0,IF(Reset=1,0.45,FORECAST(P153, OFFSET(Vd_1:Vd_3,MATCH(P153,I_Vd1:I_Vd3,1)-1,0,2), OFFSET(I_Vd1:I_Vd3,MATCH(P153,I_Vd1:I_Vd3,1)-1,0,2))+(P152-25)*vd_temp_coeff/1000))) -> 0.3418924704 | Q154: =IF(Q153<I_Vd1,Vd_1+(Q152-25)*vd_temp_coeff/1000,IF(Q153=0,0,IF(Reset=1,0.45,FORECAST(Q153, OFFSET(Vd_1:Vd_3,MATCH(Q153,I_Vd1:I_Vd3,1)-1,0,2), OFFSET(I_Vd1:I_Vd3,MATCH(Q153,I_Vd1:I_Vd3,1)-1,0,2))+(Q152-25)*vd_temp_coeff/1000))) -> 0.3411412749 | R154: =IF(R153<I_Vd1,Vd_1+(R152-25)*vd_temp_coeff/1000,IF(R153=0,0,IF(Reset=1,0.45,FORECAST(R153, OFFSET(Vd_1:Vd_3,MATCH(R153,I_Vd1:I_Vd3,1)-1,0,2), OFFSET(I_Vd1:I_Vd3,MATCH(R153,I_Vd1:I_Vd3,1)-1,0,2))+(R152-25)*vd_temp_coeff/1000))) -> 0.340438248 | S154: =IF(S153<I_Vd1,Vd_1+(S152-25)*vd_temp_coeff/1000,IF(S153=0,0,IF(Reset=1,0.45,FORECAST(S153, OFFSET(Vd_1:Vd_3,MATCH(S153,I_Vd1:I_Vd3,1)-1,0,2), OFFSET(I_Vd1:I_Vd3,MATCH(S153,I_Vd1:I_Vd3,1)-1,0,2))+(S152-25)*vd_temp_coeff/1000))) -> 0.3397789109 | T154: =IF(T153<I_Vd1,Vd_1+(T152-25)*vd_temp_coeff/1000,IF(T153=0,0,IF(Reset=1,0.45,FORECAST(T153, OFFSET(Vd_1:Vd_3,MATCH(T153,I_Vd1:I_Vd3,1)-1,0,2), OFFSET(I_Vd1:I_Vd3,MATCH(T153,I_Vd1:I_Vd3,1)-1,0,2))+(T152-25)*vd_temp_coeff/1000))) -> 0.3391593221 | U154: =IF(U153<I_Vd1,Vd_1+(U152-25)*vd_temp_coeff/1000,IF(U153=0,0,IF(Reset=1,0.45,FORECAST(U153, OFFSET(Vd_1:Vd_3,MATCH(U153,I_Vd1:I_Vd3,1)-1,0,2), OFFSET(I_Vd1:I_Vd3,MATCH(U153,I_Vd1:I_Vd3,1)-1,0,2))+(U152-25)*vd_temp_coeff/1000))) -> 0.3385759992 | V154: =IF(V153<I_Vd1,Vd_1+(V152-25)*vd_temp_coeff/1000,IF(V153=0,0,IF(Reset=1,0.45,FORECAST(V153, OFFSET(Vd_1:Vd_3,MATCH(V153,I_Vd1:I_Vd3,1)-1,0,2), OFFSET(I_Vd1:I_Vd3,MATCH(V153,I_Vd1:I_Vd3,1)-1,0,2))+(V152-25)*vd_temp_coeff/1000))) -> 0.3380258546 | W154: =IF(W153<I_Vd1,Vd_1+(W152-25)*vd_temp_coeff/1000,IF(W153=0,0,IF(Reset=1,0.45,FORECAST(W153, OFFSET(Vd_1:Vd_3,MATCH(W153,I_Vd1:I_Vd3,1)-1,0,2), OFFSET(I_Vd1:I_Vd3,MATCH(W153,I_Vd1:I_Vd3,1)-1,0,2))+(W152-25)*vd_temp_coeff/1000))) -> 0.3375061409 | X154: =IF(X153<I_Vd1,Vd_1+(X152-25)*vd_temp_coeff/1000,IF(X153=0,0,IF(Reset=1,0.45,FORECAST(X153, OFFSET(Vd_1:Vd_3,MATCH(X153,I_Vd1:I_Vd3,1)-1,0,2), OFFSET(I_Vd1:I_Vd3,MATCH(X153,I_Vd1:I_Vd3,1)-1,0,2))+(X152-25)*vd_temp_coeff/1000))) -> 0.3370144051 | Y154: =IF(Y153<I_Vd1,Vd_1+(Y152-25)*vd_temp_coeff/1000,IF(Y153=0,0,IF(Reset=1,0.45,FORECAST(Y153, OFFSET(Vd_1:Vd_3,MATCH(Y153,I_Vd1:I_Vd3,1)-1,0,2), OFFSET(I_Vd1:I_Vd3,MATCH(Y153,I_Vd1:I_Vd3,1)-1,0,2))+(Y152-25)*vd_temp_coeff/1000))) -> 0.3365484509 | Z154: =IF(Z153<I_Vd1,Vd_1+(Z152-25)*vd_temp_coeff/1000,IF(Z153=0,0,IF(Reset=1,0.45,FORECAST(Z153, OFFSET(Vd_1:Vd_3,MATCH(Z153,I_Vd1:I_Vd3,1)-1,0,2), OFFSET(I_Vd1:I_Vd3,MATCH(Z153,I_Vd1:I_Vd3,1)-1,0,2))+(Z152-25)*vd_temp_coeff/1000))) -> 0.3361063054 | AA154: =IF(AA153<I_Vd1,Vd_1+(AA152-25)*vd_temp_coeff/1000,IF(AA153=0,0,IF(Reset=1,0.45,FORECAST(AA153, OFFSET(Vd_1:Vd_3,MATCH(AA153,I_Vd1:I_Vd3,1)-1,0,2), OFFSET(I_Vd1:I_Vd3,MATCH(AA153,I_Vd1:I_Vd3,1)-1,0,2))+(AA152-25)*vd_temp_coeff/1000))) -> 0.3356861919 | AB154: =IF(AB153<I_Vd1,Vd_1+(AB152-25)*vd_temp_coeff/1000,IF(AB153=0,0,IF(Reset=1,0.45,FORECAST(AB153, OFFSET(Vd_1:Vd_3,MATCH(AB153,I_Vd1:I_Vd3,1)-1,0,2), OFFSET(I_Vd1:I_Vd3,MATCH(AB153,I_Vd1:I_Vd3,1)-1,0,2))+(AB152-25)*vd_temp_coeff/1000))) -> 0.3352865058 | AC154: =IF(AC153<I_Vd1,Vd_1+(AC152-25)*vd_temp_coeff/1000,IF(AC153=0,0,IF(Reset=1,0.45,FORECAST(AC153, OFFSET(Vd_1:Vd_3,MATCH(AC153,I_Vd1:I_Vd3,1)-1,0,2), OFFSET(I_Vd1:I_Vd3,MATCH(AC153,I_Vd1:I_Vd3,1)-1,0,2))+(AC152-25)*vd_temp_coeff/1000))) -> 0.3349057945 | AD154: =IF(AD153<I_Vd1,Vd_1+(AD152-25)*vd_temp_coeff/1000,IF(AD153=0,0,IF(Reset=1,0.45,FORECAST(AD153, OFFSET(Vd_1:Vd_3,MATCH(AD153,I_Vd1:I_Vd3,1)-1,0,2), OFFSET(I_Vd1:I_Vd3,MATCH(AD153,I_Vd1:I_Vd3,1)-1,0,2))+(AD152-25)*vd_temp_coeff/1000))) -> 0.3345427398 | AE154: =IF(AE153<I_Vd1,Vd_1+(AE152-25)*vd_temp_coeff/1000,IF(AE153=0,0,IF(Reset=1,0.45,FORECAST(AE153, OFFSET(Vd_1:Vd_3,MATCH(AE153,I_Vd1:I_Vd3,1)-1,0,2), OFFSET(I_Vd1:I_Vd3,MATCH(AE153,I_Vd1:I_Vd3,1)-1,0,2))+(AE152-25)*vd_temp_coeff/1000))) -> 0.3341961426 | AF154: =IF(AF153<I_Vd1,Vd_1+(AF152-25)*vd_temp_coeff/1000,IF(AF153=0,0,IF(Reset=1,0.45,FORECAST(AF153, OFFSET(Vd_1:Vd_3,MATCH(AF153,I_Vd1:I_Vd3,1)-1,0,2), OFFSET(I_Vd1:I_Vd3,MATCH(AF153,I_Vd1:I_Vd3,1)-1,0,2))+(AF152-25)*vd_temp_coeff/1000))) -> 0.33386491 | AG154: =IF(AG153<I_Vd1,Vd_1+(AG152-25)*vd_temp_coeff/1000,IF(AG153=0,0,IF(Reset=1,0.45,FORECAST(AG153, OFFSET(Vd_1:Vd_3,MATCH(AG153,I_Vd1:I_Vd3,1)-1,0,2), OFFSET(I_Vd1:I_Vd3,MATCH(AG153,I_Vd1:I_Vd3,1)-1,0,2))+(AG152-25)*vd_temp_coeff/1000))) -> 0.3335480435 | AH154: =IF(AH153<I_Vd1,Vd_1+(AH152-25)*vd_temp_coeff/1000,IF(AH153=0,0,IF(Reset=1,0.45,FORECAST(AH153, OFFSET(Vd_1:Vd_3,MATCH(AH153,I_Vd1:I_Vd3,1)-1,0,2), OFFSET(I_Vd1:I_Vd3,MATCH(AH153,I_Vd1:I_Vd3,1)-1,0,2))+(AH152-25)*vd_temp_coeff/1000))) -> 0.3332446293 | AI154: =IF(AI153<I_Vd1,Vd_1+(AI152-25)*vd_temp_coeff/1000,IF(AI153=0,0,IF(Reset=1,0.45,FORECAST(AI153, OFFSET(Vd_1:Vd_3,MATCH(AI153,I_Vd1:I_Vd3,1)-1,0,2), OFFSET(I_Vd1:I_Vd3,MATCH(AI153,I_Vd1:I_Vd3,1)-1,0,2))+(AI152-25)*vd_temp_coeff/1000))) -> 0.3329538293 | AJ154: =IF(AJ153<I_Vd1,Vd_1+(AJ152-25)*vd_temp_coeff/1000,IF(AJ153=0,0,IF(Reset=1,0.45,FORECAST(AJ153, OFFSET(Vd_1:Vd_3,MATCH(AJ153,I_Vd1:I_Vd3,1)-1,0,2), OFFSET(I_Vd1:I_Vd3,MATCH(AJ153,I_Vd1:I_Vd3,1)-1,0,2))+(AJ152-25)*vd_temp_coeff/1000))) -> 0.3326748737 | AK154: =IF(AK153<I_Vd1,Vd_1+(AK152-25)*vd_temp_coeff/1000,IF(AK153=0,0,IF(Reset=1,0.45,FORECAST(AK153, OFFSET(Vd_1:Vd_3,MATCH(AK153,I_Vd1:I_Vd3,1)-1,0,2), OFFSET(I_Vd1:I_Vd3,MATCH(AK153,I_Vd1:I_Vd3,1)-1,0,2))+(AK152-25)*vd_temp_coeff/1000))) -> 0.332407054 | AL154: =IF(AL153<I_Vd1,Vd_1+(AL152-25)*vd_temp_coeff/1000,IF(AL153=0,0,IF(Reset=1,0.45,FORECAST(AL153, OFFSET(Vd_1:Vd_3,MATCH(AL153,I_Vd1:I_Vd3,1)-1,0,2), OFFSET(I_Vd1:I_Vd3,MATCH(AL153,I_Vd1:I_Vd3,1)-1,0,2))+(AL152-25)*vd_temp_coeff/1000))) -> 0.332149717 | AM154: =IF(AM153<I_Vd1,Vd_1+(AM152-25)*vd_temp_coeff/1000,IF(AM153=0,0,IF(Reset=1,0.45,FORECAST(AM153, OFFSET(Vd_1:Vd_3,MATCH(AM153,I_Vd1:I_Vd3,1)-1,0,2), OFFSET(I_Vd1:I_Vd3,MATCH(AM153,I_Vd1:I_Vd3,1)-1,0,2))+(AM152-25)*vd_temp_coeff/1000))) -> 0.3319022595 | AN154: =IF(AN153<I_Vd1,Vd_1+(AN152-25)*vd_temp_coeff/1000,IF(AN153=0,0,IF(Reset=1,0.45,FORECAST(AN153, OFFSET(Vd_1:Vd_3,MATCH(AN153,I_Vd1:I_Vd3,1)-1,0,2), OFFSET(I_Vd1:I_Vd3,MATCH(AN153,I_Vd1:I_Vd3,1)-1,0,2))+(AN152-25)*vd_temp_coeff/1000))) -> 0.3316641238 | AO154: =IF(AO153<I_Vd1,Vd_1+(AO152-25)*vd_temp_coeff/1000,IF(AO153=0,0,IF(Reset=1,0.45,FORECAST(AO153, OFFSET(Vd_1:Vd_3,MATCH(AO153,I_Vd1:I_Vd3,1)-1,0,2), OFFSET(I_Vd1:I_Vd3,MATCH(AO153,I_Vd1:I_Vd3,1)-1,0,2))+(AO152-25)*vd_temp_coeff/1000))) -> 0.3314347933 | AP154: =IF(AP153<I_Vd1,Vd_1+(AP152-25)*vd_temp_coeff/1000,IF(AP153=0,0,IF(Reset=1,0.45,FORECAST(AP153, OFFSET(Vd_1:Vd_3,MATCH(AP153,I_Vd1:I_Vd3,1)-1,0,2), OFFSET(I_Vd1:I_Vd3,MATCH(AP153,I_Vd1:I_Vd3,1)-1,0,2))+(AP152-25)*vd_temp_coeff/1000))) -> 0.3312137889 | AQ154: =IF(AQ153<I_Vd1,Vd_1+(AQ152-25)*vd_temp_coeff/1000,IF(AQ153=0,0,IF(Reset=1,0.45,FORECAST(AQ153, OFFSET(Vd_1:Vd_3,MATCH(AQ153,I_Vd1:I_Vd3,1)-1,0,2), OFFSET(I_Vd1:I_Vd3,MATCH(AQ153,I_Vd1:I_Vd3,1)-1,0,2))+(AQ152-25)*vd_temp_coeff/1000))) -> 0.3310006655 | AR154: =IF(AR153<I_Vd1,Vd_1+(AR152-25)*vd_temp_coeff/1000,IF(AR153=0,0,IF(Reset=1,0.45,FORECAST(AR153, OFFSET(Vd_1:Vd_3,MATCH(AR153,I_Vd1:I_Vd3,1)-1,0,2), OFFSET(I_Vd1:I_Vd3,MATCH(AR153,I_Vd1:I_Vd3,1)-1,0,2))+(AR152-25)*vd_temp_coeff/1000))) -> 0.3307950093 | AS154: =IF(AS153<I_Vd1,Vd_1+(AS152-25)*vd_temp_coeff/1000,IF(AS153=0,0,IF(Reset=1,0.45,FORECAST(AS153, OFFSET(Vd_1:Vd_3,MATCH(AS153,I_Vd1:I_Vd3,1)-1,0,2), OFFSET(I_Vd1:I_Vd3,MATCH(AS153,I_Vd1:I_Vd3,1)-1,0,2))+(AS152-25)*vd_temp_coeff/1000))) -> 0.3305964348 | AT154: =IF(AT153<I_Vd1,Vd_1+(AT152-25)*vd_temp_coeff/1000,IF(AT153=0,0,IF(Reset=1,0.45,FORECAST(AT153, OFFSET(Vd_1:Vd_3,MATCH(AT153,I_Vd1:I_Vd3,1)-1,0,2), OFFSET(I_Vd1:I_Vd3,MATCH(AT153,I_Vd1:I_Vd3,1)-1,0,2))+(AT152-25)*vd_temp_coeff/1000))) -> 0.3304045828 | AU154: =IF(AU153<I_Vd1,Vd_1+(AU152-25)*vd_temp_coeff/1000,IF(AU153=0,0,IF(Reset=1,0.45,FORECAST(AU153, OFFSET(Vd_1:Vd_3,MATCH(AU153,I_Vd1:I_Vd3,1)-1,0,2), OFFSET(I_Vd1:I_Vd3,MATCH(AU153,I_Vd1:I_Vd3,1)-1,0,2))+(AU152-25)*vd_temp_coeff/1000))) -> 0.3302191176 | AV154: =IF(AV153<I_Vd1,Vd_1+(AV152-25)*vd_temp_coeff/1000,IF(AV153=0,0,IF(Reset=1,0.45,FORECAST(AV153, OFFSET(Vd_1:Vd_3,MATCH(AV153,I_Vd1:I_Vd3,1)-1,0,2), OFFSET(I_Vd1:I_Vd3,MATCH(AV153,I_Vd1:I_Vd3,1)-1,0,2))+(AV152-25)*vd_temp_coeff/1000))) -> 0.3300397259 | AW154: =IF(AW153<I_Vd1,Vd_1+(AW152-25)*vd_temp_coeff/1000,IF(AW153=0,0,IF(Reset=1,0.45,FORECAST(AW153, OFFSET(Vd_1:Vd_3,MATCH(AW153,I_Vd1:I_Vd3,1)-1,0,2), OFFSET(I_Vd1:I_Vd3,MATCH(AW153,I_Vd1:I_Vd3,1)-1,0,2))+(AW152-25)*vd_temp_coeff/1000))) -> 0.3298661142 | AX154: =IF(AX153<I_Vd1,Vd_1+(AX152-25)*vd_temp_coeff/1000,IF(AX153=0,0,IF(Reset=1,0.45,FORECAST(AX153, OFFSET(Vd_1:Vd_3,MATCH(AX153,I_Vd1:I_Vd3,1)-1,0,2), OFFSET(I_Vd1:I_Vd3,MATCH(AX153,I_Vd1:I_Vd3,1)-1,0,2))+(AX152-25)*vd_temp_coeff/1000))) -> 0.3296980078 | AY154: =IF(AY153<I_Vd1,Vd_1+(AY152-25)*vd_temp_coeff/1000,IF(AY153=0,0,IF(Reset=1,0.45,FORECAST(AY153, OFFSET(Vd_1:Vd_3,MATCH(AY153,I_Vd1:I_Vd3,1)-1,0,2), OFFSET(I_Vd1:I_Vd3,MATCH(AY153,I_Vd1:I_Vd3,1)-1,0,2))+(AY152-25)*vd_temp_coeff/1000))) -> 0.3295351491 | AZ154: =IF(AZ153<I_Vd1,Vd_1+(AZ152-25)*vd_temp_coeff/1000,IF(AZ153=0,0,IF(Reset=1,0.45,FORECAST(AZ153, OFFSET(Vd_1:Vd_3,MATCH(AZ153,I_Vd1:I_Vd3,1)-1,0,2), OFFSET(I_Vd1:I_Vd3,MATCH(AZ153,I_Vd1:I_Vd3,1)-1,0,2))+(AZ152-25)*vd_temp_coeff/1000))) -> 0.3293772962 | BA154: =IF(BA153<I_Vd1,Vd_1+(BA152-25)*vd_temp_coeff/1000,IF(BA153=0,0,IF(Reset=1,0.45,FORECAST(BA153, OFFSET(Vd_1:Vd_3,MATCH(BA153,I_Vd1:I_Vd3,1)-1,0,2), OFFSET(I_Vd1:I_Vd3,MATCH(BA153,I_Vd1:I_Vd3,1)-1,0,2))+(BA152-25)*vd_temp_coeff/1000))) -> 0.329224222 | BB154: =IF(BB153<I_Vd1,Vd_1+(BB152-25)*vd_temp_coeff/1000,IF(BB153=0,0,IF(Reset=1,0.45,FORECAST(BB153, OFFSET(Vd_1:Vd_3,MATCH(BB153,I_Vd1:I_Vd3,1)-1,0,2), OFFSET(I_Vd1:I_Vd3,MATCH(BB153,I_Vd1:I_Vd3,1)-1,0,2))+(BB152-25)*vd_temp_coeff/1000))) -> 0.3290757128 | BC154: =IF(BC153<I_Vd1,Vd_1+(BC152-25)*vd_temp_coeff/1000,IF(BC153=0,0,IF(Reset=1,0.45,FORECAST(BC153, OFFSET(Vd_1:Vd_3,MATCH(BC153,I_Vd1:I_Vd3,1)-1,0,2), OFFSET(I_Vd1:I_Vd3,MATCH(BC153,I_Vd1:I_Vd3,1)-1,0,2))+(BC152-25)*vd_temp_coeff/1000))) -> 0.3289315675 | BD154: =IF(BD153<I_Vd1,Vd_1+(BD152-25)*vd_temp_coeff/1000,IF(BD153=0,0,IF(Reset=1,0.45,FORECAST(BD153, OFFSET(Vd_1:Vd_3,MATCH(BD153,I_Vd1:I_Vd3,1)-1,0,2), OFFSET(I_Vd1:I_Vd3,MATCH(BD153,I_Vd1:I_Vd3,1)-1,0,2))+(BD152-25)*vd_temp_coeff/1000))) -> 0.3287915967 | BE154: =IF(BE153<I_Vd1,Vd_1+(BE152-25)*vd_temp_coeff/1000,IF(BE153=0,0,IF(Reset=1,0.45,FORECAST(BE153, OFFSET(Vd_1:Vd_3,MATCH(BE153,I_Vd1:I_Vd3,1)-1,0,2), OFFSET(I_Vd1:I_Vd3,MATCH(BE153,I_Vd1:I_Vd3,1)-1,0,2))+(BE152-25)*vd_temp_coeff/1000))) -> 0.3286556216 | BF154: =IF(BF153<I_Vd1,Vd_1+(BF152-25)*vd_temp_coeff/1000,IF(BF153=0,0,IF(Reset=1,0.45,FORECAST(BF153, OFFSET(Vd_1:Vd_3,MATCH(BF153,I_Vd1:I_Vd3,1)-1,0,2), OFFSET(I_Vd1:I_Vd3,MATCH(BF153,I_Vd1:I_Vd3,1)-1,0,2))+(BF152-25)*vd_temp_coeff/1000))) -> 0.3285234737 | BG154: =IF(BG153<I_Vd1,Vd_1+(BG152-25)*vd_temp_coeff/1000,IF(BG153=0,0,IF(Reset=1,0.45,FORECAST(BG153, OFFSET(Vd_1:Vd_3,MATCH(BG153,I_Vd1:I_Vd3,1)-1,0,2), OFFSET(I_Vd1:I_Vd3,MATCH(BG153,I_Vd1:I_Vd3,1)-1,0,2))+(BG152-25)*vd_temp_coeff/1000))) -> 0.3283949936 | BH154: =IF(BH153<I_Vd1,Vd_1+(BH152-25)*vd_temp_coeff/1000,IF(BH153=0,0,IF(Reset=1,0.45,FORECAST(BH153, OFFSET(Vd_1:Vd_3,MATCH(BH153,I_Vd1:I_Vd3,1)-1,0,2), OFFSET(I_Vd1:I_Vd3,MATCH(BH153,I_Vd1:I_Vd3,1)-1,0,2))+(BH152-25)*vd_temp_coeff/1000))) -> 0.3237840979 | BI154: Vf buck diode
H155: Pdiss buck diode | I155: =I154*I106 -> 0.1164371442 | J155: 0.01417924986 | K155: 0.02240573408 | L155: 0.02997921341 | M155: 0.03697421579 | N155: 0.0434543785 | O155: 0.04977572988 | P155: 0.05536236433 | Q155: 0.06057900031 | R155: 0.06546113109 | S155: 0.07003986086 | T155: 0.07434256144 | U155: 0.07839341465 | V155: 0.08221386306 | W155: 0.08582298646 | X155: 0.08923781806 | Y155: 0.09247361128 | Z155: 0.09554406596 | AA155: 0.09846152094 | AB155: 0.1012371188 | AC155: 0.1038809471 | AD155: 0.1064021603 | AE155: 0.1088090851 | AF155: 0.1111093117 | AG155: 0.1133097736 | AH155: 0.1154168169 | AI155: 0.1174362609 | AJ155: 0.1193734523 | AK155: 0.1212333113 | AL155: 0.123020374 | AM155: 0.1247388288 | AN155: 0.1263925489 | AO155: =AO154*AO106 -> 0.1279851218 | AP155: 0.1295198748 | AQ155: 0.1309998982 | AR155: 0.1324280663 | AS155: 0.1338070556 | AT155: 0.1351393616 | AU155: 0.1364273139 | AV155: 0.1376730898 | AW155: 0.1388787265 | AX155: 0.1400461319 | AY155: 0.1411770952 | AZ155: 0.1422732957 | BA155: 0.1433363109 | BB155: 0.1443676247 | BC155: 0.1453686335 | BD155: 0.1463406533 | BE155: 0.1472849246 | BF155: 0.1482026184 | BG155: 0.1490948408 | BH155: 0.1811149517 | BI155: Pdiss buck diode
H156: Pout | I156: =I99*Iout_PreReg -> 3.560632353 | J156: 3.560632353 | K156: 3.560632353 | L156: 3.560632353 | M156: 3.560632353 | N156: 3.560632353 | O156: 3.560632353 | P156: 3.560632353 | Q156: 3.560632353 | R156: 3.560632353 | S156: 3.560632353 | T156: 3.560632353 | U156: 3.560632353 | V156: 3.560632353 | W156: 3.560632353 | X156: 3.560632353 | Y156: 3.560632353 | Z156: 3.560632353 | AA156: 3.560632353 | AB156: 3.560632353 | AC156: 3.560632353 | AD156: 3.560632353 | AE156: 3.560632353 | AF156: 3.560632353 | AG156: 3.560632353 | AH156: 3.560632353 | AI156: 3.560632353 | AJ156: 3.560632353 | AK156: 3.560632353 | AL156: 3.560632353 | AM156: 3.560632353 | AN156: 3.560632353 | AO156: =AO99*Iout_PreReg -> 3.560632353 | AP156: 3.560632353 | AQ156: 3.560632353 | AR156: 3.560632353 | AS156: 3.560632353 | AT156: 3.560632353 | AU156: 3.560632353 | AV156: 3.560632353 | AW156: 3.560632353 | AX156: 3.560632353 | AY156: 3.560632353 | AZ156: 3.560632353 | BA156: 3.560632353 | BB156: 3.560632353 | BC156: 3.560632353 | BD156: 3.560632353 | BE156: 3.560632353 | BF156: 3.560632353 | BG156: 3.560632353 | BH156: 3.560632353
H157: P loss | I157: =I88+I155+I104*dcr*10^-3 -> 0.5131284292 | J157: 0.3413115824 | K157: 0.3488194815 | L157: 0.3561435548 | M157: 0.3633215675 | N157: 0.3703857762 | O157: 0.3708703803 | P157: 0.3779881502 | Q157: 0.3850521622 | R157: 0.3920815893 | S157: 0.399093214 | T157: 0.4061017856 | U157: 0.4131203154 | V157: 0.4201603228 | W157: 0.4272320411 | X157: 0.4343445899 | Y157: 0.4415061214 | Z157: 0.448723944 | AA157: 0.4560046277 | AB157: 0.4633540945 | AC157: 0.4707776952 | AD157: 0.4782802765 | AE157: 0.4858662381 | AF157: 0.4935395831 | AG157: 0.501303961 | AH157: 0.5091627056 | AI157: 0.5171188685 | AJ157: 0.5251752477 | AK157: 0.5333344136 | AL157: 0.5415987312 | AM157: 0.5499703802 | AN157: 0.5584513728 | AO157: =AO88+AO155+AO104*dcr*10^-3 -> 0.5670435691 | AP157: 0.5757486916 | AQ157: 0.5845683369 | AR157: 0.5935039876 | AS157: 0.6025570218 | AT157: 0.6117287224 | AU157: 0.6210202849 | AV157: 0.6304328248 | AW157: 0.6399673841 | AX157: 0.6496249371 | AY157: 0.6594063962 | AZ157: 0.6693126162 | BA157: 0.679344399 | BB157: 0.6895024976 | BC157: 0.6997876199 | BD157: 0.7102004317 | BE157: 0.7207415598 | BF157: 0.7314115953 | BG157: 0.7422110953 | BH157: 1.142720067
H158: Efficiency | I158: =I156/(I156+I157) -> 0.8740406085 | J158: =J156/(J156+J157) -> 0.9125278097 | K158: 0.9107753475 | L158: 0.9090722668 | M158: 0.9074093185 | N158: 0.905778665 | O158: 0.9056670171 | P158: 0.9040303198 | Q158: 0.9024118221 | R158: 0.9008069911 | S158: 0.8992119006 | T158: 0.89762314 | U158: 0.8960377382 | V158: 0.8944531009 | W158: 0.8928669586 | X158: 0.8912773225 | Y158: 0.8896824475 | Z158: 0.8880808013 | AA158: 0.8864710379 | AB158: 0.8848519744 | AC158: 0.8832225724 | AD158: 0.8815819206 | AE158: 0.879929221 | AF158: 0.878263776 | AG158: 0.8765849777 | AH158: 0.8748922984 | AI158: 0.8731852827 | AJ158: 0.8714635394 | AK158: 0.8697267359 | AL158: 0.8679745923 | AM158: 0.8662068762 | AN158: 0.8644233985 | AO158: 0.8626240093 | AP158: 0.8608085944 | AQ158: 0.8589770724 | AR158: 0.8571293913 | AS158: 0.8552655266 | AT158: 0.8533854785 | AU158: 0.8514892702 | AV158: 0.8495769457 | AW158: 0.8476485683 | AX158: 0.8457042189 | AY158: 0.8437439949 | AZ158: 0.8417680086 | BA158: 0.8397763859 | BB158: 0.8377692657 | BC158: 0.8357467986 | BD158: 0.8337091459 | BE158: 0.8316564789 | BF158: 0.8295889781 | BG158: 0.8275068326 | BH158: 0.7570413687
R162: Minimum off time for regulation | S162: 80
L163: Vin | M163: =Vin_min -> 3.5 | N163: =Vin_max -> 18 | R163: Maximum allowed Buck duty cycle | S163: =(1/(fsw*10^3)-t_off_min*10^-9)*fsw*10^3 -> 0.84 | T163: =IF(MAX(J12:BG12)>S163,"Increase Boost Duty Cycle","OK") -> OK | W163: Lx SLEW rate | X163: 0.9
L164: Ta | M164: =Ta -> 125 | N164: =Ta -> 125 | S164: -40C | T164: 150C | U164: Ohms/C
L165: Tjmax | M165: 155 | N165: 155 | Q165: Buck Fet | R165: Vin < 5.5V | S165: =1.25*Rds_ON_min40_7V -> 0.146114375 | T165: =1.1429*Rds_ON_150_7V -> 0.3028685 | U165: =(Rds_ON_150-Rds_ON_min40)/190 -> 0.0008250217105 | X165: Pre_Reg | Y165: Adj Buck
L166: Vin | M166: 2 | N166: 18 | R166: 5V ≤ Vin ≤ 7V | S166: =1.1667*Rds_ON_min40_7V -> 0.1363773131 | T166: =1.0714*Rds_ON_150_7V -> 0.283921 | U166: =(T166-S166)/190 -> 0.0007765457208 | W166: C_Vripple | X166: =ROUNDUP(2*MAX(J23:BG23)/(8*C48*fsw),0) -> 1 | Y166: =ROUNDUP(2*MAX(J44:BG44)/(8*C114*fsw),0) -> 1
L167: 5V out | M167: 4.75 | N167: 4.75 | R167: Vin > 7V | S167: =Rds_ON_150_7V*0.4411 -> 0.1168915 | T167: =V175 -> 0.265 | U167: =(T167-S167)/190 -> 0.0007795184211 | W167: C Istep up | X167: =IF(Vin_min_transient>Vreg,ROUNDUP(L_buck*I_step^2/(2*V_transient*D_max_IC*(Vin_min_transient-Vreg)),0),ROUNDUP(L_buck*I_step^2/(2*V_transient*D_max_IC*(0.7)),0)) -> 24 | Y167: =IF(Vin_min_transient2>Vout_sync_buck,ROUNDUP(L_buck2*I_step2^2/(2*V_transient2*D_max_IC*(Vin_min_transient2-Vout_sync_buck)),0),ROUNDUP(L_buck2*I_step2^2/(2*V_transient2*D_max_IC*(0.7)),0)) -> 16
L168: Vin | M168: 0 | N168: 14 | Q168: 3V3 | U168: =(Rds_ON_3V3_150-Rds_ON_3V3_min40)/190 -> 0.0009247368421 | W168: C Istep down | X168: =ROUNDUP(L_buck*I_step^2/(2*V_transient*D_max_IC*Vreg),0) -> 8 | Y168: =ROUNDUP(L_buck2*I_step2^2/(2*V_transient2*D_max_IC*Vout_sync_buck),0) -> 10
L169: Max buck duty | M169: =(1/(fsw*10^3)-t_off_min*10^-9)*fsw*10^3 -> 0.84 | N169: =(1/(fsw*10^3)-t_off_min*10^-9)*fsw*10^3 -> 0.84 | Q169: V5CAN | U169: =(Rds_ON_V5CAN_150-Rds_ON_V5CAN_min40)/190 -> 0.001383157895 | W169: ESR =
W170: ESL = | X170: 1.8 | Y170: 2.8
W171: Co_tot_min | X171: =C57*C55 -> 25.5 | Y171: =C123*C121 -> 17
S173: A4413 Operating at Vin nom
T174: Vout | U174: Pdiss_max | V174: Rds_ON at 150 | W174: Rds_ON at -40
L175: Boost Duty Cycle Slope | S175: Fet Power Loss | T175: =IF(Topology="Buck",I99,Vreg) -> 5.35 | U175: =IF(Topology="Buck",I111,I33) -> 0.2277102814 | V175: 0.265 | X175: =J31 -> 0.5725778645
L176: Vin | M176: 3.5 | N176: 6.5 | S176: 3V3 LDO | T176: =IF(Topology="Buck",I112,I34) -> 3.3 | U176: =IF(Topology="Buck",I115,I36) -> 0 | V176: 0.503 | W176: 0.3273 | X176: =J4 -> 150.8280766
L177: Duty | M177: 0.58 | N177: 0.2 | P177: Icc | Q177: 0.01 | S177: V5A LDO | T177: =IF(Topology="Buck",I136,I57) -> 5 | U177: =IF(Topology="Buck",I139,I59) -> 0 | V177: 0.699 | W177: 0.2402
M178: m | N178: b | P178: Rds_On at 25°C | Q178: =Rds_ON_150/Rds_on_coeff_150 -> 0.229374661 | S178: V5SNR LDO | T178: =IF(Topology="Buck",I140,I60) -> 5 | U178: =IF(Topology="Buck",I143,I62) -> 0 | V178: 0.699 | W178: 0.2402
M179: =(M177-N177)/(M176-N176) -> -0.1266666667 | N179: =M177-M179*M176 -> 1.023333333 | P179: Thermal coeff at 150C | Q179: =(150+40)*(1.34655999666222-0.667409045393858)/0.828125/(Rds_ON_150*1000)+0.667409045393858/0.828125 -> 1.320409581 | S179: V5CAN LDO | T179: =IF(Topology="Buck",I144,I63) -> 5 | U179: =IF(Topology="Buck",I147,I65) -> 0 | V179: 0.503 | W179: 0.2402
S180: V5P LDO | T180: =IF(Topology="Buck",I148,I66) -> 5 | U180: =IF(Topology="Buck",I151,I68) -> 0.02625 | V180: 0.699 | W180: 0.2402
L181: Dead Time | M181: 15 | N181: ns | S181: Adj Buck Hi side | V181: 0.3
S182: Adj Buck Lo side | V182: 0.11

Sheet Control Loop1
B1: Series RC with Parallel C | E1: No feedforward C
B2: Rz | C2: =Rz -> 15.8 | D2: kΩ | E2: Cz2 | F2: 39 | G2: pF
B3: Cz | C3: =Cz -> 1.5 | D3: nF | E3: Rz2 | F3: 0 | G3: kΩ
B4: Cp | C4: =Cp -> 27 | D4: pF
E5: AVOL | F5: 60 | G5: dB
B6: Ro_EA | C6: 1300 | D6: kΩ | F6: =10^(F5/20) -> 1000 | G6: V/V
B7: Cstray | C7: 15 | D7: pF | E7: gm_EA1 | F7: 750 | G7: uA/V
E8: RFB1 | F8: =(Vreg-VFB)/VFB*RFB_2 -> 56.875 | G8: kΩ
B9: Cp +Cstray | C9: =IF(Type=RCC,Cp+Cstray,IF(Type=RCRC,Cp+Cstray,Cstray)) -> 42 | D9: pF | E9: RFB2 | F9: 10 | G9: kΩ
E10: FB Gain | F10: =RFB_2/(RFB_1+RFB_2) -> 0.1495327103
E11: VFB | F11: 0.8 | G11: V
B12: Series RC
B13: Series RC with Parallel C | E13: Ri | F13: =1/gm_POWER1 -> 0.2777777778
E14: gmPOWER1 | F14: 3.6 | G14: A/V
E15: K | F15: =Vreg/(Iout_PreReg*Ri*(1+Vreg*(m_c*(1-Vreg/Vin_nom)-0.5)/(Iout_PreReg*fsw*10^3*L_buck*10^-6))) -> 20.92677183
E16: mc | F16: =(1+Se/Sn) -> 2.07112782
B17: No feedforward C | E17: Se (Slope Comp) | F17: =0.00051*fsw+0.0275 -> 1.0475 | G17: A/us
B18: Feedforward RC | E18: Sn (Inductor) | F18: =(Vin_nom-Vreg)/L_buck -> 0.9779411765 | G18: A/us
E19: wn | F19: =PI()*fsw*10^3 -> 6283185.307
B20: Calculated | E20: Qp | F20: =1/(PI()*(m_c*(1-Vreg/Vin_nom)-0.5)) -> 0.4914085468
A21: fco1 | B21: =VLOOKUP(MIN(A35:A134),A35:H134,2,FALSE)/1000 -> 38.53528594
A22: PM1 | B22: =VLOOKUP(MIN(A35:A134),A35:H134,8,FALSE) -> 68.90665798
E23: wp | F23: =(1/(Vreg/Iout_PreReg*Number_Cout*Co*10^-6)+(m_c*(1-Vreg/Vin_nom)-0.5)/(fsw*10^3*L_buck*10^-6*Number_Cout*Co*10^-6))/(1000) -> 6.7462135 | G23: Rad
E24: wz | F24: =1/(ESR*10^-3*Co*10^-6*1000) -> 39215.68627 | G24: Rad
C32: Error Amplifier | E32: Control to Output | G32: Total System | I32: Error Amp
A33: Calculated | B33: Frequency | C33: Gain | D33: Phase | E33: Gain | F33: Phase | G33: Gain | H33: Phase | I33: ZCz | J33: ZCp | K33: ZT(s) | L33: RFB1 with or without feedforward C | M33: Tv(s) | N33: 1 + s/ωP | O33: 1 + s/ωZ | P33: fp(s) | Q33: fh(s) | R33: fp(s)fh(s) | S33: Gain | T33: Phase | U33: Freq (kHz)
A35: =ABS(G35) -> 65.46413079 | B35: 100 | C35: =20*LOG(IMABS(M35)) -> 39.0875961 | D35: =IF(180/PI()*IMARGUMENT(M35)>0,180/PI()*IMARGUMENT(M35),360+180/PI()*IMARGUMENT(M35)) -> 128.9591895 | E35: =S35 -> 26.37653469 | F35: =T35 -> -5.331718312 | G35: =C35+E35 -> 65.46413079 | H35: =D35+F35 -> 123.6274712 | I35: =IMDIV(1,COMPLEX(0,2*PI()*$B35*Cz*10^-9)) -> -1061032.95394597i | J35: =IMDIV(1,COMPLEX(0,2*PI()*$B35*Cp_Cstray*10^-12)) -> -37894034.0694988i | K35: =IMDIV(IMPRODUCT(IMDIV(IMPRODUCT(J35,IMSUM(Rz*10^3,I35)),IMSUM(J35,IMSUM(Rz*10^3,I35))),Ro_EA*10^3),IMSUM(IMDIV(IMPRODUCT(J35,IMSUM(Rz*10^3,I35)),IMSUM(J35,IMSUM(Rz*10^3,I35))),Ro_EA*10^3)) -> 504744.809133224-624216.502800865i | L35: =IF($E$1="Feedforward RC",IMDIV(IMPRODUCT(IMSUM(Rz_2*10^3,IMDIV(1,COMPLEX(0,2*PI()*$B35*Cz_2*10^-12))),RFB_1*10^3),IMSUM(IMSUM(Rz_2*10^3,IMDIV(1,COMPLEX(0,2*PI()*$B35*Cz_2*10^-12))),RFB_1*10^3)),RFB_1*10^3) -> 56875 | M35: =IMPRODUCT(-gm_EA1*10^-6,K35,IMDIV(RFB_2*10^3,IMSUM(L35,RFB_2*10^3))) -> -56.6068944822308+70.0055890991625i | N35: =COMPLEX(1,2*PI()*B35*1/(1/(Vreg/Iout_PreReg*Number_Cout*Co*10^-6)+(m_c*(1-Vreg/Vin_nom)-0.5)/(fsw*10^3*L_buck*10^-6*Number_Cout*Co*10^-6))) -> 1+0.0931364728909684i | O35: =COMPLEX(1,2*PI()*B35*(ESR*10^-3*Co*10^-6)) -> 1+0.0000160221225333079i | P35: =IMPRODUCT(K,IMDIV(O35,N35)) -> 20.7468366395703-1.93195189695228i | Q35: =IMDIV(1,IMSUM(COMPLEX(1,2*PI()*B35/(wn*Qp)),IMPRODUCT(COMPLEX(0,2*PI()*B35/wn),COMPLEX(0,2*PI()*B35/wn)))) -> 0.999999968589108-0.000203496659779234i | R35: =IMPRODUCT(P35,Q35) -> 20.7464428421358-1.93617374822509i | S35: =20*LOG(IMABS(R35)) -> 26.37653469 | T35: =180/PI()*IMARGUMENT(R35) -> -5.331718312 | U35: =B35/1000 -> 0.1
A36: =ABS(G36) -> 64.93922396 | B36: 109.7498765 | C36: =20*LOG(IMABS(M36)) -> 38.57032048 | D36: =IF(180/PI()*IMARGUMENT(M36)>0,180/PI()*IMARGUMENT(M36),360+180/PI()*IMARGUMENT(M36)) -> 126.4830049 | E36: =S36 -> 26.36890348 | F36: -5.848130491 | G36: =C36+E36 -> 64.93922396 | H36: 120.6348744 | I36: =IMDIV(1,COMPLEX(0,2*PI()*$B36*Cz*10^-9)) -> -966773.710646764i | J36: -34527632.5230987i | K36: 449709.44374472-608124.598419778i | L36: 56875 | M36: =IMPRODUCT(-gm_EA1*10^-6,K36,IMDIV(RFB_2*10^3,IMSUM(L36,RFB_2*10^3))) -> -50.4347039713705+68.2008895424051i | N36: 1+0.102217164020216i | O36: 1+0.000017584259700884i | P36: =IMPRODUCT(K,IMDIV(O36,N36)) -> 20.710419753445-2.11659239107493i | Q36: 0.999999962165469-0.000223337331911765i | R36: =IMPRODUCT(P36,Q36) -> 20.7099462557786-2.12121772088516i | S36: =20*LOG(IMABS(R36)) -> 26.36890348 | T36: =180/PI()*IMARGUMENT(R36) -> -5.848130491 | U36: =B36/1000 -> 0.1097498765
A37: 64.3791848 | B37: 120.450354 | C37: 38.01945536 | D37: 124.0903042 | E37: 26.35972944 | F37: -6.413800469 | G37: 64.3791848 | H37: 117.6765037 | I37: -880888.198732913i | J37: -31460292.8118896i | K37: 397878.097565878-587877.75987679i | L37: 56875 | M37: -44.6218427176686+65.9302160609485i | N37: 1+0.112183211324387i | O37: 1+0.0000192987033138294i | P37: 20.6667248918783-2.31805570636778i | Q37: 0.999999954428175-0.00024511244476894i | R37: 20.6661557657566-2.32312127219337i | S37: 26.35972944 | T37: -6.413800469 | U37: 0.120450354
A38: 63.78590809 | B38: 132.1941148 | C38: 37.43720316 | D38: 121.7975994 | E38: 26.34870493 | F38: -7.033185484 | G38: 63.78590809 | H38: 114.7644139 | I38: -802632.518987084i | J38: -28665447.1066816i | K38: 349790.110362673-564206.47583963i | L38: 56875 | M38: -39.2287974238512+63.2754926175287i | N38: 1+0.123120935937562i | O38: 1+0.0000211803030625446i | P38: 20.6143384866114-2.53761341283592i | Q38: 0.999999945108575-0.000269010603831979i | R38: 20.6136547101445-2.54315874918658i | S38: 26.34870493 | T38: -7.033185484 | U38: 0.1321941148
A39: 63.16150914 | B39: 145.0828778 | C39: 36.82604621 | D39: 119.6183278 | E39: 26.33546293 | F39: -7.711069744 | G39: 63.16150914 | H39: 111.9072581 | I39: -731328.85814819i | J39: -26118887.7910068i | K39: 305791.308697264-537889.352540391i | L39: 56875 | M39: -34.2943523772633+60.3240395372402i | N39: 1+0.135125075197824i | O39: 1+0.0000232453564639114i | P39: 20.5515904654925-2.77654875681386i | Q39: 0.999999933883085-0.00029523880335105i | R39: =IMPRODUCT(P39,Q39) -> 20.5507693617523-2.78261620021301i | S39: 26.33546293 | T39: -7.711069744 | U39: 0.1450828778
A40: 62.50819378 | B40: 159.2282793 | C40: 36.18862748 | D40: 117.562772 | E40: 26.3195663 | F40: -8.452563709 | G40: 62.50819378 | H40: 109.1102083 | I40: -666359.6180171i | J40: -23798557.786325i | K40: 266043.281045271-509700.207263342i | L40: 56875 | M40: -29.836629649937+57.1626400669169i | N40: 1+0.148299603216768i | O40: 1+0.0000255117500225888i | P40: 20.4765156524933-3.03612526795512i | Q40: 0.999999920361943-0.000324024219217042i | R40: 20.475530243664-3.04275991316059i | S40: 26.3195663 | T40: -8.452563709 | U40: 0.1592282793
A41: 61.82813747 | B41: 174.75284 | C41: 35.52764177 | D41: 115.6381803 | E41: 26.3004957 | F41: -9.263093985 | G41: 61.82813747 | H41: 106.3750863 | I41: -607162.066116524i | J41: -21684359.5041616i | K41: 230546.256131127-480365.422472422i | L41: 56875 | M41: -25.8556548932105+53.8727576604586i | N41: 1+0.162758631453513i | O41: 1+0.0000279991141553586i | P41: 20.3868129296892-3.31754384106178i | Q41: 0.999999904075679-0.000355616176632734i | R41: =IMPRODUCT(P41,Q41) -> 20.3856312018414-3.32479340329642i | S41: 26.3004957 | T41: -9.263093985 | U41: 0.17475284
A42: 61.12337993 | B42: 191.7910262 | C42: 34.84574421 | D42: 113.849038 | E42: 26.27763571 | F42: -10.14838052 | G42: 61.12337993 | H42: 103.7006575 | I42: -553223.461571507i | J42: -19757980.7704109i | K42: 199169.951339908-450533.991423648i | L42: 56875 | M42: -22.3368169727+50.5271766082596i | N42: 1+0.17862739709357i | O42: 1+0.0000307289932204053i | P42: 20.2798038428626-3.62188551538918i | Q42: 0.999999884458817-0.000390288309624999i | R42: 20.2783879201346-3.6298000672736i | S42: 26.27763571 | T42: -10.14838052 | U42: 0.1917910262
A43: 60.39573889 | B43: 210.4904145 | C43: 34.14547931 | D43: 112.1974383 | E43: 26.25025959 | F43: -11.11439711 | G43: 60.39573889 | H43: 101.0830412 | I43: -504076.613993246i | J43: -18002736.2140445i | K43: 171687.133694422-420760.252545097i | L43: 56875 | M43: -19.2546318161969+47.1880657059922i | N43: 1+0.196043347793431i | O43: 1+0.0000337250321242393i | P43: 20.1523933661846-3.95003690550491i | Q43: 0.999999860830238-0.000428340931100878i | R43: 20.1506985990948-3.9586684507176i | S43: 26.25025959 | T43: -11.11439711 | U43: 0.2104904145
A44: 59.64674337 | B44: 231.01297 | C44: 33.42923094 | D44: 110.6835005 | E44: 26.21751243 | F44: -12.16731034 | G44: 59.64674337 | H44: 98.51619018 | I44: -459295.83689945i | J44: -16403422.7464089i | K44: 147805.799048591-391497.617897254i | L44: 56875 | M44: -16.5763512951691+43.906274904365i | N44: 1+0.215157332186416i | O44: 1+0.0000370131811225663i | P44: 20.0010369247903-4.30259517930399i | Q44: 0.999999832369531-0.00047010363397338i | R44: 19.9990109063778-4.31199701819952i | S44: 26.21751243 | T44: -12.16731034 | U44: 0.23101297
A45: 58.87758508 | B45: 253.5364494 | C45: 32.69919167 | D45: 109.3057978 | E45: 26.17839341 | F45: -13.31339148 | G45: 58.87758508 | H45: 95.99240629 | I45: -418493.260621673i | J45: -14946187.8793455i | K45: 127197.320211658-363100.739654601i | L45: 56875 | M45: -14.2651200237374+40.7215782790207i | N45: 1+0.236134906461371i | O45: 1+0.0000406219205889874i | P45: 19.8217195427092-4.67974980445789i | Q45: 0.999999798088511-0.00051593814588351i | R45: 19.819301079039-4.68997564079173i | S45: 26.17839341 | T45: -13.31339148 | U45: 0.2535364494
A46: 58.08908564 | B46: 278.2559402 | C46: 31.95734814 | D46: 108.0617633 | E46: 26.1317375 | F46: -14.55889505 | G46: 58.08908564 | H46: 93.50286827 | I46: -381315.4727638i | J46: -13618409.7415643i | K46: 109519.261828053-335833.388691282i | L46: 56875 | M46: -12.282534036791+37.6635576102373i | N46: 1+0.259157768331174i | O46: 1+0.0000445825076983707i | P46: 19.609955119574-5.08113923789728i | Q46: 0.999999756796902-0.000566241462240508i | R46: 19.6070731986602-5.09224197180985i | S46: 26.1317375 | T46: -14.55889505 | U46: 0.2782559402
A47: 57.28167713 | B47: 305.3855509 | C47: 31.20547941 | D47: 106.9480577 | E47: 26.07619772 | F47: -15.9098977 | G47: 57.28167713 | H47: 91.03815996 | I47: -347440.457112945i | J47: -12408587.7540338i | K47: 94432.6034230463-309879.605182606i | L47: 56875 | M47: -10.5905723465099+34.7528529176755i | N47: 1+0.284425330811398i | O47: 1+0.0000489292471615465i | P47: 19.360816222342-5.50568262762737i | Q47: 0.999999707061017-0.00062144928471161i | R47: 19.3573890482734-5.51771278019111i | S47: 26.07619772 | T47: -15.9098977 | U47: 0.3053855509
A48: 56.45539393 | B48: 335.1602651 | C48: 30.44516457 | D48: 105.9608869 | E48: 26.01022937 | F48: -17.37209137 | G48: 56.45539393 | H48: 88.5887955 | I48: -316574.804489057i | J48: -11306243.0174663i | K48: 81613.7961389466-285356.191162401i | L48: 56875 | M48: -9.15294909969496+32.0025634948487i | N48: 1+0.312156449440463i | O48: 1+0.0000536997883563018i | P48: 19.0690071179997-5.95138979309173i | Q48: 0.99999964715397-0.00068203979493644i | R48: 19.0649413049022-5.96439351487187i | S48: 26.01022937 | T48: -17.37209137 | U48: 0.3351602651
A49: 55.60987496 | B49: 367.8379772 | C49: 29.67779687 | D49: 105.0962697 | E49: 25.93207809 | F49: -18.95052603 | G49: 55.60987496 | H49: 86.14574368 | I49: -288451.171374971i | J49: -10301827.5491061i | K49: 70762.4422786598-262325.174578855i | L49: 56875 | M49: -7.93597483498989+29.4196457471613i | N49: 1+0.342591317901604i | O49: 1+0.0000589354514282796i | P49: 18.72899453148-6.41515759076723i | Q49: 0.999999574995725-0.000748537796142377i | R49: 18.7241845836524-6.42917422458839i | S49: 25.93207809 | T49: -18.95052603 | U49: 0.3678379772
A50: 54.74437635 | B50: 403.7017259 | C50: 28.90460197 | D50: 104.3502554 | E50: 25.83977438 | F50: -20.64930037 | G50: 54.74437635 | H50: 83.70095507 | I50: -262825.96431476i | J50: -9386641.58267001i | K50: 61605.5106259547-240805.377932605i | L50: 56875 | M50: -6.90902922907904+27.0062106092641i | N50: 1+0.375993548465649i | O50: 1+0.0000646815851863128i | P50: 18.3352109337166-6.89256744405979i | Q50: 0.999999488080872-0.000821519258520583i | R50: 18.3295391706755-6.90762664451376i | S50: 25.83977438 | T50: -20.64930037 | U50: 0.4037017259
A51: 53.85779574 | B51: 443.0621458 | C51: 28.1266582 | D51: 103.7190971 | E51: 25.73113754 | F51: -22.47120345 | G51: 53.85779574 | H51: 81.24789369 | I51: -239477.230023748i | J51: -8552758.21513384i | K51: 53898.9702996306-220782.62444376i | L51: 56875 | M51: -6.04474433266886+24.760668161917i | N51: 1+0.412652455274404i | O51: 1+0.0000709879598921124i | P51: 17.8823428600784-7.37770713843106i | Q51: 0.999999383391636-0.000901616307715493i | R51: 17.8756799726067-7.39382560121794i | S51: 25.73113754 | T51: -22.47120345 | U51: 0.4430621458
A52: 52.94871049 | B52: 486.260158 | C52: 27.34491796 | D52: 103.1993863 | E52: 25.60379253 | F52: -24.4173173 | G52: 52.94871049 | H52: 78.78206899 | I52: -218202.732935341i | J52: -7792954.74769079i | K52: 47427.6129058696-202218.402371714i | L52: 56875 | M52: -5.31898462495734+22.6786993314072i | N52: 1+0.452885560241337i | O52: 1+0.0000779091983464639i | P52: 17.3657104250913-7.86304910683945i | Q52: 0.999999257293096-0.000989522699612979i | R52: 17.3579168618789-7.88022703155913i | S52: 25.60379253 | T52: -24.4173173 | U52: 0.486260158
A53: 52.01543219 | B53: 533.6699231 | C53: 26.56022903 | D53: 102.788155 | E53: 25.45520316 | F53: -26.48660006 | G53: 52.01543219 | H53: 76.30155499 | I53: -198818.203533298i | J53: -7100650.12618919i | K53: 42003.6877200464-185056.996470227i | L53: 56875 | M53: -4.71069394991175+20.754055678904i | N53: 1+0.497041343274499i | O53: 1+0.0000855052490057978i | P53: 16.7817325518959-8.33942554123191i | Q53: 0.999999105406985-0.00108599982881732i | R53: 16.772660924365-8.35764303951869i | S53: 25.45520316 | T53: -26.48660006 | U53: 0.5336699231
A54: 51.0560801 | B54: 585.7020818 | C54: 25.77335553 | D54: 102.4829517 | E54: 25.28272458 | F54: -28.67547981 | G54: 51.0560801 | H54: 73.80747186 | I54: -181155.74229733i | J54: -6469847.93919035i | K54: 37464.8290761-169231.205934173i | L54: 56875 | M54: -4.20166307395515+18.9792006655147i | N54: 1+0.545502260642773i | O54: 1+0.0000938419052270395i | P54: 16.1284549396438-8.7961448221125i | Q54: 0.999998922459661-0.00119188332281988i | R54: 16.1179535822644-8.81535858037704i | S54: 25.28272458 | T54: -28.67547981 | U54: 0.5857020818
A55: 50.06867489 | B55: 642.8073117 | C55: 24.9849982 | D55: 102.2818943 | E55: 25.08367669 | F55: -30.97750053 | G55: 50.06867489 | H55: 71.30439382 | I55: -165062.365437782i | J55: -5895084.4799208i | K55: 33671.6257625504-154666.822608435i | L55: 56875 | M55: -3.77625709486547+17.3458118813198i | N55: 1+0.598688057629114i | O55: 1+0.000102991375138192i | P55: 15.4060955427994-9.22129013915967i | Q55: 0.999998702099012-0.00130809027892281i | R55: 15.3940132672226-9.24143073465378i | S55: 25.08367669 | T55: -30.97750053 | U55: 0.6428073117
A56: 49.05125197 | B56: 705.4802311 | C56: 24.1958141 | D56: 102.1837073 | E56: 24.85543787 | F56: -33.38307042 | G56: 49.05125197 | H56: 68.80063685 | I56: -150398.679823232i | J56: -5371381.42225827i | K56: 30505.0757074911-141286.060599165i | L56: 56875 | M56: -3.42112998588686+15.8451656746727i | N56: 1+0.657059404163389i | O56: 1+0.000113032907070598i | P56: 14.6175389279167-9.60222600445708i | Q56: 0.999998436673906-0.00143562720653134i | R56: 14.6037308590414-9.62319632962405i | S56: 24.85543787 | T56: -33.38307042 | U56: 0.7054802311
A57: 48.00199114 | B57: 774.2636827 | C57: 23.40643567 | D57: 102.187742 | E57: 24.59555547 | F57: -35.87936581 | G57: 48.00199114 | H57: 66.30837617 | I57: -137037.675623867i | J57: -4894202.70085239i | K57: 27864.0862884473-129010.123315738i | L57: 56875 | M57: -3.1249442566483+14.4684250447557i | N57: 1+0.721121884924922i | O57: 1+0.000124053475970073i | P57: 13.7686927265003-9.9263096131002i | Q57: 0.999998116968534-0.00157559874351561i | R57: 13.7530269186645-9.94798485650658i | S57: 24.59555547 | T57: -35.87936581 | U57: 0.7742636827
A58: 46.91935539 | B58: 849.7534359 | C58: 22.61748955 | D58: 102.2939859 | E58: 24.30186584 | F58: -38.45043829 | G58: 46.91935539 | H58: 63.84354763 | I58: -124863.626213103i | J58: -4459415.22189653i | K58: 25663.1188456141-117761.076719917i | L58: 56875 | M58: -2.87810678642401+13.2068497255982i | N58: 1+0.791430378475128i | O58: 1+0.000136148536732277i | P58: 12.8686148363836-10.1817635610472i | Q58: 0.99999773188244-0.00172921722201822i | R58: 12.850979167952-10.2039930980091i | S58: 24.30186584 | T58: -38.45043829 | U58: 0.8497534359
A59: 45.80222899 | B59: 932.6033469 | C59: 21.82961528 | D59: 102.503059 | E59: 23.97261371 | F59: -41.0775559 | G59: 45.80222899 | H59: 61.42550309 | I59: -113771.085798905i | J59: -4063253.0642466i | K59: 23830.031793444-107463.175016643i | L59: 56875 | M59: -2.67252693010587+12.0519448616796i | N59: 1+0.868593863350155i | O59: 1+0.00014942285098736i | P59: 11.9293366269816-10.3586216501264i | Q59: 0.999997268045105-0.00189781316640213i | R59: 11.9096453080186-10.3812330029564i | S59: 23.97261371 | T59: -41.0775559 | U59: 0.9326033469
A60: 44.65004229 | B60: 1023.531022 | C60: 21.04348416 | D60: 102.8161979 | E60: 23.60655813 | F60: -43.73978163 | G60: 44.65004229 | H60: 59.07641629 | I60: -103663.976102782i | J60: -3702284.86081363i | K60: 22304.1463329679-98043.7614109006i | L60: 56875 | M60: -2.50139958874407+10.9955620273907i | N60: 1+0.953280692741642i | O60: 1+0.000163991394495082i | P60: 10.9653481220014-10.4496228434009i | Q60: 0.999996709351724-0.00208284681405597i | R60: 10.94354707525-10.4724275977684i | S60: 23.60655813 | T60: -43.73978163 | U60: 1.023531022
A61: 43.4628709 | B61: 1123.324033 | C61: 20.25981856 | D61: 103.2352272 | E61: 23.20305234 | F61: -46.41475824 | G61: 43.4628709 | H61: 56.82046893 | I61: -94454.7541757011i | J61: -3373384.0777036i | K61: 21034.5387500114-89433.8442597396i | L61: 56875 | M61: -2.35901369159007+10.0299638422138i | N61: 1+1.04622438345232i | O61: 1+0.000179980353009836i | P61: 9.99277075446104-10.4509140137859i | Q61: 0.999996036404049-0.0022859207585655i | R61: 9.96884118586524-10.4737152726886i | S61: 23.20305234 | T61: -46.41475824 | U61: 1.123324033
A62: 42.24149887 | B62: 1232.846739 | C62: 19.4794118 | D62: 103.762514 | E62: 22.76208707 | F62: -49.07963452 | G62: 42.24149887 | H62: 54.6828795 | I62: -86063.6541429428i | J62: -3073701.93367653i | K62: 19978.5508031993-81568.4291372204i | L62: 56875 | M62: -2.2405851368074+9.14786121165089i | N62: 1+1.14822996926765i | O62: 1+0.0001975282152413i | P62: 9.02830776049849-10.3624399144867i | Q62: 0.999995225836891-0.00250879382439113i | R62: 9.00226743262156-10.3850406052626i | S62: 22.76208707 | T62: -49.07963452 | U62: 1.232846739
A63: 40.98743981 | B63: 1353.047775 | C63: 18.70314868 | D63: 104.4009045 | E63: 22.28429112 | F63: -51.71204287 | G63: 40.98743981 | H63: 52.68886166 | I63: -78417.9963102543i | J63: -2800642.72536621i | K63: 19100.5025252834-74386.6704189788i | L63: 56875 | M63: -2.14211243274207+8.34243032736212i | N63: 1+1.26018097377338i | O63: 1+0.000216786972377373i | P63: 8.088112516128-10.1879488550572i | Q63: 0.999994249506891-0.00275339629273959i | R63: 8.06001454488458-10.2101600483447i | S63: 22.28429112 | T63: -51.71204287 | U63: 1.353047775
A64: 39.70291592 | B64: 1484.968262 | C64: 17.93202665 | D64: 105.1536358 | E64: 21.77088927 | F64: -54.2910285 | G64: 39.70291592 | H64: 50.86260734 | I64: -71451.5576471059i | J64: -2551841.34453949i | K64: 18370.5881917486-67831.8919635319i | L64: 56875 | M64: -2.0602528813176+7.60731498656433i | N64: 1+1.38304706301411i | O64: 1+0.000237923434559143i | P64: 7.18673446279088-9.93461302199836i | Q64: 0.999993073515419-0.00302184660986438i | R64: 7.1566638073046-9.95626141922682i | S64: 21.77088927 | T64: -54.2910285 | U64: 1.484968262
A65: 38.39080045 | B65: 1629.750835 | C65: 17.16717713 | D65: 106.0242195 | E65: 21.22362331 | F65: -56.79783964 | G65: 38.39080045 | H65: 49.22637989 | I65: -65103.9981944816i | J65: -2325142.79266005i | K65: 17763.9350139934-61851.5150734763i | L65: 56875 | M65: -1.99221701091515+6.93661851291324i | N65: 1+1.51789244427678i | O65: 1+0.000261120675710528i | P65: 6.3362839683979-9.61233314762388i | Q65: 0.999991657031658-0.00331646972166162i | R65: 6.30435209314273-9.63326704616178i | S65: 21.22362331 | T65: -56.79783964 | U65: 1.629750835
A66: 37.05453329 | B66: 1788.649529 | C66: 16.40988661 | D66: 107.01629 | E66: 20.64464668 | F66: -59.21651301 | G66: 37.05453329 | H66: 47.79977702 | I66: -59320.3384290213i | J66: -2118583.51532219i | K66: 17259.8044087484-56396.9228177449i | L66: 56875 | M66: -1.93567899911197+6.32488854030785i | N66: 1+1.66588508374502i | O66: 1+0.000286579619237019i | P66: 5.54590791620828-9.23284808713333i | Q66: 0.999989950875046-0.00363981719224036i | R66: 5.51224630548576-9.25294139606922i | S66: 20.64464668 | T66: -59.21651301 | U66: 1.788649529
A67: 35.69802155 | B67: 1963.04065 | C67: 15.6616163 | D67: 108.1334119 | E67: 20.03640525 | F67: -61.53422248 | G67: 35.69802155 | H67: 46.59918945 | I67: =IMDIV(1,COMPLEX(0,2*PI()*$B67*Cz*10^-9)) -> -54050.4830566909i | J67: =IMDIV(1,COMPLEX(0,2*PI()*$B67*Cp_Cstray*10^-12)) -> -1930374.39488181i | K67: =IMDIV(IMPRODUCT(IMDIV(IMPRODUCT(J67,IMSUM(Rz*10^3,I67)),IMSUM(J67,IMSUM(Rz*10^3,I67))),Ro_EA*10^3),IMSUM(IMDIV(IMPRODUCT(J67,IMSUM(Rz*10^3,I67)),IMSUM(J67,IMSUM(Rz*10^3,I67))),Ro_EA*10^3)) -> 16840.9168686704-51423.282620959i | L67: =IF($E$1="Feedforward RC",IMDIV(IMPRODUCT(IMSUM(Rz_2*10^3,IMDIV(1,COMPLEX(0,2*PI()*$B67*Cz_2*10^-12))),RFB_1*10^3),IMSUM(IMSUM(Rz_2*10^3,IMDIV(1,COMPLEX(0,2*PI()*$B67*Cz_2*10^-12))),RFB_1*10^3)),RFB_1*10^3) -> 56875 | M67: =IMPRODUCT(-gm_EA1*10^-6,K67,IMDIV(RFB_2*10^3,IMSUM(L67,RFB_2*10^3))) -> -1.88870095723407+5.76709711636924i | N67: =COMPLEX(1,2*PI()*B67*1/(1/(Vreg/Iout_PreReg*Number_Cout*Co*10^-6)+(m_c*(1-Vreg/Vin_nom)-0.5)/(fsw*10^3*L_buck*10^-6*Number_Cout*Co*10^-6))) -> 1+1.82830682286345i | O67: =COMPLEX(1,2*PI()*B67*(ESR*10^-3*Co*10^-6)) -> 1+0.000314520778328097i | P67: =IMPRODUCT(K,IMDIV(O67,N67)) -> 4.82160347594681-8.80878862765337i | Q67: =IMDIV(1,IMSUM(COMPLEX(1,2*PI()*B67/(wn*Qp)),IMPRODUCT(COMPLEX(0,2*PI()*B67/wn),COMPLEX(0,2*PI()*B67/wn)))) -> 0.999987895807851-0.00399468927923487i | R67: 4.78635674083794-8.82794281209731i | S67: 20.03640525 | T67: -61.53422248 | U67: 1.96304065
A68: 34.32553615 | B68: 2154.43469 | C68: 14.92401895 | D68: 109.3788405 | E68: 19.4015172 | F68: -63.74139335 | G68: 34.32553615 | H68: 45.63744714 | I68: -49248.7871113079i | J68: -1758885.25397529i | K68: 16492.8830973918-46889.343431658i | L68: 56875 | M68: -1.84966913241777+5.2586179549523i | N68: 1+2.00656448103516i | O68: 1+0.000345186165937001i | P68: 4.16633751933007-8.35280125016011i | Q68: 0.999985420478646-0.00438415915509659i | R68: 4.12965676605165-8.37094535709451i | S68: 19.4015172 | T68: -63.74139335 | U68: 2.15443469
A69: 32.94161285 | B69: 2364.489413 | C69: 14.19895079 | D69: 110.7552315 | E69: 18.74266206 | F69: -65.83161241 | G69: 32.94161285 | H69: 44.92361907 | I69: -44873.6605996842i | J69: -1602630.73570301i | K69: 16203.725904338-42757.2194607209i | L69: 56875 | M69: -1.81724028833697+4.79520218251076i | N69: 1+2.20220204081831i | O69: 1+0.000378841390981141i | P69: 3.58039776722793-7.87683134258373i | Q69: 0.999982438945297-0.0048115994815551i | R69: 3.54243473406261-7.89392045715819i | S69: 18.74266206 | T69: -65.83161241 | U69: 2.364489413
A70: 31.55096239 | B70: 2595.024211 | C70: 13.4884759 | D70: 112.2642999 | E70: 18.06248649 | F70: -67.80138107 | G70: 31.55096239 | H70: 44.46291881 | I70: -40887.2082689993i | J70: -1460257.43817855i | K70: 15963.479208882-38992.1691728118i | L70: 56875 | M70: -1.79029673370639+4.37295355209105i | N70: 1+2.41691402116439i | O70: 1+0.000415777958919475i | P70: 3.06188447257834-7.39161062248395i | Q70: 0.999978847691521-0.00528071156398398i | R70: 3.02278674296283-7.40762320159783i | S70: 18.06248649 | T70: -67.80138107 | U70: 2.595024211
A71: 30.15839014 | B71: 2848.035868 | C71: 12.7948599 | D71: 113.9064322 | E71: 17.36353025 | F71: -69.64976487 | G71: 30.15839014 | H71: 44.2566673 | I71: -37254.9013762495i | J71: -1330532.19200891i | K71: 15763.85227714-35562.3757003379i | L71: 56875 | M71: -1.76790866659514+3.98830381686033i | N71: 1+2.65256015453077i | O71: 1+0.000456315796633345i | P71: 2.60725549759444-6.906352829044i | Q71: 0.999974522033506-0.00579555733364393i | R71: 2.56716290623913-6.92128736793779i | S71: 17.36353025 | T71: -69.64976487 | U71: 2.848035868
A72: 28.76872256 | B72: 3125.71585 | C72: 12.12054951 | D72: 115.6802649 | E72: 16.64817306 | F72: -71.37798964 | G72: 28.76872256 | H72: 44.30227526 | I72: -33945.2786167941i | J72: -1212331.37917122i | K72: 15597.9489513129-32438.7329549775i | L72: 56875 | M72: -1.74930268612855+3.6379887426143i | N72: 1+2.91118149499359i | O72: 1+0.000500806023480077i | P72: 2.21185552255695-6.42863261348523i | Q72: 0.999969311791945-0.006360594428807i | R72: 2.17089771988831-6.44250404618418i | S72: 16.64817306 | T72: -71.37798964 | U72: 3.12571585
A73: 27.38673557 | B73: 3430.469286 | C73: 11.46813462 | D73: 117.5822519 | E73: 15.91860095 | F73: -72.98902617 | G73: 27.38673557 | H73: 44.59322568 | I73: -30929.6736215864i | J73: -1104631.20077094i | K73: 15460.0331046292-29594.6402956107i | L73: 56875 | M73: -1.73383548836963+3.31902507988158i | N73: 1+3.19501809688169i | O73: 1+0.000549633992520871i | P73: 1.87038348338112-5.96440701236252i | Q73: 0.999963036079369-0.00698071467067041i | R73: 1.82867852314144-5.97724315791732i | S73: 15.91860095 | T73: -72.98902617 | U73: 3.430469286
A74: 26.01707919 | B74: 3764.935807 | C74: 10.84029028 | D74: 119.6062535 | E74: 15.17678891 | F74: -74.48719396 | G74: 26.01707919 | H74: 45.1190595 | I74: -28181.9666627972i | J74: -1006498.80938561i | K74: 15345.3328574424-27005.8075621004i | L74: 56875 | M74: -1.72097190924588+3.02868869855332i | N74: 1+3.50652841705563i | O74: 1+0.000603222628264676i | P74: 1.57727468092701-5.51813498787153i | Q74: 0.99995547702204-0.00766128625681671i | R74: 1.53492844421531-5.5299732569053i | S74: 15.17678891 | T74: -74.48719396 | U74: 3.764935807
A75: 24.66419412 | B75: 4132.0124 | C75: 10.23969747 | D75: 121.7431927 | E75: 14.42449665 | F75: -75.87780371 | G75: 24.66419412 | H75: 45.86538898 | I75: -25678.3584172292i | J75: -917084.229186754i | K75: 15249.8772263447-24650.0715147628i | L75: 56875 | M75: -1.71026660482371+2.76449400165564i | N75: 1+3.84841060888488i | O75: 1+0.000662036089837958i | P75: 1.32699166133324-5.09295450918462i | Q75: 0.999946372198773-0.00840820002379458i | R75: 1.28409791746289-5.10383899655094i | S75: 14.42449665 | T75: -75.87780371 | U75: 4.1320124
A76: 23.33221801 | B76: 4534.878508 | C76: 9.668944243 | D76: 123.9808292 | E76: 13.66327377 | F76: -77.16684896 | G76: 23.33221801 | H76: 46.81398021 | I76: -23397.1638279639i | J76: -835612.993855857i | K76: 15170.3598593109-22507.2241618426i | L76: 56875 | M76: -1.70134876926851+2.52417467235618i | N76: 1+4.22362589236153i | O76: 1+0.000726583791309008i | P76: 1.11422977928222-4.69088469260415i | Q76: 0.99993540553465-0.00922792016117314i | R76: 1.07087069677673-4.70086371085983i | S76: 13.66327377 | T76: -77.16684896 | U76: 4.534878508
A77: 22.02488319 | B77: 4977.023564 | C77: 9.130411603 | D77: 126.3037041 | E77: 12.89447159 | F77: -78.36075017 | G77: 22.02488319 | H77: 47.94295397 | I77: -21318.6242787732i | J77: -761379.438527614i | K77: 15104.0253501575-20558.8530595795i | L77: 56875 | M77: -1.69390938506439+2.30566576369116i | N77: 1+4.63542420277129i | O77: 1+0.000797424813988901i | P77: 0.934049826224875-4.31302964394713i | Q77: 0.999922196334212-0.0101275397920737i | R77: 0.890296774380898-4.32215370121305i | S77: 12.89447159 | T77: -78.36075017 | U77: 4.977023564
A78: 20.74541125 | B78: 5462.277218 | C78: 8.626152514 | D78: 128.6932999 | E78: 12.11925873 | F78: -79.46614946 | G78: 20.74541125 | H78: 49.22715044 | I78: -19424.7364544376i | J78: -693740.587658487i | K78: 15048.5743404407-18788.1933913774i | L78: 56875 | M78: -1.68769058023634+2.10708710931336i | N78: 1+5.08737234007812i | O78: 1+0.000875172748926349i | P78: 0.781952505449921-3.95976900705643i | Q78: 0.999906286074384-0.0111148418695301i | R78: 0.737867019257692-3.96808920000581i | S78: 12.11925873 | T78: -79.46614946 | U78: 5.462277218
A79: 19.49641391 | B79: 5994.842503 | C79: 8.157775043 | D79: 131.1284376 | E79: 11.33863887 | F79: -80.48975165 | G79: 19.49641391 | H79: 50.63868591 | I79: -17699.0964046424i | J79: -632110.585880083i | K79: 15002.0842216475-17179.9914434208i | L79: 56875 | M79: -1.68247673513804+1.92672801234626i | N79: 1+5.58338486283926i | O79: 1+0.000960501011539833i | P79: 0.653909272240979-3.63092694679429i | Q79: 0.999887122500161-0.0121983658737604i | R79: 0.609544085239314-3.63849372138948i | S79: 11.33863887 | T79: -80.48975165 | U79: 5.994842503
A80: 18.27981142 | B80: 6579.332247 | C80: 7.726342581 | D80: 133.5859065 | E80: 10.55346884 | F80: -81.43820558 | G80: 18.27981142 | H80: 52.14770091 | I80: -16126.7574608077i | J80: -575955.623600275i | K80: 14962.9427595528-15720.3789703422i | L80: 56875 | M80: -1.67808703845452+1.7630331555524i | N80: 1+6.1277579942387i | O80: 1+0.0010541486744198i | P80: 0.546362326672007-3.32591618623599i | Q80: 0.99986404047307-0.0133874808320498i | R80: 0.501762404316302-3.33277841142038i | S80: 10.55346884 | T80: -81.43820558 | U80: 6.579332247
A81: 17.09677999 | B81: 7220.809018 | C81: 7.332303494 | D81: 136.0412839 | E81: 9.764476499 | F81: -82.31801914 | G81: 17.09677999 | H81: 53.7232648 | I81: -14694.1007751955i | J81: -524789.31339984i | K81: 14929.7923891187-14396.757868401i | L81: 56875 | M81: -1.67436923990116+1.61458966748423i | N81: 1+6.72520683391719i | O81: 1+0.00115692686882187i | P81: 0.456204214625423-3.04385695725862i | Q81: 0.999836238910722-0.0146924652197015i | R81: 0.411407743648034-3.05006125648416i | S81: 9.764476499 | T81: -82.31801914 | U81: 7.220809018
A82: 15.94773695 | B82: 7924.828984 | C82: 6.975459575 | D82: 138.4698713 | E82: 8.972277372 | F82: -83.13550221 | G82: 15.94773695 | H82: 55.33436914 | I82: -13388.7173609659i | J82: -478168.477177354i | K82: 14901.4832840006-13197.6945314383i | L82: 56875 | M82: -1.67119438699072+1.48011527455383i | N82: 1+7.38090619790958i | O82: 1+0.00126972581029775i | P82: 0.380745106015449-2.78367265050069i | Q82: 0.999802753021527-0.016124594336326i | R82: 0.33578441293927-2.78926293986136i | S82: 8.972277372 | T82: -83.13550221 | U82: 7.924828984
A83: 14.83236762 | B83: 8697.490026 | C83: 6.654977654 | D83: 140.8476522 | E83: 8.17738997 | F83: -83.89673154 | G83: 14.83236762 | H83: 56.95092068 | I83: -12199.300611469i | J83: -435689.307552466i | K83: 14877.0335999148-12112.8232462482i | L83: 56875 | M83: -1.66845236634559+1.35844746686896i | N83: 1+8.1005354404258i | O83: 1+0.00139352250931645i | P83: 0.31767367388663-2.54416492622338i | Q83: 0.999762420877407-0.0176962357850585i | R83: 0.272576058843392-2.54918211398828i | S83: 8.17738997 | T83: -83.89673154 | U83: 8.697490026
A84: 13.74969208 | B84: 9545.484567 | C84: 6.369442601 | D84: 143.1521728 | E84: 7.380249484 | F84: -84.6075331 | G84: 13.74969208 | H84: 58.54463968 | I84: -11115.5483678275i | J84: -396983.870279552i | K84: 14855.5955347264-11132.7579809439i | L84: 56875 | M84: -1.6660480973525+1.2485336053395i | N84: 1+8.89032764570008i | O84: 1+0.00152938923366159i | P84: 0.265015718306995-2.32407138748522i | Q84: 0.999713843173851-0.0194209537109718i | R84: 0.21980419941282-2.32855319659115i | S84: 7.380249484 | T84: -84.6075331 | U84: 9.545484567
A85: 12.69816421 | B85: 10476.15753 | C85: 6.116944335 | D85: 145.3632605 | E85: 6.581219871 | F85: -85.27347774 | G85: 12.69816421 | H85: 60.08978276 | I85: -10128.0736865647i | J85: -361716.91737731i | K85: 14836.4260478346-10249.0119261438i | L85: 56875 | M85: -1.66389824835528+1.14942189825912i | N85: 1+9.75712361598466i | O85: 1+0.00167850279590197i | P85: 0.221093284941067-2.12210886681657i | Q85: 0.999655334794637-0.0213136224760012i | R85: 0.175787254538305-2.1260897485354i | S85: 6.581219871 | T85: -85.27347774 | U85: 10.47615753
A86: 11.67579179 | B86: 11497.56995 | C86: 5.895187423 | D86: 147.463524 | E86: 5.780604371 | F86: -85.8998869 | G86: 11.67579179 | H86: 61.5636371 | I86: -9228.32353439107i | J86: -329582.983371109i | K86: 14818.8612438619-9453.92415937464i | L86: 56875 | M86: -1.6619283637976+1.0602531767523i | N86: 1+10.7084311233063i | O86: 1+0.00184215474637906i | P86: 0.184485985152045-1.93700511317208i | Q86: 0.999584866520493-0.0233905504570547i | R86: 0.139101783007884-1.94051622624394i | S86: 5.780604371 | T86: -85.8998869 | U86: 11.49756995
A87: 10.68026485 | B87: 12618.56883 | C87: 5.701610302 | D87: 149.4386128 | E87: 4.978654545 | F87: -86.49184587 | G87: 10.68026485 | H87: 62.94676696 | I87: -8408.50470592118i | J87: -300303.739497185i | K87: 14802.2935565147-8740.59281380484i | L87: 56875 | M87: -1.66007030540352+0.980253399679049i | N87: 1+11.752489938196i | O87: 1+0.00202176255999818i | P87: 0.153995474839371-1.76752130479991i | Q87: 0.999499994888192-0.0256696146461261i | R87: 0.108546885541724-1.77059053960865i | S87: 4.978654545 | T87: -86.49184587 | U87: 12.61856883
A88: 9.709079903 | B88: 13848.86371 | C88: 5.53350192 | D88: 151.2772486 | E88: 4.175577983 | F88: -87.05422255 | G88: 9.709079903 | H88: 64.22302601 | I88: -7661.51632265725i | J88: -273625.582952044i | K88: 14786.1509727807-8102.81413966123i | L88: 56875 | M88: -1.65825992218101+0.90872681940126i | N88: 1+12.8983431986397i | O88: 1+0.00221888191371808i | P88: 0.128613531119214-1.61246742884944i | Q88: 0.999397777808914-0.0281704066987108i | R88: 0.0831122139375869-1.61511946065997i | S88: 4.175577983 | T88: -87.05422255 | U88: 13.84886371
A89: 8.759650932 | B89: 15199.11083 | C89: 5.388106151 | D89: 152.9710635 | E89: 3.371544781 | F89: -87.59169011 | G89: 8.759650932 | H89: 65.37937342 | I89: -6980.88832857618i | J89: -249317.440306292i | K89: 14769.8776198972-7535.02684701681i | L89: 56875 | M89: -1.6564348732595+0.845049739852353i | N89: 1+14.1559157374128i | O89: 1+0.00243522016108046i | P89: 0.107493822840485-1.4707122017676i | Q89: 0.999274673080049-0.0309143910096711i | R89: 0.0619496826089125-1.47296856068657i | S89: 3.371544781 | T89: -87.59169011 | U89: 15.19911083
A90: 7.829400721 | B90: 16681.00537 | C90: 5.262707764 | D90: 154.5142975 | E90: 2.566692957 | F90: -88.10875252 | G90: 7.829400721 | H90: 66.40554499 | I90: -6360.7254495999i | J90: -227168.766057139i | K90: 14752.9151021003-7032.26110870333i | L90: 56875 | M90: -1.65453253481499+0.788664797237757i | N90: 1+15.5361000462343i | O90: 1+0.00267265112048962i | P90: 0.0899272554070921-1.34118887672141i | Q90: 0.999126416359476-0.0339250752805745i | R90: 0.0443487628196883-1.34306802496931i | S90: 2.566692957 | T90: -88.10875252 | U90: 16.68100537
A91: 6.915830019 | B91: 18307.3828 | C91: 5.154697128 | D91: 155.9034058 | E91: 1.761132891 | F91: -88.60977208 | G91: 6.915830019 | H91: 67.29363377 | I91: -5795.65613155139i | J91: -206987.718983978i | K91: 14734.6840254768-6590.09157833919i | L91: 56875 | M91: -1.65248792809086+0.739075691028695i | N91: 1+17.0508506213188i | O91: 1+0.00293323130533099i | P91: 0.0753206449403643-1.2228980033428i | Q91: 0.998947874499997-0.0372281938617155i | R91: 0.0297151142275953-1.22441541274121i | S91: 1.761132891 | T91: -88.60977208 | U91: 18.3073828
A92: 6.016564569 | B92: 20092.33003 | C92: 5.061613652 | D92: 157.1366271 | E92: 0.9549509171 | F92: -89.09899823 | G92: 6.016564569 | H92: 68.03762889 | I92: -5280.78601432198i | J92: -188599.5005115i | K92: 14714.5651922344-6204.59373708052i | L92: 56875 | M92: -1.65023161034405+0.695842288270713i | N92: 1+18.7132875075039i | O92: 1+0.00321921773650635i | P92: 0.0631784129801637-1.11490797133861i | Q92: 0.998732869346457-0.0408519038820424i | R92: 0.0175522443939866-1.11607619572673i | S92: 0.9549509171 | T92: -89.09899823 | U92: 20.09233003
A93: 5.129382088 | B93: 22051.3074 | C93: 4.981169926 | D93: 158.2135498 | E93: 0.1482121616 | F93: -89.58059753 | G93: 5.129382088 | H93: 68.63295231 | I93: -4811.65553926576i | J93: -171844.840688063i | K93: 14691.8799862973-5872.30281955541i | L93: 56875 | M93: -1.64768747509876+0.658576017146402i | N93: 1+20.5378099378022i | O93: 1+0.00353308749166907i | P93: 0.0530869697559952-1.0163539792464i | Q93: 0.998473966159986-0.044826993790039i | R93: 0.00744586372752395-1.01718271794422i | S93: 0.1482121616 | T93: -89.58059753 | U93: 22.0513074
A94: 4.252222279 | B94: 24201.28265 | C94: 4.91125959 | D94: 159.1347055 | E94: -0.6590373104 | F94: -90.05868419 | G94: 4.252222279 | H94: 69.07602127 | I94: -4384.20132263575i | J94: -156578.618665563i | K94: 14665.8695179109-5590.17448020716i | L94: 56875 | M94: -1.64477041322365+0.626935455724168i | N94: 1+22.5402210526688i | O94: 1+0.00387755916048575i | P94: 0.0447014566004543-0.926435917360912i | Q94: 0.998162219732253-0.0491871033774852i | R94: -0.000949394094272075-0.926932066879585i | S94: -0.6590373104 | T94: -90.05868419 | U94: 24.20128265
A95: 3.383183322 | B95: 26560.87783 | C95: 4.84995229 | D95: 159.9012056 | E95: -1.466768968 | F95: -90.53735133 | G95: 3.383183322 | H95: 69.36385427 | I95: -3994.72096049797i | J95: -142668.60573207i | K95: 14635.6721558566-5355.54624169662i | L95: 56875 | M95: -1.64138379318018+0.600622008414575i | N95: 1+24.7378647792446i | O95: 1+0.00425561639175939i | P95: 0.037734535910591-0.844415533658468i | Q95: 0.997786869966638-0.0539689535924895i | R95: -0.00792119827291882-0.844583225697684i | S95: -1.466768968 | T95: -90.53735133 | U95: 26.56087783
A96: 2.520508093 | B96: 29150.53063 | C96: 4.795478966 | D96: 160.5144323 | E96: -2.274970872 | F96: -91.02070273 | G96: 2.520508093 | H96: 69.49372953 | I96: -3639.84096027964i | J96: -129994.320009987i | K96: 14600.2991653118-5166.09861356007i | L96: 56875 | M96: -1.63741672882002+0.57937554544599i | N96: 1+27.1497760561552i | O96: 1+0.00467053373636797i | P96: 0.0319469431249259-0.769613157718308i | Q96: 0.997334977213476-0.0592125833985155i | R96: -0.013708979492452-0.769453782150292i | S96: -2.274970872 | T96: -91.02070273 | U96: 29.15053063
A97: 1.662562934 | B97: 31992.67138 | C97: 4.746210218 | D97: 160.9757839 | E97: -3.083647284 | F97: -91.51288502 | G97: 1.662562934 | H97: 69.46289892 | I97: -3316.48752119045i | J97: -118445.982899659i | K97: 14558.6083051598-5019.81458033502i | L97: 56875 | M97: -1.63274111833568+0.562969859476825i | N97: 1+29.7968457050432i | O97: 1+0.0051259050098575i | P97: 0.0271395448243312-0.701404185097546i | Q97: 0.996790985937166-0.0649615895117665i | R97: -0.0185118771108109-0.700916397174252i | S97: -3.083647284 | T97: -91.51288502 | U97: 31.99267138
A98: 0.8078111952 | B98: 35111.91734 | C98: 4.700630016 | D98: 161.286477 | E98: -3.892818821 | F98: -92.01812058 | G98: 0.8078111952 | H98: 69.26835639 | I98: -3021.85991043051i | J98: -107923.568229661i | K98: 14509.2754441536-4914.93593596934i | L98: 56875 | M98: -1.62720846102657+0.551207768519926i | N98: 1+32.702001376872i | O98: 1+0.00562567442035328i | P98: 0.0231466773315924-0.639215469011007i | Q98: 0.996136203356624-0.0712633629332781i | R98: -0.0224954006832837-0.638395180494829i | S98: -3.892818821 | T98: -92.01812058 | U98: 35.11191734
A99: 0.0452167718 | B99: 38535.28594 | C99: 4.657306396 | D99: 161.4473989 | E99: -4.702523168 | F99: -92.54074089 | G99: -0.0452167718 | H99: 68.90665798 | I99: =IMDIV(1,COMPLEX(0,2*PI()*$B99*Cz*10^-9)) -> -2753.40620458276i | J99: =IMDIV(1,COMPLEX(0,2*PI()*$B99*Cp_Cstray*10^-12)) -> -98335.9358779554i | K99: =IMDIV(IMPRODUCT(IMDIV(IMPRODUCT(J99,IMSUM(Rz*10^3,I99)),IMSUM(J99,IMSUM(Rz*10^3,I99))),Ro_EA*10^3),IMSUM(IMDIV(IMPRODUCT(J99,IMSUM(Rz*10^3,I99)),IMSUM(J99,IMSUM(Rz*10^3,I99))),Ro_EA*10^3)) -> 14450.7645607871-4849.91469443155i | L99: =IF($E$1="Feedforward RC",IMDIV(IMPRODUCT(IMSUM(Rz_2*10^3,IMDIV(1,COMPLEX(0,2*PI()*$B99*Cz_2*10^-12))),RFB_1*10^3),IMSUM(IMSUM(Rz_2*10^3,IMDIV(1,COMPLEX(0,2*PI()*$B99*Cz_2*10^-12))),RFB_1*10^3)),RFB_1*10^3) -> 56875 | M99: =IMPRODUCT(-gm_EA1*10^-6,K99,IMDIV(RFB_2*10^3,IMSUM(L99,RFB_2*10^3))) -> -1.62064649279855+0.543915666665221i | N99: =COMPLEX(1,2*PI()*B99*1/(1/(Vreg/Iout_PreReg*Number_Cout*Co*10^-6)+(m_c*(1-Vreg/Vin_nom)-0.5)/(fsw*10^3*L_buck*10^-6*Number_Cout*Co*10^-6))) -> 1+35.8904061402693i | O99: =COMPLEX(1,2*PI()*B99*(ESR*10^-3*Co*10^-6)) -> 1+0.00617417073140361i | P99: =IMPRODUCT(K,IMDIV(O99,N99)) -> 0.0198305692949829-0.582521723884722i | Q99: =IMDIV(1,IMSUM(COMPLEX(1,2*PI()*B99/(wn*Qp)),IMPRODUCT(COMPLEX(0,2*PI()*B99/wn),COMPLEX(0,2*PI()*B99/wn)))) -> 0.995348177544348-0.0781693136343511i | R99: -0.0257970023257396-0.581362078239417i | S99: -4.702523168 | T99: -92.54074089 | U99: 38.53528594
A100: =ABS(G100) -> 0.8979559933 | B100: 42292.42874 | C100: =20*LOG(IMABS(M100)) -> 4.61486036 | D100: =IF(180/PI()*IMARGUMENT(M100)>0,180/PI()*IMARGUMENT(M100),360+180/PI()*IMARGUMENT(M100)) -> 161.4590107 | E100: =S100 -> -5.512816354 | F100: -93.08522057 | G100: =C100+E100 -> -0.8979559933 | H100: 68.37379015 | I100: -2508.80118607312i | J100: -89600.0423597544i | K100: 14381.2969339285-4823.35755520815i | L100: 56875 | M100: -1.61285573090787+0.540937295911195i | N100: 1+39.3896764319899i | O100: 1+0.00677614475565881i | P100: 0.0170766787020367-0.530842013451114i | Q100: 0.994399957124691-0.0857350713636646i | R100: =IMPRODUCT(P100,Q100) -> -0.0285307293369252-0.529333345682946i | S100: =20*LOG(IMABS(R100)) -> -5.512816354 | T100: =180/PI()*IMARGUMENT(R100) -> -93.08522057 | U100: =B100/1000 -> 42.29242874
A101: 1.751840827 | B101: 46415.88834 | C101: 4.571933826 | D101: 161.3212955 | E101: -6.323774653 | F101: -93.65621214 | G101: -1.751840827 | H101: 67.66508341 | I101: -2285.9262032482i | J101: -81640.2215445782i | K101: 14298.8209527527-4833.96118454146i | L101: 56875 | M101: -1.60360608815918+0.542126487985959i | N101: 1+43.2301212572798i | O101: 1+0.00743681050413779i | P101: 0.0147897991056306-0.483736372181013i | Q101: 0.993259212248962-0.0940206460810716i | R101: -0.0307911020363935-0.481866154436004i | S101: -6.323774653 | T101: -93.65621214 | U101: 46.41588834
A102: 2.608339931 | B102: 50941.38015 | C102: 4.527157229 | D102: 161.0337511 | E102: -7.135497159 | F102: -94.2585813 | G102: -2.608339931 | H102: 66.7751698 | I102: -2082.85081962824i | J102: -74387.5292724372i | K102: 14200.9848192156-4880.435952314i | L102: 56875 | M102: -1.59263381150082+0.547338611474468i | N102: 1+47.4450047119799i | O102: 1+0.00816189034749703i | P102: 0.0128908114102806-0.440802591138882i | Q102: 0.991887194073403-0.103090525687868i | R102: -0.0326563400860091-0.43855536578986i | S102: -7.135497159 | T102: -94.2585813 | U102: 50.94138015
A103: 3.468991802 | B103: 55908.10183 | C103: 4.479117308 | D103: 160.5954269 | E103: -7.948109109 | F103: -94.89744301 | G103: -3.468991802 | H103: 65.69798388 | I103: -1897.81609338988i | J103: -67779.1461924958i | K103: 14085.1155207226-4961.41583946085i | L103: 56875 | M103: -1.57963912381936+0.556420467976918i | N103: 1+52.07083410021i | O103: 1+0.00895766458046765i | P103: 0.0113139764185673-0.401673186344148i | Q103: 0.990237507744843-0.113013681151144i | R103: -0.0341910415970556-0.399030489096879i | S103: -7.948109109 | T103: -94.89744301 | U103: 55.90810183
A104: 4.335440414 | B104: 61359.07273 | C104: 4.426325653 | D104: 160.0050064 | E104: -8.761766067 | F104: -95.57819777 | G104: -4.335440414 | H104: 64.42680866 | I104: -1729.21934225345i | J104: -61757.833651909i | K104: 13948.2088268857-5075.35264577807i | L104: 56875 | M104: -1.56428510208064+0.569198427563896i | N104: 1+57.1476761431743i | O104: 1+0.00983102581876414i | P104: 0.0100046796473651-0.366012558288398i | Q104: 0.988254672258412-0.123863439374913i | R104: -0.0354484029180546-0.362952834864731i | S104: -8.761766067 | T104: -95.57819777 | U104: 61.35907273
A105: 5.20947031 | B105: 67341.50658 | C105: 4.36718877 | D105: 159.2609377 | E105: -9.57665908 | F105: -96.30656823 | G105: -5.20947031 | H105: 62.95436945 | I105: -1575.60026181586i | J105: -56271.4379219951i | K105: 13786.9366729178-5220.39357780757i | L105: 56875 | M105: -1.54619850537396+0.585464700314868i | N105: 1+62.7195040179308i | O105: 1+0.010789538699624i | P105: 0.0089175539210916-0.333514344519467i | Q105: 0.985872440031286-0.135717171749987i | R105: -0.0364720529329357-0.33001286581394i | S105: -9.57665908 | T105: -96.30656823 | U105: 67.34150658
A106: 6.093040218 | B106: 73907.22034 | C106: 4.299980742 | D106: 158.3616145 | E106: -10.39302096 | F106: -97.08863546 | G106: -6.093040218 | H106: 61.27297904 | I106: -1435.62827709243i | J106: -51272.4384675868i | K106: 13597.6800019414-5394.24302115197i | L106: 56875 | M106: -1.52497345816165+0.604961834147885i | N106: 1+68.8345782320156i | O106: 1+0.0118415054030769i | P106: 0.00801491718684643-0.30389896248585i | Q106: 0.983011850442581-0.148655730665534i | R106: -0.0372975637418458-0.29992774483143i | S106: -10.39302096 | T106: -97.08863546 | U106: 73.90722034
A107: 6.988313824 | B107: 81113.08308 | C107: 4.222820031 | D107: 157.3056125 | E107: -11.21113385 | F107: -97.93087425 | G107: -6.988313824 | H107: 59.37473823 | I107: -1308.09101771287i | J107: -46717.5363468882i | K107: 13376.5966738967-5594.01205839354i | L107: 56875 | M107: -1.50017906623141+0.62736583832451i | N107: 1+75.5458646328724i | O107: 1+0.0129960375614562i | P107: 0.00726547312642345-0.276911336624219i | Q107: 0.979578996097878-0.162762546829631i | R107: -0.0379536895235972-0.272439076048453i | S107: -11.21113385 | T107: -97.93087425 | U107: 81.11308308
A108: 7.897685851 | B108: 89021.50854 | C108: 4.133652458 | D108: 156.0919806 | E108: -12.03133831 | F108: -98.84018654 | G108: -7.897685851 | H108: 57.2517941 | I108: -1191.88381694917i | J108: -42567.2791767563i | K108: 13119.7349349156-5816.06329137115i | L108: 56875 | M108: -1.47137214223353+0.65226878034069i | N108: 1+82.911493172683i | O108: 1+0.0142631351799996i | P108: 0.00664323070207097-0.252318801577655i | Q108: 0.975462489861576-0.178122276546332i | R108: -0.0384633769910871-0.247310833802104i | S108: -12.03133831 | T108: -98.84018654 | U108: 89.02150854
A109: 8.82380102 | B109: 97700.99573 | C109: 4.030243008 | D109: 154.7205876 | E109: -12.85404403 | F109: -99.82393167 | G109: -8.82380102 | H109: 54.89665589 | I109: -1086.00014362086i | J109: -38785.7194150307i | K109: 12823.2024665585-6055.86380500785i | L109: 56875 | M109: -1.43811616447385+0.679162295888732i | N109: 1+90.9952614022055i | O109: 1+0.0156537732521101i | P109: 0.00612660598599043-0.229909172155578i | Q109: 0.970530637088378-0.194818859890937i | R109: -0.0388445839870461-0.224327473717806i | S109: -12.85404403 | T109: -99.82393167 | U109: 97.70099573
A110: 9.76956303 | B110: 107226.7222 | C110: 3.910179549 | D110: 153.1925147 | E110: -13.67974258 | F110: -100.8899516 | G110: -9.76956303 | H110: 52.30256312 | I110: -989.52288400339i | J110: -35340.1030001212i | K110: 12483.3982742828-6307.86536050809i | L110: 56875 | M110: -1.40000728309714+0.707424152580347i | N110: 1+99.8671870546391i | O110: 1+0.0171799968194992i | P110: 0.00569767568450916-0.209488969964845i | Q110: 0.964628344124881-0.212932818265716i | R110: -0.0391109373092877-0.203292220350682i | S110: -13.67974258 | T110: -100.8899516 | U110: 107.2267222
A111: 10.73813042 | B111: 117681.1952 | C111: 3.770891852 | D111: 151.5104824 | E111: -14.50902227 | F111: -102.0465887 | G111: -10.73813042 | H111: 49.46389377 | I111: -901.616398227882i | J111: -32200.5856509959i | K111: 12097.3086330665-6565.43725107654i | L111: 56875 | M111: -1.35670751025045+0.736310719746902i | N111: 1+109.60411450573i | O111: 1+0.0188550253005749i | P111: 0.00534155684982472-0.190881796386429i | Q111: 0.957573835167992-0.232537584264194i | R111: -0.0392722567332554-0.184025526555577i | S111: -14.50902227 | T111: -102.0465887 | U111: 117.6811952
A112: 11.73289636 | B112: 129154.9665 | C112: 3.6096891 | D112: 149.679284 | E112: -15.34258546 | F112: -103.3026932 | G112: -11.73289636 | H112: 46.37659081 | I112: -821.519282368244i | J112: -29339.9743702944i | K112: 11662.8582445513-6820.88206021154i | L112: 56875 | M112: -1.30798410219267+0.76495873572466i | N112: 1+120.290380362998i | O112: 1+0.0206933669907212i | P112: 0.00504589152592909-0.173926841617646i | Q112: 0.949155310139865-0.253694620811558i | R112: -0.0393349693969153-0.166363700834571i | S112: -15.34258546 | T112: -103.3026932 | U112: 129.1549665
A113: 12.75745025 | B113: 141747.4163 | C113: 3.423818236 | D113: 147.7061913 | E113: -16.18126848 | F113: -104.667616 | G113: -12.75745025 | H113: 43.03857531 | I113: -748.537773524664i | J113: -26733.4919115951i | K113: 11179.2937220328-7065.56543177067i | L113: 56875 | M113: -1.25375256695695+0.792399861506992i | N113: 1+132.018543949081i | O113: 1+0.0227109447262115i | P113: 0.00480041863068762-0.158477519752727i | Q113: 0.939127762506115-0.276447055298021i | R113: -0.039302437258845-0.150157700127549i | S113: -16.18126848 | T113: -104.667616 | U113: 141.7474163
A114: 13.81552054 | B114: 155567.6144 | C114: 3.21054382 | D114: 145.6012874 | E114: -17.02606436 | F114: -106.1511821 | G114: -13.81552054 | H114: 39.45010532 | I114: -682.039740781286i | J114: -24358.5621707603i | K114: 10647.5599970983-7290.18509084423i | L114: 56875 | M114: -1.19411887817925+0.817590851309634i | N114: 1+144.890189006307i | O114: 1+0.024925233800198i | P114: 0.00459661834424415-0.144400220264689i | Q114: 0.927210294546084-0.300811536643485i | R114: -0.0391752203005962-0.135272086591637i | S114: -17.02606436 | T114: -106.1511821 | U114: 155.5676144
A115: 14.91090079 | B115: 170735.2647 | C115: 2.967247502 | D115: 143.3776715 | E115: -17.87814829 | F115: -107.7636375 | G115: -14.91090079 | H115: 35.61403399 | I115: -621.449209990571i | J115: -22194.6146425204i | K115: 10070.6146707164-7485.18944472432i | L115: 56875 | M115: -1.12941472942614+0.839460498473756i | N115: 1+159.016803566477i | O115: 1+0.0273554133253431i | P115: 0.004427416749536-0.13157316672858i | Q115: 0.913084424454999-0.326768032856246i | R115: -0.0389512995939925-0.121584147477968i | S115: -17.87814829 | T115: -107.7636375 | U115: 170.7352647
A116: 16.04736399 | B116: 187381.7423 | C116: 2.691541887 | D116: 141.0514865 | E116: -18.73890588 | F116: -109.5155641 | G116: -16.04736399 | H116: 31.53592238 | I116: -566.241374960799i | J116: -20222.9062486i | K116: 9453.61599311216-7641.33174653991i | L116: 56875 | M116: -1.06021861604996+0.856971784658682i | N116: 1+174.520745606861i | O116: 1+0.0300225323541165i | P116: 0.00428694053383727-0.119885374152854i | Q116: 0.896394077936755-0.35424734443767i | R116: -0.0386262873235663-0.108983176721724i | S116: -18.73890588 | T116: -109.5155641 | U116: 187.3817423
A117: 17.2285734 | B117: 205651.2308 | C117: 2.38139012 | D117: 138.6417248 | E117: -19.60996352 | F117: -111.4177506 | G117: -17.2285734 | H117: 27.22397418 | I117: -515.938051835909i | J117: -18426.3589941396i | K117: 8803.92300290981-7750.31498126453i | L117: 56875 | M117: -0.987355850793625+0.869194203506303i | N117: 1+191.536302856457i | O117: 1+0.032949692195618i | P117: 0.00417031327850729-0.109235696835231i | Q117: 0.876748193085047-0.383116243895103i | R117: -0.0381936552392481-0.0973699145798023i | S117: -19.60996352 | T117: -111.4177506 | U117: 205.6512308
A118: 18.45800071 | B118: 225701.972 | C118: 2.035219584 | D118: 136.1697949 | E118: -20.4932203 | F118: -113.4810123 | G118: -18.45800071 | H118: 22.68878255 | I118: -470.103537295661i | J118: -16789.4120462737i | K118: 8130.8656631007-7805.45227991736i | L118: 56875 | M118: -0.911872784646808+0.875377825785125i | N118: 1+210.210855932066i | O118: 1+0.036162246508067i | P118: 0.0040734862943764-0.0995319592129659i | Q118: 0.853727125195804-0.413160400940151i | R118: -0.0376450184311653-0.0866561366346001i | S118: -20.4932203 | T118: -113.4810123 | U118: 225.701972
A119: 19.73886333 | B119: 247707.6356 | C119: 1.652016735 | D119: 133.6588584 | E119: -21.39088006 | F119: -115.7159473 | G119: -19.73886333 | H119: 17.94291112 | I119: -428.340834701956i | J119: -15297.8869536413i | K119: 7445.27836304404-7802.24753349001i | L119: 56875 | M119: -0.834984489313351+0.875018414970843i | N119: 1+230.706154878681i | O119: 1+0.0396880209000591i | P119: 0.00399309815019722-0.0906901627219252i | Q119: 0.826894280634747-0.444065659563167i | R119: -0.0369705169025914-0.0767643746283623i | S119: -21.39088006 | T119: -115.7159473 | U119: 247.7076356
A120: 21.07409068 | B120: 271858.8243 | C120: 1.23139095 | D120: 131.1329853 | E120: -22.30548163 | F120: -118.1326187 | G120: -21.07409068 | H120: 13.00036655 | I120: -390.288215503843i | J120: -13938.864839423i | K120: 6758.835350681-7738.8002127357i | L120: 56875 | M120: -0.758000226244599+0.867902827596528i | N120: 1+253.199720171002i | O120: 1+0.0435575539426775i | P120: 0.00392635803131743-0.0826337622051303i | Q120: 0.795814567954635-0.475398837532589i | R120: -0.0361593415729352-0.0676277378115669i | S120: -22.30548163 | T120: -118.1326187 | U120: 271.8588243
A121: 22.4663259 | B121: 298364.724 | C121: 0.773598578 | D121: 128.6162038 | E121: -23.23992447 | F121: -120.7401545 | G121: -22.4663259 | H121: 7.876049327 | I121: -355.616086117878i | J121: -12700.5745042099i | K121: 6083.2694895352-7615.96155413793i | L121: 56875 | M121: -0.682235830602079+0.85412652943603i | N121: 1+277.886380310862i | O121: 1+0.0478043616799858i | P121: 0.003870948888642-0.0752930059139749i | Q121: 0.760081221735857-0.506590042435326i | R121: -0.0352004515004877-0.0591897840850213i | S121: -23.23992447 | T121: -120.7401545 | U121: 298.364724
A122: 23.91796248 | B122: 327454.9163 | C122: 0.2795237008 | D122: 126.1315429 | E122: -24.19748618 | F122: -123.5462575 | G122: -23.91796248 | H122: 2.585285391 | I122: -324.024133146168i | J122: -11572.290469506i | K122: 5429.58274028546-7437.21251228995i | L122: 56875 | M122: -0.608925167134819+0.834079907920369i | N122: 1+304.979959338505i | O122: 1+0.0524652279289679i | P122: 0.0038249470219922-0.0686043336205004i | Q122: 0.71935217824443-0.536919515833977i | R122: -0.0340835216196921-0.0514043655300532i | S122: -24.19748618 | T122: -123.5462575 | U122: 327.4549163
A123: 25.43120903 | B123: 359381.3664 | C123: -0.2493818163 | D123: 123.7001638 | E123: -25.18182722 | F123: -126.5566274 | G123: -25.43120903 | H123: -2.856463603 | I123: -295.238722205396i | J123: -10544.2400787641i | K123: 4807.3587290931-7208.28568813051i | L123: 56875 | M123: -0.539143035038479+0.808405871566039i | N123: 1+334.715128874132i | O123: 1+0.0575805228833541i | P123: 0.00378675531045018-0.0625098278052588i | Q123: 0.67339627926566-0.565513117262947i | R123: -0.0328001406451753-0.0442353452615231i | S123: -25.18182722 | T123: -126.5566274 | U123: 359.3813664
A124: 27.00816858 | B124: 394420.6059 | C124: -0.8111908932 | D124: 121.3406636 | E124: -26.19697769 | F124: -129.774303 | G124: -27.00816858 | H124: -8.43363942 | I124: -269.010527836683i | J124: -9607.51885131012i | K124: 4224.26399598256-6936.59878839003i | L124: 56875 | M124: -0.473749233194306+0.77793631271664i | N124: 1+367.349440731209i | O124: 1+0.0631945527809259i | P124: 0.00375504777464297-0.056956713301715i | Q124: 0.622147979389475-0.591351502077885i | R124: -0.0313452425788835-0.037656057235237i | S124: -26.19697769 | T124: -129.774303 | U124: 394.4206059
A125: 28.6509153 | B125: 432876.1281 | C125: -1.403614687 | D125: 119.068601 | E125: -27.24730061 | F125: -133.1989469 | G125: -28.6509153 | H125: -14.13034587 | I125: -245.112373967755i | J125: -8754.01335599122i | K125: 3685.78318736244-6630.593683218i | L125: 56875 | M125: -0.413358862134106+0.743617983164636i | N125: 1+403.165557707066i | O125: 1+0.0693559436629519i | P125: 0.00372872354836129-0.0518969011651076i | Q125: 0.565766853866441-0.613298433197711i | R125: -0.0297186999814829-0.031648366807638i | S125: -27.24730061 | T125: -133.1989469 | U125: 432.8761281
A126: 30.36155032 | B126: 475081.0162 | C126: -2.024123973 | D126: 116.8962613 | E126: -28.33742634 | F126: -136.8261087 | G126: -30.36155032 | H126: -19.92984736 | I126: -223.33726622247i | J126: -7976.33093651678i | K126: 3195.1877672897-6299.07782203348i | L126: 56875 | M126: -0.358338815023144+0.706438634246746i | N126: 1+442.473701872824i | O126: 1+0.0761180625496955i | P126: 0.00370686866290995-0.0472865728919597i | Q126: 0.504695187517989-0.630152961275991i | R126: -0.0279269351615295-0.0262012000377845i | S126: -28.33742634 | T126: -136.8261087 | U126: 475.0810162
A127: 32.14222093 | B127: 521400.8288 | C127: -2.670066595 | D127: 114.832645 | E127: -29.47215433 | F127: -140.6465212 | G127: -32.14222093 | H127: -25.81387623 | I127: -203.496599034564i | J127: -7267.73567980584i | K127: 2753.70032473885-5950.64695357529i | L127: 56875 | M127: -0.30882620464361+0.667362275167323i | N127: 1+485.614341568569i | O127: 1+0.0835394796800144i | P127: 0.00368872431837168-0.0430858014471855i | Q127: 0.439703763719598-0.640727853452841i | R127: -0.0259843271094384-0.0213084574736923i | S127: -29.47215433 | T127: -140.6465212 | U127: 521.4008288
A128: 33.99509239 | B128: 572236.7659 | C128: -3.338771899 | D128: 112.8836406 | E128: -30.65632049 | F128: -144.6454962 | G128: -33.99509239 | H128: -31.7618556 | I128: -185.418522036463i | J128: -6622.09007273078i | K128: 2360.79473617406-5593.23858599376i | L128: 56875 | M128: -0.264762026486811+0.62727909375631i | N128: 1+532.961140377226i | O128: 1+0.0916844758187478i | P128: 0.0036736605408653-0.0392582058603697i | Q128: 0.371913594914488-0.643952306967165i | R128: -0.0239141279329282-0.0169663226517276i | S128: -30.65632049 | T128: -144.6454962 | U128: 572.2367659
A129: 35.92226888 | B129: 628029.1442 | C129: -4.027636489 | D129: 111.052331 | E129: -31.89463239 | F129: -148.8024971 | G129: -35.92226888 | H129: -37.75016607 | I129: -168.946451573604i | J129: -6033.8018419144i | K129: 2014.56739444319-5233.83434433484i | L129: 56875 | M129: -0.225932791900171+0.58697207600017i | N129: 1+584.924193619778i | O129: 1+0.100623599025954i | P129: 0.00366115431165783-0.0357706364328239i | Q129: 0.302781018348433-0.638990863571176i | R129: -0.0217485818338862-0.0131701138813756i | S129: -31.89463239 | T129: -148.8024971 | U129: 628.0291442
A130: 37.92566754 | B130: 689261.2104 | C130: -4.734189069 | D130: 109.3393794 | E130: -33.19147847 | F130: -153.0909656 | G130: -37.92566754 | H130: -43.75158625 | I130: -153.937714451737i | J130: -5497.77551613344i | K130: 1712.12264428697-4878.30381399953i | L130: 56875 | M130: -0.192013754499473+0.547099493158826i | N130: 1+641.953580404728i | O130: 1+0.110434275710453i | P130: 0.0036507714091002-0.0325928878540518i | Q130: 0.23403658843881-0.625363618810514i | R130: -0.0195279922101393-0.00991098790057587i | S130: -33.19147847 | T130: -153.0909656 | U130: 689.2612104
A131: 40.00685719 | B131: 756463.3276 | C131: -5.456134791 | D131: 107.7434493 | E131: -34.5507224 | F131: -157.4784685 | G131: -40.00685719 | H131: -49.7350192 | I131: -140.262312169964i | J131: -5009.36829178441i | K131: =IMDIV(IMPRODUCT(IMDIV(IMPRODUCT(J131,IMSUM(Rz*10^3,I131)),IMSUM(J131,IMSUM(Rz*10^3,I131))),Ro_EA*10^3),IMSUM(IMDIV(IMPRODUCT(J131,IMSUM(Rz*10^3,I131)),IMSUM(J131,IMSUM(Rz*10^3,I131))),Ro_EA*10^3)) -> 1449.93059367978-4531.36613370709i | L131: 56875 | M131: =IMPRODUCT(-gm_EA1*10^-6,K131,IMDIV(RFB_2*10^3,IMSUM(L131,RFB_2*10^3))) -> -0.162609038543527+0.508190594434441i | N131: 1+704.543261998035i | O131: 1+0.121201481260341i | P131: =IMPRODUCT(K,IMDIV(O131,N131)) -> 0.00364215133315961-0.0296974377618456i | Q131: 0.167575162382129-0.603047286309069i | R131: -0.0172986251515389-0.00717294243306331i | S131: -34.5507224 | T131: -157.4784685 | U131: 756.4633276
A132: 42.16687871 | B132: 830217.5681 | C132: -6.191381407 | D132: 106.2616208 | E132: -35.9754973 | F132: -161.9272026 | G132: -42.16687871 | H132: -55.66558182 | I132: -127.801794935915i | J132: -4564.34981913983i | K132: 1224.13211786249-4196.63852856351i | L132: 56875 | M132: -0.137285844993924+0.470651049932357i | N132: 1+773.235360279294i | O132: 1+0.133018476059154i | P132: 0.00363499478927891-0.0270592084959754i | Q132: 0.105304813297407-0.57253490163548i | R132: -0.0151095588269552-0.00493062628276958i | S132: -35.9754973 | T132: -161.9272026 | U132: 830.2175681
A133: 44.40606749 | B133: 911162.7561 | C133: -6.938050442 | D133: 104.8897773 | E133: -37.46801705 | F133: -166.3948645 | G133: -44.40606749 | H133: -61.5050872 | I133: -116.448235710315i | J133: -4158.86556108267i | K133: 1030.78040793975-3876.74103375234i | L133: 56875 | M133: -0.115601541077355+0.434774695374095i | N133: 1+848.624853342105i | O133: 1+0.14598761326269i | P133: 0.00362905329710262-0.0246553499928144i | Q133: 0.0489733784858914-0.534835922839201i | R133: -0.0130088398656659-0.00314840385608874i | S133: -37.46801705 | T133: -166.3948645 | U133: 911.1627561
A134: 46.72389868 | B134: 1000000 | C134: -7.694476919 | D134: 103.6229479 | E134: -39.02942176 | F134: -170.8358465 | G134: -46.72389868 | H134: -67.21289861 | I134: -106.103295394597i | J134: -3789.40340694988i | K134: 866.019088242145-3573.43105348184i | L134: 56875 | M134: -0.0971236360645397+0.400758622820394i | N134: 1+931.364728909684i | O134: 1+0.160221225333079i | P134: 0.00362412056335328-0.0224650419486876i | Q134: -0.491408546790877i | R134: -0.0110395136176007-0.00178092381943237i | S134: -39.02942176 | T134: -170.8358465 | U134: 1000
A136: =ABS(G136) -> 0.3871068149 | B136: =fc*1000 -> 40000 | C136: =20*LOG(IMABS(M136)) -> 4.640257074 | D136: =IF(180/PI()*IMARGUMENT(M136)>0,180/PI()*IMARGUMENT(M136),360+180/PI()*IMARGUMENT(M136)) -> 161.4699768 | E136: =S136 -> -5.027363889 | F136: =T136 -> -92.75618712 | G136: =C136+E136 -> -0.3871068149 | H136: =D136+F136 -> 68.71378971 | I136: -2652.58238486492i | J136: -94735.0851737473i | K136: =IMDIV(IMPRODUCT(IMDIV(IMPRODUCT(J136,IMSUM(Rz*10^3,I136)),IMSUM(J136,IMSUM(Rz*10^3,I136))),Ro_EA*10^3),IMSUM(IMDIV(IMPRODUCT(J136,IMSUM(Rz*10^3,I136)),IMSUM(J136,IMSUM(Rz*10^3,I136))),Ro_EA*10^3)) -> 14424.3336151352-4834.72057706054i | L136: =IF($E$1="Feedforward RC",IMDIV(IMPRODUCT(IMSUM(Rz_2*10^3,IMDIV(1,COMPLEX(0,2*PI()*$B136*Cz_2*10^-12))),RFB_1*10^3),IMSUM(IMSUM(Rz_2*10^3,IMDIV(1,COMPLEX(0,2*PI()*$B136*Cz_2*10^-12))),RFB_1*10^3)),RFB_1*10^3) -> 56875 | M136: =IMPRODUCT(-gm_EA1*10^-6,K136,IMDIV(RFB_2*10^3,IMSUM(L136,RFB_2*10^3))) -> -1.6176822745946+0.542211653502117i | N136: =COMPLEX(1,2*PI()*B136*1/(1/(Vreg/Iout_PreReg*Number_Cout*Co*10^-6)+(m_c*(1-Vreg/Vin_nom)-0.5)/(fsw*10^3*L_buck*10^-6*Number_Cout*Co*10^-6))) -> 1+37.2545891563874i | O136: =COMPLEX(1,2*PI()*B136*(ESR*10^-3*Co*10^-6)) -> 1+0.00640884901332318i | P136: =IMPRODUCT(K,IMDIV(O136,N136)) -> 0.0186645153302321-0.561222329467898i | Q136: =IMDIV(1,IMSUM(COMPLEX(1,2*PI()*B136/(wn*Qp)),IMPRODUCT(COMPLEX(0,2*PI()*B136/wn),COMPLEX(0,2*PI()*B136/wn)))) -> 0.99498887687695-0.0811205598145681i | R136: =IMPRODUCT(P136,Q136) -> -0.0269556844009916-0.559924051207785i | S136: =20*LOG(IMABS(R136)) -> -5.027363889 | T136: =180/PI()*IMARGUMENT(R136) -> -92.75618712 | U136: 40
C137: =20*LOG(IMABS((-gm_EA1*10^-6*Rz*10^3))) -> 21.47436701

Sheet Control Loop2
B1: Series RC with Parallel C | E1: No feedforward C
B2: Rz | C2: =Rz_adj -> 10 | D2: kΩ | E2: Cz2 | F2: 39 | G2: pF
B3: Cz | C3: =Cz_adj -> 1.5 | D3: nF | E3: Rz2 | F3: 0 | G3: kΩ
B4: Cp | C4: =Cp_adj -> 39 | D4: pF
E5: AVOL2 | F5: 60 | G5: dB
B6: Ro_EA | C6: 1300 | D6: kΩ | F6: =10^(F5/20) -> 1000 | G6: V/V
B7: Cstray | C7: 15 | D7: pF | E7: gm_EA2 | F7: 750 | G7: uA/V
B9: Cp +Cstray | C9: =IF(Type=RCC,C4+Cstray_adj,IF(Type=RCRC,C4+Cstray_adj,Cstray_adj)) -> 54 | D9: pF
E10: FB gain | F10: =RFB2_adj/(RFB1_adj+RFB2_adj) -> 0.2424242424
E11: VFB | F11: 0.8 | G11: V
B12: Series RC
B13: Series RC with Parallel C | E13: Ri | F13: =1/gm_POWER2 -> 0.4
E14: gmPOWER2 | F14: 2.5 | G14: A/V
E15: K | F15: =Vout_sync_buck/(Iout_sync_buck*Ri_adj*(1+Vout_sync_buck*(mc_adj*(1-Vout_sync_buck/Vreg)-0.5)/(Iout_sync_buck*fsw*10^3*L_buck2*10^-6))) -> 8.655667505
E16: mc | F16: =(1+Se_adj/Sn_adj) -> 2.443243902
B17: No feedforward C | E17: Se (Slope Comp) | F17: =0.000306*fsw+0.0175 -> 0.6295 | G17: A/us
B18: Feedforward RC | E18: Sn (Inductor) | F18: =(Vreg-Vout_sync_buck)/L_buck2 -> 0.4361702128 | G18: A/us
E19: wn | F19: =PI()*fsw*10^3 -> 6283185.307
B20: Calculated | E20: Qp | F20: =1/(PI()*(mc_adj*(1-Vout_sync_buck/Vreg)-0.5)) -> 0.72974006
A21: fco2 | B21: =VLOOKUP(MIN(A34:A133),A34:H133,2,FALSE)/1000 -> 42.29242874
A22: PM2 | B22: =VLOOKUP(MIN(A34:A133),A34:H133,8,FALSE) -> 68.91564567
E23: wp | F23: =(1/(Vout_sync_buck/Iout_sync_buck*Number_Cout2*Co_2*10^-6)+(mc_adj*(1-Vout_sync_buck/Vreg)-0.5)/(fsw*10^3*L_buck2*10^-6*Number_Cout2*Co_2*10^-6))/(1000) -> 16.98988824 | G23: Rad
E24: wz | F24: =1/(ESR_2*10^-3*Co_2*10^-6*1000) -> 39215.68627 | G24: Rad
C32: Error Amplifier | E32: Control to Output | G32: Total System | I32: Error Amp
A33: Calculated | B33: Frequency | C33: Gain | D33: Phase | E33: Gain | F33: Phase | G33: Gain | H33: Phase | I33: ZCz | J33: ZCp | K33: ZT(s) | L33: RFB1 with or without feedforward C | M33: Tv(s) | N33: 1 + s/ωP | O33: 1 + s/ωZ | P33: fp(s) | Q33: fh(s) | R33: fp(s)fh(s) | S33: Gain | T33: Phase | U33: Freq (kHz)
A34: =ABS(G34) -> 62.00529012 | B34: 100 | C34: =20*LOG(IMABS(M34)) -> 43.26521443 | D34: =IF(180/PI()*IMARGUMENT(M34)>0,180/PI()*IMARGUMENT(M34),360+180/PI()*IMARGUMENT(M34)) -> 128.554234 | E34: =S34 -> 18.74007569 | F34: =T34 -> -2.124875747 | G34: =C34+E34 -> 62.00529012 | H34: =D34+F34 -> 126.4293583 | I34: =IMDIV(1,COMPLEX(0,2*PI()*$B34*Cz_adj*10^-9)) -> -1061032.95394597i | J34: =IMDIV(1,COMPLEX(0,2*PI()*$B34*Cp_Cstray_adj*10^-12)) -> -29473137.6096102i | K34: =IMDIV(IMPRODUCT(IMDIV(IMPRODUCT(J34,IMSUM(Rz_adj*10^3,I34)),IMSUM(J34,IMSUM(Rz_adj*10^3,I34))),Ro_adj*10^3),IMSUM(IMDIV(IMPRODUCT(J34,IMSUM(Rz_adj*10^3,I34)),IMSUM(J34,IMSUM(Rz_adj*10^3,I34))),Ro_adj*10^3)) -> 499216.904698936-626383.731923794i | L34: =IF($E$1="Feedforward RC",IMDIV(IMPRODUCT(IMSUM(Rz_2_adj*10^3,IMDIV(1,COMPLEX(0,2*PI()*$B34*Cz_2_adj*10^-12))),RFB1_adj*10^3),IMSUM(IMSUM(Rz_2_adj*10^3,IMDIV(1,COMPLEX(0,2*PI()*$B34*Cz_2_adj*10^-12))),RFB1_adj*10^3)),RFB1_adj*10^3) -> 4750 | M34: =IMPRODUCT(-gm_EA2*10^-6,K34,IMDIV(RFB2_adj*10^3,IMSUM(L34,RFB2_adj*10^3))) -> -90.7667099452609+113.887951258871i | N34: =COMPLEX(1,2*PI()*B34*1/(1/(Vout_sync_buck/Iout_sync_buck*Number_Cout2*Co_2*10^-6)+(mc_adj*(1-Vout_sync_buck/Vreg)-0.5)/(fsw*10^3*L_buck2*10^-6*Number_Cout2*Co_2*10^-6))) -> 1+0.0369819107640694i | O34: =COMPLEX(1,2*PI()*B34*(ESR_2*10^-3*Co_2*10^-6)) -> 1+0.0000160221225333079i | P34: =IMPRODUCT(K_adj,IMDIV(O34,N34)) -> 8.643850769425-0.319527435647443i | Q34: =IMDIV(1,IMSUM(COMPLEX(1,2*PI()*B34/(wn_adj*Qp_adj)),IMPRODUCT(COMPLEX(0,2*PI()*B34/wn_adj),COMPLEX(0,2*PI()*B34/wn_adj)))) -> 0.999999991221382-0.000137035097289799i | R34: =IMPRODUCT(P34,Q34) -> 8.6438069070707-0.32071194377358i | S34: =20*LOG(IMABS(R34)) -> 18.74007569 | T34: =180/PI()*IMARGUMENT(R34) -> -2.124875747 | U34: =B34/1000 -> 0.1
A35: =ABS(G35) -> 61.4853993 | B35: 109.7498765 | C35: =20*LOG(IMABS(M35)) -> 42.74653646 | D35: =IF(180/PI()*IMARGUMENT(M35)>0,180/PI()*IMARGUMENT(M35),360+180/PI()*IMARGUMENT(M35)) -> 126.050444 | E35: =S35 -> 18.73886283 | F35: -2.331832093 | G35: =C35+E35 -> 61.4853993 | H35: 123.7186119 | I35: -966773.710646764i | J35: -26854825.2957435i | K35: 444052.156403247-610055.152979744i | L35: 4750 | M35: -80.7367557096811+110.91911872359i | N35: 1+0.0405876014091407i | O35: 1+0.000017584259700884i | P35: 8.64143817964829-0.350583044932011i | Q35: 0.999999989426123-0.000150395850142341i | R35: =IMPRODUCT(P35,Q35) -> 8.6413853620397-0.35188267766647i | S35: =20*LOG(IMABS(R35)) -> 18.73886283 | T35: =180/PI()*IMARGUMENT(R35) -> -2.331832093 | U35: =B35/1000 -> 0.1097498765
A36: 60.93172241 | B36: 120.450354 | C36: 42.19432002 | D36: 123.6278451 | E36: 18.7374024 | F36: -2.55889686 | G36: 60.93172241 | H36: 121.0689482 | I36: -880888.198732913i | J36: -24469116.6314697i | K36: 392128.781595321-589579.431902792i | L36: 4750 | M36: -71.2961421082401+107.196260345962i | N36: 1+0.0445448424408559i | O36: 1+0.0000192987033138294i | P36: 8.63853399494124-0.384635092565482i | Q36: 0.999999987263729-0.000165059259916157i | R36: 8.63847039733481-0.386060957694631i | S36: 18.7374024 | T36: -2.55889686 | U36: 0.120450354
A37: 60.34641903 | B37: 132.1941148 | C37: 41.61077508 | D37: 121.3025518 | E37: 18.73564394 | F37: -2.80800826 | G37: 60.34641903 | H37: 118.4945435 | I37: -802632.518987084i | J37: -22295347.7496412i | K37: 343981.260189018-565693.026509666i | L37: 4750 | M37: -62.5420473070941+102.853277547212i | N37: 1+0.0488879095879222i | O37: 1+0.0000211803030625446i | P37: 8.63503848593525-0.421965651127677i | Q37: 0.999999984659116-0.000181152334056826i | R37: 8.63496191340353-0.423529902030749i | S37: 18.73564394 | T37: -2.80800826 | U37: 0.1321941148
A38: 59.73191288 | B38: 145.0828778 | C38: 40.99838605 | D38: 119.0875692 | E38: 18.73352682 | F38: -3.081286324 | G38: 59.73191288 | H38: 116.0062829 | I38: -731328.85814819i | J38: -20314690.5041164i | K38: 299949.766101221-539178.613501405i | L38: 4750 | M38: -54.5363211093128+98.0324751820735i | N38: 1+0.0536544204202807i | O38: 1+0.0000232453564639114i | P38: 8.63083188853843-0.46288107864783i | Q38: 0.99999998152185-0.000198814463080333i | R38: 8.6307397016035-0.4645970043025i | S38: 18.73352682 | T38: -3.081286324 | U38: 0.1450828778
A39: 59.09077057 | B39: 159.2282793 | C39: 40.35979246 | D39: 116.9927188 | E39: 18.73097812 | F39: -3.381048351 | G39: 59.09077057 | H39: 113.6116705 | I39: -666359.6180171i | J39: -18509989.3893639i | K39: 260190.085105597-510812.260689249i | L39: 4750 | M39: -47.3072882010176+92.8749564889542i | N39: 1+0.0588856601745034i | O39: 1+0.0000255117500225888i | P39: 8.62577046772509-0.507713367280072i | Q39: 0.999999977743003-0.000218198627907549i | R39: 8.62565949338123-0.5095954872606i | S39: 18.73097812 | T39: -3.381048351 | U39: 0.1592282793
A40: 58.42559062 | B40: 174.75284 | C40: 39.69768044 | D40: 115.0247623 | E40: 18.72791018 | F40: -3.709825133 | G40: 58.42559062 | H40: 111.3149372 | I40: -607162.066116524i | J40: -16865612.9476812i | K40: 224696.991294812-481321.044159048i | L40: 4750 | M40: -40.8539984172385+87.5129171198268i | N40: 1+0.064626939346761i | O40: 1+0.0000279991141553586i | P40: 8.61968184783507-0.556821304945864i | Q40: 0.999999973191368-0.000239472724912466i | R40: 8.61954827323801-0.558885468718226i | S40: 18.72791018 | T40: -3.709825133 | U40: 0.17475284
A41: 57.7389094 | B41: 191.7910262 | C41: 39.01469169 | D41: 113.1876748 | E41: 18.72421771 | F41: -4.070377828 | G41: 57.7389094 | H41: 109.117297 | I41: -553223.461571507i | J41: -15367318.3769863i | K41: 193335.418508998-451353.451416891i | L41: 4750 | M41: -35.1518942743632+82.06426389398i | N41: 1+0.070927986150665i | O41: 1+0.0000307289932204053i | P41: 8.61235949080263-0.610591334740132i | Q41: 0.999999967708909-0.000262821020161166i | R41: 8.61219873646265-0.612854824130839i | S41: 18.72421771 | T41: -4.070377828 | U41: 0.1917910262
A42: 57.03312717 | B42: 210.4904145 | C42: 38.3133529 | D42: 111.4830149 | E42: 18.71977428 | F42: -4.465715225 | G42: 57.03312717 | H42: 107.0172997 | I42: -504076.613993246i | J42: -14002128.1664791i | K42: 165874.179146246-421462.489852252i | L42: 4750 | M42: -30.1589416629538+76.6295436095002i | N42: 1+0.0778433772392634i | O42: 1+0.0000337250321242393i | P42: 8.60355619305954-0.669437957670888i | Q42: 0.999999961105266-0.000288445745437522i | R42: 8.60336276189579-0.671919590812797i | S42: 18.71977428 | T42: -4.465715225 | U42: 0.2104904145
A43: 56.3104543 | B43: 231.01297 | C43: 37.59602612 | D43: 109.9103403 | E43: 18.71442818 | F43: -4.899111083 | G43: 56.3104543 | H43: 105.0112292 | I43: -459295.83689945i | J43: -12758217.6916514i | K43: 142018.170091329-392099.751808253i | L43: 4750 | M43: -25.8214854711507+71.2908639651368i | N43: 1+0.0854330104219019i | O43: 1+0.0000370131811225663i | P43: 8.59297646468862-0.733803474073819i | Q43: 0.999999953151153-0.00031656884987974i | R43: 8.59274376279576-0.736523708372442i | S43: 18.71442818 | T43: -4.899111083 | U43: 0.23101297
A44: 55.57287569 | B44: 253.5364494 | C44: 36.86487818 | D44: 108.467632 | E44: 18.70799751 | F44: -5.374121045 | G44: 55.57287569 | H44: 103.0935109 | I44: -418493.260621673i | J44: -11624812.7950465i | K44: 121436.458902021-363617.851755495i | L44: 4750 | M44: -22.0793561640038+66.1123366828172i | N44: 1+0.0937626234703926i | O44: 1+0.0000406219205889874i | P44: 8.58026765371364-0.804156795452327i | Q44: 0.999999943570398-0.000347433922399695i | R44: 8.57998777818288-0.807137826120248i | S44: 18.70799751 | T44: -5.374121045 | U44: 0.2535364494
A45: 54.82213039 | B45: 278.2559402 | C45: 36.12186603 | D45: 107.1516947 | E45: 18.70026436 | F45: -5.894598456 | G45: 54.82213039 | H45: 101.2570963 | I45: -381315.4727638i | J45: -10592096.4656611i | K45: 103784.987604487-336278.501938076i | L45: 4750 | M45: -18.8699977462703+61.1415458069228i | N45: 1+0.102904363508146i | O45: 1+0.0000445825076983707i | P45: 8.56500968857803-0.880990979081074i | Q45: 0.999999932030343-0.000381308301536298i | R45: 8.56467317724336-0.884256828497413i | S45: 18.70026436 | T45: -5.894598456 | U45: 0.2782559402
A46: 54.05970269 | B46: 305.3855509 | C46: 35.36873468 | D46: 105.9585189 | E46: 18.69096801 | F46: -6.464708166 | G46: 54.05970269 | H46: 99.49381071 | I46: -347440.457112945i | J46: -9651123.80869288i | K46: 88723.6663520908-310263.792191223i | L46: 4750 | M46: -16.1315757003801+56.4115985802223i | N46: 1+0.112937411914039i | O46: 1+0.0000489292471615465i | P46: 8.54670333916805-0.964819040228033i | Q46: 0.999999918130307-0.000418485391017663i | R46: 8.54629887677876-0.968395631727398i | S46: 18.69096801 | T46: -6.464708166 | U46: 0.3053855509
A47: 53.28682118 | B47: 335.1602651 | C47: 34.6070243 | D47: 104.8835924 | E47: 18.67979687 | F47: -7.088937099 | G47: 53.28682118 | H47: 97.79465528 | I47: -316574.804489057i | J47: -8793744.56914045i | K47: 75928.3031976535-285688.756410083i | L47: 4750 | M47: -13.805146035937+51.9434102563786i | N47: 1+0.123948670153639i | O47: 1+0.0000536997883563018i | P47: 8.52475694995399-1.05616747981672i | Q47: 0.999999901387662-0.000459287201088637i | R47: 8.52427102510209-1.06008268742508i | S47: 18.67979687 | T47: -7.088937099 | U47: 0.3351602651
A48: 52.50446268 | B48: 367.8379772 | C48: 33.83808344 | D48: 103.9221616 | E48: 18.66637924 | F48: -7.77209996 | G48: 52.50446268 | H48: 96.15006166 | I48: -288451.171374971i | J48: -8012532.53819368i | K48: 65098.170871017-262613.869556042i | L48: 4750 | M48: -11.8360310674576+47.7479762829166i | N48: 1+0.136033512478124i | O48: 1+0.0000589354514282796i | P48: 8.49847168988483-1.15556682899914i | Q48: 0.999999881221086-0.000504067137615851i | R48: 8.49788819718177-1.159850492041i | S48: 18.66637924 | T48: -7.77209996 | U48: 0.3678379772
A49: 51.71335853 | B49: 403.7017259 | C49: 33.06308603 | D49: 103.0694432 | E49: 18.6502725 | F49: -8.519338001 | G49: 51.71335853 | H49: 94.55010524 | I49: -262825.96431476i | J49: -7300721.23096557i | K49: 55960.1286026961-241056.621480488i | L49: 4750 | M49: -10.1745688368538+43.8284766328159i | N49: 1+0.149296612010426i | O49: 1+0.0000646815851863128i | P49: 8.46702550825942-1.26353835989394i | Q49: 0.999999856930373-0.000553213063128651i | R49: 8.46632529095878-1.26822224823699i | S49: 18.6502725 | T49: -8.519338001 | U49: 0.4037017259
A50: 50.91400119 | B50: 443.0621458 | C50: 32.28305034 | D50: 102.3207916 | E50: 18.63095085 | F50: -9.33610818 | G50: 50.91400119 | H50: 92.98468344 | I50: -239477.230023748i | J50: -6652145.27843747i | K50: 48270.1824442307-221001.711215812i | L50: 4750 | M50: -8.77639680804193+40.1821293119658i | N50: 1+0.163852847373738i | O50: 1+0.0000709879598921124i | P50: 8.42945620368617-1.38057595260854i | Q50: 0.999999827672121-0.000607150656309873i | R50: 8.42861653346015-1.38569366456322i | S50: 18.63095085 | T50: -9.33610818 | U50: 0.4430621458
A51: 50.10664986 | B51: 486.260158 | C51: 31.49885845 | D51: 101.6718284 | E51: 18.60779141 | F51: -10.22815937 | G51: 50.10664986 | H51: 91.44366907 | I51: -218202.732935341i | J51: -6061187.02598171i | K51: 41813.2520788643-202409.690277411i | L51: 4750 | M51: -7.6024094688844+36.8017618686201i | N51: 1+0.1798282977152i | O51: 1+0.0000779091983464639i | P51: 8.38464432796176-1.50712196032834i | Q51: 0.999999792430448-0.000666347099035621i | R51: 8.38363832121874-1.51270873092009i | S51: 18.60779141 | T51: -10.22815937 | U51: 0.486260158
A52: 49.29133426 | B52: 533.6699231 | C52: 30.71127551 | D52: 101.1185405 | E52: 18.58005876 | F52: -11.20149157 | G52: 49.29133426 | H52: 89.91704897 | I52: -198818.203533298i | J52: -5522727.87592494i | K52: 36401.7659801046-185224.069374859i | L52: 4750 | M52: -6.61850290547355+33.6771035227016i | N52: 1+0.19736133474315i | O52: 1+0.0000855052490057978i | P52: 8.33129708384971-1.64353580760501i | Q52: 0.999999749981725-0.000731315122900567i | R52: 8.33009305828205-1.64962820024182i | S52: 18.58005876 | T52: -11.20149157 | U52: 0.5336699231
A53: 48.46785618 | B53: 585.7020818 | C53: 29.92096807 | D53: 100.6573523 | E53: 18.54688811 | F53: -12.26229316 | G53: 48.46785618 | H53: 88.3950591 | I53: -181155.74229733i | J53: -5032103.95270359i | K53: 31873.5609757269-169377.011307898i | L53: 4750 | M53: -5.79519290467761+30.7958202377996i | N53: 1+0.216603821236669i | O53: 1+0.0000938419052270395i | P53: 8.26793495892561-1.79005404150989i | Q53: 0.999999698852081-0.000802617450279357i | R53: 8.26649574044354-1.79668949131465i | S53: 18.54688811 | T53: -12.26229316 | U53: 0.5857020818
A54: 47.6357889 | B54: 642.8073117 | C54: 29.12852147 | D54: 100.2851777 | E54: 18.50726743 | F54: -13.41685073 | G54: 47.6357889 | H54: 86.86832696 | I54: -165062.365437782i | J54: -4585065.70660507i | K54: 28089.4331194887-154793.78577454i | L54: 4750 | M54: -5.10716965808885+28.14432468628i | N54: 1+0.237722426408322i | O54: 1+0.000102991375138192i | P54: 8.19288358056721-1.94674070495431i | Q54: 0.999999637266233-0.000880871668392499i | R54: 8.19116577999899-1.95395687783428i | S54: 18.50726743 | T54: -13.41685073 | U54: 0.6428073117
A55: 46.7944751 | B55: 705.4802311 | C55: 28.33445595 | D55: 99.99945747 | E55: 18.46001915 | F55: -14.67142509 | G55: 46.7944751 | H55: 85.32803238 | I55: -150398.679823232i | J55: -4177741.10620087i | K55: 24930.5806908142-141396.178190604i | L55: 4750 | M55: -4.5328328528753+25.7083960346552i | N55: 1+0.260900069513148i | O55: 1+0.000113032907070598i | P55: 8.10427417008119-2.11342731906712i | Q55: 0.999999563085847-0.00096675557859621i | R55: 8.10222746155844-2.12126124794521i | S55: 18.46001915 | T55: -14.67142509 | U55: 0.7054802311
A56: 45.9430243 | B56: 774.2636827 | C56: 27.53924173 | D56: 99.79818371 | E56: 18.40378257 | F56: -16.03208716 | G56: 45.9430243 | H56: 83.76609655 | I56: -137037.675623867i | J56: -3806602.10066297i | K56: 22296.0976846248-129105.038871311i | L56: 4750 | M56: -4.05383594265905+23.4736434311474i | N56: 1+0.286337504207732i | O56: 1+0.000124053475970073i | P56: 8.0000569630317-2.28964257867341i | Q56: 0.999999473735288-0.00106101306723269i | R56: 7.99762341218876-2.2981295386917i | S56: 18.40378257 | T56: -16.03208716 | U56: 0.7742636827
A57: 45.08031136 | B57: 849.7534359 | C57: 26.74331314 | D57: 99.67991627 | E57: 18.33699822 | F57: -17.50450775 | G57: 45.08031136 | H57: 82.17540852 | I57: -124863.626213103i | J57: -3468434.06147508i | K57: 20100.6148544163-117842.141298067i | L57: 4750 | M57: -3.6546572462575+21.4258438723758i | N57: 1+0.314255057382349i | O57: 1+0.000136148536732277i | P57: 7.87803292188885-2.47453323146303i | Q57: 0.999999366112194-0.00116446054889602i | R57: 7.87514643177487-2.48370532142703i | S57: 18.33699822 | T57: -17.50450775 | U57: 0.8497534359
A58: 44.20497837 | B58: 932.6033469 | C58: 25.94708201 | D58: 99.64379225 | E58: 18.25789636 | F58: -19.09369672 | G58: 44.20497837 | H58: 80.55009552 | I58: -113771.085798905i | J58: -3160307.93885848i | K58: 18272.1415792768-107531.495452081i | L58: 4750 | M58: -3.3222075598685+19.5511809912874i | N58: 1+0.344894537527077i | O58: 1+0.00014942285098736i | P58: 7.73590976487846-2.66677966619323i | Q58: 0.999999236479752-0.00127799403792824i | R58: 7.73249572984085-2.67666407661042i | S58: 18.25789636 | T58: -19.09369672 | U58: 0.9326033469
A59: 43.31544263 | B59: 1023.531022 | C59: 25.15095062 | D59: 99.6895303 | E59: 18.16449201 | F59: -20.80369012 | G59: 43.31544263 | H59: 78.88584018 | I59: -103663.976102782i | J59: -2879554.89174394i | K59: 16750.1317474464-98100.2385002823i | L59: 4750 | M59: -3.0454784995357+17.8364070000513i | N59: 1+0.378521329161267i | O59: 1+0.000163991394495082i | P59: 7.57138840726777-2.86451254853085i | Q59: 0.999999080336951-0.00140259690940373i | R59: 7.5673636876941-2.87512952012443i | S59: 18.16449201 | T59: -20.80369012 | U59: 1.023531022
A60: 42.40991414 | B60: 1123.324033 | C60: 24.35532439 | D60: 99.81743053 | E60: 18.05458975 | F60: -22.63718871 | G60: 42.40991414 | H60: 77.18024182 | I60: -94454.7541757011i | J60: -2623743.17154725i | K60: 15483.777074073-89479.2028050645i | L60: 4750 | M60: -2.81523219528599+16.2689459645572i | N60: 1+0.415426691467281i | O60: 1+0.000179980353009836i | P60: 7.38228485818114-3.06524032401019i | Q60: 0.999998892262302-0.00153934841683439i | R60: 7.37755820770592-3.07660083703699i | S60: 18.05458975 | T60: -22.63718871 | U60: 1.123324033
A61: 41.48642631 | B61: 1232.846739 | C61: 23.56062468 | D61: 100.02837 | E61: 17.92580163 | F61: -24.59515864 | G61: 41.48642631 | H61: 75.43321139 | I61: -86063.6541429428i | J61: -2390657.05952619i | K61: 14430.5189702548-81603.2414368025i | L61: 4750 | M61: -2.6237307218645+14.8369529885095i | N61: 1+0.455930281038206i | O61: 1+0.0001975282152413i | P61: 7.16668985433785-3.26580118084802i | Q61: 0.999998665725587-0.00168943304038625i | R61: 7.16116293958869-3.27790446600319i | S61: 17.92580163 | T61: -24.59515864 | U61: 1.232846739
A62: 40.54288355 | B62: 1353.047775 | C62: 22.76730191 | D62: 100.3237937 | E62: 17.77558164 | F62: -26.67641436 | G62: 40.54288355 | H62: 73.64737935 | I62: -78417.9963102543i | J62: -2178277.67528483i | K62: 13554.76303135-74411.3744939379i | L62: 4750 | M62: -2.46450236933636+13.5293408170796i | N62: 1+0.500382920590333i | O62: 1+0.000216786972377373i | P62: 6.92316352323577-3.46235634752896i | Q62: 0.999998392861115-0.00185415074659592i | R62: 6.91673266614371-3.47518737185685i | S62: 17.77558164 | T62: -26.67641436 | U62: 1.353047775
